Workbook

Sheet Contents

Sheet Operation
J2: FALSE

Sheet InputC
D2: Project | E2: =scenario -> 3 | F2: Project IRR | G2: ='Template Model'!G1 -> 0.09591783169 | J2: 3
F3: Equity IRR | G3: ='Template Model'!G198 -> 0.2022797105
F4: Debt IRR | G4: ='Template Model'!G200 -> 0.03791475143
B5: General
C6: Project Number | I6: 1 | J6: 2 | K6: 3 | L6: 4 | M6: 5 | N6: 6 | O6: 7 | P6: 8 | Q6: 9 | R6: 10 | S6: 11 | T6: 12
C7: Flag for Include | I7: TRUE | J7: TRUE | K7: TRUE | L7: TRUE | M7: TRUE | N7: TRUE | O7: TRUE | P7: TRUE | Q7: TRUE | R7: TRUE | S7: TRUE | T7: TRUE
C8: Project Name | F8: =INDEX(I8:XFD8,InputC!J2) -> Project 3 - BESS | I8: Project 1 - Solar | J8: Project 2 - Wind | K8: Project 3 - BESS | L8: Project 4 - Solar 2 | M8: Project 5 - Wind 2 | N8: Project 6 - BESS 2 | O8: Project 7 - Solar 3 | P8: Project 8 - Wind 3 | Q8: Project 9 - BESS 3 | R8: Project 10 - Solar 4 | S8: Project 11 - Wind 4 | T8: Project 12 - BESS 4
B10: Timeline
D11: Construction Start | E11: Date | F11: =INDEX(I11:AG11,InputC!$J$2) -> 2027-03-01 | I11: 2025-01-01 | J11: =EDATE(I11,11) -> 2025-12-01 | K11: =EDATE(J11,15) -> 2027-03-01 | L11: =EDATE(K11,15) -> 2028-06-01 | M11: =EDATE(L11,12) -> 2029-06-01 | N11: =EDATE(M11,8) -> 2030-02-01 | O11: =EDATE(N11,16) -> 2031-06-01 | P11: =EDATE(O11,10) -> 2032-04-01 | Q11: =EDATE(P11,10) -> 2033-02-01 | R11: =EDATE(Q11,12) -> 2034-02-01 | S11: =EDATE(R11,14) -> 2035-04-01 | T11: =EDATE(S11,11) -> 2036-03-01
D12: Construction months | E12: months | F12: =INDEX(I12:AG12,InputC!$J$2) -> 8 | I12: 6 | J12: 18 | K12: 8 | L12: 9 | M12: 16 | N12: 7 | O12: 11 | P12: 17 | Q12: 5 | R12: 12 | S12: 18 | T12: 8
D14: Commercial Operation Date | E14: date | F14: =INDEX(I14:AG14,InputC!$J$2) -> 2027-11-01 | I14: =EDATE(I11,I12) -> 2025-07-01 | J14: 2027-06-01 | K14: 2027-11-01 | L14: 2029-03-01 | M14: 2030-10-01 | N14: 2030-09-01 | O14: 2032-05-01 | P14: 2033-09-01 | Q14: 2033-07-01 | R14: 2035-02-01 | S14: 2036-10-01 | T14: 2036-11-01
D15: Months in period - construction | E15: months | F15: =INDEX(I15:AG15,InputC!$J$2) -> 1 | I15: 1 | J15: 1 | K15: 1 | L15: 1 | M15: 1 | N15: 1 | O15: 1 | P15: 1 | Q15: 1 | R15: 1 | S15: 1 | T15: 1
D16: Months in period - operations | E16: months | F16: =INDEX(I16:AG16,InputC!$J$2) -> 1 | I16: 1 | J16: 1 | K16: 1 | L16: 1 | M16: 1 | N16: 1 | O16: 1 | P16: 1 | Q16: 1 | R16: 1 | S16: 1 | T16: 1
D18: Operations Period | E18: years | F18: =INDEX(I18:AG18,InputC!$J$2) -> 20 | I18: 35 | J18: 30 | K18: 20 | L18: 32 | M18: 33 | N18: 18 | O18: 35 | P18: 28 | Q18: 17 | R18: 35 | S18: 30 | T18: 20
D19: Operations End Date | E19: date | F19: =INDEX(I19:AG19,InputC!$J$2) -> 2047-11-01 | I19: =EDATE(I14,I18*months) -> 2060-07-01 | J19: 2057-06-01 | K19: 2047-11-01 | L19: 2061-03-01 | M19: 2063-10-01 | N19: 2048-09-01 | O19: 2067-05-01 | P19: 2061-09-01 | Q19: 2050-07-01 | R19: 2070-02-01 | S19: 2066-10-01 | T19: 2056-11-01
B21: Operations - Capacity and Production
C23: Solar
D24: Capacity - DC | E24: kWp | F24: =INDEX(I24:AG24,InputC!$J$2) -> 0 | I24: 1200 | L24: 2000 | O24: 800 | R24: 1500
D25: DC/AC Ratio | E25: Ratio | F25: =INDEX(I25:AG25,InputC!$J$2) -> 0 | I25: 1.2 | L25: 1.2 | O25: 1.2 | R25: 1.2
D26: Capacity - AC | E26: kWac | F26: =INDEX(I26:AG26,InputC!$J$2) -> 0 | I26: =I24/I25 -> 1000 | L26: =L24/L25 -> 1666.666667 | O26: 666.6666667 | R26: 1250
D27: Yield | E27: kWh/kWp | F27: =INDEX(I27:AG27,InputC!$J$2) -> 0 | I27: =8760*0.24 -> 2102.4 | L27: =8760*0.23 -> 2014.8 | O27: =8760*0.21 -> 1839.6 | R27: =8760*0.23 -> 2014.8
C29: Wind
D30: Capacity | E30: kW | F30: =INDEX(I30:AG30,InputC!$J$2) -> 0 | J30: 800 | M30: 1400 | P30: 900 | S30: 1800
D31: Capacity Factor | E31: % | F31: =INDEX(I31:AG31,InputC!$J$2) -> 0 | J31: 0.35 | M31: 0.25 | P31: 0.36 | S31: 0.41
C33: Battery
D34: Inverter Capacity | E34: kW | F34: =INDEX(I34:AG34,InputC!$J$2) -> 400 | K34: 400 | N34: 600 | Q34: 550 | T34: 2000
D35: Duration | E35: Hours | F35: =INDEX(I35:AG35,InputC!$J$2) -> 2 | K35: 2 | N35: 1 | Q35: 4 | T35: 4
D36: Storage Capacity | E36: kWh | F36: =INDEX(I36:AG36,InputC!$J$2) -> 800 | K36: =K34*K35 -> 800 | N36: =N34*N35 -> 600 | Q36: =Q34*Q35 -> 2200 | T36: =T34*T35 -> 8000
D37: Availability Factor | E37: % | F37: =INDEX(I37:AG37,InputC!$J$2) -> 0.97 | K37: 0.97 | N37: 0.95 | Q37: 0.98 | T37: 0.98
C39: Degradation | E39: % p.a | F39: =INDEX(I39:AG39,InputC!$J$2) -> 0.023 | I39: 0.005 | J39: 0 | K39: 0.023 | L39: 0.004 | M39: 0 | N39: 0.023 | O39: 0.005 | P39: 0 | Q39: 0.023 | R39: 0.005 | S39: 0 | T39: 0.023
B41: Operating Cash Flows
C43: Inflation Code | E43: Code | F43: =INDEX(I43:AG43,InputC!$J$2) -> 3 | I43: 1 | J43: 2 | K43: 3 | L43: 1 | M43: 2 | N43: 3 | O43: 1 | P43: 1 | Q43: 1 | R43: 1 | S43: 1 | T43: 1
C45: Capital Expenditure
D46: Capital Expenditure - Solar | E46: USD/kWp | F46: =INDEX(I46:AG46,InputC!$J$2) -> 0 | I46: 360 | L46: 400 | O46: 380 | R46: 450
D47: Capital Expenditure - Wind | E47: USD/kW | F47: =INDEX(I47:AG47,InputC!$J$2) -> 0 | J47: 850 | M47: 800 | P47: 900 | S47: 700
D48: Capital Expenditure - BESS | E48: USD/kWh | F48: =INDEX(I48:AG48,InputC!$J$2) -> 350 | K48: 350 | N48: 250 | Q48: 100 | T48: 75
C50: Price
D51: Price per kWh - Solar/Wind | E51: USD/kWh | F51: =INDEX(I51:AG51,InputC!$J$2) -> 0 | I51: 0.014 | J51: 0.027 | L51: 0.016 | M51: 0.04 | O51: 0.016 | P51: 0.03 | R51: 0.015 | S51: 0.025
D52: Price per kWh - Battery | E52: USD/kWh | F52: =INDEX(I52:AG52,InputC!$J$2) -> 0.0055 | K52: 0.0055 | N52: 0.0032 | Q52: 0.0018 | T52: 0.0016
D53: Inflate PPA | E53: Flag | F53: =INDEX(I53:AG53,InputC!$J$2) -> FALSE | I53: TRUE | J53: TRUE | K53: FALSE | L53: TRUE | M53: FALSE | N53: TRUE | O53: TRUE | P53: FALSE | Q53: TRUE | R53: TRUE | S53: FALSE | T53: TRUE
C55: Operating and Maintenance
D56: Solar O&M | E56: USD/kWy | F56: =INDEX(I56:AG56,InputC!$J$2) -> 0 | I56: 6 | L56: 5 | O56: 4 | R56: 4
D57: Wind O&M | E57: USD/kWy | F57: =INDEX(I57:AG57,InputC!$J$2) -> 0 | J57: 16 | M57: 16 | P57: 18 | S57: 15
D58: Battery O&M | E58: USD/kwhy | F58: =INDEX(I58:AG58,InputC!$J$2) -> 3 | K58: 3 | N58: 2 | Q58: 4 | T58: 3
B61: Valuation
D62: Risk Free Rate | E62: % p.a. | F62: =INDEX(I62:AG62,InputC!$J$2) -> 0.035 | I62: 0.035 | J62: 0.035 | K62: 0.035 | L62: 0.035 | M62: 0.035 | N62: 0.035 | O62: 0.035 | P62: 0.035 | Q62: 0.035 | R62: 0.035 | S62: 0.035 | T62: 0.035
D63: Valuation Discount Rate | E63: % p.a. | F63: =INDEX(I63:AG63,InputC!$J$2) -> 0.06 | I63: 0.06 | J63: 0.06 | K63: 0.06 | L63: 0.06 | M63: 0.06 | N63: 0.06 | O63: 0.06 | P63: 0.06 | Q63: 0.06 | R63: 0.06 | S63: 0.06 | T63: 0.06
B65: Debt Structuring
C66: Max Debt to Capital | E66: % | F66: =INDEX(I66:AG66,InputC!$J$2) -> 0.8 | I66: 0.8 | J66: 0.8 | K66: 0.8 | L66: 0.8 | M66: 0.8 | N66: 0.8 | O66: 0.8 | P66: 0.8 | Q66: 0.8 | R66: 0.8 | S66: 0.8 | T66: 0.8
C67: Min DSCR | E67: x | F67: =INDEX(I67:AG67,InputC!$J$2) -> 1.4 | I67: 1.2 | J67: 1.3 | K67: 1.4 | L67: 1.3 | M67: 1.4 | N67: 1.4 | O67: 1.4 | P67: 1.4 | Q67: 1.4 | R67: 1.4 | S67: 1.4 | T67: 1.4
C69: Debt Tenure | E69: Years | F69: =INDEX(I69:AG69,InputC!$J$2) -> 12 | I69: 23 | J69: 20 | K69: 12 | L69: 24 | M69: 20 | N69: 10 | O69: 25 | P69: 22 | Q69: 12 | R69: 21 | S69: 15 | T69: 11
C71: Base SOFR Swap Rate | E71: % p.a. | F71: =INDEX(I71:AG71,InputC!$J$2) -> 0.04 | I71: 0.04 | J71: 0.04 | K71: 0.04 | L71: 0.04 | M71: 0.04 | N71: 0.04 | O71: 0.04 | P71: 0.04 | Q71: 0.04 | R71: 0.04 | S71: 0.04 | T71: 0.04
C72: Credit Spread | E72: % p.a. | F72: =INDEX(I72:AG72,InputC!$J$2) -> 0.015 | I72: 0.01 | J72: 0.012 | K72: 0.015 | L72: 0.011 | M72: 0.011 | N72: 0.011 | O72: 0.011 | P72: 0.011 | Q72: 0.011 | R72: 0.01 | S72: 0.012 | T72: 0.015
C74: Pro-Rata Funding | E74: Flag | F74: =INDEX(I74:AG74,InputC!$J$2) -> TRUE | I74: TRUE | J74: TRUE | K74: TRUE | L74: TRUE | M74: TRUE | N74: TRUE | O74: TRUE | P74: TRUE | Q74: TRUE | R74: TRUE | S74: TRUE | T74: TRUE
C75: Equity Up-front | E75: Flag | F75: =INDEX(I75:AG75,InputC!$J$2) -> FALSE | I75: =NOT(I74) -> FALSE | J75: FALSE | K75: FALSE | L75: FALSE | M75: FALSE | N75: FALSE | O75: FALSE | P75: FALSE | Q75: FALSE | R75: FALSE | S75: FALSE | T75: FALSE
B77: Constants
D78: Months in a year | F78: 12 | G78: months
D79: One Range Name | F79: 1 | G79: One
D136: =TRANSPOSE(I8:AK8) -> Project 1 - Solar
D137: Project 2 - Wind
D138: Project 3 - BESS
D139: Project 4 - Solar 2
D140: Project 5 - Wind 2
D141: Project 6 - BESS 2
D142: Project 7 - Solar 3
D143: Project 8 - Wind 3
D144: Project 9 - BESS 3
D145: Project 10 - Solar 4
D146: Project 11 - Wind 4
D147: Project 12 - BESS 4
D148: 0
D149: 0
D150: 0
D151: 0
D152: 0
D153: 0
D154: 0
D155: 0
D156: 0
D157: 0
D158: 0
D159: 0
D160: 0
D161: 0
D162: 0
D163: 0
D164: 0

Sheet InputS
B3: General
C4: Start of Timeline | E4: Date | G4: 2025-01-01
C6: Year | G6: 2025 | H6: 2026 | I6: 2027 | J6: 2028 | K6: 2029 | L6: 2030 | M6: 2031 | N6: 2032 | O6: 2033 | P6: 2034 | Q6: 2035 | R6: 2036 | S6: 2037
C8: Inflation Code | E8: =InputC!F43 -> 3
E9: Row
C10: Inflation Rate 1 | E10: =ROW() -> 10 | F10: 1 | G10: 0.03 | H10: 0.027 | I10: 0.025 | J10: 0.026 | K10: 0.02 | L10: 0.02 | M10: 0.02 | N10: 0.02 | O10: 0.02 | P10: 0.02 | Q10: 0.02 | R10: 0.02 | S10: 0.02
C11: Inflation Rate 2 | E11: =ROW() -> 11 | F11: 2 | G11: 0.025 | H11: 0.03 | I11: 0.03 | J11: 0.03 | K11: 0.03 | L11: 0.03 | M11: 0.03 | N11: 0.03 | O11: 0.03 | P11: 0.03 | Q11: 0.03 | R11: 0.03 | S11: 0.03
C12: Inflation Rate 3 | E12: =ROW() -> 12 | F12: 3 | G12: 0.02 | H12: 0.02 | I12: 0.02 | J12: 0.02 | K12: 0.02 | L12: 0.02 | M12: 0.02 | N12: 0.02 | O12: 0.02 | P12: 0.02 | Q12: 0.02 | R12: 0.02 | S12: 0.02
C14: =INDEX(C10:C12,$E$8) -> Inflation Rate 3 | G14: =INDEX(G10:G12,$E$8) -> 0.02 | H14: =INDEX(H10:H12,$E$8) -> 0.02 | I14: =INDEX(I10:I12,$E$8) -> 0.02 | J14: =INDEX(J10:J12,$E$8) -> 0.02 | K14: =INDEX(K10:K12,$E$8) -> 0.02 | L14: =INDEX(L10:L12,$E$8) -> 0.02 | M14: =INDEX(M10:M12,$E$8) -> 0.02 | N14: =INDEX(N10:N12,$E$8) -> 0.02 | O14: =INDEX(O10:O12,$E$8) -> 0.02 | P14: =INDEX(P10:P12,$E$8) -> 0.02 | Q14: =INDEX(Q10:Q12,$E$8) -> 0.02 | R14: =INDEX(R10:R12,$E$8) -> 0.02 | S14: =INDEX(S10:S12,$E$8) -> 0.02
C17: Month | G17: 1 | H17: 2 | I17: 3 | J17: 4 | K17: 5 | L17: 6 | M17: 7 | N17: 8 | O17: 9 | P17: 10 | Q17: 11 | R17: 12
C19: Seasonal Code
C21: Seasonal Factor 1 | G21: 1 | H21: 1 | I21: 1 | J21: 1 | K21: 1 | L21: 1 | M21: 1 | N21: 1 | O21: 1 | P21: 1 | Q21: 1 | R21: 1
C22: Seasonal Factor 2 | G22: 1.010228864 | H22: 1.085098322 | I22: 1.120939167 | J22: 1.128255791 | K22: 1.066213276 | L22: 0.9469052647 | M22: 0.8225408548 | N22: 0.8149307676 | O22: 0.9326991802 | P22: 1.058163157 | Q22: 1.015033325 | R22: 0.9989920294

Sheet Template Model
E1: 2 | F1: PIRR | G1: =G73 -> 0.09591783169
B2: Timeline | E2: Input Units | F2: Constants | G2: Constants | H2: Sum | I2: Model Units | J2: Initial
D3: Time Period | I3: Period | K3: 1 | L3: 2 | M3: 3 | N3: 4 | O3: 5 | P3: 6 | Q3: 7 | R3: 8 | S3: 9 | T3: 10 | U3: 11 | V3: 12 | W3: 13 | X3: 14 | Y3: 15 | Z3: 16 | AA3: 17 | AB3: 18 | AC3: 19 | AD3: 20 | AE3: 21 | AF3: 22 | AG3: 23 | AH3: 24 | AI3: 25 | AJ3: 26 | AK3: 27 | AL3: 28 | AM3: 29 | AN3: 30 | AO3: 31 | AP3: 32 | AQ3: 33 | AR3: 34 | AS3: 35 | AT3: 36 | AU3: 37 | AV3: 38 | AW3: 39 | AX3: 40 | AY3: 41 | AZ3: 42 | BA3: 43 | BB3: 44 | BC3: 45 | BD3: 46 | BE3: 47 | BF3: 48 | BG3: 49 | BH3: 50 | BI3: 51 | BJ3: 52 | BK3: 53 | BL3: 54 | BM3: 55 | BN3: 56 | BO3: 57 | BP3: 58 | BQ3: 59 | BR3: 60 | BS3: 61 | BT3: 62 | BU3: 63 | BV3: 64 | BW3: 65 | BX3: 66 | BY3: 67 | BZ3: 68 | CA3: 69 | CB3: 70 | CC3: 71 | CD3: 72 | CE3: 73 | CF3: 74 | CG3: 75 | CH3: 76 | CI3: 77 | CJ3: 78 | CK3: 79 | CL3: 80 | CM3: 81 | CN3: 82 | CO3: 83 | CP3: 84 | CQ3: 85 | CR3: 86 | CS3: 87 | CT3: 88 | CU3: 89 | CV3: 90 | CW3: 91 | CX3: 92 | CY3: 93 | CZ3: 94 | DA3: 95 | DB3: 96 | DC3: 97 | DD3: 98 | DE3: 99 | DF3: 100 | DG3: 101 | DH3: 102 | DI3: 103 | DJ3: 104 | DK3: 105 | DL3: 106 | DM3: 107 | DN3: 108 | DO3: 109 | DP3: 110 | DQ3: 111 | DR3: 112 | DS3: 113 | DT3: 114 | DU3: 115 | DV3: 116 | DW3: 117 | DX3: 118 | DY3: 119 | DZ3: 120 | EA3: 121 | EB3: 122 | EC3: 123 | ED3: 124 | EE3: 125 | EF3: 126 | EG3: 127 | EH3: 128 | EI3: 129 | EJ3: 130 | EK3: 131 | EL3: 132 | EM3: 133 | EN3: 134 | EO3: 135 | EP3: 136 | EQ3: 137 | ER3: 138 | ES3: 139 | ET3: 140 | EU3: 141 | EV3: 142 | EW3: 143 | EX3: 144 | EY3: 145 | EZ3: 146 | FA3: 147 | FB3: 148 | FC3: 149 | FD3: 150 | FE3: 151 | FF3: 152 | FG3: 153 | FH3: 154 | FI3: 155 | FJ3: 156 | FK3: 157 | FL3: 158 | FM3: 159 | FN3: 160 | FO3: 161 | FP3: 162 | FQ3: 163 | FR3: 164 | FS3: 165 | FT3: 166 | FU3: 167 | FV3: 168 | FW3: 169 | FX3: 170 | FY3: 171 | FZ3: 172 | GA3: 173 | GB3: 174 | GC3: 175 | GD3: 176 | GE3: 177 | GF3: 178 | GG3: 179 | GH3: 180 | GI3: 181 | GJ3: 182 | GK3: 183 | GL3: 184 | GM3: 185 | GN3: 186 | GO3: 187 | GP3: 188 | GQ3: 189 | GR3: 190 | GS3: 191 | GT3: 192 | GU3: 193 | GV3: 194 | GW3: 195 | GX3: 196 | GY3: 197 | GZ3: 198 | HA3: 199 | HB3: 200 | HC3: 201 | HD3: 202 | HE3: 203 | HF3: 204 | HG3: 205 | HH3: 206 | HI3: 207 | HJ3: 208 | HK3: 209 | HL3: 210 | HM3: 211 | HN3: 212 | HO3: 213 | HP3: 214 | HQ3: 215 | HR3: 216 | HS3: 217 | HT3: 218 | HU3: 219 | HV3: 220 | HW3: 221 | HX3: 222 | HY3: 223 | HZ3: 224 | IA3: 225 | IB3: 226 | IC3: 227 | ID3: 228 | IE3: 229 | IF3: 230 | IG3: 231 | IH3: 232 | II3: 233 | IJ3: 234 | IK3: 235 | IL3: 236 | IM3: 237 | IN3: 238 | IO3: 239 | IP3: 240 | IQ3: 241 | IR3: 242 | IS3: 243 | IT3: 244 | IU3: 245 | IV3: 246 | IW3: 247 | IX3: 248 | IY3: 249 | IZ3: 250 | JA3: 251 | JB3: 252 | JC3: 253 | JD3: 254 | JE3: 255 | JF3: 256 | JG3: 257 | JH3: 258 | JI3: 259 | JJ3: 260 | JK3: 261 | JL3: 262 | JM3: 263 | JN3: 264 | JO3: 265 | JP3: 266 | JQ3: 267 | JR3: 268 | JS3: 269 | JT3: 270 | JU3: 271 | JV3: 272 | JW3: 273 | JX3: 274 | JY3: 275 | JZ3: 276 | KA3: 277 | KB3: 278 | KC3: 279 | KD3: 280 | KE3: 281 | KF3: 282 | KG3: 283 | KH3: 284 | KI3: 285 | KJ3: 286 | KK3: 287 | KL3: 288 | KM3: 289 | KN3: 290 | KO3: 291 | KP3: 292 | KQ3: 293 | KR3: 294 | KS3: 295 | KT3: 296 | KU3: 297 | KV3: 298 | KW3: 299 | KX3: 300 | KY3: 301 | KZ3: 302 | LA3: 303 | LB3: 304 | LC3: 305 | LD3: 306 | LE3: 307 | LF3: 308 | LG3: 309 | LH3: 310 | LI3: 311 | LJ3: 312 | LK3: 313 | LL3: 314 | LM3: 315 | LN3: 316 | LO3: 317 | LP3: 318 | LQ3: 319 | LR3: 320 | LS3: 321 | LT3: 322 | LU3: 323 | LV3: 324 | LW3: 325 | LX3: 326 | LY3: 327 | LZ3: 328 | MA3: 329 | MB3: 330 | MC3: 331 | MD3: 332 | ME3: 333 | MF3: 334 | MG3: 335 | MH3: 336 | MI3: 337 | MJ3: 338 | MK3: 339 | ML3: 340 | MM3: 341 | MN3: 342 | MO3: 343 | MP3: 344 | MQ3: 345 | MR3: 346 | MS3: 347 | MT3: 348 | MU3: 349 | MV3: 350 | MW3: 351 | MX3: 352 | MY3: 353 | MZ3: 354 | NA3: 355 | NB3: 356 | NC3: 357 | ND3: 358 | NE3: 359 | NF3: 360 | NG3: 361 | NH3: 362 | NI3: 363 | NJ3: 364 | NK3: 365 | NL3: 366 | NM3: 367 | NN3: 368 | NO3: 369 | NP3: 370 | NQ3: 371 | NR3: 372 | NS3: 373 | NT3: 374 | NU3: 375 | NV3: 376 | NW3: 377 | NX3: 378 | NY3: 379 | NZ3: 380 | OA3: 381 | OB3: 382 | OC3: 383 | OD3: 384 | OE3: 385 | OF3: 386 | OG3: 387 | OH3: 388 | OI3: 389 | OJ3: 390 | OK3: 391 | OL3: 392 | OM3: 393 | ON3: 394 | OO3: 395 | OP3: 396 | OQ3: 397 | OR3: 398 | OS3: 399 | OT3: 400 | OU3: 401 | OV3: 402 | OW3: 403 | OX3: 404 | OY3: 405 | OZ3: 406 | PA3: 407 | PB3: 408 | PC3: 409 | PD3: 410 | PE3: 411 | PF3: 412 | PG3: 413 | PH3: 414 | PI3: 415 | PJ3: 416 | PK3: 417 | PL3: 418 | PM3: 419 | PN3: 420 | PO3: 421 | PP3: 422 | PQ3: 423 | PR3: 424 | PS3: 425 | PT3: 426 | PU3: 427 | PV3: 428 | PW3: 429 | PX3: 430 | PY3: 431 | PZ3: 432 | QA3: 433 | QB3: 434 | QC3: 435 | QD3: 436 | QE3: 437 | QF3: 438 | QG3: 439 | QH3: 440 | QI3: 441 | QJ3: 442 | QK3: 443 | QL3: 444 | QM3: 445 | QN3: 446 | QO3: 447 | QP3: 448 | QQ3: 449 | QR3: 450 | QS3: 451 | QT3: 452 | QU3: 453 | QV3: 454 | QW3: 455 | QX3: 456 | QY3: 457 | QZ3: 458 | RA3: 459 | RB3: 460 | RC3: 461 | RD3: 462 | RE3: 463 | RF3: 464 | RG3: 465 | RH3: 466 | RI3: 467 | RJ3: 468 | RK3: 469 | RL3: 470 | RM3: 471 | RN3: 472 | RO3: 473 | RP3: 474 | RQ3: 475 | RR3: 476 | RS3: 477 | RT3: 478 | RU3: 479 | RV3: 480 | RW3: 481 | RX3: 482 | RY3: 483 | RZ3: 484 | SA3: 485 | SB3: 486 | SC3: 487 | SD3: 488 | SE3: 489 | SF3: 490 | SG3: 491 | SH3: 492 | SI3: 493 | SJ3: 494 | SK3: 495 | SL3: 496 | SM3: 497 | SN3: 498 | SO3: 499 | SP3: 500 | SQ3: 501 | SR3: 502 | SS3: 503 | ST3: 504 | SU3: 505 | SV3: 506 | SW3: 507 | SX3: 508 | SY3: 509 | SZ3: 510 | TA3: 511 | TB3: 512 | TC3: 513 | TD3: 514 | TE3: 515 | TF3: 516 | TG3: 517 | TH3: 518 | TI3: 519 | TJ3: 520 | TK3: 521 | TL3: 522 | TM3: 523 | TN3: 524 | TO3: 525 | TP3: 526 | TQ3: 527 | TR3: 528 | TS3: 529 | TT3: 530 | TU3: 531 | TV3: 532 | TW3: 533 | TX3: 534 | TY3: 535 | TZ3: 536 | UA3: 537 | UB3: 538 | UC3: 539 | UD3: 540 | UE3: 541 | UF3: 542 | UG3: 543 | UH3: 544 | UI3: 545 | UJ3: 546 | UK3: 547 | UL3: 548 | UM3: 549 | UN3: 550 | UO3: 551 | UP3: 552 | UQ3: 553 | UR3: 554 | US3: 555 | UT3: 556 | UU3: 557 | UV3: 558 | UW3: 559 | UX3: 560 | UY3: 561 | UZ3: 562 | VA3: 563 | VB3: 564 | VC3: 565 | VD3: 566 | VE3: 567 | VF3: 568 | VG3: 569 | VH3: 570 | VI3: 571 | VJ3: 572 | VK3: 573 | VL3: 574 | VM3: 575 | VN3: 576 | VO3: 577 | VP3: 578 | VQ3: 579 | VR3: 580 | VS3: 581 | VT3: 582 | VU3: 583 | VV3: 584 | VW3: 585 | VX3: 586 | VY3: 587 | VZ3: 588 | WA3: 589 | WB3: 590 | WC3: 591 | WD3: 592 | WE3: 593 | WF3: 594 | WG3: 595 | WH3: 596 | WI3: 597 | WJ3: 598 | WK3: 599 | WL3: 600 | WM3: 601 | WN3: 602 | WO3: 603 | WP3: 604 | WQ3: 605 | WR3: 606 | WS3: 607 | WT3: 608 | WU3: 609 | WV3: 610 | WW3: 611 | WX3: 612 | WY3: 613 | WZ3: 614 | XA3: 615 | XB3: 616 | XC3: 617 | XD3: 618 | XE3: 619 | XF3: 620 | XG3: 621 | XH3: 622 | XI3: 623 | XJ3: 624 | XK3: 625 | XL3: 626 | XM3: 627 | XN3: 628 | XO3: 629 | XP3: 630 | XQ3: 631 | XR3: 632 | XS3: 633 | XT3: 634 | XU3: 635 | XV3: 636 | XW3: 637 | XX3: 638 | XY3: 639 | XZ3: 640 | YA3: 641 | YB3: 642 | YC3: 643 | YD3: 644 | YE3: 645 | YF3: 646 | YG3: 647 | YH3: 648 | YI3: 649 | YJ3: 650 | YK3: 651 | YL3: 652 | YM3: 653 | YN3: 654 | YO3: 655 | YP3: 656 | YQ3: 657 | YR3: 658 | YS3: 659 | YT3: 660 | YU3: 661 | YV3: 662 | YW3: 663 | YX3: 664 | YY3: 665 | YZ3: 666 | ZA3: 667 | ZB3: 668 | ZC3: 669 | ZD3: 670 | ZE3: 671 | ZF3: 672 | ZG3: 673 | ZH3: 674 | ZI3: 675 | ZJ3: 676 | ZK3: 677 | ZL3: 678 | ZM3: 679 | ZN3: 680 | ZO3: 681 | ZP3: 682 | ZQ3: 683 | ZR3: 684 | ZS3: 685 | ZT3: 686 | ZU3: 687 | ZV3: 688 | ZW3: 689 | ZX3: 690 | ZY3: 691 | ZZ3: 692 | AAA3: 693 | AAB3: 694 | AAC3: 695 | AAD3: 696 | AAE3: 697 | AAF3: 698 | AAG3: 699 | AAH3: 700 | AAI3: 701 | AAJ3: 702 | AAK3: 703 | AAL3: 704 | AAM3: 705 | AAN3: 706 | AAO3: 707 | AAP3: 708 | AAQ3: 709 | AAR3: 710 | AAS3: 711 | AAT3: 712 | AAU3: 713 | AAV3: 714 | AAW3: 715 | AAX3: 716 | AAY3: 717 | AAZ3: 718 | ABA3: 719 | ABB3: 720 | ABC3: 721 | ABD3: 722 | ABE3: 723 | ABF3: 724 | ABG3: 725 | ABH3: 726 | ABI3: 727 | ABJ3: 728 | ABK3: 729 | ABL3: 730 | ABM3: 731 | ABN3: 732 | ABO3: 733 | ABP3: 734 | ABQ3: 735 | ABR3: 736 | ABS3: 737 | ABT3: 738 | ABU3: 739 | ABV3: 740 | ABW3: 741 | ABX3: 742 | ABY3: 743 | ABZ3: 744
D4: Start of period | E4: Date | I4: Date | K4: =J5+1 -> 2025-01-01 | L4: =K5+1 -> 2025-02-01 | M4: 2025-03-01 | N4: 2025-04-01 | O4: 2025-05-01 | P4: 2025-06-01 | Q4: 2025-07-01 | R4: 2025-08-01 | S4: 2025-09-01 | T4: 2025-10-01 | U4: 2025-11-01 | V4: 2025-12-01 | W4: 2026-01-01 | X4: 2026-02-01 | Y4: 2026-03-01 | Z4: 2026-04-01 | AA4: 2026-05-01 | AB4: 2026-06-01 | AC4: 2026-07-01 | AD4: 2026-08-01 | AE4: 2026-09-01 | AF4: 2026-10-01 | AG4: 2026-11-01 | AH4: 2026-12-01 | AI4: 2027-01-01 | AJ4: 2027-02-01 | AK4: 2027-03-01 | AL4: 2027-04-01 | AM4: 2027-05-01 | AN4: 2027-06-01 | AO4: 2027-07-01 | AP4: 2027-08-01 | AQ4: 2027-09-01 | AR4: 2027-10-01 | AS4: 2027-11-01 | AT4: 2027-12-01 | AU4: 2028-01-01 | AV4: 2028-02-01 | AW4: 2028-03-01 | AX4: 2028-04-01 | AY4: 2028-05-01 | AZ4: 2028-06-01 | BA4: 2028-07-01 | BB4: 2028-08-01 | BC4: 2028-09-01 | BD4: 2028-10-01 | BE4: 2028-11-01 | BF4: 2028-12-01 | BG4: 2029-01-01 | BH4: 2029-02-01 | BI4: 2029-03-01 | BJ4: 2029-04-01 | BK4: 2029-05-01 | BL4: 2029-06-01 | BM4: 2029-07-01 | BN4: 2029-08-01 | BO4: 2029-09-01 | BP4: 2029-10-01 | BQ4: 2029-11-01 | BR4: 2029-12-01 | BS4: 2030-01-01 | BT4: 2030-02-01 | BU4: 2030-03-01 | BV4: 2030-04-01 | BW4: 2030-05-01 | BX4: =BW5+1 -> 2030-06-01 | BY4: 2030-07-01 | BZ4: 2030-08-01 | CA4: 2030-09-01 | CB4: 2030-10-01 | CC4: 2030-11-01 | CD4: 2030-12-01 | CE4: 2031-01-01 | CF4: 2031-02-01 | CG4: 2031-03-01 | CH4: 2031-04-01 | CI4: 2031-05-01 | CJ4: 2031-06-01 | CK4: 2031-07-01 | CL4: 2031-08-01 | CM4: 2031-09-01 | CN4: 2031-10-01 | CO4: 2031-11-01 | CP4: 2031-12-01 | CQ4: 2032-01-01 | CR4: 2032-02-01 | CS4: 2032-03-01 | CT4: 2032-04-01 | CU4: 2032-05-01 | CV4: 2032-06-01 | CW4: 2032-07-01 | CX4: 2032-08-01 | CY4: 2032-09-01 | CZ4: 2032-10-01 | DA4: 2032-11-01 | DB4: 2032-12-01 | DC4: 2033-01-01 | DD4: 2033-02-01 | DE4: 2033-03-01 | DF4: 2033-04-01 | DG4: 2033-05-01 | DH4: 2033-06-01 | DI4: 2033-07-01 | DJ4: 2033-08-01 | DK4: 2033-09-01 | DL4: 2033-10-01 | DM4: 2033-11-01 | DN4: 2033-12-01 | DO4: 2034-01-01 | DP4: 2034-02-01 | DQ4: 2034-03-01 | DR4: 2034-04-01 | DS4: 2034-05-01 | DT4: 2034-06-01 | DU4: 2034-07-01 | DV4: 2034-08-01 | DW4: 2034-09-01 | DX4: 2034-10-01 | DY4: 2034-11-01 | DZ4: 2034-12-01 | EA4: 2035-01-01 | EB4: 2035-02-01 | EC4: 2035-03-01 | ED4: 2035-04-01 | EE4: 2035-05-01 | EF4: 2035-06-01 | EG4: 2035-07-01 | EH4: 2035-08-01 | EI4: 2035-09-01 | EJ4: =EI5+1 -> 2035-10-01 | EK4: 2035-11-01 | EL4: 2035-12-01 | EM4: 2036-01-01 | EN4: 2036-02-01 | EO4: 2036-03-01 | EP4: 2036-04-01 | EQ4: 2036-05-01 | ER4: 2036-06-01 | ES4: 2036-07-01 | ET4: 2036-08-01 | EU4: 2036-09-01 | EV4: 2036-10-01 | EW4: 2036-11-01 | EX4: 2036-12-01 | EY4: 2037-01-01 | EZ4: 2037-02-01 | FA4: 2037-03-01 | FB4: 2037-04-01 | FC4: 2037-05-01 | FD4: 2037-06-01 | FE4: 2037-07-01 | FF4: 2037-08-01 | FG4: 2037-09-01 | FH4: 2037-10-01 | FI4: 2037-11-01 | FJ4: 2037-12-01 | FK4: 2038-01-01 | FL4: 2038-02-01 | FM4: 2038-03-01 | FN4: 2038-04-01 | FO4: 2038-05-01 | FP4: 2038-06-01 | FQ4: 2038-07-01 | FR4: 2038-08-01 | FS4: 2038-09-01 | FT4: 2038-10-01 | FU4: 2038-11-01 | FV4: 2038-12-01 | FW4: 2039-01-01 | FX4: 2039-02-01 | FY4: 2039-03-01 | FZ4: 2039-04-01 | GA4: 2039-05-01 | GB4: 2039-06-01 | GC4: 2039-07-01 | GD4: 2039-08-01 | GE4: 2039-09-01 | GF4: 2039-10-01 | GG4: 2039-11-01 | GH4: 2039-12-01 | GI4: 2040-01-01 | GJ4: 2040-02-01 | GK4: 2040-03-01 | GL4: 2040-04-01 | GM4: 2040-05-01 | GN4: 2040-06-01 | GO4: 2040-07-01 | GP4: 2040-08-01 | GQ4: 2040-09-01 | GR4: 2040-10-01 | GS4: 2040-11-01 | GT4: 2040-12-01 | GU4: 2041-01-01 | GV4: =GU5+1 -> 2041-02-01 | GW4: 2041-03-01 | GX4: 2041-04-01 | GY4: 2041-05-01 | GZ4: 2041-06-01 | HA4: 2041-07-01 | HB4: 2041-08-01 | HC4: 2041-09-01 | HD4: 2041-10-01 | HE4: 2041-11-01 | HF4: 2041-12-01 | HG4: 2042-01-01 | HH4: 2042-02-01 | HI4: 2042-03-01 | HJ4: 2042-04-01 | HK4: 2042-05-01 | HL4: 2042-06-01 | HM4: 2042-07-01 | HN4: 2042-08-01 | HO4: 2042-09-01 | HP4: 2042-10-01 | HQ4: 2042-11-01 | HR4: 2042-12-01 | HS4: 2043-01-01 | HT4: 2043-02-01 | HU4: 2043-03-01 | HV4: 2043-04-01 | HW4: 2043-05-01 | HX4: 2043-06-01 | HY4: 2043-07-01 | HZ4: 2043-08-01 | IA4: 2043-09-01 | IB4: 2043-10-01 | IC4: 2043-11-01 | ID4: 2043-12-01 | IE4: 2044-01-01 | IF4: 2044-02-01 | IG4: 2044-03-01 | IH4: 2044-04-01 | II4: 2044-05-01 | IJ4: 2044-06-01 | IK4: 2044-07-01 | IL4: 2044-08-01 | IM4: 2044-09-01 | IN4: 2044-10-01 | IO4: 2044-11-01 | IP4: 2044-12-01 | IQ4: 2045-01-01 | IR4: 2045-02-01 | IS4: 2045-03-01 | IT4: 2045-04-01 | IU4: 2045-05-01 | IV4: 2045-06-01 | IW4: 2045-07-01 | IX4: 2045-08-01 | IY4: 2045-09-01 | IZ4: 2045-10-01 | JA4: =IZ5+1 -> 2045-11-01 | JB4: =JA5+1 -> 2045-12-01 | JC4: =JB5+1 -> 2046-01-01 | JD4: =JC5+1 -> 2046-02-01 | JE4: =JD5+1 -> 2046-03-01 | JF4: =JE5+1 -> 2046-04-01 | JG4: =JF5+1 -> 2046-05-01 | JH4: =JG5+1 -> 2046-06-01 | JI4: =JH5+1 -> 2046-07-01 | JJ4: =JI5+1 -> 2046-08-01 | JK4: =JJ5+1 -> 2046-09-01 | JL4: =JK5+1 -> 2046-10-01 | JM4: =JL5+1 -> 2046-11-01 | JN4: =JM5+1 -> 2046-12-01 | JO4: =JN5+1 -> 2047-01-01 | JP4: =JO5+1 -> 2047-02-01 | JQ4: =JP5+1 -> 2047-03-01 | JR4: =JQ5+1 -> 2047-04-01 | JS4: =JR5+1 -> 2047-05-01 | JT4: =JS5+1 -> 2047-06-01 | JU4: =JT5+1 -> 2047-07-01 | JV4: =JU5+1 -> 2047-08-01 | JW4: =JV5+1 -> 2047-09-01 | JX4: =JW5+1 -> 2047-10-01 | JY4: =JX5+1 -> 2047-11-01 | JZ4: =JY5+1 -> 2047-12-01 | KA4: =JZ5+1 -> 2048-01-01 | KB4: =KA5+1 -> 2048-02-01 | KC4: =KB5+1 -> 2048-03-01 | KD4: =KC5+1 -> 2048-04-01 | KE4: =KD5+1 -> 2048-05-01 | KF4: =KE5+1 -> 2048-06-01 | KG4: =KF5+1 -> 2048-07-01 | KH4: =KG5+1 -> 2048-08-01 | KI4: =KH5+1 -> 2048-09-01 | KJ4: =KI5+1 -> 2048-10-01 | KK4: =KJ5+1 -> 2048-11-01 | KL4: =KK5+1 -> 2048-12-01 | KM4: =KL5+1 -> 2049-01-01 | KN4: =KM5+1 -> 2049-02-01 | KO4: =KN5+1 -> 2049-03-01 | KP4: =KO5+1 -> 2049-04-01 | KQ4: =KP5+1 -> 2049-05-01 | KR4: =KQ5+1 -> 2049-06-01 | KS4: =KR5+1 -> 2049-07-01 | KT4: =KS5+1 -> 2049-08-01 | KU4: =KT5+1 -> 2049-09-01 | KV4: =KU5+1 -> 2049-10-01 | KW4: =KV5+1 -> 2049-11-01 | KX4: =KW5+1 -> 2049-12-01 | KY4: =KX5+1 -> 2050-01-01 | KZ4: =KY5+1 -> 2050-02-01 | LA4: =KZ5+1 -> 2050-03-01 | LB4: =LA5+1 -> 2050-04-01 | LC4: =LB5+1 -> 2050-05-01 | LD4: =LC5+1 -> 2050-06-01 | LE4: =LD5+1 -> 2050-07-01 | LF4: =LE5+1 -> 2050-08-01 | LG4: =LF5+1 -> 2050-09-01 | LH4: =LG5+1 -> 2050-10-01 | LI4: =LH5+1 -> 2050-11-01 | LJ4: =LI5+1 -> 2050-12-01 | LK4: =LJ5+1 -> 2051-01-01 | LL4: =LK5+1 -> 2051-02-01 | LM4: =LL5+1 -> 2051-03-01 | LN4: =LM5+1 -> 2051-04-01 | LO4: =LN5+1 -> 2051-05-01 | LP4: =LO5+1 -> 2051-06-01 | LQ4: =LP5+1 -> 2051-07-01 | LR4: =LQ5+1 -> 2051-08-01 | LS4: =LR5+1 -> 2051-09-01 | LT4: =LS5+1 -> 2051-10-01 | LU4: =LT5+1 -> 2051-11-01 | LV4: =LU5+1 -> 2051-12-01 | LW4: =LV5+1 -> 2052-01-01 | LX4: =LW5+1 -> 2052-02-01 | LY4: =LX5+1 -> 2052-03-01 | LZ4: =LY5+1 -> 2052-04-01 | MA4: =LZ5+1 -> 2052-05-01 | MB4: =MA5+1 -> 2052-06-01 | MC4: =MB5+1 -> 2052-07-01 | MD4: =MC5+1 -> 2052-08-01 | ME4: =MD5+1 -> 2052-09-01 | MF4: =ME5+1 -> 2052-10-01 | MG4: =MF5+1 -> 2052-11-01 | MH4: =MG5+1 -> 2052-12-01 | MI4: =MH5+1 -> 2053-01-01 | MJ4: =MI5+1 -> 2053-02-01 | MK4: =MJ5+1 -> 2053-03-01 | ML4: =MK5+1 -> 2053-04-01 | MM4: =ML5+1 -> 2053-05-01 | MN4: =MM5+1 -> 2053-06-01 | MO4: =MN5+1 -> 2053-07-01 | MP4: =MO5+1 -> 2053-08-01 | MQ4: =MP5+1 -> 2053-09-01 | MR4: =MQ5+1 -> 2053-10-01 | MS4: =MR5+1 -> 2053-11-01 | MT4: =MS5+1 -> 2053-12-01 | MU4: =MT5+1 -> 2054-01-01 | MV4: =MU5+1 -> 2054-02-01 | MW4: =MV5+1 -> 2054-03-01 | MX4: =MW5+1 -> 2054-04-01 | MY4: =MX5+1 -> 2054-05-01 | MZ4: =MY5+1 -> 2054-06-01 | NA4: =MZ5+1 -> 2054-07-01 | NB4: =NA5+1 -> 2054-08-01 | NC4: =NB5+1 -> 2054-09-01 | ND4: =NC5+1 -> 2054-10-01 | NE4: =ND5+1 -> 2054-11-01 | NF4: =NE5+1 -> 2054-12-01 | NG4: =NF5+1 -> 2055-01-01 | NH4: =NG5+1 -> 2055-02-01 | NI4: =NH5+1 -> 2055-03-01 | NJ4: =NI5+1 -> 2055-04-01 | NK4: =NJ5+1 -> 2055-05-01 | NL4: =NK5+1 -> 2055-06-01 | NM4: =NL5+1 -> 2055-07-01 | NN4: =NM5+1 -> 2055-08-01 | NO4: =NN5+1 -> 2055-09-01 | NP4: =NO5+1 -> 2055-10-01 | NQ4: =NP5+1 -> 2055-11-01 | NR4: =NQ5+1 -> 2055-12-01 | NS4: =NR5+1 -> 2056-01-01 | NT4: =NS5+1 -> 2056-02-01 | NU4: =NT5+1 -> 2056-03-01 | NV4: =NU5+1 -> 2056-04-01 | NW4: =NV5+1 -> 2056-05-01 | NX4: =NW5+1 -> 2056-06-01 | NY4: =NX5+1 -> 2056-07-01 | NZ4: =NY5+1 -> 2056-08-01 | OA4: =NZ5+1 -> 2056-09-01 | OB4: =OA5+1 -> 2056-10-01 | OC4: =OB5+1 -> 2056-11-01 | OD4: =OC5+1 -> 2056-12-01 | OE4: =OD5+1 -> 2057-01-01 | OF4: =OE5+1 -> 2057-02-01 | OG4: =OF5+1 -> 2057-03-01 | OH4: =OG5+1 -> 2057-04-01 | OI4: =OH5+1 -> 2057-05-01 | OJ4: =OI5+1 -> 2057-06-01 | OK4: =OJ5+1 -> 2057-07-01 | OL4: =OK5+1 -> 2057-08-01 | OM4: =OL5+1 -> 2057-09-01 | ON4: =OM5+1 -> 2057-10-01 | OO4: =ON5+1 -> 2057-11-01 | OP4: =OO5+1 -> 2057-12-01 | OQ4: =OP5+1 -> 2058-01-01 | OR4: =OQ5+1 -> 2058-02-01 | OS4: =OR5+1 -> 2058-03-01 | OT4: =OS5+1 -> 2058-04-01 | OU4: =OT5+1 -> 2058-05-01 | OV4: =OU5+1 -> 2058-06-01 | OW4: =OV5+1 -> 2058-07-01 | OX4: =OW5+1 -> 2058-08-01 | OY4: =OX5+1 -> 2058-09-01 | OZ4: =OY5+1 -> 2058-10-01 | PA4: =OZ5+1 -> 2058-11-01 | PB4: =PA5+1 -> 2058-12-01 | PC4: =PB5+1 -> 2059-01-01 | PD4: =PC5+1 -> 2059-02-01 | PE4: =PD5+1 -> 2059-03-01 | PF4: =PE5+1 -> 2059-04-01 | PG4: =PF5+1 -> 2059-05-01 | PH4: =PG5+1 -> 2059-06-01 | PI4: =PH5+1 -> 2059-07-01 | PJ4: =PI5+1 -> 2059-08-01 | PK4: =PJ5+1 -> 2059-09-01 | PL4: =PK5+1 -> 2059-10-01 | PM4: =PL5+1 -> 2059-11-01 | PN4: =PM5+1 -> 2059-12-01 | PO4: =PN5+1 -> 2060-01-01 | PP4: =PO5+1 -> 2060-02-01 | PQ4: =PP5+1 -> 2060-03-01 | PR4: =PQ5+1 -> 2060-04-01 | PS4: =PR5+1 -> 2060-05-01 | PT4: =PS5+1 -> 2060-06-01 | PU4: =PT5+1 -> 2060-07-01 | PV4: =PU5+1 -> 2060-08-01 | PW4: =PV5+1 -> 2060-09-01 | PX4: =PW5+1 -> 2060-10-01 | PY4: =PX5+1 -> 2060-11-01 | PZ4: =PY5+1 -> 2060-12-01 | QA4: =PZ5+1 -> 2061-01-01 | QB4: =QA5+1 -> 2061-02-01 | QC4: =QB5+1 -> 2061-03-01 | QD4: =QC5+1 -> 2061-04-01 | QE4: =QD5+1 -> 2061-05-01 | QF4: =QE5+1 -> 2061-06-01 | QG4: =QF5+1 -> 2061-07-01 | QH4: =QG5+1 -> 2061-08-01 | QI4: =QH5+1 -> 2061-09-01 | QJ4: =QI5+1 -> 2061-10-01 | QK4: =QJ5+1 -> 2061-11-01 | QL4: =QK5+1 -> 2061-12-01 | QM4: =QL5+1 -> 2062-01-01 | QN4: =QM5+1 -> 2062-02-01 | QO4: =QN5+1 -> 2062-03-01 | QP4: =QO5+1 -> 2062-04-01 | QQ4: =QP5+1 -> 2062-05-01 | QR4: =QQ5+1 -> 2062-06-01 | QS4: =QR5+1 -> 2062-07-01 | QT4: =QS5+1 -> 2062-08-01 | QU4: =QT5+1 -> 2062-09-01 | QV4: =QU5+1 -> 2062-10-01 | QW4: =QV5+1 -> 2062-11-01 | QX4: =QW5+1 -> 2062-12-01 | QY4: =QX5+1 -> 2063-01-01 | QZ4: =QY5+1 -> 2063-02-01 | RA4: =QZ5+1 -> 2063-03-01 | RB4: =RA5+1 -> 2063-04-01 | RC4: =RB5+1 -> 2063-05-01 | RD4: =RC5+1 -> 2063-06-01 | RE4: =RD5+1 -> 2063-07-01 | RF4: =RE5+1 -> 2063-08-01 | RG4: =RF5+1 -> 2063-09-01 | RH4: =RG5+1 -> 2063-10-01 | RI4: =RH5+1 -> 2063-11-01 | RJ4: =RI5+1 -> 2063-12-01 | RK4: =RJ5+1 -> 2064-01-01 | RL4: =RK5+1 -> 2064-02-01 | RM4: =RL5+1 -> 2064-03-01 | RN4: =RM5+1 -> 2064-04-01 | RO4: =RN5+1 -> 2064-05-01 | RP4: =RO5+1 -> 2064-06-01 | RQ4: =RP5+1 -> 2064-07-01 | RR4: =RQ5+1 -> 2064-08-01 | RS4: =RR5+1 -> 2064-09-01 | RT4: =RS5+1 -> 2064-10-01 | RU4: =RT5+1 -> 2064-11-01 | RV4: =RU5+1 -> 2064-12-01 | RW4: =RV5+1 -> 2065-01-01 | RX4: =RW5+1 -> 2065-02-01 | RY4: =RX5+1 -> 2065-03-01 | RZ4: =RY5+1 -> 2065-04-01 | SA4: =RZ5+1 -> 2065-05-01 | SB4: =SA5+1 -> 2065-06-01 | SC4: =SB5+1 -> 2065-07-01 | SD4: =SC5+1 -> 2065-08-01 | SE4: =SD5+1 -> 2065-09-01 | SF4: =SE5+1 -> 2065-10-01 | SG4: =SF5+1 -> 2065-11-01 | SH4: =SG5+1 -> 2065-12-01 | SI4: =SH5+1 -> 2066-01-01 | SJ4: =SI5+1 -> 2066-02-01 | SK4: =SJ5+1 -> 2066-03-01 | SL4: =SK5+1 -> 2066-04-01 | SM4: =SL5+1 -> 2066-05-01 | SN4: =SM5+1 -> 2066-06-01 | SO4: =SN5+1 -> 2066-07-01 | SP4: =SO5+1 -> 2066-08-01 | SQ4: =SP5+1 -> 2066-09-01 | SR4: =SQ5+1 -> 2066-10-01 | SS4: =SR5+1 -> 2066-11-01 | ST4: =SS5+1 -> 2066-12-01 | SU4: =ST5+1 -> 2067-01-01 | SV4: =SU5+1 -> 2067-02-01 | SW4: =SV5+1 -> 2067-03-01 | SX4: =SW5+1 -> 2067-04-01 | SY4: =SX5+1 -> 2067-05-01 | SZ4: =SY5+1 -> 2067-06-01 | TA4: =SZ5+1 -> 2067-07-01 | TB4: =TA5+1 -> 2067-08-01 | TC4: =TB5+1 -> 2067-09-01 | TD4: =TC5+1 -> 2067-10-01 | TE4: =TD5+1 -> 2067-11-01 | TF4: =TE5+1 -> 2067-12-01 | TG4: =TF5+1 -> 2068-01-01 | TH4: =TG5+1 -> 2068-02-01 | TI4: =TH5+1 -> 2068-03-01 | TJ4: =TI5+1 -> 2068-04-01 | TK4: =TJ5+1 -> 2068-05-01 | TL4: =TK5+1 -> 2068-06-01 | TM4: =TL5+1 -> 2068-07-01 | TN4: =TM5+1 -> 2068-08-01 | TO4: =TN5+1 -> 2068-09-01 | TP4: =TO5+1 -> 2068-10-01 | TQ4: =TP5+1 -> 2068-11-01 | TR4: =TQ5+1 -> 2068-12-01 | TS4: =TR5+1 -> 2069-01-01 | TT4: =TS5+1 -> 2069-02-01 | TU4: =TT5+1 -> 2069-03-01 | TV4: =TU5+1 -> 2069-04-01 | TW4: =TV5+1 -> 2069-05-01 | TX4: =TW5+1 -> 2069-06-01 | TY4: =TX5+1 -> 2069-07-01 | TZ4: =TY5+1 -> 2069-08-01 | UA4: =TZ5+1 -> 2069-09-01 | UB4: =UA5+1 -> 2069-10-01 | UC4: =UB5+1 -> 2069-11-01 | UD4: =UC5+1 -> 2069-12-01 | UE4: =UD5+1 -> 2070-01-01 | UF4: =UE5+1 -> 2070-02-01 | UG4: =UF5+1 -> 2070-03-01 | UH4: =UG5+1 -> 2070-04-01 | UI4: =UH5+1 -> 2070-05-01 | UJ4: =UI5+1 -> 2070-06-01 | UK4: =UJ5+1 -> 2070-07-01 | UL4: =UK5+1 -> 2070-08-01 | UM4: =UL5+1 -> 2070-09-01 | UN4: =UM5+1 -> 2070-10-01 | UO4: =UN5+1 -> 2070-11-01 | UP4: =UO5+1 -> 2070-12-01 | UQ4: =UP5+1 -> 2071-01-01 | UR4: =UQ5+1 -> 2071-02-01 | US4: =UR5+1 -> 2071-03-01 | UT4: =US5+1 -> 2071-04-01 | UU4: =UT5+1 -> 2071-05-01 | UV4: =UU5+1 -> 2071-06-01 | UW4: =UV5+1 -> 2071-07-01 | UX4: =UW5+1 -> 2071-08-01 | UY4: =UX5+1 -> 2071-09-01 | UZ4: =UY5+1 -> 2071-10-01 | VA4: =UZ5+1 -> 2071-11-01 | VB4: =VA5+1 -> 2071-12-01 | VC4: =VB5+1 -> 2072-01-01 | VD4: =VC5+1 -> 2072-02-01 | VE4: =VD5+1 -> 2072-03-01 | VF4: =VE5+1 -> 2072-04-01 | VG4: =VF5+1 -> 2072-05-01 | VH4: =VG5+1 -> 2072-06-01 | VI4: =VH5+1 -> 2072-07-01 | VJ4: =VI5+1 -> 2072-08-01 | VK4: =VJ5+1 -> 2072-09-01 | VL4: =VK5+1 -> 2072-10-01 | VM4: =VL5+1 -> 2072-11-01 | VN4: =VM5+1 -> 2072-12-01 | VO4: =VN5+1 -> 2073-01-01 | VP4: =VO5+1 -> 2073-02-01 | VQ4: =VP5+1 -> 2073-03-01 | VR4: =VQ5+1 -> 2073-04-01 | VS4: =VR5+1 -> 2073-05-01 | VT4: =VS5+1 -> 2073-06-01 | VU4: =VT5+1 -> 2073-07-01 | VV4: =VU5+1 -> 2073-08-01 | VW4: =VV5+1 -> 2073-09-01 | VX4: =VW5+1 -> 2073-10-01 | VY4: =VX5+1 -> 2073-11-01 | VZ4: =VY5+1 -> 2073-12-01 | WA4: =VZ5+1 -> 2074-01-01 | WB4: =WA5+1 -> 2074-02-01 | WC4: =WB5+1 -> 2074-03-01 | WD4: =WC5+1 -> 2074-04-01 | WE4: =WD5+1 -> 2074-05-01 | WF4: =WE5+1 -> 2074-06-01 | WG4: =WF5+1 -> 2074-07-01 | WH4: =WG5+1 -> 2074-08-01 | WI4: =WH5+1 -> 2074-09-01 | WJ4: =WI5+1 -> 2074-10-01 | WK4: =WJ5+1 -> 2074-11-01 | WL4: =WK5+1 -> 2074-12-01 | WM4: =WL5+1 -> 2075-01-01 | WN4: =WM5+1 -> 2075-02-01 | WO4: =WN5+1 -> 2075-03-01 | WP4: =WO5+1 -> 2075-04-01 | WQ4: =WP5+1 -> 2075-05-01 | WR4: =WQ5+1 -> 2075-06-01 | WS4: =WR5+1 -> 2075-07-01 | WT4: =WS5+1 -> 2075-08-01 | WU4: =WT5+1 -> 2075-09-01 | WV4: =WU5+1 -> 2075-10-01 | WW4: =WV5+1 -> 2075-11-01 | WX4: =WW5+1 -> 2075-12-01 | WY4: =WX5+1 -> 2076-01-01 | WZ4: =WY5+1 -> 2076-02-01 | XA4: =WZ5+1 -> 2076-03-01 | XB4: =XA5+1 -> 2076-04-01 | XC4: =XB5+1 -> 2076-05-01 | XD4: =XC5+1 -> 2076-06-01 | XE4: =XD5+1 -> 2076-07-01 | XF4: =XE5+1 -> 2076-08-01 | XG4: =XF5+1 -> 2076-09-01 | XH4: =XG5+1 -> 2076-10-01 | XI4: =XH5+1 -> 2076-11-01 | XJ4: =XI5+1 -> 2076-12-01 | XK4: =XJ5+1 -> 2077-01-01 | XL4: =XK5+1 -> 2077-02-01 | XM4: =XL5+1 -> 2077-03-01 | XN4: =XM5+1 -> 2077-04-01 | XO4: =XN5+1 -> 2077-05-01 | XP4: =XO5+1 -> 2077-06-01 | XQ4: =XP5+1 -> 2077-07-01 | XR4: =XQ5+1 -> 2077-08-01 | XS4: =XR5+1 -> 2077-09-01 | XT4: =XS5+1 -> 2077-10-01 | XU4: =XT5+1 -> 2077-11-01 | XV4: =XU5+1 -> 2077-12-01 | XW4: =XV5+1 -> 2078-01-01 | XX4: =XW5+1 -> 2078-02-01 | XY4: =XX5+1 -> 2078-03-01 | XZ4: =XY5+1 -> 2078-04-01 | YA4: =XZ5+1 -> 2078-05-01 | YB4: =YA5+1 -> 2078-06-01 | YC4: =YB5+1 -> 2078-07-01 | YD4: =YC5+1 -> 2078-08-01 | YE4: =YD5+1 -> 2078-09-01 | YF4: =YE5+1 -> 2078-10-01 | YG4: =YF5+1 -> 2078-11-01 | YH4: =YG5+1 -> 2078-12-01 | YI4: =YH5+1 -> 2079-01-01 | YJ4: =YI5+1 -> 2079-02-01 | YK4: =YJ5+1 -> 2079-03-01 | YL4: =YK5+1 -> 2079-04-01 | YM4: =YL5+1 -> 2079-05-01 | YN4: =YM5+1 -> 2079-06-01 | YO4: =YN5+1 -> 2079-07-01 | YP4: =YO5+1 -> 2079-08-01 | YQ4: =YP5+1 -> 2079-09-01 | YR4: =YQ5+1 -> 2079-10-01 | YS4: =YR5+1 -> 2079-11-01 | YT4: =YS5+1 -> 2079-12-01 | YU4: =YT5+1 -> 2080-01-01 | YV4: =YU5+1 -> 2080-02-01 | YW4: =YV5+1 -> 2080-03-01 | YX4: =YW5+1 -> 2080-04-01 | YY4: =YX5+1 -> 2080-05-01 | YZ4: =YY5+1 -> 2080-06-01 | ZA4: =YZ5+1 -> 2080-07-01 | ZB4: =ZA5+1 -> 2080-08-01 | ZC4: =ZB5+1 -> 2080-09-01 | ZD4: =ZC5+1 -> 2080-10-01 | ZE4: =ZD5+1 -> 2080-11-01 | ZF4: =ZE5+1 -> 2080-12-01 | ZG4: =ZF5+1 -> 2081-01-01 | ZH4: =ZG5+1 -> 2081-02-01 | ZI4: =ZH5+1 -> 2081-03-01 | ZJ4: =ZI5+1 -> 2081-04-01 | ZK4: =ZJ5+1 -> 2081-05-01 | ZL4: =ZK5+1 -> 2081-06-01 | ZM4: =ZL5+1 -> 2081-07-01 | ZN4: =ZM5+1 -> 2081-08-01 | ZO4: =ZN5+1 -> 2081-09-01 | ZP4: =ZO5+1 -> 2081-10-01 | ZQ4: =ZP5+1 -> 2081-11-01 | ZR4: =ZQ5+1 -> 2081-12-01 | ZS4: =ZR5+1 -> 2082-01-01 | ZT4: =ZS5+1 -> 2082-02-01 | ZU4: =ZT5+1 -> 2082-03-01 | ZV4: =ZU5+1 -> 2082-04-01 | ZW4: =ZV5+1 -> 2082-05-01 | ZX4: =ZW5+1 -> 2082-06-01 | ZY4: =ZX5+1 -> 2082-07-01 | ZZ4: =ZY5+1 -> 2082-08-01 | AAA4: =ZZ5+1 -> 2082-09-01 | AAB4: =AAA5+1 -> 2082-10-01 | AAC4: =AAB5+1 -> 2082-11-01 | AAD4: =AAC5+1 -> 2082-12-01 | AAE4: =AAD5+1 -> 2083-01-01 | AAF4: =AAE5+1 -> 2083-02-01 | AAG4: =AAF5+1 -> 2083-03-01 | AAH4: =AAG5+1 -> 2083-04-01 | AAI4: =AAH5+1 -> 2083-05-01 | AAJ4: =AAI5+1 -> 2083-06-01 | AAK4: =AAJ5+1 -> 2083-07-01 | AAL4: =AAK5+1 -> 2083-08-01 | AAM4: =AAL5+1 -> 2083-09-01 | AAN4: =AAM5+1 -> 2083-10-01 | AAO4: =AAN5+1 -> 2083-11-01 | AAP4: =AAO5+1 -> 2083-12-01 | AAQ4: =AAP5+1 -> 2084-01-01 | AAR4: =AAQ5+1 -> 2084-02-01 | AAS4: =AAR5+1 -> 2084-03-01 | AAT4: =AAS5+1 -> 2084-04-01 | AAU4: =AAT5+1 -> 2084-05-01 | AAV4: =AAU5+1 -> 2084-06-01 | AAW4: =AAV5+1 -> 2084-07-01 | AAX4: =AAW5+1 -> 2084-08-01 | AAY4: =AAX5+1 -> 2084-09-01 | AAZ4: =AAY5+1 -> 2084-10-01 | ABA4: =AAZ5+1 -> 2084-11-01 | ABB4: =ABA5+1 -> 2084-12-01 | ABC4: =ABB5+1 -> 2085-01-01 | ABD4: =ABC5+1 -> 2085-02-01 | ABE4: =ABD5+1 -> 2085-03-01 | ABF4: =ABE5+1 -> 2085-04-01 | ABG4: =ABF5+1 -> 2085-05-01 | ABH4: =ABG5+1 -> 2085-06-01 | ABI4: =ABH5+1 -> 2085-07-01 | ABJ4: =ABI5+1 -> 2085-08-01 | ABK4: =ABJ5+1 -> 2085-09-01 | ABL4: =ABK5+1 -> 2085-10-01 | ABM4: =ABL5+1 -> 2085-11-01 | ABN4: =ABM5+1 -> 2085-12-01 | ABO4: =ABN5+1 -> 2086-01-01 | ABP4: =ABO5+1 -> 2086-02-01 | ABQ4: =ABP5+1 -> 2086-03-01 | ABR4: =ABQ5+1 -> 2086-04-01 | ABS4: =ABR5+1 -> 2086-05-01 | ABT4: =ABS5+1 -> 2086-06-01 | ABU4: =ABT5+1 -> 2086-07-01 | ABV4: =ABU5+1 -> 2086-08-01 | ABW4: =ABV5+1 -> 2086-09-01 | ABX4: =ABW5+1 -> 2086-10-01 | ABY4: =ABX5+1 -> 2086-11-01 | ABZ4: =ABY5+1 -> 2086-12-01
D5: End of period | E5: Date | F5: =INDEX(InputC!I16:AD16,E1) -> 1 | I5: Date | J5: =InputS!G4-1 -> 2024-12-31 | K5: =EOMONTH(K4,$F$5-1) -> 2025-01-31 | L5: =EOMONTH(L4,$F$5-1) -> 2025-02-28 | M5: 2025-03-31 | N5: 2025-04-30 | O5: 2025-05-31 | P5: 2025-06-30 | Q5: 2025-07-31 | R5: 2025-08-31 | S5: 2025-09-30 | T5: 2025-10-31 | U5: 2025-11-30 | V5: 2025-12-31 | W5: 2026-01-31 | X5: 2026-02-28 | Y5: 2026-03-31 | Z5: 2026-04-30 | AA5: 2026-05-31 | AB5: 2026-06-30 | AC5: 2026-07-31 | AD5: 2026-08-31 | AE5: 2026-09-30 | AF5: 2026-10-31 | AG5: 2026-11-30 | AH5: 2026-12-31 | AI5: 2027-01-31 | AJ5: 2027-02-28 | AK5: 2027-03-31 | AL5: 2027-04-30 | AM5: 2027-05-31 | AN5: 2027-06-30 | AO5: 2027-07-31 | AP5: 2027-08-31 | AQ5: 2027-09-30 | AR5: 2027-10-31 | AS5: 2027-11-30 | AT5: 2027-12-31 | AU5: 2028-01-31 | AV5: 2028-02-29 | AW5: 2028-03-31 | AX5: 2028-04-30 | AY5: 2028-05-31 | AZ5: 2028-06-30 | BA5: 2028-07-31 | BB5: 2028-08-31 | BC5: 2028-09-30 | BD5: 2028-10-31 | BE5: 2028-11-30 | BF5: 2028-12-31 | BG5: 2029-01-31 | BH5: 2029-02-28 | BI5: 2029-03-31 | BJ5: 2029-04-30 | BK5: 2029-05-31 | BL5: 2029-06-30 | BM5: 2029-07-31 | BN5: 2029-08-31 | BO5: 2029-09-30 | BP5: 2029-10-31 | BQ5: 2029-11-30 | BR5: 2029-12-31 | BS5: 2030-01-31 | BT5: 2030-02-28 | BU5: 2030-03-31 | BV5: 2030-04-30 | BW5: 2030-05-31 | BX5: =EOMONTH(BX4,$F$5-1) -> 2030-06-30 | BY5: 2030-07-31 | BZ5: 2030-08-31 | CA5: 2030-09-30 | CB5: 2030-10-31 | CC5: 2030-11-30 | CD5: 2030-12-31 | CE5: 2031-01-31 | CF5: 2031-02-28 | CG5: 2031-03-31 | CH5: 2031-04-30 | CI5: 2031-05-31 | CJ5: 2031-06-30 | CK5: 2031-07-31 | CL5: 2031-08-31 | CM5: 2031-09-30 | CN5: 2031-10-31 | CO5: 2031-11-30 | CP5: 2031-12-31 | CQ5: 2032-01-31 | CR5: 2032-02-29 | CS5: 2032-03-31 | CT5: 2032-04-30 | CU5: 2032-05-31 | CV5: 2032-06-30 | CW5: 2032-07-31 | CX5: 2032-08-31 | CY5: 2032-09-30 | CZ5: 2032-10-31 | DA5: 2032-11-30 | DB5: 2032-12-31 | DC5: 2033-01-31 | DD5: 2033-02-28 | DE5: 2033-03-31 | DF5: 2033-04-30 | DG5: 2033-05-31 | DH5: 2033-06-30 | DI5: 2033-07-31 | DJ5: 2033-08-31 | DK5: 2033-09-30 | DL5: 2033-10-31 | DM5: 2033-11-30 | DN5: 2033-12-31 | DO5: 2034-01-31 | DP5: 2034-02-28 | DQ5: 2034-03-31 | DR5: 2034-04-30 | DS5: 2034-05-31 | DT5: 2034-06-30 | DU5: 2034-07-31 | DV5: 2034-08-31 | DW5: 2034-09-30 | DX5: 2034-10-31 | DY5: 2034-11-30 | DZ5: 2034-12-31 | EA5: 2035-01-31 | EB5: 2035-02-28 | EC5: 2035-03-31 | ED5: 2035-04-30 | EE5: 2035-05-31 | EF5: 2035-06-30 | EG5: 2035-07-31 | EH5: 2035-08-31 | EI5: 2035-09-30 | EJ5: =EOMONTH(EJ4,$F$5-1) -> 2035-10-31 | EK5: 2035-11-30 | EL5: 2035-12-31 | EM5: 2036-01-31 | EN5: 2036-02-29 | EO5: 2036-03-31 | EP5: 2036-04-30 | EQ5: 2036-05-31 | ER5: 2036-06-30 | ES5: 2036-07-31 | ET5: 2036-08-31 | EU5: 2036-09-30 | EV5: 2036-10-31 | EW5: 2036-11-30 | EX5: 2036-12-31 | EY5: 2037-01-31 | EZ5: 2037-02-28 | FA5: 2037-03-31 | FB5: 2037-04-30 | FC5: 2037-05-31 | FD5: 2037-06-30 | FE5: 2037-07-31 | FF5: 2037-08-31 | FG5: 2037-09-30 | FH5: 2037-10-31 | FI5: 2037-11-30 | FJ5: 2037-12-31 | FK5: 2038-01-31 | FL5: 2038-02-28 | FM5: 2038-03-31 | FN5: 2038-04-30 | FO5: 2038-05-31 | FP5: 2038-06-30 | FQ5: 2038-07-31 | FR5: 2038-08-31 | FS5: 2038-09-30 | FT5: 2038-10-31 | FU5: 2038-11-30 | FV5: 2038-12-31 | FW5: 2039-01-31 | FX5: 2039-02-28 | FY5: 2039-03-31 | FZ5: 2039-04-30 | GA5: 2039-05-31 | GB5: 2039-06-30 | GC5: 2039-07-31 | GD5: 2039-08-31 | GE5: 2039-09-30 | GF5: 2039-10-31 | GG5: 2039-11-30 | GH5: 2039-12-31 | GI5: 2040-01-31 | GJ5: 2040-02-29 | GK5: 2040-03-31 | GL5: 2040-04-30 | GM5: 2040-05-31 | GN5: 2040-06-30 | GO5: 2040-07-31 | GP5: 2040-08-31 | GQ5: 2040-09-30 | GR5: 2040-10-31 | GS5: 2040-11-30 | GT5: 2040-12-31 | GU5: 2041-01-31 | GV5: =EOMONTH(GV4,$F$5-1) -> 2041-02-28 | GW5: 2041-03-31 | GX5: 2041-04-30 | GY5: 2041-05-31 | GZ5: 2041-06-30 | HA5: 2041-07-31 | HB5: 2041-08-31 | HC5: 2041-09-30 | HD5: 2041-10-31 | HE5: 2041-11-30 | HF5: 2041-12-31 | HG5: 2042-01-31 | HH5: 2042-02-28 | HI5: 2042-03-31 | HJ5: 2042-04-30 | HK5: 2042-05-31 | HL5: 2042-06-30 | HM5: 2042-07-31 | HN5: 2042-08-31 | HO5: 2042-09-30 | HP5: 2042-10-31 | HQ5: 2042-11-30 | HR5: 2042-12-31 | HS5: 2043-01-31 | HT5: 2043-02-28 | HU5: 2043-03-31 | HV5: 2043-04-30 | HW5: 2043-05-31 | HX5: 2043-06-30 | HY5: 2043-07-31 | HZ5: 2043-08-31 | IA5: 2043-09-30 | IB5: 2043-10-31 | IC5: 2043-11-30 | ID5: 2043-12-31 | IE5: 2044-01-31 | IF5: 2044-02-29 | IG5: 2044-03-31 | IH5: 2044-04-30 | II5: 2044-05-31 | IJ5: 2044-06-30 | IK5: 2044-07-31 | IL5: 2044-08-31 | IM5: 2044-09-30 | IN5: 2044-10-31 | IO5: 2044-11-30 | IP5: 2044-12-31 | IQ5: 2045-01-31 | IR5: 2045-02-28 | IS5: 2045-03-31 | IT5: 2045-04-30 | IU5: 2045-05-31 | IV5: 2045-06-30 | IW5: 2045-07-31 | IX5: 2045-08-31 | IY5: 2045-09-30 | IZ5: 2045-10-31 | JA5: 2045-11-30 | JB5: 2045-12-31 | JC5: 2046-01-31 | JD5: 2046-02-28 | JE5: 2046-03-31 | JF5: 2046-04-30 | JG5: 2046-05-31 | JH5: =EOMONTH(JH4,$F$5-1) -> 2046-06-30 | JI5: 2046-07-31 | JJ5: 2046-08-31 | JK5: 2046-09-30 | JL5: 2046-10-31 | JM5: 2046-11-30 | JN5: 2046-12-31 | JO5: 2047-01-31 | JP5: 2047-02-28 | JQ5: 2047-03-31 | JR5: 2047-04-30 | JS5: 2047-05-31 | JT5: 2047-06-30 | JU5: 2047-07-31 | JV5: 2047-08-31 | JW5: 2047-09-30 | JX5: 2047-10-31 | JY5: 2047-11-30 | JZ5: 2047-12-31 | KA5: 2048-01-31 | KB5: 2048-02-29 | KC5: 2048-03-31 | KD5: 2048-04-30 | KE5: 2048-05-31 | KF5: 2048-06-30 | KG5: 2048-07-31 | KH5: 2048-08-31 | KI5: 2048-09-30 | KJ5: 2048-10-31 | KK5: 2048-11-30 | KL5: 2048-12-31 | KM5: 2049-01-31 | KN5: 2049-02-28 | KO5: 2049-03-31 | KP5: 2049-04-30 | KQ5: 2049-05-31 | KR5: 2049-06-30 | KS5: 2049-07-31 | KT5: 2049-08-31 | KU5: 2049-09-30 | KV5: 2049-10-31 | KW5: 2049-11-30 | KX5: 2049-12-31 | KY5: 2050-01-31 | KZ5: 2050-02-28 | LA5: 2050-03-31 | LB5: 2050-04-30 | LC5: 2050-05-31 | LD5: 2050-06-30 | LE5: 2050-07-31 | LF5: 2050-08-31 | LG5: 2050-09-30 | LH5: 2050-10-31 | LI5: 2050-11-30 | LJ5: 2050-12-31 | LK5: 2051-01-31 | LL5: 2051-02-28 | LM5: 2051-03-31 | LN5: 2051-04-30 | LO5: 2051-05-31 | LP5: 2051-06-30 | LQ5: 2051-07-31 | LR5: 2051-08-31 | LS5: 2051-09-30 | LT5: =EOMONTH(LT4,$F$5-1) -> 2051-10-31 | LU5: 2051-11-30 | LV5: 2051-12-31 | LW5: 2052-01-31 | LX5: 2052-02-29 | LY5: 2052-03-31 | LZ5: 2052-04-30 | MA5: 2052-05-31 | MB5: 2052-06-30 | MC5: 2052-07-31 | MD5: 2052-08-31 | ME5: 2052-09-30 | MF5: 2052-10-31 | MG5: 2052-11-30 | MH5: 2052-12-31 | MI5: 2053-01-31 | MJ5: 2053-02-28 | MK5: 2053-03-31 | ML5: 2053-04-30 | MM5: 2053-05-31 | MN5: 2053-06-30 | MO5: 2053-07-31 | MP5: 2053-08-31 | MQ5: 2053-09-30 | MR5: 2053-10-31 | MS5: 2053-11-30 | MT5: 2053-12-31 | MU5: 2054-01-31 | MV5: 2054-02-28 | MW5: 2054-03-31 | MX5: 2054-04-30 | MY5: 2054-05-31 | MZ5: 2054-06-30 | NA5: 2054-07-31 | NB5: 2054-08-31 | NC5: 2054-09-30 | ND5: 2054-10-31 | NE5: 2054-11-30 | NF5: 2054-12-31 | NG5: 2055-01-31 | NH5: 2055-02-28 | NI5: 2055-03-31 | NJ5: 2055-04-30 | NK5: 2055-05-31 | NL5: 2055-06-30 | NM5: 2055-07-31 | NN5: 2055-08-31 | NO5: 2055-09-30 | NP5: 2055-10-31 | NQ5: 2055-11-30 | NR5: 2055-12-31 | NS5: 2056-01-31 | NT5: 2056-02-29 | NU5: 2056-03-31 | NV5: 2056-04-30 | NW5: 2056-05-31 | NX5: 2056-06-30 | NY5: 2056-07-31 | NZ5: 2056-08-31 | OA5: 2056-09-30 | OB5: 2056-10-31 | OC5: 2056-11-30 | OD5: 2056-12-31 | OE5: 2057-01-31 | OF5: =EOMONTH(OF4,$F$5-1) -> 2057-02-28 | OG5: 2057-03-31 | OH5: 2057-04-30 | OI5: 2057-05-31 | OJ5: 2057-06-30 | OK5: 2057-07-31 | OL5: 2057-08-31 | OM5: 2057-09-30 | ON5: 2057-10-31 | OO5: 2057-11-30 | OP5: 2057-12-31 | OQ5: 2058-01-31 | OR5: 2058-02-28 | OS5: 2058-03-31 | OT5: 2058-04-30 | OU5: 2058-05-31 | OV5: 2058-06-30 | OW5: 2058-07-31 | OX5: 2058-08-31 | OY5: 2058-09-30 | OZ5: 2058-10-31 | PA5: 2058-11-30 | PB5: 2058-12-31 | PC5: 2059-01-31 | PD5: 2059-02-28 | PE5: 2059-03-31 | PF5: 2059-04-30 | PG5: 2059-05-31 | PH5: 2059-06-30 | PI5: 2059-07-31 | PJ5: 2059-08-31 | PK5: 2059-09-30 | PL5: 2059-10-31 | PM5: 2059-11-30 | PN5: 2059-12-31 | PO5: 2060-01-31 | PP5: 2060-02-29 | PQ5: 2060-03-31 | PR5: 2060-04-30 | PS5: 2060-05-31 | PT5: 2060-06-30 | PU5: 2060-07-31 | PV5: 2060-08-31 | PW5: 2060-09-30 | PX5: 2060-10-31 | PY5: 2060-11-30 | PZ5: 2060-12-31 | QA5: 2061-01-31 | QB5: 2061-02-28 | QC5: 2061-03-31 | QD5: 2061-04-30 | QE5: 2061-05-31 | QF5: 2061-06-30 | QG5: 2061-07-31 | QH5: 2061-08-31 | QI5: 2061-09-30 | QJ5: 2061-10-31 | QK5: 2061-11-30 | QL5: 2061-12-31 | QM5: 2062-01-31 | QN5: 2062-02-28 | QO5: 2062-03-31 | QP5: 2062-04-30 | QQ5: 2062-05-31 | QR5: =EOMONTH(QR4,$F$5-1) -> 2062-06-30 | QS5: 2062-07-31 | QT5: 2062-08-31 | QU5: 2062-09-30 | QV5: 2062-10-31 | QW5: 2062-11-30 | QX5: 2062-12-31 | QY5: 2063-01-31 | QZ5: 2063-02-28 | RA5: 2063-03-31 | RB5: 2063-04-30 | RC5: 2063-05-31 | RD5: 2063-06-30 | RE5: 2063-07-31 | RF5: 2063-08-31 | RG5: 2063-09-30 | RH5: 2063-10-31 | RI5: 2063-11-30 | RJ5: 2063-12-31 | RK5: 2064-01-31 | RL5: 2064-02-29 | RM5: 2064-03-31 | RN5: 2064-04-30 | RO5: 2064-05-31 | RP5: 2064-06-30 | RQ5: 2064-07-31 | RR5: 2064-08-31 | RS5: 2064-09-30 | RT5: 2064-10-31 | RU5: 2064-11-30 | RV5: 2064-12-31 | RW5: 2065-01-31 | RX5: 2065-02-28 | RY5: 2065-03-31 | RZ5: 2065-04-30 | SA5: 2065-05-31 | SB5: 2065-06-30 | SC5: 2065-07-31 | SD5: 2065-08-31 | SE5: 2065-09-30 | SF5: 2065-10-31 | SG5: 2065-11-30 | SH5: 2065-12-31 | SI5: 2066-01-31 | SJ5: 2066-02-28 | SK5: 2066-03-31 | SL5: 2066-04-30 | SM5: 2066-05-31 | SN5: 2066-06-30 | SO5: 2066-07-31 | SP5: 2066-08-31 | SQ5: 2066-09-30 | SR5: 2066-10-31 | SS5: 2066-11-30 | ST5: 2066-12-31 | SU5: 2067-01-31 | SV5: 2067-02-28 | SW5: 2067-03-31 | SX5: 2067-04-30 | SY5: 2067-05-31 | SZ5: 2067-06-30 | TA5: 2067-07-31 | TB5: 2067-08-31 | TC5: 2067-09-30 | TD5: =EOMONTH(TD4,$F$5-1) -> 2067-10-31 | TE5: 2067-11-30 | TF5: 2067-12-31 | TG5: 2068-01-31 | TH5: 2068-02-29 | TI5: 2068-03-31 | TJ5: 2068-04-30 | TK5: 2068-05-31 | TL5: 2068-06-30 | TM5: 2068-07-31 | TN5: 2068-08-31 | TO5: 2068-09-30 | TP5: 2068-10-31 | TQ5: 2068-11-30 | TR5: 2068-12-31 | TS5: 2069-01-31 | TT5: 2069-02-28 | TU5: 2069-03-31 | TV5: 2069-04-30 | TW5: 2069-05-31 | TX5: 2069-06-30 | TY5: 2069-07-31 | TZ5: 2069-08-31 | UA5: 2069-09-30 | UB5: 2069-10-31 | UC5: 2069-11-30 | UD5: 2069-12-31 | UE5: 2070-01-31 | UF5: 2070-02-28 | UG5: 2070-03-31 | UH5: 2070-04-30 | UI5: 2070-05-31 | UJ5: 2070-06-30 | UK5: 2070-07-31 | UL5: 2070-08-31 | UM5: 2070-09-30 | UN5: 2070-10-31 | UO5: 2070-11-30 | UP5: 2070-12-31 | UQ5: 2071-01-31 | UR5: 2071-02-28 | US5: 2071-03-31 | UT5: 2071-04-30 | UU5: 2071-05-31 | UV5: 2071-06-30 | UW5: 2071-07-31 | UX5: 2071-08-31 | UY5: 2071-09-30 | UZ5: 2071-10-31 | VA5: 2071-11-30 | VB5: 2071-12-31 | VC5: 2072-01-31 | VD5: 2072-02-29 | VE5: 2072-03-31 | VF5: 2072-04-30 | VG5: 2072-05-31 | VH5: 2072-06-30 | VI5: 2072-07-31 | VJ5: 2072-08-31 | VK5: 2072-09-30 | VL5: 2072-10-31 | VM5: 2072-11-30 | VN5: 2072-12-31 | VO5: 2073-01-31 | VP5: =EOMONTH(VP4,$F$5-1) -> 2073-02-28 | VQ5: 2073-03-31 | VR5: 2073-04-30 | VS5: 2073-05-31 | VT5: 2073-06-30 | VU5: 2073-07-31 | VV5: 2073-08-31 | VW5: 2073-09-30 | VX5: 2073-10-31 | VY5: 2073-11-30 | VZ5: 2073-12-31 | WA5: 2074-01-31 | WB5: 2074-02-28 | WC5: 2074-03-31 | WD5: 2074-04-30 | WE5: 2074-05-31 | WF5: 2074-06-30 | WG5: 2074-07-31 | WH5: 2074-08-31 | WI5: 2074-09-30 | WJ5: 2074-10-31 | WK5: 2074-11-30 | WL5: 2074-12-31 | WM5: 2075-01-31 | WN5: 2075-02-28 | WO5: 2075-03-31 | WP5: 2075-04-30 | WQ5: 2075-05-31 | WR5: 2075-06-30 | WS5: 2075-07-31 | WT5: 2075-08-31 | WU5: 2075-09-30 | WV5: 2075-10-31 | WW5: 2075-11-30 | WX5: 2075-12-31 | WY5: 2076-01-31 | WZ5: 2076-02-29 | XA5: 2076-03-31 | XB5: 2076-04-30 | XC5: 2076-05-31 | XD5: 2076-06-30 | XE5: 2076-07-31 | XF5: 2076-08-31 | XG5: 2076-09-30 | XH5: 2076-10-31 | XI5: 2076-11-30 | XJ5: 2076-12-31 | XK5: 2077-01-31 | XL5: 2077-02-28 | XM5: 2077-03-31 | XN5: 2077-04-30 | XO5: 2077-05-31 | XP5: 2077-06-30 | XQ5: 2077-07-31 | XR5: 2077-08-31 | XS5: 2077-09-30 | XT5: 2077-10-31 | XU5: 2077-11-30 | XV5: 2077-12-31 | XW5: 2078-01-31 | XX5: 2078-02-28 | XY5: 2078-03-31 | XZ5: 2078-04-30 | YA5: 2078-05-31 | YB5: =EOMONTH(YB4,$F$5-1) -> 2078-06-30 | YC5: 2078-07-31 | YD5: 2078-08-31 | YE5: 2078-09-30 | YF5: 2078-10-31 | YG5: 2078-11-30 | YH5: 2078-12-31 | YI5: 2079-01-31 | YJ5: 2079-02-28 | YK5: 2079-03-31 | YL5: 2079-04-30 | YM5: 2079-05-31 | YN5: 2079-06-30 | YO5: 2079-07-31 | YP5: 2079-08-31 | YQ5: 2079-09-30 | YR5: 2079-10-31 | YS5: 2079-11-30 | YT5: 2079-12-31 | YU5: 2080-01-31 | YV5: 2080-02-29 | YW5: 2080-03-31 | YX5: 2080-04-30 | YY5: 2080-05-31 | YZ5: 2080-06-30 | ZA5: 2080-07-31 | ZB5: 2080-08-31 | ZC5: 2080-09-30 | ZD5: 2080-10-31 | ZE5: 2080-11-30 | ZF5: 2080-12-31 | ZG5: 2081-01-31 | ZH5: 2081-02-28 | ZI5: 2081-03-31 | ZJ5: 2081-04-30 | ZK5: 2081-05-31 | ZL5: 2081-06-30 | ZM5: 2081-07-31 | ZN5: 2081-08-31 | ZO5: 2081-09-30 | ZP5: 2081-10-31 | ZQ5: 2081-11-30 | ZR5: 2081-12-31 | ZS5: 2082-01-31 | ZT5: 2082-02-28 | ZU5: 2082-03-31 | ZV5: 2082-04-30 | ZW5: 2082-05-31 | ZX5: 2082-06-30 | ZY5: 2082-07-31 | ZZ5: 2082-08-31 | AAA5: 2082-09-30 | AAB5: 2082-10-31 | AAC5: 2082-11-30 | AAD5: 2082-12-31 | AAE5: 2083-01-31 | AAF5: 2083-02-28 | AAG5: 2083-03-31 | AAH5: 2083-04-30 | AAI5: 2083-05-31 | AAJ5: 2083-06-30 | AAK5: 2083-07-31 | AAL5: 2083-08-31 | AAM5: 2083-09-30 | AAN5: =EOMONTH(AAN4,$F$5-1) -> 2083-10-31 | AAO5: 2083-11-30 | AAP5: 2083-12-31 | AAQ5: 2084-01-31 | AAR5: 2084-02-29 | AAS5: 2084-03-31 | AAT5: 2084-04-30 | AAU5: 2084-05-31 | AAV5: 2084-06-30 | AAW5: 2084-07-31 | AAX5: 2084-08-31 | AAY5: 2084-09-30 | AAZ5: 2084-10-31 | ABA5: 2084-11-30 | ABB5: 2084-12-31 | ABC5: 2085-01-31 | ABD5: 2085-02-28 | ABE5: 2085-03-31 | ABF5: 2085-04-30 | ABG5: 2085-05-31 | ABH5: 2085-06-30 | ABI5: 2085-07-31 | ABJ5: 2085-08-31 | ABK5: 2085-09-30 | ABL5: 2085-10-31 | ABM5: 2085-11-30 | ABN5: 2085-12-31 | ABO5: 2086-01-31 | ABP5: 2086-02-28 | ABQ5: 2086-03-31 | ABR5: 2086-04-30 | ABS5: 2086-05-31 | ABT5: 2086-06-30 | ABU5: 2086-07-31 | ABV5: 2086-08-31 | ABW5: 2086-09-30 | ABX5: 2086-10-31 | ABY5: 2086-11-30 | ABZ5: 2086-12-31
D6: Construction in Periods | E6: Periods | F6: =INDEX(InputC!I11:AD11,E1) -> 2025-12-01 | G6: =INDEX(InputC!I14:AD14,E1) -> 2027-06-01 | H6: =SUM(K6:XFD6) -> 18 | I6: Flag | K6: =(AND(K$4>=$F6,K$4<$G6))*1 -> 0 | L6: 0 | M6: 0 | N6: 0 | O6: 0 | P6: 0 | Q6: 0 | R6: 0 | S6: 0 | T6: 0 | U6: =(AND(U$4>=$F6,U$4<$G6))*1 -> 0 | V6: 1 | W6: 1 | X6: 1 | Y6: 1 | Z6: 1 | AA6: 1 | AB6: 1 | AC6: 1 | AD6: 1 | AE6: =(AND(AE$4>=$F6,AE$4<$G6))*1 -> 1 | AF6: 1 | AG6: 1 | AH6: 1 | AI6: 1 | AJ6: 1 | AK6: 1 | AL6: 1 | AM6: 1 | AN6: 0 | AO6: =(AND(AO$4>=$F6,AO$4<$G6))*1 -> 0 | AP6: 0 | AQ6: 0 | AR6: 0 | AS6: 0 | AT6: 0 | AU6: 0 | AV6: 0 | AW6: 0 | AX6: 0 | AY6: =(AND(AY$4>=$F6,AY$4<$G6))*1 -> 0 | AZ6: 0 | BA6: 0 | BB6: 0 | BC6: 0 | BD6: 0 | BE6: 0 | BF6: 0 | BG6: 0 | BH6: 0 | BI6: =(AND(BI$4>=$F6,BI$4<$G6))*1 -> 0 | BJ6: 0 | BK6: 0 | BL6: 0 | BM6: 0 | BN6: 0 | BO6: 0 | BP6: 0 | BQ6: 0 | BR6: 0 | BS6: =(AND(BS$4>=$F6,BS$4<$G6))*1 -> 0 | BT6: 0 | BU6: 0 | BV6: 0 | BW6: 0 | BX6: 0 | BY6: 0 | BZ6: 0 | CA6: 0 | CB6: 0 | CC6: =(AND(CC$4>=$F6,CC$4<$G6))*1 -> 0 | CD6: 0 | CE6: 0 | CF6: 0 | CG6: 0 | CH6: 0 | CI6: 0 | CJ6: 0 | CK6: 0 | CL6: 0 | CM6: =(AND(CM$4>=$F6,CM$4<$G6))*1 -> 0 | CN6: 0 | CO6: 0 | CP6: 0 | CQ6: 0 | CR6: 0 | CS6: 0 | CT6: 0 | CU6: 0 | CV6: 0 | CW6: =(AND(CW$4>=$F6,CW$4<$G6))*1 -> 0 | CX6: 0 | CY6: 0 | CZ6: 0 | DA6: 0 | DB6: 0 | DC6: 0 | DD6: 0 | DE6: 0 | DF6: 0 | DG6: =(AND(DG$4>=$F6,DG$4<$G6))*1 -> 0 | DH6: 0 | DI6: 0 | DJ6: 0 | DK6: 0 | DL6: 0 | DM6: 0 | DN6: 0 | DO6: 0 | DP6: 0 | DQ6: =(AND(DQ$4>=$F6,DQ$4<$G6))*1 -> 0 | DR6: 0 | DS6: 0 | DT6: 0 | DU6: 0 | DV6: 0 | DW6: 0 | DX6: 0 | DY6: 0 | DZ6: 0 | EA6: =(AND(EA$4>=$F6,EA$4<$G6))*1 -> 0 | EB6: 0 | EC6: 0 | ED6: 0 | EE6: 0 | EF6: 0 | EG6: 0 | EH6: 0 | EI6: 0 | EJ6: 0 | EK6: =(AND(EK$4>=$F6,EK$4<$G6))*1 -> 0 | EL6: 0 | EM6: 0 | EN6: 0 | EO6: 0 | EP6: 0 | EQ6: 0 | ER6: 0 | ES6: 0 | ET6: 0 | EU6: =(AND(EU$4>=$F6,EU$4<$G6))*1 -> 0 | EV6: 0 | EW6: 0 | EX6: 0 | EY6: 0 | EZ6: 0 | FA6: 0 | FB6: 0 | FC6: 0 | FD6: 0 | FE6: =(AND(FE$4>=$F6,FE$4<$G6))*1 -> 0 | FF6: 0 | FG6: 0 | FH6: 0 | FI6: 0 | FJ6: 0 | FK6: 0 | FL6: 0 | FM6: 0 | FN6: 0 | FO6: =(AND(FO$4>=$F6,FO$4<$G6))*1 -> 0 | FP6: 0 | FQ6: 0 | FR6: 0 | FS6: 0 | FT6: 0 | FU6: 0 | FV6: 0 | FW6: 0 | FX6: 0 | FY6: =(AND(FY$4>=$F6,FY$4<$G6))*1 -> 0 | FZ6: 0 | GA6: 0 | GB6: 0 | GC6: 0 | GD6: 0 | GE6: 0 | GF6: 0 | GG6: 0 | GH6: 0 | GI6: =(AND(GI$4>=$F6,GI$4<$G6))*1 -> 0 | GJ6: 0 | GK6: 0 | GL6: 0 | GM6: 0 | GN6: 0 | GO6: 0 | GP6: 0 | GQ6: 0 | GR6: 0 | GS6: =(AND(GS$4>=$F6,GS$4<$G6))*1 -> 0 | GT6: 0 | GU6: 0 | GV6: 0 | GW6: 0 | GX6: 0 | GY6: 0 | GZ6: 0 | HA6: 0 | HB6: 0 | HC6: =(AND(HC$4>=$F6,HC$4<$G6))*1 -> 0 | HD6: 0 | HE6: 0 | HF6: 0 | HG6: 0 | HH6: 0 | HI6: 0 | HJ6: 0 | HK6: 0 | HL6: 0 | HM6: =(AND(HM$4>=$F6,HM$4<$G6))*1 -> 0 | HN6: 0 | HO6: 0 | HP6: 0 | HQ6: 0 | HR6: 0 | HS6: 0 | HT6: 0 | HU6: 0 | HV6: 0 | HW6: =(AND(HW$4>=$F6,HW$4<$G6))*1 -> 0 | HX6: 0 | HY6: 0 | HZ6: 0 | IA6: 0 | IB6: 0 | IC6: 0 | ID6: 0 | IE6: 0 | IF6: 0 | IG6: =(AND(IG$4>=$F6,IG$4<$G6))*1 -> 0 | IH6: 0 | II6: 0 | IJ6: 0 | IK6: 0 | IL6: 0 | IM6: 0 | IN6: 0 | IO6: 0 | IP6: 0 | IQ6: =(AND(IQ$4>=$F6,IQ$4<$G6))*1 -> 0 | IR6: 0 | IS6: 0 | IT6: 0 | IU6: 0 | IV6: 0 | IW6: 0 | IX6: 0 | IY6: 0 | IZ6: 0 | JA6: =(AND(JA$4>=$F6,JA$4<$G6))*1 -> 0 | JB6: 0 | JC6: 0 | JD6: 0 | JE6: 0 | JF6: 0 | JG6: 0 | JH6: 0 | JI6: 0 | JJ6: 0 | JK6: =(AND(JK$4>=$F6,JK$4<$G6))*1 -> 0 | JL6: 0 | JM6: 0 | JN6: 0 | JO6: 0 | JP6: 0 | JQ6: 0 | JR6: 0 | JS6: 0 | JT6: 0 | JU6: =(AND(JU$4>=$F6,JU$4<$G6))*1 -> 0 | JV6: 0 | JW6: 0 | JX6: 0 | JY6: 0 | JZ6: 0 | KA6: 0 | KB6: 0 | KC6: 0 | KD6: 0 | KE6: =(AND(KE$4>=$F6,KE$4<$G6))*1 -> 0 | KF6: 0 | KG6: 0 | KH6: 0 | KI6: 0 | KJ6: 0 | KK6: 0 | KL6: 0 | KM6: 0 | KN6: 0 | KO6: =(AND(KO$4>=$F6,KO$4<$G6))*1 -> 0 | KP6: 0 | KQ6: 0 | KR6: 0 | KS6: 0 | KT6: 0 | KU6: 0 | KV6: 0 | KW6: 0 | KX6: 0 | KY6: =(AND(KY$4>=$F6,KY$4<$G6))*1 -> 0 | KZ6: 0 | LA6: 0 | LB6: 0 | LC6: 0 | LD6: 0 | LE6: 0 | LF6: 0 | LG6: 0 | LH6: 0 | LI6: =(AND(LI$4>=$F6,LI$4<$G6))*1 -> 0 | LJ6: 0 | LK6: 0 | LL6: 0 | LM6: 0 | LN6: 0 | LO6: 0 | LP6: 0 | LQ6: 0 | LR6: 0 | LS6: =(AND(LS$4>=$F6,LS$4<$G6))*1 -> 0 | LT6: 0 | LU6: 0 | LV6: 0 | LW6: 0 | LX6: 0 | LY6: 0 | LZ6: 0 | MA6: 0 | MB6: 0 | MC6: =(AND(MC$4>=$F6,MC$4<$G6))*1 -> 0 | MD6: 0 | ME6: 0 | MF6: 0 | MG6: 0 | MH6: 0 | MI6: 0 | MJ6: 0 | MK6: 0 | ML6: 0 | MM6: =(AND(MM$4>=$F6,MM$4<$G6))*1 -> 0 | MN6: 0 | MO6: 0 | MP6: 0 | MQ6: 0 | MR6: 0 | MS6: 0 | MT6: 0 | MU6: 0 | MV6: 0 | MW6: =(AND(MW$4>=$F6,MW$4<$G6))*1 -> 0 | MX6: 0 | MY6: 0 | MZ6: 0 | NA6: 0 | NB6: 0 | NC6: 0 | ND6: 0 | NE6: 0 | NF6: 0 | NG6: =(AND(NG$4>=$F6,NG$4<$G6))*1 -> 0 | NH6: 0 | NI6: 0 | NJ6: 0 | NK6: 0 | NL6: 0 | NM6: 0 | NN6: 0 | NO6: 0 | NP6: 0 | NQ6: =(AND(NQ$4>=$F6,NQ$4<$G6))*1 -> 0 | NR6: 0 | NS6: 0 | NT6: 0 | NU6: 0 | NV6: 0 | NW6: 0 | NX6: 0 | NY6: 0 | NZ6: 0 | OA6: =(AND(OA$4>=$F6,OA$4<$G6))*1 -> 0 | OB6: 0 | OC6: 0 | OD6: 0 | OE6: 0 | OF6: 0 | OG6: 0 | OH6: 0 | OI6: 0 | OJ6: 0 | OK6: =(AND(OK$4>=$F6,OK$4<$G6))*1 -> 0 | OL6: 0 | OM6: 0 | ON6: 0 | OO6: 0 | OP6: 0 | OQ6: 0 | OR6: 0 | OS6: 0 | OT6: 0 | OU6: =(AND(OU$4>=$F6,OU$4<$G6))*1 -> 0 | OV6: 0 | OW6: 0 | OX6: 0 | OY6: 0 | OZ6: 0 | PA6: 0 | PB6: 0 | PC6: 0 | PD6: 0 | PE6: =(AND(PE$4>=$F6,PE$4<$G6))*1 -> 0 | PF6: 0 | PG6: 0 | PH6: 0 | PI6: 0 | PJ6: 0 | PK6: 0 | PL6: 0 | PM6: 0 | PN6: 0 | PO6: =(AND(PO$4>=$F6,PO$4<$G6))*1 -> 0 | PP6: 0 | PQ6: 0 | PR6: 0 | PS6: 0 | PT6: 0 | PU6: 0 | PV6: 0 | PW6: 0 | PX6: 0 | PY6: =(AND(PY$4>=$F6,PY$4<$G6))*1 -> 0 | PZ6: 0 | QA6: 0 | QB6: 0 | QC6: 0 | QD6: 0 | QE6: 0 | QF6: 0 | QG6: 0 | QH6: 0 | QI6: =(AND(QI$4>=$F6,QI$4<$G6))*1 -> 0 | QJ6: 0 | QK6: 0 | QL6: 0 | QM6: 0 | QN6: 0 | QO6: 0 | QP6: 0 | QQ6: 0 | QR6: 0 | QS6: =(AND(QS$4>=$F6,QS$4<$G6))*1 -> 0 | QT6: 0 | QU6: 0 | QV6: 0 | QW6: 0 | QX6: 0 | QY6: 0 | QZ6: 0 | RA6: 0 | RB6: 0 | RC6: =(AND(RC$4>=$F6,RC$4<$G6))*1 -> 0 | RD6: 0 | RE6: 0 | RF6: 0 | RG6: 0 | RH6: 0 | RI6: 0 | RJ6: 0 | RK6: 0 | RL6: 0 | RM6: =(AND(RM$4>=$F6,RM$4<$G6))*1 -> 0 | RN6: 0 | RO6: 0 | RP6: 0 | RQ6: 0 | RR6: 0 | RS6: 0 | RT6: 0 | RU6: 0 | RV6: 0 | RW6: =(AND(RW$4>=$F6,RW$4<$G6))*1 -> 0 | RX6: 0 | RY6: 0 | RZ6: 0 | SA6: 0 | SB6: 0 | SC6: 0 | SD6: 0 | SE6: 0 | SF6: 0 | SG6: =(AND(SG$4>=$F6,SG$4<$G6))*1 -> 0 | SH6: 0 | SI6: 0 | SJ6: 0 | SK6: 0 | SL6: 0 | SM6: 0 | SN6: 0 | SO6: 0 | SP6: 0 | SQ6: =(AND(SQ$4>=$F6,SQ$4<$G6))*1 -> 0 | SR6: 0 | SS6: 0 | ST6: 0 | SU6: 0 | SV6: 0 | SW6: 0 | SX6: 0 | SY6: 0 | SZ6: 0 | TA6: =(AND(TA$4>=$F6,TA$4<$G6))*1 -> 0 | TB6: 0 | TC6: 0 | TD6: 0 | TE6: 0 | TF6: 0 | TG6: 0 | TH6: 0 | TI6: 0 | TJ6: 0 | TK6: =(AND(TK$4>=$F6,TK$4<$G6))*1 -> 0 | TL6: 0 | TM6: 0 | TN6: 0 | TO6: 0 | TP6: 0 | TQ6: 0 | TR6: 0 | TS6: 0 | TT6: 0 | TU6: =(AND(TU$4>=$F6,TU$4<$G6))*1 -> 0 | TV6: 0 | TW6: 0 | TX6: 0 | TY6: 0 | TZ6: 0 | UA6: 0 | UB6: 0 | UC6: 0 | UD6: 0 | UE6: =(AND(UE$4>=$F6,UE$4<$G6))*1 -> 0 | UF6: 0 | UG6: 0 | UH6: 0 | UI6: 0 | UJ6: 0 | UK6: 0 | UL6: 0 | UM6: 0 | UN6: 0 | UO6: =(AND(UO$4>=$F6,UO$4<$G6))*1 -> 0 | UP6: 0 | UQ6: 0 | UR6: 0 | US6: 0 | UT6: 0 | UU6: 0 | UV6: 0 | UW6: 0 | UX6: 0 | UY6: =(AND(UY$4>=$F6,UY$4<$G6))*1 -> 0 | UZ6: 0 | VA6: 0 | VB6: 0 | VC6: 0 | VD6: 0 | VE6: 0 | VF6: 0 | VG6: 0 | VH6: 0 | VI6: =(AND(VI$4>=$F6,VI$4<$G6))*1 -> 0 | VJ6: 0 | VK6: 0 | VL6: 0 | VM6: 0 | VN6: 0 | VO6: 0 | VP6: 0 | VQ6: 0 | VR6: 0 | VS6: =(AND(VS$4>=$F6,VS$4<$G6))*1 -> 0 | VT6: 0 | VU6: 0 | VV6: 0 | VW6: 0 | VX6: 0 | VY6: 0 | VZ6: 0 | WA6: 0 | WB6: 0 | WC6: =(AND(WC$4>=$F6,WC$4<$G6))*1 -> 0 | WD6: 0 | WE6: 0 | WF6: 0 | WG6: 0 | WH6: 0 | WI6: 0 | WJ6: 0 | WK6: 0 | WL6: 0 | WM6: =(AND(WM$4>=$F6,WM$4<$G6))*1 -> 0 | WN6: 0 | WO6: 0 | WP6: 0 | WQ6: 0 | WR6: 0 | WS6: 0 | WT6: 0 | WU6: 0 | WV6: 0 | WW6: =(AND(WW$4>=$F6,WW$4<$G6))*1 -> 0 | WX6: 0 | WY6: 0 | WZ6: 0 | XA6: 0 | XB6: 0 | XC6: 0 | XD6: 0 | XE6: 0 | XF6: 0 | XG6: =(AND(XG$4>=$F6,XG$4<$G6))*1 -> 0 | XH6: 0 | XI6: 0 | XJ6: 0 | XK6: 0 | XL6: 0 | XM6: 0 | XN6: 0 | XO6: 0 | XP6: 0 | XQ6: =(AND(XQ$4>=$F6,XQ$4<$G6))*1 -> 0 | XR6: 0 | XS6: 0 | XT6: 0 | XU6: 0 | XV6: 0 | XW6: 0 | XX6: 0 | XY6: 0 | XZ6: 0 | YA6: =(AND(YA$4>=$F6,YA$4<$G6))*1 -> 0 | YB6: 0 | YC6: 0 | YD6: 0 | YE6: 0 | YF6: 0 | YG6: 0 | YH6: 0 | YI6: 0 | YJ6: 0 | YK6: =(AND(YK$4>=$F6,YK$4<$G6))*1 -> 0 | YL6: 0 | YM6: 0 | YN6: 0 | YO6: 0 | YP6: 0 | YQ6: 0 | YR6: 0 | YS6: 0 | YT6: 0 | YU6: =(AND(YU$4>=$F6,YU$4<$G6))*1 -> 0 | YV6: 0 | YW6: 0 | YX6: 0 | YY6: 0 | YZ6: 0 | ZA6: 0 | ZB6: 0 | ZC6: 0 | ZD6: 0 | ZE6: =(AND(ZE$4>=$F6,ZE$4<$G6))*1 -> 0 | ZF6: 0 | ZG6: 0 | ZH6: 0 | ZI6: 0 | ZJ6: 0 | ZK6: 0 | ZL6: 0 | ZM6: 0 | ZN6: 0 | ZO6: =(AND(ZO$4>=$F6,ZO$4<$G6))*1 -> 0 | ZP6: 0 | ZQ6: 0 | ZR6: 0 | ZS6: 0 | ZT6: 0 | ZU6: 0 | ZV6: 0 | ZW6: 0 | ZX6: 0 | ZY6: =(AND(ZY$4>=$F6,ZY$4<$G6))*1 -> 0 | ZZ6: 0 | AAA6: 0 | AAB6: 0 | AAC6: 0 | AAD6: 0 | AAE6: 0 | AAF6: 0 | AAG6: 0 | AAH6: 0 | AAI6: =(AND(AAI$4>=$F6,AAI$4<$G6))*1 -> 0 | AAJ6: 0 | AAK6: 0 | AAL6: 0 | AAM6: 0 | AAN6: 0 | AAO6: 0 | AAP6: 0 | AAQ6: 0 | AAR6: 0 | AAS6: =(AND(AAS$4>=$F6,AAS$4<$G6))*1 -> 0 | AAT6: 0 | AAU6: 0 | AAV6: 0 | AAW6: 0 | AAX6: 0 | AAY6: 0 | AAZ6: 0 | ABA6: 0 | ABB6: 0 | ABC6: =(AND(ABC$4>=$F6,ABC$4<$G6))*1 -> 0 | ABD6: 0 | ABE6: 0 | ABF6: 0 | ABG6: 0 | ABH6: 0 | ABI6: 0 | ABJ6: 0 | ABK6: 0 | ABL6: 0 | ABM6: =(AND(ABM$4>=$F6,ABM$4<$G6))*1 -> 0 | ABN6: 0 | ABO6: 0 | ABP6: 0 | ABQ6: 0 | ABR6: 0 | ABS6: 0 | ABT6: 0 | ABU6: 0 | ABV6: 0 | ABW6: 0 | ABX6: 0 | ABY6: 0 | ABZ6: 0
D7: Operation period | E7: Flag | F7: =INDEX(InputC!I14:AD14,E1) -> 2027-06-01 | G7: =INDEX(InputC!I19:AD19,E1) -> 2057-06-01 | H7: =SUM(K7:XFD7) -> 360 | I7: Flag | K7: 0 | L7: 0 | M7: 0 | N7: 0 | O7: 0 | P7: 0 | Q7: 0 | R7: 0 | S7: 0 | T7: 0 | U7: 0 | V7: 0 | W7: 0 | X7: 0 | Y7: 0 | Z7: 0 | AA7: 0 | AB7: 0 | AC7: 0 | AD7: 0 | AE7: 0 | AF7: 0 | AG7: 0 | AH7: 0 | AI7: 0 | AJ7: 0 | AK7: 0 | AL7: 0 | AM7: 0 | AN7: 1 | AO7: 1 | AP7: 1 | AQ7: 1 | AR7: 1 | AS7: 1 | AT7: 1 | AU7: 1 | AV7: 1 | AW7: 1 | AX7: 1 | AY7: 1 | AZ7: 1 | BA7: 1 | BB7: 1 | BC7: 1 | BD7: 1 | BE7: 1 | BF7: 1 | BG7: 1 | BH7: 1 | BI7: 1 | BJ7: 1 | BK7: 1 | BL7: 1 | BM7: 1 | BN7: 1 | BO7: 1 | BP7: 1 | BQ7: 1 | BR7: 1 | BS7: 1 | BT7: 1 | BU7: 1 | BV7: 1 | BW7: 1 | BX7: 1 | BY7: 1 | BZ7: 1 | CA7: 1 | CB7: 1 | CC7: 1 | CD7: 1 | CE7: 1 | CF7: 1 | CG7: 1 | CH7: 1 | CI7: 1 | CJ7: 1 | CK7: 1 | CL7: 1 | CM7: 1 | CN7: 1 | CO7: 1 | CP7: 1 | CQ7: 1 | CR7: 1 | CS7: 1 | CT7: 1 | CU7: 1 | CV7: 1 | CW7: 1 | CX7: 1 | CY7: 1 | CZ7: 1 | DA7: 1 | DB7: 1 | DC7: 1 | DD7: 1 | DE7: 1 | DF7: 1 | DG7: 1 | DH7: 1 | DI7: 1 | DJ7: 1 | DK7: 1 | DL7: 1 | DM7: 1 | DN7: 1 | DO7: 1 | DP7: 1 | DQ7: 1 | DR7: 1 | DS7: 1 | DT7: 1 | DU7: 1 | DV7: 1 | DW7: 1 | DX7: 1 | DY7: 1 | DZ7: 1 | EA7: 1 | EB7: 1 | EC7: 1 | ED7: 1 | EE7: 1 | EF7: 1 | EG7: 1 | EH7: 1 | EI7: 1 | EJ7: 1 | EK7: 1 | EL7: 1 | EM7: 1 | EN7: 1 | EO7: 1 | EP7: 1 | EQ7: 1 | ER7: 1 | ES7: 1 | ET7: 1 | EU7: 1 | EV7: 1 | EW7: 1 | EX7: 1 | EY7: 1 | EZ7: 1 | FA7: 1 | FB7: 1 | FC7: 1 | FD7: 1 | FE7: 1 | FF7: 1 | FG7: 1 | FH7: 1 | FI7: 1 | FJ7: 1 | FK7: 1 | FL7: 1 | FM7: 1 | FN7: 1 | FO7: 1 | FP7: 1 | FQ7: 1 | FR7: 1 | FS7: 1 | FT7: 1 | FU7: 1 | FV7: 1 | FW7: 1 | FX7: 1 | FY7: 1 | FZ7: 1 | GA7: 1 | GB7: 1 | GC7: 1 | GD7: 1 | GE7: 1 | GF7: 1 | GG7: 1 | GH7: 1 | GI7: 1 | GJ7: 1 | GK7: 1 | GL7: 1 | GM7: 1 | GN7: 1 | GO7: 1 | GP7: 1 | GQ7: 1 | GR7: 1 | GS7: 1 | GT7: 1 | GU7: 1 | GV7: 1 | GW7: 1 | GX7: 1 | GY7: 1 | GZ7: 1 | HA7: 1 | HB7: 1 | HC7: 1 | HD7: 1 | HE7: 1 | HF7: 1 | HG7: 1 | HH7: 1 | HI7: 1 | HJ7: 1 | HK7: 1 | HL7: 1 | HM7: 1 | HN7: 1 | HO7: 1 | HP7: 1 | HQ7: 1 | HR7: 1 | HS7: 1 | HT7: 1 | HU7: 1 | HV7: 1 | HW7: 1 | HX7: 1 | HY7: 1 | HZ7: 1 | IA7: 1 | IB7: 1 | IC7: 1 | ID7: 1 | IE7: 1 | IF7: 1 | IG7: 1 | IH7: 1 | II7: 1 | IJ7: 1 | IK7: 1 | IL7: 1 | IM7: 1 | IN7: 1 | IO7: 1 | IP7: 1 | IQ7: 1 | IR7: 1 | IS7: 1 | IT7: 1 | IU7: 1 | IV7: 1 | IW7: 1 | IX7: 1 | IY7: 1 | IZ7: 1 | JA7: 1 | JB7: 1 | JC7: 1 | JD7: 1 | JE7: 1 | JF7: 1 | JG7: 1 | JH7: 1 | JI7: 1 | JJ7: 1 | JK7: 1 | JL7: 1 | JM7: 1 | JN7: 1 | JO7: 1 | JP7: 1 | JQ7: 1 | JR7: 1 | JS7: 1 | JT7: 1 | JU7: 1 | JV7: 1 | JW7: 1 | JX7: 1 | JY7: 1 | JZ7: 1 | KA7: 1 | KB7: 1 | KC7: 1 | KD7: 1 | KE7: 1 | KF7: 1 | KG7: 1 | KH7: 1 | KI7: 1 | KJ7: 1 | KK7: 1 | KL7: 1 | KM7: 1 | KN7: 1 | KO7: 1 | KP7: 1 | KQ7: 1 | KR7: 1 | KS7: 1 | KT7: 1 | KU7: 1 | KV7: 1 | KW7: 1 | KX7: 1 | KY7: 1 | KZ7: 1 | LA7: 1 | LB7: 1 | LC7: 1 | LD7: 1 | LE7: 1 | LF7: 1 | LG7: 1 | LH7: 1 | LI7: 1 | LJ7: 1 | LK7: 1 | LL7: 1 | LM7: 1 | LN7: 1 | LO7: 1 | LP7: 1 | LQ7: 1 | LR7: 1 | LS7: 1 | LT7: 1 | LU7: 1 | LV7: 1 | LW7: 1 | LX7: 1 | LY7: 1 | LZ7: 1 | MA7: 1 | MB7: 1 | MC7: 1 | MD7: 1 | ME7: 1 | MF7: 1 | MG7: 1 | MH7: 1 | MI7: 1 | MJ7: 1 | MK7: 1 | ML7: 1 | MM7: 1 | MN7: 1 | MO7: 1 | MP7: 1 | MQ7: 1 | MR7: 1 | MS7: 1 | MT7: 1 | MU7: 1 | MV7: 1 | MW7: 1 | MX7: 1 | MY7: 1 | MZ7: 1 | NA7: 1 | NB7: 1 | NC7: 1 | ND7: 1 | NE7: 1 | NF7: 1 | NG7: 1 | NH7: 1 | NI7: 1 | NJ7: 1 | NK7: 1 | NL7: 1 | NM7: 1 | NN7: 1 | NO7: 1 | NP7: 1 | NQ7: 1 | NR7: 1 | NS7: 1 | NT7: 1 | NU7: 1 | NV7: 1 | NW7: 1 | NX7: 1 | NY7: 1 | NZ7: 1 | OA7: 1 | OB7: 1 | OC7: 1 | OD7: 1 | OE7: 1 | OF7: 1 | OG7: 1 | OH7: 1 | OI7: 1 | OJ7: 0 | OK7: 0 | OL7: 0 | OM7: 0 | ON7: 0 | OO7: 0 | OP7: 0 | OQ7: 0 | OR7: 0 | OS7: 0 | OT7: 0 | OU7: 0 | OV7: 0 | OW7: 0 | OX7: 0 | OY7: 0 | OZ7: 0 | PA7: 0 | PB7: 0 | PC7: 0 | PD7: 0 | PE7: 0 | PF7: 0 | PG7: 0 | PH7: 0 | PI7: 0 | PJ7: 0 | PK7: 0 | PL7: 0 | PM7: 0 | PN7: 0 | PO7: 0 | PP7: 0 | PQ7: 0 | PR7: 0 | PS7: 0 | PT7: 0 | PU7: 0 | PV7: 0 | PW7: 0 | PX7: 0 | PY7: 0 | PZ7: 0 | QA7: 0 | QB7: 0 | QC7: 0 | QD7: 0 | QE7: 0 | QF7: 0 | QG7: 0 | QH7: 0 | QI7: 0 | QJ7: 0 | QK7: 0 | QL7: 0 | QM7: 0 | QN7: 0 | QO7: 0 | QP7: 0 | QQ7: 0 | QR7: 0 | QS7: 0 | QT7: 0 | QU7: 0 | QV7: 0 | QW7: 0 | QX7: 0 | QY7: 0 | QZ7: 0 | RA7: 0 | RB7: 0 | RC7: 0 | RD7: 0 | RE7: 0 | RF7: 0 | RG7: 0 | RH7: 0 | RI7: 0 | RJ7: 0 | RK7: 0 | RL7: 0 | RM7: 0 | RN7: 0 | RO7: 0 | RP7: 0 | RQ7: 0 | RR7: 0 | RS7: 0 | RT7: 0 | RU7: 0 | RV7: 0 | RW7: 0 | RX7: 0 | RY7: 0 | RZ7: 0 | SA7: 0 | SB7: 0 | SC7: 0 | SD7: 0 | SE7: 0 | SF7: 0 | SG7: 0 | SH7: 0 | SI7: 0 | SJ7: 0 | SK7: 0 | SL7: 0 | SM7: 0 | SN7: 0 | SO7: 0 | SP7: 0 | SQ7: 0 | SR7: 0 | SS7: 0 | ST7: 0 | SU7: 0 | SV7: 0 | SW7: 0 | SX7: 0 | SY7: 0 | SZ7: 0 | TA7: 0 | TB7: 0 | TC7: 0 | TD7: 0 | TE7: 0 | TF7: 0 | TG7: 0 | TH7: 0 | TI7: 0 | TJ7: 0 | TK7: 0 | TL7: 0 | TM7: 0 | TN7: 0 | TO7: 0 | TP7: 0 | TQ7: 0 | TR7: 0 | TS7: 0 | TT7: 0 | TU7: 0 | TV7: 0 | TW7: 0 | TX7: 0 | TY7: 0 | TZ7: 0 | UA7: 0 | UB7: 0 | UC7: 0 | UD7: 0 | UE7: 0 | UF7: 0 | UG7: 0 | UH7: 0 | UI7: 0 | UJ7: 0 | UK7: 0 | UL7: 0 | UM7: 0 | UN7: 0 | UO7: 0 | UP7: 0 | UQ7: 0 | UR7: 0 | US7: 0 | UT7: 0 | UU7: 0 | UV7: 0 | UW7: 0 | UX7: 0 | UY7: 0 | UZ7: 0 | VA7: 0 | VB7: 0 | VC7: 0 | VD7: 0 | VE7: 0 | VF7: 0 | VG7: 0 | VH7: 0 | VI7: 0 | VJ7: 0 | VK7: 0 | VL7: 0 | VM7: 0 | VN7: 0 | VO7: 0 | VP7: 0 | VQ7: 0 | VR7: 0 | VS7: 0 | VT7: 0 | VU7: 0 | VV7: 0 | VW7: 0 | VX7: 0 | VY7: 0 | VZ7: 0 | WA7: 0 | WB7: 0 | WC7: 0 | WD7: 0 | WE7: 0 | WF7: 0 | WG7: 0 | WH7: 0 | WI7: 0 | WJ7: 0 | WK7: 0 | WL7: 0 | WM7: 0 | WN7: 0 | WO7: 0 | WP7: 0 | WQ7: 0 | WR7: 0 | WS7: 0 | WT7: 0 | WU7: 0 | WV7: 0 | WW7: 0 | WX7: 0 | WY7: 0 | WZ7: 0 | XA7: 0 | XB7: 0 | XC7: 0 | XD7: 0 | XE7: 0 | XF7: 0 | XG7: 0 | XH7: 0 | XI7: 0 | XJ7: 0 | XK7: 0 | XL7: 0 | XM7: 0 | XN7: 0 | XO7: 0 | XP7: 0 | XQ7: 0 | XR7: 0 | XS7: 0 | XT7: 0 | XU7: 0 | XV7: 0 | XW7: 0 | XX7: 0 | XY7: 0 | XZ7: 0 | YA7: 0 | YB7: 0 | YC7: 0 | YD7: 0 | YE7: 0 | YF7: 0 | YG7: 0 | YH7: 0 | YI7: 0 | YJ7: 0 | YK7: 0 | YL7: 0 | YM7: 0 | YN7: 0 | YO7: 0 | YP7: 0 | YQ7: 0 | YR7: 0 | YS7: 0 | YT7: 0 | YU7: 0 | YV7: 0 | YW7: 0 | YX7: 0 | YY7: 0 | YZ7: 0 | ZA7: 0 | ZB7: 0 | ZC7: 0 | ZD7: 0 | ZE7: 0 | ZF7: 0 | ZG7: 0 | ZH7: 0 | ZI7: 0 | ZJ7: 0 | ZK7: 0 | ZL7: 0 | ZM7: 0 | ZN7: 0 | ZO7: 0 | ZP7: 0 | ZQ7: 0 | ZR7: 0 | ZS7: 0 | ZT7: 0 | ZU7: 0 | ZV7: 0 | ZW7: 0 | ZX7: 0 | ZY7: 0 | ZZ7: 0 | AAA7: 0 | AAB7: 0 | AAC7: 0 | AAD7: 0 | AAE7: 0 | AAF7: 0 | AAG7: 0 | AAH7: 0 | AAI7: 0 | AAJ7: 0 | AAK7: 0 | AAL7: 0 | AAM7: 0 | AAN7: 0 | AAO7: 0 | AAP7: 0 | AAQ7: 0 | AAR7: 0 | AAS7: 0 | AAT7: 0 | AAU7: 0 | AAV7: 0 | AAW7: 0 | AAX7: 0 | AAY7: 0 | AAZ7: 0 | ABA7: 0 | ABB7: 0 | ABC7: 0 | ABD7: 0 | ABE7: 0 | ABF7: 0 | ABG7: 0 | ABH7: 0 | ABI7: 0 | ABJ7: 0 | ABK7: 0 | ABL7: 0 | ABM7: 0 | ABN7: 0 | ABO7: 0 | ABP7: 0 | ABQ7: 0 | ABR7: 0 | ABS7: 0 | ABT7: 0 | ABU7: 0 | ABV7: 0 | ABW7: 0 | ABX7: 0 | ABY7: 0 | ABZ7: 0
D8: Operating Life in Periods | I8: Counter | K8: =J8+K7 -> 0 | L8: =K8+L7 -> 0 | M8: 0 | N8: 0 | O8: 0 | P8: 0 | Q8: 0 | R8: 0 | S8: 0 | T8: 0 | U8: 0 | V8: 0 | W8: 0 | X8: 0 | Y8: 0 | Z8: 0 | AA8: 0 | AB8: 0 | AC8: 0 | AD8: 0 | AE8: 0 | AF8: 0 | AG8: 0 | AH8: 0 | AI8: 0 | AJ8: 0 | AK8: 0 | AL8: 0 | AM8: 0 | AN8: 1 | AO8: 2 | AP8: 3 | AQ8: 4 | AR8: 5 | AS8: 6 | AT8: 7 | AU8: 8 | AV8: 9 | AW8: 10 | AX8: 11 | AY8: 12 | AZ8: 13 | BA8: 14 | BB8: 15 | BC8: 16 | BD8: 17 | BE8: 18 | BF8: 19 | BG8: 20 | BH8: 21 | BI8: 22 | BJ8: 23 | BK8: 24 | BL8: 25 | BM8: 26 | BN8: 27 | BO8: 28 | BP8: 29 | BQ8: 30 | BR8: 31 | BS8: 32 | BT8: 33 | BU8: 34 | BV8: 35 | BW8: 36 | BX8: =BW8+BX7 -> 37 | BY8: 38 | BZ8: 39 | CA8: 40 | CB8: 41 | CC8: 42 | CD8: 43 | CE8: 44 | CF8: 45 | CG8: 46 | CH8: 47 | CI8: 48 | CJ8: 49 | CK8: 50 | CL8: 51 | CM8: 52 | CN8: 53 | CO8: 54 | CP8: 55 | CQ8: 56 | CR8: 57 | CS8: 58 | CT8: 59 | CU8: 60 | CV8: 61 | CW8: 62 | CX8: 63 | CY8: 64 | CZ8: 65 | DA8: 66 | DB8: 67 | DC8: 68 | DD8: 69 | DE8: 70 | DF8: 71 | DG8: 72 | DH8: 73 | DI8: 74 | DJ8: 75 | DK8: 76 | DL8: 77 | DM8: 78 | DN8: 79 | DO8: 80 | DP8: 81 | DQ8: 82 | DR8: 83 | DS8: 84 | DT8: 85 | DU8: 86 | DV8: 87 | DW8: 88 | DX8: 89 | DY8: 90 | DZ8: 91 | EA8: 92 | EB8: 93 | EC8: 94 | ED8: 95 | EE8: 96 | EF8: 97 | EG8: 98 | EH8: 99 | EI8: 100 | EJ8: =EI8+EJ7 -> 101 | EK8: 102 | EL8: 103 | EM8: 104 | EN8: 105 | EO8: 106 | EP8: 107 | EQ8: 108 | ER8: 109 | ES8: 110 | ET8: 111 | EU8: 112 | EV8: 113 | EW8: 114 | EX8: 115 | EY8: 116 | EZ8: 117 | FA8: 118 | FB8: 119 | FC8: 120 | FD8: 121 | FE8: 122 | FF8: 123 | FG8: 124 | FH8: 125 | FI8: 126 | FJ8: 127 | FK8: 128 | FL8: 129 | FM8: 130 | FN8: 131 | FO8: 132 | FP8: 133 | FQ8: 134 | FR8: 135 | FS8: 136 | FT8: 137 | FU8: 138 | FV8: 139 | FW8: 140 | FX8: 141 | FY8: 142 | FZ8: 143 | GA8: 144 | GB8: 145 | GC8: 146 | GD8: 147 | GE8: 148 | GF8: 149 | GG8: 150 | GH8: 151 | GI8: 152 | GJ8: 153 | GK8: 154 | GL8: 155 | GM8: 156 | GN8: 157 | GO8: 158 | GP8: 159 | GQ8: 160 | GR8: 161 | GS8: 162 | GT8: 163 | GU8: 164 | GV8: =GU8+GV7 -> 165 | GW8: 166 | GX8: 167 | GY8: 168 | GZ8: 169 | HA8: 170 | HB8: 171 | HC8: 172 | HD8: 173 | HE8: 174 | HF8: 175 | HG8: 176 | HH8: 177 | HI8: 178 | HJ8: 179 | HK8: 180 | HL8: 181 | HM8: 182 | HN8: 183 | HO8: 184 | HP8: 185 | HQ8: 186 | HR8: 187 | HS8: 188 | HT8: 189 | HU8: 190 | HV8: 191 | HW8: 192 | HX8: 193 | HY8: 194 | HZ8: 195 | IA8: 196 | IB8: 197 | IC8: 198 | ID8: 199 | IE8: 200 | IF8: 201 | IG8: 202 | IH8: 203 | II8: 204 | IJ8: 205 | IK8: 206 | IL8: 207 | IM8: 208 | IN8: 209 | IO8: 210 | IP8: 211 | IQ8: 212 | IR8: 213 | IS8: 214 | IT8: 215 | IU8: 216 | IV8: 217 | IW8: 218 | IX8: 219 | IY8: 220 | IZ8: 221 | JA8: =IZ8+JA7 -> 222 | JB8: =JA8+JB7 -> 223 | JC8: =JB8+JC7 -> 224 | JD8: =JC8+JD7 -> 225 | JE8: =JD8+JE7 -> 226 | JF8: =JE8+JF7 -> 227 | JG8: =JF8+JG7 -> 228 | JH8: =JG8+JH7 -> 229 | JI8: =JH8+JI7 -> 230 | JJ8: =JI8+JJ7 -> 231 | JK8: =JJ8+JK7 -> 232 | JL8: =JK8+JL7 -> 233 | JM8: =JL8+JM7 -> 234 | JN8: =JM8+JN7 -> 235 | JO8: =JN8+JO7 -> 236 | JP8: =JO8+JP7 -> 237 | JQ8: =JP8+JQ7 -> 238 | JR8: =JQ8+JR7 -> 239 | JS8: =JR8+JS7 -> 240 | JT8: =JS8+JT7 -> 241 | JU8: =JT8+JU7 -> 242 | JV8: =JU8+JV7 -> 243 | JW8: =JV8+JW7 -> 244 | JX8: =JW8+JX7 -> 245 | JY8: =JX8+JY7 -> 246 | JZ8: =JY8+JZ7 -> 247 | KA8: =JZ8+KA7 -> 248 | KB8: =KA8+KB7 -> 249 | KC8: =KB8+KC7 -> 250 | KD8: =KC8+KD7 -> 251 | KE8: =KD8+KE7 -> 252 | KF8: =KE8+KF7 -> 253 | KG8: =KF8+KG7 -> 254 | KH8: =KG8+KH7 -> 255 | KI8: =KH8+KI7 -> 256 | KJ8: =KI8+KJ7 -> 257 | KK8: =KJ8+KK7 -> 258 | KL8: =KK8+KL7 -> 259 | KM8: =KL8+KM7 -> 260 | KN8: =KM8+KN7 -> 261 | KO8: =KN8+KO7 -> 262 | KP8: =KO8+KP7 -> 263 | KQ8: =KP8+KQ7 -> 264 | KR8: =KQ8+KR7 -> 265 | KS8: =KR8+KS7 -> 266 | KT8: =KS8+KT7 -> 267 | KU8: =KT8+KU7 -> 268 | KV8: =KU8+KV7 -> 269 | KW8: =KV8+KW7 -> 270 | KX8: =KW8+KX7 -> 271 | KY8: =KX8+KY7 -> 272 | KZ8: =KY8+KZ7 -> 273 | LA8: =KZ8+LA7 -> 274 | LB8: =LA8+LB7 -> 275 | LC8: =LB8+LC7 -> 276 | LD8: =LC8+LD7 -> 277 | LE8: =LD8+LE7 -> 278 | LF8: =LE8+LF7 -> 279 | LG8: =LF8+LG7 -> 280 | LH8: =LG8+LH7 -> 281 | LI8: =LH8+LI7 -> 282 | LJ8: =LI8+LJ7 -> 283 | LK8: =LJ8+LK7 -> 284 | LL8: =LK8+LL7 -> 285 | LM8: =LL8+LM7 -> 286 | LN8: =LM8+LN7 -> 287 | LO8: =LN8+LO7 -> 288 | LP8: =LO8+LP7 -> 289 | LQ8: =LP8+LQ7 -> 290 | LR8: =LQ8+LR7 -> 291 | LS8: =LR8+LS7 -> 292 | LT8: =LS8+LT7 -> 293 | LU8: =LT8+LU7 -> 294 | LV8: =LU8+LV7 -> 295 | LW8: =LV8+LW7 -> 296 | LX8: =LW8+LX7 -> 297 | LY8: =LX8+LY7 -> 298 | LZ8: =LY8+LZ7 -> 299 | MA8: =LZ8+MA7 -> 300 | MB8: =MA8+MB7 -> 301 | MC8: =MB8+MC7 -> 302 | MD8: =MC8+MD7 -> 303 | ME8: =MD8+ME7 -> 304 | MF8: =ME8+MF7 -> 305 | MG8: =MF8+MG7 -> 306 | MH8: =MG8+MH7 -> 307 | MI8: =MH8+MI7 -> 308 | MJ8: =MI8+MJ7 -> 309 | MK8: =MJ8+MK7 -> 310 | ML8: =MK8+ML7 -> 311 | MM8: =ML8+MM7 -> 312 | MN8: =MM8+MN7 -> 313 | MO8: =MN8+MO7 -> 314 | MP8: =MO8+MP7 -> 315 | MQ8: =MP8+MQ7 -> 316 | MR8: =MQ8+MR7 -> 317 | MS8: =MR8+MS7 -> 318 | MT8: =MS8+MT7 -> 319 | MU8: =MT8+MU7 -> 320 | MV8: =MU8+MV7 -> 321 | MW8: =MV8+MW7 -> 322 | MX8: =MW8+MX7 -> 323 | MY8: =MX8+MY7 -> 324 | MZ8: =MY8+MZ7 -> 325 | NA8: =MZ8+NA7 -> 326 | NB8: =NA8+NB7 -> 327 | NC8: =NB8+NC7 -> 328 | ND8: =NC8+ND7 -> 329 | NE8: =ND8+NE7 -> 330 | NF8: =NE8+NF7 -> 331 | NG8: =NF8+NG7 -> 332 | NH8: =NG8+NH7 -> 333 | NI8: =NH8+NI7 -> 334 | NJ8: =NI8+NJ7 -> 335 | NK8: =NJ8+NK7 -> 336 | NL8: =NK8+NL7 -> 337 | NM8: =NL8+NM7 -> 338 | NN8: =NM8+NN7 -> 339 | NO8: =NN8+NO7 -> 340 | NP8: =NO8+NP7 -> 341 | NQ8: =NP8+NQ7 -> 342 | NR8: =NQ8+NR7 -> 343 | NS8: =NR8+NS7 -> 344 | NT8: =NS8+NT7 -> 345 | NU8: =NT8+NU7 -> 346 | NV8: =NU8+NV7 -> 347 | NW8: =NV8+NW7 -> 348 | NX8: =NW8+NX7 -> 349 | NY8: =NX8+NY7 -> 350 | NZ8: =NY8+NZ7 -> 351 | OA8: =NZ8+OA7 -> 352 | OB8: =OA8+OB7 -> 353 | OC8: =OB8+OC7 -> 354 | OD8: =OC8+OD7 -> 355 | OE8: =OD8+OE7 -> 356 | OF8: =OE8+OF7 -> 357 | OG8: =OF8+OG7 -> 358 | OH8: =OG8+OH7 -> 359 | OI8: =OH8+OI7 -> 360 | OJ8: =OI8+OJ7 -> 360 | OK8: =OJ8+OK7 -> 360 | OL8: =OK8+OL7 -> 360 | OM8: =OL8+OM7 -> 360 | ON8: =OM8+ON7 -> 360 | OO8: =ON8+OO7 -> 360 | OP8: =OO8+OP7 -> 360 | OQ8: =OP8+OQ7 -> 360 | OR8: =OQ8+OR7 -> 360 | OS8: =OR8+OS7 -> 360 | OT8: =OS8+OT7 -> 360 | OU8: =OT8+OU7 -> 360 | OV8: =OU8+OV7 -> 360 | OW8: =OV8+OW7 -> 360 | OX8: =OW8+OX7 -> 360 | OY8: =OX8+OY7 -> 360 | OZ8: =OY8+OZ7 -> 360 | PA8: =OZ8+PA7 -> 360 | PB8: =PA8+PB7 -> 360 | PC8: =PB8+PC7 -> 360 | PD8: =PC8+PD7 -> 360 | PE8: =PD8+PE7 -> 360 | PF8: =PE8+PF7 -> 360 | PG8: =PF8+PG7 -> 360 | PH8: =PG8+PH7 -> 360 | PI8: =PH8+PI7 -> 360 | PJ8: =PI8+PJ7 -> 360 | PK8: =PJ8+PK7 -> 360 | PL8: =PK8+PL7 -> 360 | PM8: =PL8+PM7 -> 360 | PN8: =PM8+PN7 -> 360 | PO8: =PN8+PO7 -> 360 | PP8: =PO8+PP7 -> 360 | PQ8: =PP8+PQ7 -> 360 | PR8: =PQ8+PR7 -> 360 | PS8: =PR8+PS7 -> 360 | PT8: =PS8+PT7 -> 360 | PU8: =PT8+PU7 -> 360 | PV8: =PU8+PV7 -> 360 | PW8: =PV8+PW7 -> 360 | PX8: =PW8+PX7 -> 360 | PY8: =PX8+PY7 -> 360 | PZ8: =PY8+PZ7 -> 360 | QA8: =PZ8+QA7 -> 360 | QB8: =QA8+QB7 -> 360 | QC8: =QB8+QC7 -> 360 | QD8: =QC8+QD7 -> 360 | QE8: =QD8+QE7 -> 360 | QF8: =QE8+QF7 -> 360 | QG8: =QF8+QG7 -> 360 | QH8: =QG8+QH7 -> 360 | QI8: =QH8+QI7 -> 360 | QJ8: =QI8+QJ7 -> 360 | QK8: =QJ8+QK7 -> 360 | QL8: =QK8+QL7 -> 360 | QM8: =QL8+QM7 -> 360 | QN8: =QM8+QN7 -> 360 | QO8: =QN8+QO7 -> 360 | QP8: =QO8+QP7 -> 360 | QQ8: =QP8+QQ7 -> 360 | QR8: =QQ8+QR7 -> 360 | QS8: =QR8+QS7 -> 360 | QT8: =QS8+QT7 -> 360 | QU8: =QT8+QU7 -> 360 | QV8: =QU8+QV7 -> 360 | QW8: =QV8+QW7 -> 360 | QX8: =QW8+QX7 -> 360 | QY8: =QX8+QY7 -> 360 | QZ8: =QY8+QZ7 -> 360 | RA8: =QZ8+RA7 -> 360 | RB8: =RA8+RB7 -> 360 | RC8: =RB8+RC7 -> 360 | RD8: =RC8+RD7 -> 360 | RE8: =RD8+RE7 -> 360 | RF8: =RE8+RF7 -> 360 | RG8: =RF8+RG7 -> 360 | RH8: =RG8+RH7 -> 360 | RI8: =RH8+RI7 -> 360 | RJ8: =RI8+RJ7 -> 360 | RK8: =RJ8+RK7 -> 360 | RL8: =RK8+RL7 -> 360 | RM8: =RL8+RM7 -> 360 | RN8: =RM8+RN7 -> 360 | RO8: =RN8+RO7 -> 360 | RP8: =RO8+RP7 -> 360 | RQ8: =RP8+RQ7 -> 360 | RR8: =RQ8+RR7 -> 360 | RS8: =RR8+RS7 -> 360 | RT8: =RS8+RT7 -> 360 | RU8: =RT8+RU7 -> 360 | RV8: =RU8+RV7 -> 360 | RW8: =RV8+RW7 -> 360 | RX8: =RW8+RX7 -> 360 | RY8: =RX8+RY7 -> 360 | RZ8: =RY8+RZ7 -> 360 | SA8: =RZ8+SA7 -> 360 | SB8: =SA8+SB7 -> 360 | SC8: =SB8+SC7 -> 360 | SD8: =SC8+SD7 -> 360 | SE8: =SD8+SE7 -> 360 | SF8: =SE8+SF7 -> 360 | SG8: =SF8+SG7 -> 360 | SH8: =SG8+SH7 -> 360 | SI8: =SH8+SI7 -> 360 | SJ8: =SI8+SJ7 -> 360 | SK8: =SJ8+SK7 -> 360 | SL8: =SK8+SL7 -> 360 | SM8: =SL8+SM7 -> 360 | SN8: =SM8+SN7 -> 360 | SO8: =SN8+SO7 -> 360 | SP8: =SO8+SP7 -> 360 | SQ8: =SP8+SQ7 -> 360 | SR8: =SQ8+SR7 -> 360 | SS8: =SR8+SS7 -> 360 | ST8: =SS8+ST7 -> 360 | SU8: =ST8+SU7 -> 360 | SV8: =SU8+SV7 -> 360 | SW8: =SV8+SW7 -> 360 | SX8: =SW8+SX7 -> 360 | SY8: =SX8+SY7 -> 360 | SZ8: =SY8+SZ7 -> 360 | TA8: =SZ8+TA7 -> 360 | TB8: =TA8+TB7 -> 360 | TC8: =TB8+TC7 -> 360 | TD8: =TC8+TD7 -> 360 | TE8: =TD8+TE7 -> 360 | TF8: =TE8+TF7 -> 360 | TG8: =TF8+TG7 -> 360 | TH8: =TG8+TH7 -> 360 | TI8: =TH8+TI7 -> 360 | TJ8: =TI8+TJ7 -> 360 | TK8: =TJ8+TK7 -> 360 | TL8: =TK8+TL7 -> 360 | TM8: =TL8+TM7 -> 360 | TN8: =TM8+TN7 -> 360 | TO8: =TN8+TO7 -> 360 | TP8: =TO8+TP7 -> 360 | TQ8: =TP8+TQ7 -> 360 | TR8: =TQ8+TR7 -> 360 | TS8: =TR8+TS7 -> 360 | TT8: =TS8+TT7 -> 360 | TU8: =TT8+TU7 -> 360 | TV8: =TU8+TV7 -> 360 | TW8: =TV8+TW7 -> 360 | TX8: =TW8+TX7 -> 360 | TY8: =TX8+TY7 -> 360 | TZ8: =TY8+TZ7 -> 360 | UA8: =TZ8+UA7 -> 360 | UB8: =UA8+UB7 -> 360 | UC8: =UB8+UC7 -> 360 | UD8: =UC8+UD7 -> 360 | UE8: =UD8+UE7 -> 360 | UF8: =UE8+UF7 -> 360 | UG8: =UF8+UG7 -> 360 | UH8: =UG8+UH7 -> 360 | UI8: =UH8+UI7 -> 360 | UJ8: =UI8+UJ7 -> 360 | UK8: =UJ8+UK7 -> 360 | UL8: =UK8+UL7 -> 360 | UM8: =UL8+UM7 -> 360 | UN8: =UM8+UN7 -> 360 | UO8: =UN8+UO7 -> 360 | UP8: =UO8+UP7 -> 360 | UQ8: =UP8+UQ7 -> 360 | UR8: =UQ8+UR7 -> 360 | US8: =UR8+US7 -> 360 | UT8: =US8+UT7 -> 360 | UU8: =UT8+UU7 -> 360 | UV8: =UU8+UV7 -> 360 | UW8: =UV8+UW7 -> 360 | UX8: =UW8+UX7 -> 360 | UY8: =UX8+UY7 -> 360 | UZ8: =UY8+UZ7 -> 360 | VA8: =UZ8+VA7 -> 360 | VB8: =VA8+VB7 -> 360 | VC8: =VB8+VC7 -> 360 | VD8: =VC8+VD7 -> 360 | VE8: =VD8+VE7 -> 360 | VF8: =VE8+VF7 -> 360 | VG8: =VF8+VG7 -> 360 | VH8: =VG8+VH7 -> 360 | VI8: =VH8+VI7 -> 360 | VJ8: =VI8+VJ7 -> 360 | VK8: =VJ8+VK7 -> 360 | VL8: =VK8+VL7 -> 360 | VM8: =VL8+VM7 -> 360 | VN8: =VM8+VN7 -> 360 | VO8: =VN8+VO7 -> 360 | VP8: =VO8+VP7 -> 360 | VQ8: =VP8+VQ7 -> 360 | VR8: =VQ8+VR7 -> 360 | VS8: =VR8+VS7 -> 360 | VT8: =VS8+VT7 -> 360 | VU8: =VT8+VU7 -> 360 | VV8: =VU8+VV7 -> 360 | VW8: =VV8+VW7 -> 360 | VX8: =VW8+VX7 -> 360 | VY8: =VX8+VY7 -> 360 | VZ8: =VY8+VZ7 -> 360 | WA8: =VZ8+WA7 -> 360 | WB8: =WA8+WB7 -> 360 | WC8: =WB8+WC7 -> 360 | WD8: =WC8+WD7 -> 360 | WE8: =WD8+WE7 -> 360 | WF8: =WE8+WF7 -> 360 | WG8: =WF8+WG7 -> 360 | WH8: =WG8+WH7 -> 360 | WI8: =WH8+WI7 -> 360 | WJ8: =WI8+WJ7 -> 360 | WK8: =WJ8+WK7 -> 360 | WL8: =WK8+WL7 -> 360 | WM8: =WL8+WM7 -> 360 | WN8: =WM8+WN7 -> 360 | WO8: =WN8+WO7 -> 360 | WP8: =WO8+WP7 -> 360 | WQ8: =WP8+WQ7 -> 360 | WR8: =WQ8+WR7 -> 360 | WS8: =WR8+WS7 -> 360 | WT8: =WS8+WT7 -> 360 | WU8: =WT8+WU7 -> 360 | WV8: =WU8+WV7 -> 360 | WW8: =WV8+WW7 -> 360 | WX8: =WW8+WX7 -> 360 | WY8: =WX8+WY7 -> 360 | WZ8: =WY8+WZ7 -> 360 | XA8: =WZ8+XA7 -> 360 | XB8: =XA8+XB7 -> 360 | XC8: =XB8+XC7 -> 360 | XD8: =XC8+XD7 -> 360 | XE8: =XD8+XE7 -> 360 | XF8: =XE8+XF7 -> 360 | XG8: =XF8+XG7 -> 360 | XH8: =XG8+XH7 -> 360 | XI8: =XH8+XI7 -> 360 | XJ8: =XI8+XJ7 -> 360 | XK8: =XJ8+XK7 -> 360 | XL8: =XK8+XL7 -> 360 | XM8: =XL8+XM7 -> 360 | XN8: =XM8+XN7 -> 360 | XO8: =XN8+XO7 -> 360 | XP8: =XO8+XP7 -> 360 | XQ8: =XP8+XQ7 -> 360 | XR8: =XQ8+XR7 -> 360 | XS8: =XR8+XS7 -> 360 | XT8: =XS8+XT7 -> 360 | XU8: =XT8+XU7 -> 360 | XV8: =XU8+XV7 -> 360 | XW8: =XV8+XW7 -> 360 | XX8: =XW8+XX7 -> 360 | XY8: =XX8+XY7 -> 360 | XZ8: =XY8+XZ7 -> 360 | YA8: =XZ8+YA7 -> 360 | YB8: =YA8+YB7 -> 360 | YC8: =YB8+YC7 -> 360 | YD8: =YC8+YD7 -> 360 | YE8: =YD8+YE7 -> 360 | YF8: =YE8+YF7 -> 360 | YG8: =YF8+YG7 -> 360 | YH8: =YG8+YH7 -> 360 | YI8: =YH8+YI7 -> 360 | YJ8: =YI8+YJ7 -> 360 | YK8: =YJ8+YK7 -> 360 | YL8: =YK8+YL7 -> 360 | YM8: =YL8+YM7 -> 360 | YN8: =YM8+YN7 -> 360 | YO8: =YN8+YO7 -> 360 | YP8: =YO8+YP7 -> 360 | YQ8: =YP8+YQ7 -> 360 | YR8: =YQ8+YR7 -> 360 | YS8: =YR8+YS7 -> 360 | YT8: =YS8+YT7 -> 360 | YU8: =YT8+YU7 -> 360 | YV8: =YU8+YV7 -> 360 | YW8: =YV8+YW7 -> 360 | YX8: =YW8+YX7 -> 360 | YY8: =YX8+YY7 -> 360 | YZ8: =YY8+YZ7 -> 360 | ZA8: =YZ8+ZA7 -> 360 | ZB8: =ZA8+ZB7 -> 360 | ZC8: =ZB8+ZC7 -> 360 | ZD8: =ZC8+ZD7 -> 360 | ZE8: =ZD8+ZE7 -> 360 | ZF8: =ZE8+ZF7 -> 360 | ZG8: =ZF8+ZG7 -> 360 | ZH8: =ZG8+ZH7 -> 360 | ZI8: =ZH8+ZI7 -> 360 | ZJ8: =ZI8+ZJ7 -> 360 | ZK8: =ZJ8+ZK7 -> 360 | ZL8: =ZK8+ZL7 -> 360 | ZM8: =ZL8+ZM7 -> 360 | ZN8: =ZM8+ZN7 -> 360 | ZO8: =ZN8+ZO7 -> 360 | ZP8: =ZO8+ZP7 -> 360 | ZQ8: =ZP8+ZQ7 -> 360 | ZR8: =ZQ8+ZR7 -> 360 | ZS8: =ZR8+ZS7 -> 360 | ZT8: =ZS8+ZT7 -> 360 | ZU8: =ZT8+ZU7 -> 360 | ZV8: =ZU8+ZV7 -> 360 | ZW8: =ZV8+ZW7 -> 360 | ZX8: =ZW8+ZX7 -> 360 | ZY8: =ZX8+ZY7 -> 360 | ZZ8: =ZY8+ZZ7 -> 360 | AAA8: =ZZ8+AAA7 -> 360 | AAB8: =AAA8+AAB7 -> 360 | AAC8: =AAB8+AAC7 -> 360 | AAD8: =AAC8+AAD7 -> 360 | AAE8: =AAD8+AAE7 -> 360 | AAF8: =AAE8+AAF7 -> 360 | AAG8: =AAF8+AAG7 -> 360 | AAH8: =AAG8+AAH7 -> 360 | AAI8: =AAH8+AAI7 -> 360 | AAJ8: =AAI8+AAJ7 -> 360 | AAK8: =AAJ8+AAK7 -> 360 | AAL8: =AAK8+AAL7 -> 360 | AAM8: =AAL8+AAM7 -> 360 | AAN8: =AAM8+AAN7 -> 360 | AAO8: =AAN8+AAO7 -> 360 | AAP8: =AAO8+AAP7 -> 360 | AAQ8: =AAP8+AAQ7 -> 360 | AAR8: =AAQ8+AAR7 -> 360 | AAS8: =AAR8+AAS7 -> 360 | AAT8: =AAS8+AAT7 -> 360 | AAU8: =AAT8+AAU7 -> 360 | AAV8: =AAU8+AAV7 -> 360 | AAW8: =AAV8+AAW7 -> 360 | AAX8: =AAW8+AAX7 -> 360 | AAY8: =AAX8+AAY7 -> 360 | AAZ8: =AAY8+AAZ7 -> 360 | ABA8: =AAZ8+ABA7 -> 360 | ABB8: =ABA8+ABB7 -> 360 | ABC8: =ABB8+ABC7 -> 360 | ABD8: =ABC8+ABD7 -> 360 | ABE8: =ABD8+ABE7 -> 360 | ABF8: =ABE8+ABF7 -> 360 | ABG8: =ABF8+ABG7 -> 360 | ABH8: =ABG8+ABH7 -> 360 | ABI8: =ABH8+ABI7 -> 360 | ABJ8: =ABI8+ABJ7 -> 360 | ABK8: =ABJ8+ABK7 -> 360 | ABL8: =ABK8+ABL7 -> 360 | ABM8: =ABL8+ABM7 -> 360 | ABN8: =ABM8+ABN7 -> 360 | ABO8: =ABN8+ABO7 -> 360 | ABP8: =ABO8+ABP7 -> 360 | ABQ8: =ABP8+ABQ7 -> 360 | ABR8: =ABQ8+ABR7 -> 360 | ABS8: =ABR8+ABS7 -> 360 | ABT8: =ABS8+ABT7 -> 360 | ABU8: =ABT8+ABU7 -> 360 | ABV8: =ABU8+ABV7 -> 360 | ABW8: =ABV8+ABW7 -> 360 | ABX8: =ABW8+ABX7 -> 360 | ABY8: =ABX8+ABY7 -> 360 | ABZ8: =ABY8+ABZ7 -> 360
D9: Label
B11: Volumes and Production
C12: Capacity
D13: Solar Capacity | E13: kWac | F13: =INDEX(InputC!I26:AD26,E1) -> 0 | K13: =$F13*K$7 -> 0 | L13: =$F13*L$7 -> 0 | M13: 0 | N13: 0 | O13: 0 | P13: 0 | Q13: 0 | R13: 0 | S13: 0 | T13: 0 | U13: 0 | V13: 0 | W13: 0 | X13: 0 | Y13: 0 | Z13: 0 | AA13: 0 | AB13: 0 | AC13: 0 | AD13: 0 | AE13: 0 | AF13: 0 | AG13: 0 | AH13: 0 | AI13: 0 | AJ13: 0 | AK13: 0 | AL13: 0 | AM13: 0 | AN13: 0 | AO13: 0 | AP13: 0 | AQ13: 0 | AR13: 0 | AS13: 0 | AT13: 0 | AU13: 0 | AV13: 0 | AW13: 0 | AX13: 0 | AY13: 0 | AZ13: 0 | BA13: 0 | BB13: 0 | BC13: 0 | BD13: 0 | BE13: 0 | BF13: 0 | BG13: 0 | BH13: 0 | BI13: 0 | BJ13: 0 | BK13: 0 | BL13: 0 | BM13: 0 | BN13: 0 | BO13: 0 | BP13: 0 | BQ13: 0 | BR13: 0 | BS13: 0 | BT13: 0 | BU13: 0 | BV13: 0 | BW13: 0 | BX13: =$F13*BX$7 -> 0 | BY13: 0 | BZ13: 0 | CA13: 0 | CB13: 0 | CC13: 0 | CD13: 0 | CE13: 0 | CF13: 0 | CG13: 0 | CH13: 0 | CI13: 0 | CJ13: 0 | CK13: 0 | CL13: 0 | CM13: 0 | CN13: 0 | CO13: 0 | CP13: 0 | CQ13: 0 | CR13: 0 | CS13: 0 | CT13: 0 | CU13: 0 | CV13: 0 | CW13: 0 | CX13: 0 | CY13: 0 | CZ13: 0 | DA13: 0 | DB13: 0 | DC13: 0 | DD13: 0 | DE13: 0 | DF13: 0 | DG13: 0 | DH13: 0 | DI13: 0 | DJ13: 0 | DK13: 0 | DL13: 0 | DM13: 0 | DN13: 0 | DO13: 0 | DP13: 0 | DQ13: 0 | DR13: 0 | DS13: 0 | DT13: 0 | DU13: 0 | DV13: 0 | DW13: 0 | DX13: 0 | DY13: 0 | DZ13: 0 | EA13: 0 | EB13: 0 | EC13: 0 | ED13: 0 | EE13: 0 | EF13: 0 | EG13: 0 | EH13: 0 | EI13: 0 | EJ13: =$F13*EJ$7 -> 0 | EK13: 0 | EL13: 0 | EM13: 0 | EN13: 0 | EO13: 0 | EP13: 0 | EQ13: 0 | ER13: 0 | ES13: 0 | ET13: 0 | EU13: 0 | EV13: 0 | EW13: 0 | EX13: 0 | EY13: 0 | EZ13: 0 | FA13: 0 | FB13: 0 | FC13: 0 | FD13: 0 | FE13: 0 | FF13: 0 | FG13: 0 | FH13: 0 | FI13: 0 | FJ13: 0 | FK13: 0 | FL13: 0 | FM13: 0 | FN13: 0 | FO13: 0 | FP13: 0 | FQ13: 0 | FR13: 0 | FS13: 0 | FT13: 0 | FU13: 0 | FV13: 0 | FW13: 0 | FX13: 0 | FY13: 0 | FZ13: 0 | GA13: 0 | GB13: 0 | GC13: 0 | GD13: 0 | GE13: 0 | GF13: 0 | GG13: 0 | GH13: 0 | GI13: 0 | GJ13: 0 | GK13: 0 | GL13: 0 | GM13: 0 | GN13: 0 | GO13: 0 | GP13: 0 | GQ13: 0 | GR13: 0 | GS13: 0 | GT13: 0 | GU13: 0 | GV13: =$F13*GV$7 -> 0 | GW13: 0 | GX13: 0 | GY13: 0 | GZ13: 0 | HA13: 0 | HB13: 0 | HC13: 0 | HD13: 0 | HE13: 0 | HF13: 0 | HG13: 0 | HH13: 0 | HI13: 0 | HJ13: 0 | HK13: 0 | HL13: 0 | HM13: 0 | HN13: 0 | HO13: 0 | HP13: 0 | HQ13: 0 | HR13: 0 | HS13: 0 | HT13: 0 | HU13: 0 | HV13: 0 | HW13: 0 | HX13: 0 | HY13: 0 | HZ13: 0 | IA13: 0 | IB13: 0 | IC13: 0 | ID13: 0 | IE13: 0 | IF13: 0 | IG13: 0 | IH13: 0 | II13: 0 | IJ13: 0 | IK13: 0 | IL13: 0 | IM13: 0 | IN13: 0 | IO13: 0 | IP13: 0 | IQ13: 0 | IR13: 0 | IS13: 0 | IT13: 0 | IU13: 0 | IV13: 0 | IW13: 0 | IX13: 0 | IY13: 0 | IZ13: 0 | JA13: 0 | JB13: 0 | JC13: 0 | JD13: 0 | JE13: 0 | JF13: 0 | JG13: 0 | JH13: =$F13*JH$7 -> 0 | JI13: 0 | JJ13: 0 | JK13: 0 | JL13: 0 | JM13: 0 | JN13: 0 | JO13: 0 | JP13: 0 | JQ13: 0 | JR13: 0 | JS13: 0 | JT13: 0 | JU13: 0 | JV13: 0 | JW13: 0 | JX13: 0 | JY13: 0 | JZ13: 0 | KA13: 0 | KB13: 0 | KC13: 0 | KD13: 0 | KE13: 0 | KF13: 0 | KG13: 0 | KH13: 0 | KI13: 0 | KJ13: 0 | KK13: 0 | KL13: 0 | KM13: 0 | KN13: 0 | KO13: 0 | KP13: 0 | KQ13: 0 | KR13: 0 | KS13: 0 | KT13: 0 | KU13: 0 | KV13: 0 | KW13: 0 | KX13: 0 | KY13: 0 | KZ13: 0 | LA13: 0 | LB13: 0 | LC13: 0 | LD13: 0 | LE13: 0 | LF13: 0 | LG13: 0 | LH13: 0 | LI13: 0 | LJ13: 0 | LK13: 0 | LL13: 0 | LM13: 0 | LN13: 0 | LO13: 0 | LP13: 0 | LQ13: 0 | LR13: 0 | LS13: 0 | LT13: =$F13*LT$7 -> 0 | LU13: 0 | LV13: 0 | LW13: 0 | LX13: 0 | LY13: 0 | LZ13: 0 | MA13: 0 | MB13: 0 | MC13: 0 | MD13: 0 | ME13: 0 | MF13: 0 | MG13: 0 | MH13: 0 | MI13: 0 | MJ13: 0 | MK13: 0 | ML13: 0 | MM13: 0 | MN13: 0 | MO13: 0 | MP13: 0 | MQ13: 0 | MR13: 0 | MS13: 0 | MT13: 0 | MU13: 0 | MV13: 0 | MW13: 0 | MX13: 0 | MY13: 0 | MZ13: 0 | NA13: 0 | NB13: 0 | NC13: 0 | ND13: 0 | NE13: 0 | NF13: 0 | NG13: 0 | NH13: 0 | NI13: 0 | NJ13: 0 | NK13: 0 | NL13: 0 | NM13: 0 | NN13: 0 | NO13: 0 | NP13: 0 | NQ13: 0 | NR13: 0 | NS13: 0 | NT13: 0 | NU13: 0 | NV13: 0 | NW13: 0 | NX13: 0 | NY13: 0 | NZ13: 0 | OA13: 0 | OB13: 0 | OC13: 0 | OD13: 0 | OE13: 0 | OF13: =$F13*OF$7 -> 0 | OG13: 0 | OH13: 0 | OI13: 0 | OJ13: 0 | OK13: 0 | OL13: 0 | OM13: 0 | ON13: 0 | OO13: 0 | OP13: 0 | OQ13: 0 | OR13: 0 | OS13: 0 | OT13: 0 | OU13: 0 | OV13: 0 | OW13: 0 | OX13: 0 | OY13: 0 | OZ13: 0 | PA13: 0 | PB13: 0 | PC13: 0 | PD13: 0 | PE13: 0 | PF13: 0 | PG13: 0 | PH13: 0 | PI13: 0 | PJ13: 0 | PK13: 0 | PL13: 0 | PM13: 0 | PN13: 0 | PO13: 0 | PP13: 0 | PQ13: 0 | PR13: 0 | PS13: 0 | PT13: 0 | PU13: 0 | PV13: 0 | PW13: 0 | PX13: 0 | PY13: 0 | PZ13: 0 | QA13: 0 | QB13: 0 | QC13: 0 | QD13: 0 | QE13: 0 | QF13: 0 | QG13: 0 | QH13: 0 | QI13: 0 | QJ13: 0 | QK13: 0 | QL13: 0 | QM13: 0 | QN13: 0 | QO13: 0 | QP13: 0 | QQ13: 0 | QR13: =$F13*QR$7 -> 0 | QS13: 0 | QT13: 0 | QU13: 0 | QV13: 0 | QW13: 0 | QX13: 0 | QY13: 0 | QZ13: 0 | RA13: 0 | RB13: 0 | RC13: 0 | RD13: 0 | RE13: 0 | RF13: 0 | RG13: 0 | RH13: 0 | RI13: 0 | RJ13: 0 | RK13: 0 | RL13: 0 | RM13: 0 | RN13: 0 | RO13: 0 | RP13: 0 | RQ13: 0 | RR13: 0 | RS13: 0 | RT13: 0 | RU13: 0 | RV13: 0 | RW13: 0 | RX13: 0 | RY13: 0 | RZ13: 0 | SA13: 0 | SB13: 0 | SC13: 0 | SD13: 0 | SE13: 0 | SF13: 0 | SG13: 0 | SH13: 0 | SI13: 0 | SJ13: 0 | SK13: 0 | SL13: 0 | SM13: 0 | SN13: 0 | SO13: 0 | SP13: 0 | SQ13: 0 | SR13: 0 | SS13: 0 | ST13: 0 | SU13: 0 | SV13: 0 | SW13: 0 | SX13: 0 | SY13: 0 | SZ13: 0 | TA13: 0 | TB13: 0 | TC13: 0 | TD13: =$F13*TD$7 -> 0 | TE13: 0 | TF13: 0 | TG13: 0 | TH13: 0 | TI13: 0 | TJ13: 0 | TK13: 0 | TL13: 0 | TM13: 0 | TN13: 0 | TO13: 0 | TP13: 0 | TQ13: 0 | TR13: 0 | TS13: 0 | TT13: 0 | TU13: 0 | TV13: 0 | TW13: 0 | TX13: 0 | TY13: 0 | TZ13: 0 | UA13: 0 | UB13: 0 | UC13: 0 | UD13: 0 | UE13: 0 | UF13: 0 | UG13: 0 | UH13: 0 | UI13: 0 | UJ13: 0 | UK13: 0 | UL13: 0 | UM13: 0 | UN13: 0 | UO13: 0 | UP13: 0 | UQ13: 0 | UR13: 0 | US13: 0 | UT13: 0 | UU13: 0 | UV13: 0 | UW13: 0 | UX13: 0 | UY13: 0 | UZ13: 0 | VA13: 0 | VB13: 0 | VC13: 0 | VD13: 0 | VE13: 0 | VF13: 0 | VG13: 0 | VH13: 0 | VI13: 0 | VJ13: 0 | VK13: 0 | VL13: 0 | VM13: 0 | VN13: 0 | VO13: 0 | VP13: =$F13*VP$7 -> 0 | VQ13: 0 | VR13: 0 | VS13: 0 | VT13: 0 | VU13: 0 | VV13: 0 | VW13: 0 | VX13: 0 | VY13: 0 | VZ13: 0 | WA13: 0 | WB13: 0 | WC13: 0 | WD13: 0 | WE13: 0 | WF13: 0 | WG13: 0 | WH13: 0 | WI13: 0 | WJ13: 0 | WK13: 0 | WL13: 0 | WM13: 0 | WN13: 0 | WO13: 0 | WP13: 0 | WQ13: 0 | WR13: 0 | WS13: 0 | WT13: 0 | WU13: 0 | WV13: 0 | WW13: 0 | WX13: 0 | WY13: 0 | WZ13: 0 | XA13: 0 | XB13: 0 | XC13: 0 | XD13: 0 | XE13: 0 | XF13: 0 | XG13: 0 | XH13: 0 | XI13: 0 | XJ13: 0 | XK13: 0 | XL13: 0 | XM13: 0 | XN13: 0 | XO13: 0 | XP13: 0 | XQ13: 0 | XR13: 0 | XS13: 0 | XT13: 0 | XU13: 0 | XV13: 0 | XW13: 0 | XX13: 0 | XY13: 0 | XZ13: 0 | YA13: 0 | YB13: =$F13*YB$7 -> 0 | YC13: 0 | YD13: 0 | YE13: 0 | YF13: 0 | YG13: 0 | YH13: 0 | YI13: 0 | YJ13: 0 | YK13: 0 | YL13: 0 | YM13: 0 | YN13: 0 | YO13: 0 | YP13: 0 | YQ13: 0 | YR13: 0 | YS13: 0 | YT13: 0 | YU13: 0 | YV13: 0 | YW13: 0 | YX13: 0 | YY13: 0 | YZ13: 0 | ZA13: 0 | ZB13: 0 | ZC13: 0 | ZD13: 0 | ZE13: 0 | ZF13: 0 | ZG13: 0 | ZH13: 0 | ZI13: 0 | ZJ13: 0 | ZK13: 0 | ZL13: 0 | ZM13: 0 | ZN13: 0 | ZO13: 0 | ZP13: 0 | ZQ13: 0 | ZR13: 0 | ZS13: 0 | ZT13: 0 | ZU13: 0 | ZV13: 0 | ZW13: 0 | ZX13: 0 | ZY13: 0 | ZZ13: 0 | AAA13: 0 | AAB13: 0 | AAC13: 0 | AAD13: 0 | AAE13: 0 | AAF13: 0 | AAG13: 0 | AAH13: 0 | AAI13: 0 | AAJ13: 0 | AAK13: 0 | AAL13: 0 | AAM13: 0 | AAN13: =$F13*AAN$7 -> 0 | AAO13: 0 | AAP13: 0 | AAQ13: 0 | AAR13: 0 | AAS13: 0 | AAT13: 0 | AAU13: 0 | AAV13: 0 | AAW13: 0 | AAX13: 0 | AAY13: 0 | AAZ13: 0 | ABA13: 0 | ABB13: 0 | ABC13: 0 | ABD13: 0 | ABE13: 0 | ABF13: 0 | ABG13: 0 | ABH13: 0 | ABI13: 0 | ABJ13: 0 | ABK13: 0 | ABL13: 0 | ABM13: 0 | ABN13: 0 | ABO13: 0 | ABP13: 0 | ABQ13: 0 | ABR13: 0 | ABS13: 0 | ABT13: 0 | ABU13: 0 | ABV13: 0 | ABW13: 0 | ABX13: 0 | ABY13: 0 | ABZ13: 0
D14: Solar Capacity | E14: kWp | F14: =INDEX(InputC!I24:AD24,E1) -> 0 | K14: =$F14*K$7 -> 0 | L14: 0 | M14: 0 | N14: 0 | O14: 0 | P14: 0 | Q14: 0 | R14: 0 | S14: 0 | T14: 0 | U14: 0 | V14: 0 | W14: 0 | X14: 0 | Y14: 0 | Z14: 0 | AA14: 0 | AB14: 0 | AC14: 0 | AD14: 0 | AE14: 0 | AF14: 0 | AG14: 0 | AH14: 0 | AI14: 0 | AJ14: 0 | AK14: 0 | AL14: 0 | AM14: 0 | AN14: 0 | AO14: 0 | AP14: 0 | AQ14: 0 | AR14: 0 | AS14: 0 | AT14: 0 | AU14: 0 | AV14: 0 | AW14: 0 | AX14: 0 | AY14: 0 | AZ14: 0 | BA14: 0 | BB14: 0 | BC14: 0 | BD14: 0 | BE14: 0 | BF14: 0 | BG14: 0 | BH14: 0 | BI14: 0 | BJ14: 0 | BK14: 0 | BL14: 0 | BM14: 0 | BN14: 0 | BO14: 0 | BP14: 0 | BQ14: 0 | BR14: 0 | BS14: 0 | BT14: 0 | BU14: 0 | BV14: 0 | BW14: 0 | BX14: 0 | BY14: 0 | BZ14: 0 | CA14: 0 | CB14: 0 | CC14: 0 | CD14: 0 | CE14: 0 | CF14: 0 | CG14: 0 | CH14: 0 | CI14: 0 | CJ14: 0 | CK14: 0 | CL14: 0 | CM14: 0 | CN14: 0 | CO14: 0 | CP14: 0 | CQ14: 0 | CR14: 0 | CS14: 0 | CT14: 0 | CU14: 0 | CV14: 0 | CW14: 0 | CX14: 0 | CY14: 0 | CZ14: 0 | DA14: 0 | DB14: 0 | DC14: 0 | DD14: 0 | DE14: 0 | DF14: 0 | DG14: 0 | DH14: 0 | DI14: 0 | DJ14: 0 | DK14: 0 | DL14: 0 | DM14: 0 | DN14: 0 | DO14: 0 | DP14: 0 | DQ14: 0 | DR14: 0 | DS14: 0 | DT14: 0 | DU14: 0 | DV14: 0 | DW14: 0 | DX14: 0 | DY14: 0 | DZ14: 0 | EA14: 0 | EB14: 0 | EC14: 0 | ED14: 0 | EE14: 0 | EF14: 0 | EG14: 0 | EH14: 0 | EI14: 0 | EJ14: 0 | EK14: 0 | EL14: 0 | EM14: 0 | EN14: 0 | EO14: 0 | EP14: 0 | EQ14: 0 | ER14: 0 | ES14: 0 | ET14: 0 | EU14: 0 | EV14: 0 | EW14: 0 | EX14: 0 | EY14: 0 | EZ14: 0 | FA14: 0 | FB14: 0 | FC14: 0 | FD14: 0 | FE14: 0 | FF14: 0 | FG14: 0 | FH14: 0 | FI14: 0 | FJ14: 0 | FK14: 0 | FL14: 0 | FM14: 0 | FN14: 0 | FO14: 0 | FP14: 0 | FQ14: 0 | FR14: 0 | FS14: 0 | FT14: 0 | FU14: 0 | FV14: 0 | FW14: 0 | FX14: 0 | FY14: 0 | FZ14: 0 | GA14: 0 | GB14: 0 | GC14: 0 | GD14: 0 | GE14: 0 | GF14: 0 | GG14: 0 | GH14: 0 | GI14: 0 | GJ14: 0 | GK14: 0 | GL14: 0 | GM14: 0 | GN14: 0 | GO14: 0 | GP14: 0 | GQ14: 0 | GR14: 0 | GS14: 0 | GT14: 0 | GU14: 0 | GV14: 0 | GW14: 0 | GX14: 0 | GY14: 0 | GZ14: 0 | HA14: 0 | HB14: 0 | HC14: 0 | HD14: 0 | HE14: 0 | HF14: 0 | HG14: 0 | HH14: 0 | HI14: 0 | HJ14: 0 | HK14: 0 | HL14: 0 | HM14: 0 | HN14: 0 | HO14: 0 | HP14: 0 | HQ14: 0 | HR14: 0 | HS14: 0 | HT14: 0 | HU14: 0 | HV14: 0 | HW14: 0 | HX14: 0 | HY14: 0 | HZ14: 0 | IA14: 0 | IB14: 0 | IC14: 0 | ID14: 0 | IE14: 0 | IF14: 0 | IG14: 0 | IH14: 0 | II14: 0 | IJ14: 0 | IK14: 0 | IL14: 0 | IM14: 0 | IN14: 0 | IO14: 0 | IP14: 0 | IQ14: 0 | IR14: 0 | IS14: 0 | IT14: 0 | IU14: 0 | IV14: 0 | IW14: 0 | IX14: 0 | IY14: 0 | IZ14: 0 | JA14: 0 | JB14: 0 | JC14: 0 | JD14: 0 | JE14: 0 | JF14: 0 | JG14: 0 | JH14: 0 | JI14: 0 | JJ14: 0 | JK14: 0 | JL14: 0 | JM14: 0 | JN14: 0 | JO14: 0 | JP14: 0 | JQ14: 0 | JR14: 0 | JS14: 0 | JT14: 0 | JU14: 0 | JV14: 0 | JW14: 0 | JX14: 0 | JY14: 0 | JZ14: 0 | KA14: 0 | KB14: 0 | KC14: 0 | KD14: 0 | KE14: 0 | KF14: 0 | KG14: 0 | KH14: 0 | KI14: 0 | KJ14: 0 | KK14: 0 | KL14: 0 | KM14: 0 | KN14: 0 | KO14: 0 | KP14: 0 | KQ14: 0 | KR14: 0 | KS14: 0 | KT14: 0 | KU14: 0 | KV14: 0 | KW14: 0 | KX14: 0 | KY14: 0 | KZ14: 0 | LA14: 0 | LB14: 0 | LC14: 0 | LD14: 0 | LE14: 0 | LF14: 0 | LG14: 0 | LH14: 0 | LI14: 0 | LJ14: 0 | LK14: 0 | LL14: 0 | LM14: 0 | LN14: 0 | LO14: 0 | LP14: 0 | LQ14: 0 | LR14: 0 | LS14: 0 | LT14: 0 | LU14: 0 | LV14: 0 | LW14: 0 | LX14: 0 | LY14: 0 | LZ14: 0 | MA14: 0 | MB14: 0 | MC14: 0 | MD14: 0 | ME14: 0 | MF14: 0 | MG14: 0 | MH14: 0 | MI14: 0 | MJ14: 0 | MK14: 0 | ML14: 0 | MM14: 0 | MN14: 0 | MO14: 0 | MP14: 0 | MQ14: 0 | MR14: 0 | MS14: 0 | MT14: 0 | MU14: 0 | MV14: 0 | MW14: 0 | MX14: 0 | MY14: 0 | MZ14: 0 | NA14: 0 | NB14: 0 | NC14: 0 | ND14: 0 | NE14: 0 | NF14: 0 | NG14: 0 | NH14: 0 | NI14: 0 | NJ14: 0 | NK14: 0 | NL14: 0 | NM14: 0 | NN14: 0 | NO14: 0 | NP14: 0 | NQ14: 0 | NR14: 0 | NS14: 0 | NT14: 0 | NU14: 0 | NV14: 0 | NW14: 0 | NX14: 0 | NY14: 0 | NZ14: 0 | OA14: 0 | OB14: 0 | OC14: 0 | OD14: 0 | OE14: 0 | OF14: 0 | OG14: 0 | OH14: 0 | OI14: 0 | OJ14: 0 | OK14: 0 | OL14: 0 | OM14: 0 | ON14: 0 | OO14: 0 | OP14: 0 | OQ14: 0 | OR14: 0 | OS14: 0 | OT14: 0 | OU14: 0 | OV14: 0 | OW14: 0 | OX14: 0 | OY14: 0 | OZ14: 0 | PA14: 0 | PB14: 0 | PC14: 0 | PD14: 0 | PE14: 0 | PF14: 0 | PG14: 0 | PH14: 0 | PI14: 0 | PJ14: 0 | PK14: 0 | PL14: 0 | PM14: 0 | PN14: 0 | PO14: 0 | PP14: 0 | PQ14: 0 | PR14: 0 | PS14: 0 | PT14: 0 | PU14: 0 | PV14: 0 | PW14: 0 | PX14: 0 | PY14: 0 | PZ14: 0 | QA14: 0 | QB14: 0 | QC14: 0 | QD14: 0 | QE14: 0 | QF14: 0 | QG14: 0 | QH14: 0 | QI14: 0 | QJ14: 0 | QK14: 0 | QL14: 0 | QM14: 0 | QN14: 0 | QO14: 0 | QP14: 0 | QQ14: 0 | QR14: 0 | QS14: 0 | QT14: 0 | QU14: 0 | QV14: 0 | QW14: 0 | QX14: 0 | QY14: 0 | QZ14: 0 | RA14: 0 | RB14: 0 | RC14: 0 | RD14: 0 | RE14: 0 | RF14: 0 | RG14: 0 | RH14: 0 | RI14: 0 | RJ14: 0 | RK14: 0 | RL14: 0 | RM14: 0 | RN14: 0 | RO14: 0 | RP14: 0 | RQ14: 0 | RR14: 0 | RS14: 0 | RT14: 0 | RU14: 0 | RV14: 0 | RW14: 0 | RX14: 0 | RY14: 0 | RZ14: 0 | SA14: 0 | SB14: 0 | SC14: 0 | SD14: 0 | SE14: 0 | SF14: 0 | SG14: 0 | SH14: 0 | SI14: 0 | SJ14: 0 | SK14: 0 | SL14: 0 | SM14: 0 | SN14: 0 | SO14: 0 | SP14: 0 | SQ14: 0 | SR14: 0 | SS14: 0 | ST14: 0 | SU14: 0 | SV14: 0 | SW14: 0 | SX14: 0 | SY14: 0 | SZ14: 0 | TA14: 0 | TB14: 0 | TC14: 0 | TD14: 0 | TE14: 0 | TF14: 0 | TG14: 0 | TH14: 0 | TI14: 0 | TJ14: 0 | TK14: 0 | TL14: 0 | TM14: 0 | TN14: 0 | TO14: 0 | TP14: 0 | TQ14: 0 | TR14: 0 | TS14: 0 | TT14: 0 | TU14: 0 | TV14: 0 | TW14: 0 | TX14: 0 | TY14: 0 | TZ14: 0 | UA14: 0 | UB14: 0 | UC14: 0 | UD14: 0 | UE14: 0 | UF14: 0 | UG14: 0 | UH14: 0 | UI14: 0 | UJ14: 0 | UK14: 0 | UL14: 0 | UM14: 0 | UN14: 0 | UO14: 0 | UP14: 0 | UQ14: 0 | UR14: 0 | US14: 0 | UT14: 0 | UU14: 0 | UV14: 0 | UW14: 0 | UX14: 0 | UY14: 0 | UZ14: 0 | VA14: 0 | VB14: 0 | VC14: 0 | VD14: 0 | VE14: 0 | VF14: 0 | VG14: 0 | VH14: 0 | VI14: 0 | VJ14: 0 | VK14: 0 | VL14: 0 | VM14: 0 | VN14: 0 | VO14: 0 | VP14: 0 | VQ14: 0 | VR14: 0 | VS14: 0 | VT14: 0 | VU14: 0 | VV14: 0 | VW14: 0 | VX14: 0 | VY14: 0 | VZ14: 0 | WA14: 0 | WB14: 0 | WC14: 0 | WD14: 0 | WE14: 0 | WF14: 0 | WG14: 0 | WH14: 0 | WI14: 0 | WJ14: 0 | WK14: 0 | WL14: 0 | WM14: 0 | WN14: 0 | WO14: 0 | WP14: 0 | WQ14: 0 | WR14: 0 | WS14: 0 | WT14: 0 | WU14: 0 | WV14: 0 | WW14: 0 | WX14: 0 | WY14: 0 | WZ14: 0 | XA14: 0 | XB14: 0 | XC14: 0 | XD14: 0 | XE14: 0 | XF14: 0 | XG14: 0 | XH14: 0 | XI14: 0 | XJ14: 0 | XK14: 0 | XL14: 0 | XM14: 0 | XN14: 0 | XO14: 0 | XP14: 0 | XQ14: 0 | XR14: 0 | XS14: 0 | XT14: 0 | XU14: 0 | XV14: 0 | XW14: 0 | XX14: 0 | XY14: 0 | XZ14: 0 | YA14: 0 | YB14: 0 | YC14: 0 | YD14: 0 | YE14: 0 | YF14: 0 | YG14: 0 | YH14: 0 | YI14: 0 | YJ14: 0 | YK14: 0 | YL14: 0 | YM14: 0 | YN14: 0 | YO14: 0 | YP14: 0 | YQ14: 0 | YR14: 0 | YS14: 0 | YT14: 0 | YU14: 0 | YV14: 0 | YW14: 0 | YX14: 0 | YY14: 0 | YZ14: 0 | ZA14: 0 | ZB14: 0 | ZC14: 0 | ZD14: 0 | ZE14: 0 | ZF14: 0 | ZG14: 0 | ZH14: 0 | ZI14: 0 | ZJ14: 0 | ZK14: 0 | ZL14: 0 | ZM14: 0 | ZN14: 0 | ZO14: 0 | ZP14: 0 | ZQ14: 0 | ZR14: 0 | ZS14: 0 | ZT14: 0 | ZU14: 0 | ZV14: 0 | ZW14: 0 | ZX14: 0 | ZY14: 0 | ZZ14: 0 | AAA14: 0 | AAB14: 0 | AAC14: 0 | AAD14: 0 | AAE14: 0 | AAF14: 0 | AAG14: 0 | AAH14: 0 | AAI14: 0 | AAJ14: 0 | AAK14: 0 | AAL14: 0 | AAM14: 0 | AAN14: 0 | AAO14: 0 | AAP14: 0 | AAQ14: 0 | AAR14: 0 | AAS14: 0 | AAT14: 0 | AAU14: 0 | AAV14: 0 | AAW14: 0 | AAX14: 0 | AAY14: 0 | AAZ14: 0 | ABA14: 0 | ABB14: 0 | ABC14: 0 | ABD14: 0 | ABE14: 0 | ABF14: 0 | ABG14: 0 | ABH14: 0 | ABI14: 0 | ABJ14: 0 | ABK14: 0 | ABL14: 0 | ABM14: 0 | ABN14: 0 | ABO14: 0 | ABP14: 0 | ABQ14: 0 | ABR14: 0 | ABS14: 0 | ABT14: 0 | ABU14: 0 | ABV14: 0 | ABW14: 0 | ABX14: 0 | ABY14: 0 | ABZ14: 0
D15: Wind Capacity | E15: kW | F15: =INDEX(InputC!I30:AD30,E1) -> 800 | K15: 0 | L15: 0 | M15: 0 | N15: 0 | O15: 0 | P15: 0 | Q15: 0 | R15: 0 | S15: 0 | T15: 0 | U15: 0 | V15: 0 | W15: 0 | X15: 0 | Y15: 0 | Z15: 0 | AA15: 0 | AB15: 0 | AC15: 0 | AD15: 0 | AE15: 0 | AF15: 0 | AG15: 0 | AH15: 0 | AI15: 0 | AJ15: 0 | AK15: 0 | AL15: 0 | AM15: 0 | AN15: 800 | AO15: 800 | AP15: 800 | AQ15: 800 | AR15: 800 | AS15: 800 | AT15: 800 | AU15: 800 | AV15: 800 | AW15: 800 | AX15: 800 | AY15: 800 | AZ15: 800 | BA15: 800 | BB15: 800 | BC15: 800 | BD15: 800 | BE15: 800 | BF15: 800 | BG15: 800 | BH15: 800 | BI15: 800 | BJ15: 800 | BK15: 800 | BL15: 800 | BM15: 800 | BN15: 800 | BO15: 800 | BP15: 800 | BQ15: 800 | BR15: 800 | BS15: 800 | BT15: 800 | BU15: 800 | BV15: 800 | BW15: 800 | BX15: 800 | BY15: 800 | BZ15: 800 | CA15: 800 | CB15: 800 | CC15: 800 | CD15: 800 | CE15: 800 | CF15: 800 | CG15: 800 | CH15: 800 | CI15: 800 | CJ15: 800 | CK15: 800 | CL15: 800 | CM15: 800 | CN15: 800 | CO15: 800 | CP15: 800 | CQ15: 800 | CR15: 800 | CS15: 800 | CT15: 800 | CU15: 800 | CV15: 800 | CW15: 800 | CX15: 800 | CY15: 800 | CZ15: 800 | DA15: 800 | DB15: 800 | DC15: 800 | DD15: 800 | DE15: 800 | DF15: 800 | DG15: 800 | DH15: 800 | DI15: 800 | DJ15: 800 | DK15: 800 | DL15: 800 | DM15: 800 | DN15: 800 | DO15: 800 | DP15: 800 | DQ15: 800 | DR15: 800 | DS15: 800 | DT15: 800 | DU15: 800 | DV15: 800 | DW15: 800 | DX15: 800 | DY15: 800 | DZ15: 800 | EA15: 800 | EB15: 800 | EC15: 800 | ED15: 800 | EE15: 800 | EF15: 800 | EG15: 800 | EH15: 800 | EI15: 800 | EJ15: 800 | EK15: 800 | EL15: 800 | EM15: 800 | EN15: 800 | EO15: 800 | EP15: 800 | EQ15: 800 | ER15: 800 | ES15: 800 | ET15: 800 | EU15: 800 | EV15: 800 | EW15: 800 | EX15: 800 | EY15: 800 | EZ15: 800 | FA15: 800 | FB15: 800 | FC15: 800 | FD15: 800 | FE15: 800 | FF15: 800 | FG15: 800 | FH15: 800 | FI15: 800 | FJ15: 800 | FK15: 800 | FL15: 800 | FM15: 800 | FN15: 800 | FO15: 800 | FP15: 800 | FQ15: 800 | FR15: 800 | FS15: 800 | FT15: 800 | FU15: 800 | FV15: 800 | FW15: 800 | FX15: 800 | FY15: 800 | FZ15: 800 | GA15: 800 | GB15: 800 | GC15: 800 | GD15: 800 | GE15: 800 | GF15: 800 | GG15: 800 | GH15: 800 | GI15: 800 | GJ15: 800 | GK15: 800 | GL15: 800 | GM15: 800 | GN15: 800 | GO15: 800 | GP15: 800 | GQ15: 800 | GR15: 800 | GS15: 800 | GT15: 800 | GU15: 800 | GV15: 800 | GW15: 800 | GX15: 800 | GY15: 800 | GZ15: 800 | HA15: 800 | HB15: 800 | HC15: 800 | HD15: 800 | HE15: 800 | HF15: 800 | HG15: 800 | HH15: 800 | HI15: 800 | HJ15: 800 | HK15: 800 | HL15: 800 | HM15: 800 | HN15: 800 | HO15: 800 | HP15: 800 | HQ15: 800 | HR15: 800 | HS15: 800 | HT15: 800 | HU15: 800 | HV15: 800 | HW15: 800 | HX15: 800 | HY15: 800 | HZ15: 800 | IA15: 800 | IB15: 800 | IC15: 800 | ID15: 800 | IE15: 800 | IF15: 800 | IG15: 800 | IH15: 800 | II15: 800 | IJ15: 800 | IK15: 800 | IL15: 800 | IM15: 800 | IN15: 800 | IO15: 800 | IP15: 800 | IQ15: 800 | IR15: 800 | IS15: 800 | IT15: 800 | IU15: 800 | IV15: 800 | IW15: 800 | IX15: 800 | IY15: 800 | IZ15: 800 | JA15: 800 | JB15: 800 | JC15: 800 | JD15: 800 | JE15: 800 | JF15: 800 | JG15: 800 | JH15: 800 | JI15: 800 | JJ15: 800 | JK15: 800 | JL15: 800 | JM15: 800 | JN15: 800 | JO15: 800 | JP15: 800 | JQ15: 800 | JR15: 800 | JS15: 800 | JT15: 800 | JU15: 800 | JV15: 800 | JW15: 800 | JX15: 800 | JY15: 800 | JZ15: 800 | KA15: 800 | KB15: 800 | KC15: 800 | KD15: 800 | KE15: 800 | KF15: 800 | KG15: 800 | KH15: 800 | KI15: 800 | KJ15: 800 | KK15: 800 | KL15: 800 | KM15: 800 | KN15: 800 | KO15: 800 | KP15: 800 | KQ15: 800 | KR15: 800 | KS15: 800 | KT15: 800 | KU15: 800 | KV15: 800 | KW15: 800 | KX15: 800 | KY15: 800 | KZ15: 800 | LA15: 800 | LB15: 800 | LC15: 800 | LD15: 800 | LE15: 800 | LF15: 800 | LG15: 800 | LH15: 800 | LI15: 800 | LJ15: 800 | LK15: 800 | LL15: 800 | LM15: 800 | LN15: 800 | LO15: 800 | LP15: 800 | LQ15: 800 | LR15: 800 | LS15: 800 | LT15: 800 | LU15: 800 | LV15: 800 | LW15: 800 | LX15: 800 | LY15: 800 | LZ15: 800 | MA15: 800 | MB15: 800 | MC15: 800 | MD15: 800 | ME15: 800 | MF15: 800 | MG15: 800 | MH15: 800 | MI15: 800 | MJ15: 800 | MK15: 800 | ML15: 800 | MM15: 800 | MN15: 800 | MO15: 800 | MP15: 800 | MQ15: 800 | MR15: 800 | MS15: 800 | MT15: 800 | MU15: 800 | MV15: 800 | MW15: 800 | MX15: 800 | MY15: 800 | MZ15: 800 | NA15: 800 | NB15: 800 | NC15: 800 | ND15: 800 | NE15: 800 | NF15: 800 | NG15: 800 | NH15: 800 | NI15: 800 | NJ15: 800 | NK15: 800 | NL15: 800 | NM15: 800 | NN15: 800 | NO15: 800 | NP15: 800 | NQ15: 800 | NR15: 800 | NS15: 800 | NT15: 800 | NU15: 800 | NV15: 800 | NW15: 800 | NX15: 800 | NY15: 800 | NZ15: 800 | OA15: 800 | OB15: 800 | OC15: 800 | OD15: 800 | OE15: 800 | OF15: 800 | OG15: 800 | OH15: 800 | OI15: 800 | OJ15: 0 | OK15: 0 | OL15: 0 | OM15: 0 | ON15: 0 | OO15: 0 | OP15: 0 | OQ15: 0 | OR15: 0 | OS15: 0 | OT15: 0 | OU15: 0 | OV15: 0 | OW15: 0 | OX15: 0 | OY15: 0 | OZ15: 0 | PA15: 0 | PB15: 0 | PC15: 0 | PD15: 0 | PE15: 0 | PF15: 0 | PG15: 0 | PH15: 0 | PI15: 0 | PJ15: 0 | PK15: 0 | PL15: 0 | PM15: 0 | PN15: 0 | PO15: 0 | PP15: 0 | PQ15: 0 | PR15: 0 | PS15: 0 | PT15: 0 | PU15: 0 | PV15: 0 | PW15: 0 | PX15: 0 | PY15: 0 | PZ15: 0 | QA15: 0 | QB15: 0 | QC15: 0 | QD15: 0 | QE15: 0 | QF15: 0 | QG15: 0 | QH15: 0 | QI15: 0 | QJ15: 0 | QK15: 0 | QL15: 0 | QM15: 0 | QN15: 0 | QO15: 0 | QP15: 0 | QQ15: 0 | QR15: 0 | QS15: 0 | QT15: 0 | QU15: 0 | QV15: 0 | QW15: 0 | QX15: 0 | QY15: 0 | QZ15: 0 | RA15: 0 | RB15: 0 | RC15: 0 | RD15: 0 | RE15: 0 | RF15: 0 | RG15: 0 | RH15: 0 | RI15: 0 | RJ15: 0 | RK15: 0 | RL15: 0 | RM15: 0 | RN15: 0 | RO15: 0 | RP15: 0 | RQ15: 0 | RR15: 0 | RS15: 0 | RT15: 0 | RU15: 0 | RV15: 0 | RW15: 0 | RX15: 0 | RY15: 0 | RZ15: 0 | SA15: 0 | SB15: 0 | SC15: 0 | SD15: 0 | SE15: 0 | SF15: 0 | SG15: 0 | SH15: 0 | SI15: 0 | SJ15: 0 | SK15: 0 | SL15: 0 | SM15: 0 | SN15: 0 | SO15: 0 | SP15: 0 | SQ15: 0 | SR15: 0 | SS15: 0 | ST15: 0 | SU15: 0 | SV15: 0 | SW15: 0 | SX15: 0 | SY15: 0 | SZ15: 0 | TA15: 0 | TB15: 0 | TC15: 0 | TD15: 0 | TE15: 0 | TF15: 0 | TG15: 0 | TH15: 0 | TI15: 0 | TJ15: 0 | TK15: 0 | TL15: 0 | TM15: 0 | TN15: 0 | TO15: 0 | TP15: 0 | TQ15: 0 | TR15: 0 | TS15: 0 | TT15: 0 | TU15: 0 | TV15: 0 | TW15: 0 | TX15: 0 | TY15: 0 | TZ15: 0 | UA15: 0 | UB15: 0 | UC15: 0 | UD15: 0 | UE15: 0 | UF15: 0 | UG15: 0 | UH15: 0 | UI15: 0 | UJ15: 0 | UK15: 0 | UL15: 0 | UM15: 0 | UN15: 0 | UO15: 0 | UP15: 0 | UQ15: 0 | UR15: 0 | US15: 0 | UT15: 0 | UU15: 0 | UV15: 0 | UW15: 0 | UX15: 0 | UY15: 0 | UZ15: 0 | VA15: 0 | VB15: 0 | VC15: 0 | VD15: 0 | VE15: 0 | VF15: 0 | VG15: 0 | VH15: 0 | VI15: 0 | VJ15: 0 | VK15: 0 | VL15: 0 | VM15: 0 | VN15: 0 | VO15: 0 | VP15: 0 | VQ15: 0 | VR15: 0 | VS15: 0 | VT15: 0 | VU15: 0 | VV15: 0 | VW15: 0 | VX15: 0 | VY15: 0 | VZ15: 0 | WA15: 0 | WB15: 0 | WC15: 0 | WD15: 0 | WE15: 0 | WF15: 0 | WG15: 0 | WH15: 0 | WI15: 0 | WJ15: 0 | WK15: 0 | WL15: 0 | WM15: 0 | WN15: 0 | WO15: 0 | WP15: 0 | WQ15: 0 | WR15: 0 | WS15: 0 | WT15: 0 | WU15: 0 | WV15: 0 | WW15: 0 | WX15: 0 | WY15: 0 | WZ15: 0 | XA15: 0 | XB15: 0 | XC15: 0 | XD15: 0 | XE15: 0 | XF15: 0 | XG15: 0 | XH15: 0 | XI15: 0 | XJ15: 0 | XK15: 0 | XL15: 0 | XM15: 0 | XN15: 0 | XO15: 0 | XP15: 0 | XQ15: 0 | XR15: 0 | XS15: 0 | XT15: 0 | XU15: 0 | XV15: 0 | XW15: 0 | XX15: 0 | XY15: 0 | XZ15: 0 | YA15: 0 | YB15: 0 | YC15: 0 | YD15: 0 | YE15: 0 | YF15: 0 | YG15: 0 | YH15: 0 | YI15: 0 | YJ15: 0 | YK15: 0 | YL15: 0 | YM15: 0 | YN15: 0 | YO15: 0 | YP15: 0 | YQ15: 0 | YR15: 0 | YS15: 0 | YT15: 0 | YU15: 0 | YV15: 0 | YW15: 0 | YX15: 0 | YY15: 0 | YZ15: 0 | ZA15: 0 | ZB15: 0 | ZC15: 0 | ZD15: 0 | ZE15: 0 | ZF15: 0 | ZG15: 0 | ZH15: 0 | ZI15: 0 | ZJ15: 0 | ZK15: 0 | ZL15: 0 | ZM15: 0 | ZN15: 0 | ZO15: 0 | ZP15: 0 | ZQ15: 0 | ZR15: 0 | ZS15: 0 | ZT15: 0 | ZU15: 0 | ZV15: 0 | ZW15: 0 | ZX15: 0 | ZY15: 0 | ZZ15: 0 | AAA15: 0 | AAB15: 0 | AAC15: 0 | AAD15: 0 | AAE15: 0 | AAF15: 0 | AAG15: 0 | AAH15: 0 | AAI15: 0 | AAJ15: 0 | AAK15: 0 | AAL15: 0 | AAM15: 0 | AAN15: 0 | AAO15: 0 | AAP15: 0 | AAQ15: 0 | AAR15: 0 | AAS15: 0 | AAT15: 0 | AAU15: 0 | AAV15: 0 | AAW15: 0 | AAX15: 0 | AAY15: 0 | AAZ15: 0 | ABA15: 0 | ABB15: 0 | ABC15: 0 | ABD15: 0 | ABE15: 0 | ABF15: 0 | ABG15: 0 | ABH15: 0 | ABI15: 0 | ABJ15: 0 | ABK15: 0 | ABL15: 0 | ABM15: 0 | ABN15: 0 | ABO15: 0 | ABP15: 0 | ABQ15: 0 | ABR15: 0 | ABS15: 0 | ABT15: 0 | ABU15: 0 | ABV15: 0 | ABW15: 0 | ABX15: 0 | ABY15: 0 | ABZ15: 0
D16: Battery Capacity | E16: kWh | F16: =INDEX(InputC!I36:AD36,E1) -> 0 | K16: 0 | L16: 0 | M16: 0 | N16: 0 | O16: 0 | P16: 0 | Q16: 0 | R16: 0 | S16: 0 | T16: 0 | U16: 0 | V16: 0 | W16: 0 | X16: 0 | Y16: 0 | Z16: 0 | AA16: 0 | AB16: 0 | AC16: 0 | AD16: 0 | AE16: 0 | AF16: 0 | AG16: 0 | AH16: 0 | AI16: 0 | AJ16: 0 | AK16: 0 | AL16: 0 | AM16: 0 | AN16: 0 | AO16: 0 | AP16: 0 | AQ16: 0 | AR16: 0 | AS16: 0 | AT16: 0 | AU16: 0 | AV16: 0 | AW16: 0 | AX16: 0 | AY16: 0 | AZ16: 0 | BA16: 0 | BB16: 0 | BC16: 0 | BD16: 0 | BE16: 0 | BF16: 0 | BG16: 0 | BH16: 0 | BI16: 0 | BJ16: 0 | BK16: 0 | BL16: 0 | BM16: 0 | BN16: 0 | BO16: 0 | BP16: 0 | BQ16: 0 | BR16: 0 | BS16: 0 | BT16: 0 | BU16: 0 | BV16: 0 | BW16: =$F16*BW$7 -> 0 | BX16: 0 | BY16: 0 | BZ16: 0 | CA16: 0 | CB16: 0 | CC16: 0 | CD16: 0 | CE16: 0 | CF16: 0 | CG16: 0 | CH16: 0 | CI16: 0 | CJ16: 0 | CK16: 0 | CL16: 0 | CM16: 0 | CN16: 0 | CO16: 0 | CP16: 0 | CQ16: 0 | CR16: 0 | CS16: 0 | CT16: 0 | CU16: 0 | CV16: 0 | CW16: 0 | CX16: 0 | CY16: 0 | CZ16: 0 | DA16: 0 | DB16: 0 | DC16: 0 | DD16: 0 | DE16: 0 | DF16: 0 | DG16: 0 | DH16: 0 | DI16: 0 | DJ16: 0 | DK16: 0 | DL16: 0 | DM16: 0 | DN16: 0 | DO16: 0 | DP16: 0 | DQ16: 0 | DR16: 0 | DS16: 0 | DT16: 0 | DU16: 0 | DV16: 0 | DW16: 0 | DX16: 0 | DY16: 0 | DZ16: 0 | EA16: 0 | EB16: 0 | EC16: 0 | ED16: 0 | EE16: 0 | EF16: 0 | EG16: 0 | EH16: 0 | EI16: =$F16*EI$7 -> 0 | EJ16: 0 | EK16: 0 | EL16: 0 | EM16: 0 | EN16: 0 | EO16: 0 | EP16: 0 | EQ16: 0 | ER16: 0 | ES16: 0 | ET16: 0 | EU16: 0 | EV16: 0 | EW16: 0 | EX16: 0 | EY16: 0 | EZ16: 0 | FA16: 0 | FB16: 0 | FC16: 0 | FD16: 0 | FE16: 0 | FF16: 0 | FG16: 0 | FH16: 0 | FI16: 0 | FJ16: 0 | FK16: 0 | FL16: 0 | FM16: 0 | FN16: 0 | FO16: 0 | FP16: 0 | FQ16: 0 | FR16: 0 | FS16: 0 | FT16: 0 | FU16: 0 | FV16: 0 | FW16: 0 | FX16: 0 | FY16: 0 | FZ16: 0 | GA16: 0 | GB16: 0 | GC16: 0 | GD16: 0 | GE16: 0 | GF16: 0 | GG16: 0 | GH16: 0 | GI16: 0 | GJ16: 0 | GK16: 0 | GL16: 0 | GM16: 0 | GN16: 0 | GO16: 0 | GP16: 0 | GQ16: 0 | GR16: 0 | GS16: 0 | GT16: 0 | GU16: =$F16*GU$7 -> 0 | GV16: 0 | GW16: 0 | GX16: 0 | GY16: 0 | GZ16: 0 | HA16: 0 | HB16: 0 | HC16: 0 | HD16: 0 | HE16: 0 | HF16: 0 | HG16: 0 | HH16: 0 | HI16: 0 | HJ16: 0 | HK16: 0 | HL16: 0 | HM16: 0 | HN16: 0 | HO16: 0 | HP16: 0 | HQ16: 0 | HR16: 0 | HS16: 0 | HT16: 0 | HU16: 0 | HV16: 0 | HW16: 0 | HX16: 0 | HY16: 0 | HZ16: 0 | IA16: 0 | IB16: 0 | IC16: 0 | ID16: 0 | IE16: 0 | IF16: 0 | IG16: 0 | IH16: 0 | II16: 0 | IJ16: 0 | IK16: 0 | IL16: 0 | IM16: 0 | IN16: 0 | IO16: 0 | IP16: 0 | IQ16: 0 | IR16: 0 | IS16: 0 | IT16: 0 | IU16: 0 | IV16: 0 | IW16: 0 | IX16: 0 | IY16: 0 | IZ16: 0 | JA16: 0 | JB16: 0 | JC16: 0 | JD16: 0 | JE16: 0 | JF16: 0 | JG16: =$F16*JG$7 -> 0 | JH16: 0 | JI16: 0 | JJ16: 0 | JK16: 0 | JL16: 0 | JM16: 0 | JN16: 0 | JO16: 0 | JP16: 0 | JQ16: 0 | JR16: 0 | JS16: 0 | JT16: 0 | JU16: 0 | JV16: 0 | JW16: 0 | JX16: 0 | JY16: 0 | JZ16: 0 | KA16: 0 | KB16: 0 | KC16: 0 | KD16: 0 | KE16: 0 | KF16: 0 | KG16: 0 | KH16: 0 | KI16: 0 | KJ16: 0 | KK16: 0 | KL16: 0 | KM16: 0 | KN16: 0 | KO16: 0 | KP16: 0 | KQ16: 0 | KR16: 0 | KS16: 0 | KT16: 0 | KU16: 0 | KV16: 0 | KW16: 0 | KX16: 0 | KY16: 0 | KZ16: 0 | LA16: 0 | LB16: 0 | LC16: 0 | LD16: 0 | LE16: 0 | LF16: 0 | LG16: 0 | LH16: 0 | LI16: 0 | LJ16: 0 | LK16: 0 | LL16: 0 | LM16: 0 | LN16: 0 | LO16: 0 | LP16: 0 | LQ16: 0 | LR16: 0 | LS16: =$F16*LS$7 -> 0 | LT16: 0 | LU16: 0 | LV16: 0 | LW16: 0 | LX16: 0 | LY16: 0 | LZ16: 0 | MA16: 0 | MB16: 0 | MC16: 0 | MD16: 0 | ME16: 0 | MF16: 0 | MG16: 0 | MH16: 0 | MI16: 0 | MJ16: 0 | MK16: 0 | ML16: 0 | MM16: 0 | MN16: 0 | MO16: 0 | MP16: 0 | MQ16: 0 | MR16: 0 | MS16: 0 | MT16: 0 | MU16: 0 | MV16: 0 | MW16: 0 | MX16: 0 | MY16: 0 | MZ16: 0 | NA16: 0 | NB16: 0 | NC16: 0 | ND16: 0 | NE16: 0 | NF16: 0 | NG16: 0 | NH16: 0 | NI16: 0 | NJ16: 0 | NK16: 0 | NL16: 0 | NM16: 0 | NN16: 0 | NO16: 0 | NP16: 0 | NQ16: 0 | NR16: 0 | NS16: 0 | NT16: 0 | NU16: 0 | NV16: 0 | NW16: 0 | NX16: 0 | NY16: 0 | NZ16: 0 | OA16: 0 | OB16: 0 | OC16: 0 | OD16: 0 | OE16: =$F16*OE$7 -> 0 | OF16: 0 | OG16: 0 | OH16: 0 | OI16: 0 | OJ16: 0 | OK16: 0 | OL16: 0 | OM16: 0 | ON16: 0 | OO16: 0 | OP16: 0 | OQ16: 0 | OR16: 0 | OS16: 0 | OT16: 0 | OU16: 0 | OV16: 0 | OW16: 0 | OX16: 0 | OY16: 0 | OZ16: 0 | PA16: 0 | PB16: 0 | PC16: 0 | PD16: 0 | PE16: 0 | PF16: 0 | PG16: 0 | PH16: 0 | PI16: 0 | PJ16: 0 | PK16: 0 | PL16: 0 | PM16: 0 | PN16: 0 | PO16: 0 | PP16: 0 | PQ16: 0 | PR16: 0 | PS16: 0 | PT16: 0 | PU16: 0 | PV16: 0 | PW16: 0 | PX16: 0 | PY16: 0 | PZ16: 0 | QA16: 0 | QB16: 0 | QC16: 0 | QD16: 0 | QE16: 0 | QF16: 0 | QG16: 0 | QH16: 0 | QI16: 0 | QJ16: 0 | QK16: 0 | QL16: 0 | QM16: 0 | QN16: 0 | QO16: 0 | QP16: 0 | QQ16: =$F16*QQ$7 -> 0 | QR16: 0 | QS16: 0 | QT16: 0 | QU16: 0 | QV16: 0 | QW16: 0 | QX16: 0 | QY16: 0 | QZ16: 0 | RA16: 0 | RB16: 0 | RC16: 0 | RD16: 0 | RE16: 0 | RF16: 0 | RG16: 0 | RH16: 0 | RI16: 0 | RJ16: 0 | RK16: 0 | RL16: 0 | RM16: 0 | RN16: 0 | RO16: 0 | RP16: 0 | RQ16: 0 | RR16: 0 | RS16: 0 | RT16: 0 | RU16: 0 | RV16: 0 | RW16: 0 | RX16: 0 | RY16: 0 | RZ16: 0 | SA16: 0 | SB16: 0 | SC16: 0 | SD16: 0 | SE16: 0 | SF16: 0 | SG16: 0 | SH16: 0 | SI16: 0 | SJ16: 0 | SK16: 0 | SL16: 0 | SM16: 0 | SN16: 0 | SO16: 0 | SP16: 0 | SQ16: 0 | SR16: 0 | SS16: 0 | ST16: 0 | SU16: 0 | SV16: 0 | SW16: 0 | SX16: 0 | SY16: 0 | SZ16: 0 | TA16: 0 | TB16: 0 | TC16: =$F16*TC$7 -> 0 | TD16: 0 | TE16: 0 | TF16: 0 | TG16: 0 | TH16: 0 | TI16: 0 | TJ16: 0 | TK16: 0 | TL16: 0 | TM16: 0 | TN16: 0 | TO16: 0 | TP16: 0 | TQ16: 0 | TR16: 0 | TS16: 0 | TT16: 0 | TU16: 0 | TV16: 0 | TW16: 0 | TX16: 0 | TY16: 0 | TZ16: 0 | UA16: 0 | UB16: 0 | UC16: 0 | UD16: 0 | UE16: 0 | UF16: 0 | UG16: 0 | UH16: 0 | UI16: 0 | UJ16: 0 | UK16: 0 | UL16: 0 | UM16: 0 | UN16: 0 | UO16: 0 | UP16: 0 | UQ16: 0 | UR16: 0 | US16: 0 | UT16: 0 | UU16: 0 | UV16: 0 | UW16: 0 | UX16: 0 | UY16: 0 | UZ16: 0 | VA16: 0 | VB16: 0 | VC16: 0 | VD16: 0 | VE16: 0 | VF16: 0 | VG16: 0 | VH16: 0 | VI16: 0 | VJ16: 0 | VK16: 0 | VL16: 0 | VM16: 0 | VN16: 0 | VO16: =$F16*VO$7 -> 0 | VP16: 0 | VQ16: 0 | VR16: 0 | VS16: 0 | VT16: 0 | VU16: 0 | VV16: 0 | VW16: 0 | VX16: 0 | VY16: 0 | VZ16: 0 | WA16: 0 | WB16: 0 | WC16: 0 | WD16: 0 | WE16: 0 | WF16: 0 | WG16: 0 | WH16: 0 | WI16: 0 | WJ16: 0 | WK16: 0 | WL16: 0 | WM16: 0 | WN16: 0 | WO16: 0 | WP16: 0 | WQ16: 0 | WR16: 0 | WS16: 0 | WT16: 0 | WU16: 0 | WV16: 0 | WW16: 0 | WX16: 0 | WY16: 0 | WZ16: 0 | XA16: 0 | XB16: 0 | XC16: 0 | XD16: 0 | XE16: 0 | XF16: 0 | XG16: 0 | XH16: 0 | XI16: 0 | XJ16: 0 | XK16: 0 | XL16: 0 | XM16: 0 | XN16: 0 | XO16: 0 | XP16: 0 | XQ16: 0 | XR16: 0 | XS16: 0 | XT16: 0 | XU16: 0 | XV16: 0 | XW16: 0 | XX16: 0 | XY16: 0 | XZ16: 0 | YA16: =$F16*YA$7 -> 0 | YB16: 0 | YC16: 0 | YD16: 0 | YE16: 0 | YF16: 0 | YG16: 0 | YH16: 0 | YI16: 0 | YJ16: 0 | YK16: 0 | YL16: 0 | YM16: 0 | YN16: 0 | YO16: 0 | YP16: 0 | YQ16: 0 | YR16: 0 | YS16: 0 | YT16: 0 | YU16: 0 | YV16: 0 | YW16: 0 | YX16: 0 | YY16: 0 | YZ16: 0 | ZA16: 0 | ZB16: 0 | ZC16: 0 | ZD16: 0 | ZE16: 0 | ZF16: 0 | ZG16: 0 | ZH16: 0 | ZI16: 0 | ZJ16: 0 | ZK16: 0 | ZL16: 0 | ZM16: 0 | ZN16: 0 | ZO16: 0 | ZP16: 0 | ZQ16: 0 | ZR16: 0 | ZS16: 0 | ZT16: 0 | ZU16: 0 | ZV16: 0 | ZW16: 0 | ZX16: 0 | ZY16: 0 | ZZ16: 0 | AAA16: 0 | AAB16: 0 | AAC16: 0 | AAD16: 0 | AAE16: 0 | AAF16: 0 | AAG16: 0 | AAH16: 0 | AAI16: 0 | AAJ16: 0 | AAK16: 0 | AAL16: 0 | AAM16: =$F16*AAM$7 -> 0 | AAN16: 0 | AAO16: 0 | AAP16: 0 | AAQ16: 0 | AAR16: 0 | AAS16: 0 | AAT16: 0 | AAU16: 0 | AAV16: 0 | AAW16: 0 | AAX16: 0 | AAY16: 0 | AAZ16: 0 | ABA16: 0 | ABB16: 0 | ABC16: 0 | ABD16: 0 | ABE16: 0 | ABF16: 0 | ABG16: 0 | ABH16: 0 | ABI16: 0 | ABJ16: 0 | ABK16: 0 | ABL16: 0 | ABM16: 0 | ABN16: 0 | ABO16: 0 | ABP16: 0 | ABQ16: 0 | ABR16: 0 | ABS16: 0 | ABT16: 0 | ABU16: 0 | ABV16: 0 | ABW16: 0 | ABX16: 0 | ABY16: 0 | ABZ16: 0
C18: Annual Yield/Capacity Factor
D19: Solar Yield | E19: kWh/kWp | F19: =INDEX(InputC!I27:AD27,E1) -> 0 | K19: =$F19*K$7 -> 0 | L19: =$F19*L$7 -> 0 | M19: 0 | N19: 0 | O19: 0 | P19: 0 | Q19: 0 | R19: 0 | S19: 0 | T19: 0 | U19: 0 | V19: 0 | W19: 0 | X19: 0 | Y19: 0 | Z19: 0 | AA19: 0 | AB19: 0 | AC19: 0 | AD19: 0 | AE19: 0 | AF19: 0 | AG19: 0 | AH19: 0 | AI19: 0 | AJ19: 0 | AK19: 0 | AL19: 0 | AM19: 0 | AN19: 0 | AO19: 0 | AP19: 0 | AQ19: 0 | AR19: 0 | AS19: 0 | AT19: 0 | AU19: 0 | AV19: 0 | AW19: 0 | AX19: 0 | AY19: 0 | AZ19: 0 | BA19: 0 | BB19: 0 | BC19: 0 | BD19: 0 | BE19: 0 | BF19: 0 | BG19: 0 | BH19: 0 | BI19: 0 | BJ19: 0 | BK19: 0 | BL19: 0 | BM19: 0 | BN19: 0 | BO19: 0 | BP19: 0 | BQ19: 0 | BR19: 0 | BS19: 0 | BT19: 0 | BU19: 0 | BV19: 0 | BW19: 0 | BX19: =$F19*BX$7 -> 0 | BY19: 0 | BZ19: 0 | CA19: 0 | CB19: 0 | CC19: 0 | CD19: 0 | CE19: 0 | CF19: 0 | CG19: 0 | CH19: 0 | CI19: 0 | CJ19: 0 | CK19: 0 | CL19: 0 | CM19: 0 | CN19: 0 | CO19: 0 | CP19: 0 | CQ19: 0 | CR19: 0 | CS19: 0 | CT19: 0 | CU19: 0 | CV19: 0 | CW19: 0 | CX19: 0 | CY19: 0 | CZ19: 0 | DA19: 0 | DB19: 0 | DC19: 0 | DD19: 0 | DE19: 0 | DF19: 0 | DG19: 0 | DH19: 0 | DI19: 0 | DJ19: 0 | DK19: 0 | DL19: 0 | DM19: 0 | DN19: 0 | DO19: 0 | DP19: 0 | DQ19: 0 | DR19: 0 | DS19: 0 | DT19: 0 | DU19: 0 | DV19: 0 | DW19: 0 | DX19: 0 | DY19: 0 | DZ19: 0 | EA19: 0 | EB19: 0 | EC19: 0 | ED19: 0 | EE19: 0 | EF19: 0 | EG19: 0 | EH19: 0 | EI19: 0 | EJ19: =$F19*EJ$7 -> 0 | EK19: 0 | EL19: 0 | EM19: 0 | EN19: 0 | EO19: 0 | EP19: 0 | EQ19: 0 | ER19: 0 | ES19: 0 | ET19: 0 | EU19: 0 | EV19: 0 | EW19: 0 | EX19: 0 | EY19: 0 | EZ19: 0 | FA19: 0 | FB19: 0 | FC19: 0 | FD19: 0 | FE19: 0 | FF19: 0 | FG19: 0 | FH19: 0 | FI19: 0 | FJ19: 0 | FK19: 0 | FL19: 0 | FM19: 0 | FN19: 0 | FO19: 0 | FP19: 0 | FQ19: 0 | FR19: 0 | FS19: 0 | FT19: 0 | FU19: 0 | FV19: 0 | FW19: 0 | FX19: 0 | FY19: 0 | FZ19: 0 | GA19: 0 | GB19: 0 | GC19: 0 | GD19: 0 | GE19: 0 | GF19: 0 | GG19: 0 | GH19: 0 | GI19: 0 | GJ19: 0 | GK19: 0 | GL19: 0 | GM19: 0 | GN19: 0 | GO19: 0 | GP19: 0 | GQ19: 0 | GR19: 0 | GS19: 0 | GT19: 0 | GU19: 0 | GV19: =$F19*GV$7 -> 0 | GW19: 0 | GX19: 0 | GY19: 0 | GZ19: 0 | HA19: 0 | HB19: 0 | HC19: 0 | HD19: 0 | HE19: 0 | HF19: 0 | HG19: 0 | HH19: 0 | HI19: 0 | HJ19: 0 | HK19: 0 | HL19: 0 | HM19: 0 | HN19: 0 | HO19: 0 | HP19: 0 | HQ19: 0 | HR19: 0 | HS19: 0 | HT19: 0 | HU19: 0 | HV19: 0 | HW19: 0 | HX19: 0 | HY19: 0 | HZ19: 0 | IA19: 0 | IB19: 0 | IC19: 0 | ID19: 0 | IE19: 0 | IF19: 0 | IG19: 0 | IH19: 0 | II19: 0 | IJ19: 0 | IK19: 0 | IL19: 0 | IM19: 0 | IN19: 0 | IO19: 0 | IP19: 0 | IQ19: 0 | IR19: 0 | IS19: 0 | IT19: 0 | IU19: 0 | IV19: 0 | IW19: 0 | IX19: 0 | IY19: 0 | IZ19: 0 | JA19: 0 | JB19: 0 | JC19: 0 | JD19: 0 | JE19: 0 | JF19: 0 | JG19: 0 | JH19: =$F19*JH$7 -> 0 | JI19: 0 | JJ19: 0 | JK19: 0 | JL19: 0 | JM19: 0 | JN19: 0 | JO19: 0 | JP19: 0 | JQ19: 0 | JR19: 0 | JS19: 0 | JT19: 0 | JU19: 0 | JV19: 0 | JW19: 0 | JX19: 0 | JY19: 0 | JZ19: 0 | KA19: 0 | KB19: 0 | KC19: 0 | KD19: 0 | KE19: 0 | KF19: 0 | KG19: 0 | KH19: 0 | KI19: 0 | KJ19: 0 | KK19: 0 | KL19: 0 | KM19: 0 | KN19: 0 | KO19: 0 | KP19: 0 | KQ19: 0 | KR19: 0 | KS19: 0 | KT19: 0 | KU19: 0 | KV19: 0 | KW19: 0 | KX19: 0 | KY19: 0 | KZ19: 0 | LA19: 0 | LB19: 0 | LC19: 0 | LD19: 0 | LE19: 0 | LF19: 0 | LG19: 0 | LH19: 0 | LI19: 0 | LJ19: 0 | LK19: 0 | LL19: 0 | LM19: 0 | LN19: 0 | LO19: 0 | LP19: 0 | LQ19: 0 | LR19: 0 | LS19: 0 | LT19: =$F19*LT$7 -> 0 | LU19: 0 | LV19: 0 | LW19: 0 | LX19: 0 | LY19: 0 | LZ19: 0 | MA19: 0 | MB19: 0 | MC19: 0 | MD19: 0 | ME19: 0 | MF19: 0 | MG19: 0 | MH19: 0 | MI19: 0 | MJ19: 0 | MK19: 0 | ML19: 0 | MM19: 0 | MN19: 0 | MO19: 0 | MP19: 0 | MQ19: 0 | MR19: 0 | MS19: 0 | MT19: 0 | MU19: 0 | MV19: 0 | MW19: 0 | MX19: 0 | MY19: 0 | MZ19: 0 | NA19: 0 | NB19: 0 | NC19: 0 | ND19: 0 | NE19: 0 | NF19: 0 | NG19: 0 | NH19: 0 | NI19: 0 | NJ19: 0 | NK19: 0 | NL19: 0 | NM19: 0 | NN19: 0 | NO19: 0 | NP19: 0 | NQ19: 0 | NR19: 0 | NS19: 0 | NT19: 0 | NU19: 0 | NV19: 0 | NW19: 0 | NX19: 0 | NY19: 0 | NZ19: 0 | OA19: 0 | OB19: 0 | OC19: 0 | OD19: 0 | OE19: 0 | OF19: =$F19*OF$7 -> 0 | OG19: 0 | OH19: 0 | OI19: 0 | OJ19: 0 | OK19: 0 | OL19: 0 | OM19: 0 | ON19: 0 | OO19: 0 | OP19: 0 | OQ19: 0 | OR19: 0 | OS19: 0 | OT19: 0 | OU19: 0 | OV19: 0 | OW19: 0 | OX19: 0 | OY19: 0 | OZ19: 0 | PA19: 0 | PB19: 0 | PC19: 0 | PD19: 0 | PE19: 0 | PF19: 0 | PG19: 0 | PH19: 0 | PI19: 0 | PJ19: 0 | PK19: 0 | PL19: 0 | PM19: 0 | PN19: 0 | PO19: 0 | PP19: 0 | PQ19: 0 | PR19: 0 | PS19: 0 | PT19: 0 | PU19: 0 | PV19: 0 | PW19: 0 | PX19: 0 | PY19: 0 | PZ19: 0 | QA19: 0 | QB19: 0 | QC19: 0 | QD19: 0 | QE19: 0 | QF19: 0 | QG19: 0 | QH19: 0 | QI19: 0 | QJ19: 0 | QK19: 0 | QL19: 0 | QM19: 0 | QN19: 0 | QO19: 0 | QP19: 0 | QQ19: 0 | QR19: =$F19*QR$7 -> 0 | QS19: 0 | QT19: 0 | QU19: 0 | QV19: 0 | QW19: 0 | QX19: 0 | QY19: 0 | QZ19: 0 | RA19: 0 | RB19: 0 | RC19: 0 | RD19: 0 | RE19: 0 | RF19: 0 | RG19: 0 | RH19: 0 | RI19: 0 | RJ19: 0 | RK19: 0 | RL19: 0 | RM19: 0 | RN19: 0 | RO19: 0 | RP19: 0 | RQ19: 0 | RR19: 0 | RS19: 0 | RT19: 0 | RU19: 0 | RV19: 0 | RW19: 0 | RX19: 0 | RY19: 0 | RZ19: 0 | SA19: 0 | SB19: 0 | SC19: 0 | SD19: 0 | SE19: 0 | SF19: 0 | SG19: 0 | SH19: 0 | SI19: 0 | SJ19: 0 | SK19: 0 | SL19: 0 | SM19: 0 | SN19: 0 | SO19: 0 | SP19: 0 | SQ19: 0 | SR19: 0 | SS19: 0 | ST19: 0 | SU19: 0 | SV19: 0 | SW19: 0 | SX19: 0 | SY19: 0 | SZ19: 0 | TA19: 0 | TB19: 0 | TC19: 0 | TD19: =$F19*TD$7 -> 0 | TE19: 0 | TF19: 0 | TG19: 0 | TH19: 0 | TI19: 0 | TJ19: 0 | TK19: 0 | TL19: 0 | TM19: 0 | TN19: 0 | TO19: 0 | TP19: 0 | TQ19: 0 | TR19: 0 | TS19: 0 | TT19: 0 | TU19: 0 | TV19: 0 | TW19: 0 | TX19: 0 | TY19: 0 | TZ19: 0 | UA19: 0 | UB19: 0 | UC19: 0 | UD19: 0 | UE19: 0 | UF19: 0 | UG19: 0 | UH19: 0 | UI19: 0 | UJ19: 0 | UK19: 0 | UL19: 0 | UM19: 0 | UN19: 0 | UO19: 0 | UP19: 0 | UQ19: 0 | UR19: 0 | US19: 0 | UT19: 0 | UU19: 0 | UV19: 0 | UW19: 0 | UX19: 0 | UY19: 0 | UZ19: 0 | VA19: 0 | VB19: 0 | VC19: 0 | VD19: 0 | VE19: 0 | VF19: 0 | VG19: 0 | VH19: 0 | VI19: 0 | VJ19: 0 | VK19: 0 | VL19: 0 | VM19: 0 | VN19: 0 | VO19: 0 | VP19: =$F19*VP$7 -> 0 | VQ19: 0 | VR19: 0 | VS19: 0 | VT19: 0 | VU19: 0 | VV19: 0 | VW19: 0 | VX19: 0 | VY19: 0 | VZ19: 0 | WA19: 0 | WB19: 0 | WC19: 0 | WD19: 0 | WE19: 0 | WF19: 0 | WG19: 0 | WH19: 0 | WI19: 0 | WJ19: 0 | WK19: 0 | WL19: 0 | WM19: 0 | WN19: 0 | WO19: 0 | WP19: 0 | WQ19: 0 | WR19: 0 | WS19: 0 | WT19: 0 | WU19: 0 | WV19: 0 | WW19: 0 | WX19: 0 | WY19: 0 | WZ19: 0 | XA19: 0 | XB19: 0 | XC19: 0 | XD19: 0 | XE19: 0 | XF19: 0 | XG19: 0 | XH19: 0 | XI19: 0 | XJ19: 0 | XK19: 0 | XL19: 0 | XM19: 0 | XN19: 0 | XO19: 0 | XP19: 0 | XQ19: 0 | XR19: 0 | XS19: 0 | XT19: 0 | XU19: 0 | XV19: 0 | XW19: 0 | XX19: 0 | XY19: 0 | XZ19: 0 | YA19: 0 | YB19: =$F19*YB$7 -> 0 | YC19: 0 | YD19: 0 | YE19: 0 | YF19: 0 | YG19: 0 | YH19: 0 | YI19: 0 | YJ19: 0 | YK19: 0 | YL19: 0 | YM19: 0 | YN19: 0 | YO19: 0 | YP19: 0 | YQ19: 0 | YR19: 0 | YS19: 0 | YT19: 0 | YU19: 0 | YV19: 0 | YW19: 0 | YX19: 0 | YY19: 0 | YZ19: 0 | ZA19: 0 | ZB19: 0 | ZC19: 0 | ZD19: 0 | ZE19: 0 | ZF19: 0 | ZG19: 0 | ZH19: 0 | ZI19: 0 | ZJ19: 0 | ZK19: 0 | ZL19: 0 | ZM19: 0 | ZN19: 0 | ZO19: 0 | ZP19: 0 | ZQ19: 0 | ZR19: 0 | ZS19: 0 | ZT19: 0 | ZU19: 0 | ZV19: 0 | ZW19: 0 | ZX19: 0 | ZY19: 0 | ZZ19: 0 | AAA19: 0 | AAB19: 0 | AAC19: 0 | AAD19: 0 | AAE19: 0 | AAF19: 0 | AAG19: 0 | AAH19: 0 | AAI19: 0 | AAJ19: 0 | AAK19: 0 | AAL19: 0 | AAM19: 0 | AAN19: =$F19*AAN$7 -> 0 | AAO19: 0 | AAP19: 0 | AAQ19: 0 | AAR19: 0 | AAS19: 0 | AAT19: 0 | AAU19: 0 | AAV19: 0 | AAW19: 0 | AAX19: 0 | AAY19: 0 | AAZ19: 0 | ABA19: 0 | ABB19: 0 | ABC19: 0 | ABD19: 0 | ABE19: 0 | ABF19: 0 | ABG19: 0 | ABH19: 0 | ABI19: 0 | ABJ19: 0 | ABK19: 0 | ABL19: 0 | ABM19: 0 | ABN19: 0 | ABO19: 0 | ABP19: 0 | ABQ19: 0 | ABR19: 0 | ABS19: 0 | ABT19: 0 | ABU19: 0 | ABV19: 0 | ABW19: 0 | ABX19: 0 | ABY19: 0 | ABZ19: 0
D20: Wind Capacity Factor | E20: % | F20: =INDEX(InputC!I31:AD31,E1) -> 0.35 | K20: =$F20*K$7 -> 0 | L20: 0 | M20: 0 | N20: 0 | O20: 0 | P20: 0 | Q20: 0 | R20: 0 | S20: 0 | T20: 0 | U20: 0 | V20: 0 | W20: 0 | X20: 0 | Y20: 0 | Z20: 0 | AA20: 0 | AB20: 0 | AC20: 0 | AD20: 0 | AE20: 0 | AF20: 0 | AG20: 0 | AH20: 0 | AI20: 0 | AJ20: 0 | AK20: 0 | AL20: 0 | AM20: 0 | AN20: 0.35 | AO20: 0.35 | AP20: 0.35 | AQ20: 0.35 | AR20: 0.35 | AS20: 0.35 | AT20: 0.35 | AU20: 0.35 | AV20: 0.35 | AW20: 0.35 | AX20: 0.35 | AY20: 0.35 | AZ20: 0.35 | BA20: 0.35 | BB20: 0.35 | BC20: 0.35 | BD20: 0.35 | BE20: 0.35 | BF20: 0.35 | BG20: 0.35 | BH20: 0.35 | BI20: 0.35 | BJ20: 0.35 | BK20: 0.35 | BL20: 0.35 | BM20: 0.35 | BN20: 0.35 | BO20: 0.35 | BP20: 0.35 | BQ20: 0.35 | BR20: 0.35 | BS20: 0.35 | BT20: 0.35 | BU20: 0.35 | BV20: 0.35 | BW20: 0.35 | BX20: 0.35 | BY20: 0.35 | BZ20: 0.35 | CA20: 0.35 | CB20: 0.35 | CC20: 0.35 | CD20: 0.35 | CE20: 0.35 | CF20: 0.35 | CG20: 0.35 | CH20: 0.35 | CI20: 0.35 | CJ20: 0.35 | CK20: 0.35 | CL20: 0.35 | CM20: 0.35 | CN20: 0.35 | CO20: 0.35 | CP20: 0.35 | CQ20: 0.35 | CR20: 0.35 | CS20: 0.35 | CT20: 0.35 | CU20: 0.35 | CV20: 0.35 | CW20: 0.35 | CX20: 0.35 | CY20: 0.35 | CZ20: 0.35 | DA20: 0.35 | DB20: 0.35 | DC20: 0.35 | DD20: 0.35 | DE20: 0.35 | DF20: 0.35 | DG20: 0.35 | DH20: 0.35 | DI20: 0.35 | DJ20: 0.35 | DK20: 0.35 | DL20: 0.35 | DM20: 0.35 | DN20: 0.35 | DO20: 0.35 | DP20: 0.35 | DQ20: 0.35 | DR20: 0.35 | DS20: 0.35 | DT20: 0.35 | DU20: 0.35 | DV20: 0.35 | DW20: 0.35 | DX20: 0.35 | DY20: 0.35 | DZ20: 0.35 | EA20: 0.35 | EB20: 0.35 | EC20: 0.35 | ED20: 0.35 | EE20: 0.35 | EF20: 0.35 | EG20: 0.35 | EH20: 0.35 | EI20: 0.35 | EJ20: 0.35 | EK20: 0.35 | EL20: 0.35 | EM20: 0.35 | EN20: 0.35 | EO20: 0.35 | EP20: 0.35 | EQ20: 0.35 | ER20: 0.35 | ES20: 0.35 | ET20: 0.35 | EU20: 0.35 | EV20: 0.35 | EW20: 0.35 | EX20: 0.35 | EY20: 0.35 | EZ20: 0.35 | FA20: 0.35 | FB20: 0.35 | FC20: 0.35 | FD20: 0.35 | FE20: 0.35 | FF20: 0.35 | FG20: 0.35 | FH20: 0.35 | FI20: 0.35 | FJ20: 0.35 | FK20: 0.35 | FL20: 0.35 | FM20: 0.35 | FN20: 0.35 | FO20: 0.35 | FP20: 0.35 | FQ20: 0.35 | FR20: 0.35 | FS20: 0.35 | FT20: 0.35 | FU20: 0.35 | FV20: 0.35 | FW20: 0.35 | FX20: 0.35 | FY20: 0.35 | FZ20: 0.35 | GA20: 0.35 | GB20: 0.35 | GC20: 0.35 | GD20: 0.35 | GE20: 0.35 | GF20: 0.35 | GG20: 0.35 | GH20: 0.35 | GI20: 0.35 | GJ20: 0.35 | GK20: 0.35 | GL20: 0.35 | GM20: 0.35 | GN20: 0.35 | GO20: 0.35 | GP20: 0.35 | GQ20: 0.35 | GR20: 0.35 | GS20: 0.35 | GT20: 0.35 | GU20: 0.35 | GV20: 0.35 | GW20: 0.35 | GX20: 0.35 | GY20: 0.35 | GZ20: 0.35 | HA20: 0.35 | HB20: 0.35 | HC20: 0.35 | HD20: 0.35 | HE20: 0.35 | HF20: 0.35 | HG20: 0.35 | HH20: 0.35 | HI20: 0.35 | HJ20: 0.35 | HK20: 0.35 | HL20: 0.35 | HM20: 0.35 | HN20: 0.35 | HO20: 0.35 | HP20: 0.35 | HQ20: 0.35 | HR20: 0.35 | HS20: 0.35 | HT20: 0.35 | HU20: 0.35 | HV20: 0.35 | HW20: 0.35 | HX20: 0.35 | HY20: 0.35 | HZ20: 0.35 | IA20: 0.35 | IB20: 0.35 | IC20: 0.35 | ID20: 0.35 | IE20: 0.35 | IF20: 0.35 | IG20: 0.35 | IH20: 0.35 | II20: 0.35 | IJ20: 0.35 | IK20: 0.35 | IL20: 0.35 | IM20: 0.35 | IN20: 0.35 | IO20: 0.35 | IP20: 0.35 | IQ20: 0.35 | IR20: 0.35 | IS20: 0.35 | IT20: 0.35 | IU20: 0.35 | IV20: 0.35 | IW20: 0.35 | IX20: 0.35 | IY20: 0.35 | IZ20: 0.35 | JA20: 0.35 | JB20: 0.35 | JC20: 0.35 | JD20: 0.35 | JE20: 0.35 | JF20: 0.35 | JG20: 0.35 | JH20: 0.35 | JI20: 0.35 | JJ20: 0.35 | JK20: 0.35 | JL20: 0.35 | JM20: 0.35 | JN20: 0.35 | JO20: 0.35 | JP20: 0.35 | JQ20: 0.35 | JR20: 0.35 | JS20: 0.35 | JT20: 0.35 | JU20: 0.35 | JV20: 0.35 | JW20: 0.35 | JX20: 0.35 | JY20: 0.35 | JZ20: 0.35 | KA20: 0.35 | KB20: 0.35 | KC20: 0.35 | KD20: 0.35 | KE20: 0.35 | KF20: 0.35 | KG20: 0.35 | KH20: 0.35 | KI20: 0.35 | KJ20: 0.35 | KK20: 0.35 | KL20: 0.35 | KM20: 0.35 | KN20: 0.35 | KO20: 0.35 | KP20: 0.35 | KQ20: 0.35 | KR20: 0.35 | KS20: 0.35 | KT20: 0.35 | KU20: 0.35 | KV20: 0.35 | KW20: 0.35 | KX20: 0.35 | KY20: 0.35 | KZ20: 0.35 | LA20: 0.35 | LB20: 0.35 | LC20: 0.35 | LD20: 0.35 | LE20: 0.35 | LF20: 0.35 | LG20: 0.35 | LH20: 0.35 | LI20: 0.35 | LJ20: 0.35 | LK20: 0.35 | LL20: 0.35 | LM20: 0.35 | LN20: 0.35 | LO20: 0.35 | LP20: 0.35 | LQ20: 0.35 | LR20: 0.35 | LS20: 0.35 | LT20: 0.35 | LU20: 0.35 | LV20: 0.35 | LW20: 0.35 | LX20: 0.35 | LY20: 0.35 | LZ20: 0.35 | MA20: 0.35 | MB20: 0.35 | MC20: 0.35 | MD20: 0.35 | ME20: 0.35 | MF20: 0.35 | MG20: 0.35 | MH20: 0.35 | MI20: 0.35 | MJ20: 0.35 | MK20: 0.35 | ML20: 0.35 | MM20: 0.35 | MN20: 0.35 | MO20: 0.35 | MP20: 0.35 | MQ20: 0.35 | MR20: 0.35 | MS20: 0.35 | MT20: 0.35 | MU20: 0.35 | MV20: 0.35 | MW20: 0.35 | MX20: 0.35 | MY20: 0.35 | MZ20: 0.35 | NA20: 0.35 | NB20: 0.35 | NC20: 0.35 | ND20: 0.35 | NE20: 0.35 | NF20: 0.35 | NG20: 0.35 | NH20: 0.35 | NI20: 0.35 | NJ20: 0.35 | NK20: 0.35 | NL20: 0.35 | NM20: 0.35 | NN20: 0.35 | NO20: 0.35 | NP20: 0.35 | NQ20: 0.35 | NR20: 0.35 | NS20: 0.35 | NT20: 0.35 | NU20: 0.35 | NV20: 0.35 | NW20: 0.35 | NX20: 0.35 | NY20: 0.35 | NZ20: 0.35 | OA20: 0.35 | OB20: 0.35 | OC20: 0.35 | OD20: 0.35 | OE20: 0.35 | OF20: 0.35 | OG20: 0.35 | OH20: 0.35 | OI20: 0.35 | OJ20: 0 | OK20: 0 | OL20: 0 | OM20: 0 | ON20: 0 | OO20: 0 | OP20: 0 | OQ20: 0 | OR20: 0 | OS20: 0 | OT20: 0 | OU20: 0 | OV20: 0 | OW20: 0 | OX20: 0 | OY20: 0 | OZ20: 0 | PA20: 0 | PB20: 0 | PC20: 0 | PD20: 0 | PE20: 0 | PF20: 0 | PG20: 0 | PH20: 0 | PI20: 0 | PJ20: 0 | PK20: 0 | PL20: 0 | PM20: 0 | PN20: 0 | PO20: 0 | PP20: 0 | PQ20: 0 | PR20: 0 | PS20: 0 | PT20: 0 | PU20: 0 | PV20: 0 | PW20: 0 | PX20: 0 | PY20: 0 | PZ20: 0 | QA20: 0 | QB20: 0 | QC20: 0 | QD20: 0 | QE20: 0 | QF20: 0 | QG20: 0 | QH20: 0 | QI20: 0 | QJ20: 0 | QK20: 0 | QL20: 0 | QM20: 0 | QN20: 0 | QO20: 0 | QP20: 0 | QQ20: 0 | QR20: 0 | QS20: 0 | QT20: 0 | QU20: 0 | QV20: 0 | QW20: 0 | QX20: 0 | QY20: 0 | QZ20: 0 | RA20: 0 | RB20: 0 | RC20: 0 | RD20: 0 | RE20: 0 | RF20: 0 | RG20: 0 | RH20: 0 | RI20: 0 | RJ20: 0 | RK20: 0 | RL20: 0 | RM20: 0 | RN20: 0 | RO20: 0 | RP20: 0 | RQ20: 0 | RR20: 0 | RS20: 0 | RT20: 0 | RU20: 0 | RV20: 0 | RW20: 0 | RX20: 0 | RY20: 0 | RZ20: 0 | SA20: 0 | SB20: 0 | SC20: 0 | SD20: 0 | SE20: 0 | SF20: 0 | SG20: 0 | SH20: 0 | SI20: 0 | SJ20: 0 | SK20: 0 | SL20: 0 | SM20: 0 | SN20: 0 | SO20: 0 | SP20: 0 | SQ20: 0 | SR20: 0 | SS20: 0 | ST20: 0 | SU20: 0 | SV20: 0 | SW20: 0 | SX20: 0 | SY20: 0 | SZ20: 0 | TA20: 0 | TB20: 0 | TC20: 0 | TD20: 0 | TE20: 0 | TF20: 0 | TG20: 0 | TH20: 0 | TI20: 0 | TJ20: 0 | TK20: 0 | TL20: 0 | TM20: 0 | TN20: 0 | TO20: 0 | TP20: 0 | TQ20: 0 | TR20: 0 | TS20: 0 | TT20: 0 | TU20: 0 | TV20: 0 | TW20: 0 | TX20: 0 | TY20: 0 | TZ20: 0 | UA20: 0 | UB20: 0 | UC20: 0 | UD20: 0 | UE20: 0 | UF20: 0 | UG20: 0 | UH20: 0 | UI20: 0 | UJ20: 0 | UK20: 0 | UL20: 0 | UM20: 0 | UN20: 0 | UO20: 0 | UP20: 0 | UQ20: 0 | UR20: 0 | US20: 0 | UT20: 0 | UU20: 0 | UV20: 0 | UW20: 0 | UX20: 0 | UY20: 0 | UZ20: 0 | VA20: 0 | VB20: 0 | VC20: 0 | VD20: 0 | VE20: 0 | VF20: 0 | VG20: 0 | VH20: 0 | VI20: 0 | VJ20: 0 | VK20: 0 | VL20: 0 | VM20: 0 | VN20: 0 | VO20: 0 | VP20: 0 | VQ20: 0 | VR20: 0 | VS20: 0 | VT20: 0 | VU20: 0 | VV20: 0 | VW20: 0 | VX20: 0 | VY20: 0 | VZ20: 0 | WA20: 0 | WB20: 0 | WC20: 0 | WD20: 0 | WE20: 0 | WF20: 0 | WG20: 0 | WH20: 0 | WI20: 0 | WJ20: 0 | WK20: 0 | WL20: 0 | WM20: 0 | WN20: 0 | WO20: 0 | WP20: 0 | WQ20: 0 | WR20: 0 | WS20: 0 | WT20: 0 | WU20: 0 | WV20: 0 | WW20: 0 | WX20: 0 | WY20: 0 | WZ20: 0 | XA20: 0 | XB20: 0 | XC20: 0 | XD20: 0 | XE20: 0 | XF20: 0 | XG20: 0 | XH20: 0 | XI20: 0 | XJ20: 0 | XK20: 0 | XL20: 0 | XM20: 0 | XN20: 0 | XO20: 0 | XP20: 0 | XQ20: 0 | XR20: 0 | XS20: 0 | XT20: 0 | XU20: 0 | XV20: 0 | XW20: 0 | XX20: 0 | XY20: 0 | XZ20: 0 | YA20: 0 | YB20: 0 | YC20: 0 | YD20: 0 | YE20: 0 | YF20: 0 | YG20: 0 | YH20: 0 | YI20: 0 | YJ20: 0 | YK20: 0 | YL20: 0 | YM20: 0 | YN20: 0 | YO20: 0 | YP20: 0 | YQ20: 0 | YR20: 0 | YS20: 0 | YT20: 0 | YU20: 0 | YV20: 0 | YW20: 0 | YX20: 0 | YY20: 0 | YZ20: 0 | ZA20: 0 | ZB20: 0 | ZC20: 0 | ZD20: 0 | ZE20: 0 | ZF20: 0 | ZG20: 0 | ZH20: 0 | ZI20: 0 | ZJ20: 0 | ZK20: 0 | ZL20: 0 | ZM20: 0 | ZN20: 0 | ZO20: 0 | ZP20: 0 | ZQ20: 0 | ZR20: 0 | ZS20: 0 | ZT20: 0 | ZU20: 0 | ZV20: 0 | ZW20: 0 | ZX20: 0 | ZY20: 0 | ZZ20: 0 | AAA20: 0 | AAB20: 0 | AAC20: 0 | AAD20: 0 | AAE20: 0 | AAF20: 0 | AAG20: 0 | AAH20: 0 | AAI20: 0 | AAJ20: 0 | AAK20: 0 | AAL20: 0 | AAM20: 0 | AAN20: 0 | AAO20: 0 | AAP20: 0 | AAQ20: 0 | AAR20: 0 | AAS20: 0 | AAT20: 0 | AAU20: 0 | AAV20: 0 | AAW20: 0 | AAX20: 0 | AAY20: 0 | AAZ20: 0 | ABA20: 0 | ABB20: 0 | ABC20: 0 | ABD20: 0 | ABE20: 0 | ABF20: 0 | ABG20: 0 | ABH20: 0 | ABI20: 0 | ABJ20: 0 | ABK20: 0 | ABL20: 0 | ABM20: 0 | ABN20: 0 | ABO20: 0 | ABP20: 0 | ABQ20: 0 | ABR20: 0 | ABS20: 0 | ABT20: 0 | ABU20: 0 | ABV20: 0 | ABW20: 0 | ABX20: 0 | ABY20: 0 | ABZ20: 0
D21: Battery Availability | E21: % | F21: =INDEX(InputC!I37:AD37,E1) -> 0 | K21: 0 | L21: 0 | M21: 0 | N21: 0 | O21: 0 | P21: 0 | Q21: 0 | R21: 0 | S21: 0 | T21: 0 | U21: 0 | V21: 0 | W21: 0 | X21: 0 | Y21: 0 | Z21: 0 | AA21: 0 | AB21: 0 | AC21: 0 | AD21: 0 | AE21: 0 | AF21: 0 | AG21: 0 | AH21: 0 | AI21: 0 | AJ21: 0 | AK21: 0 | AL21: 0 | AM21: 0 | AN21: 0 | AO21: 0 | AP21: 0 | AQ21: 0 | AR21: 0 | AS21: 0 | AT21: 0 | AU21: 0 | AV21: 0 | AW21: 0 | AX21: 0 | AY21: 0 | AZ21: 0 | BA21: 0 | BB21: 0 | BC21: 0 | BD21: 0 | BE21: 0 | BF21: 0 | BG21: 0 | BH21: 0 | BI21: 0 | BJ21: 0 | BK21: 0 | BL21: 0 | BM21: 0 | BN21: 0 | BO21: 0 | BP21: 0 | BQ21: 0 | BR21: 0 | BS21: 0 | BT21: 0 | BU21: 0 | BV21: 0 | BW21: 0 | BX21: 0 | BY21: 0 | BZ21: 0 | CA21: 0 | CB21: 0 | CC21: 0 | CD21: 0 | CE21: 0 | CF21: 0 | CG21: 0 | CH21: 0 | CI21: 0 | CJ21: 0 | CK21: 0 | CL21: 0 | CM21: 0 | CN21: 0 | CO21: 0 | CP21: 0 | CQ21: 0 | CR21: 0 | CS21: 0 | CT21: 0 | CU21: 0 | CV21: 0 | CW21: 0 | CX21: 0 | CY21: 0 | CZ21: 0 | DA21: 0 | DB21: 0 | DC21: 0 | DD21: 0 | DE21: 0 | DF21: 0 | DG21: 0 | DH21: 0 | DI21: 0 | DJ21: 0 | DK21: 0 | DL21: 0 | DM21: 0 | DN21: 0 | DO21: 0 | DP21: 0 | DQ21: 0 | DR21: 0 | DS21: 0 | DT21: 0 | DU21: 0 | DV21: 0 | DW21: 0 | DX21: 0 | DY21: 0 | DZ21: 0 | EA21: 0 | EB21: 0 | EC21: 0 | ED21: 0 | EE21: 0 | EF21: 0 | EG21: 0 | EH21: 0 | EI21: 0 | EJ21: 0 | EK21: 0 | EL21: 0 | EM21: 0 | EN21: 0 | EO21: 0 | EP21: 0 | EQ21: 0 | ER21: 0 | ES21: 0 | ET21: 0 | EU21: 0 | EV21: 0 | EW21: 0 | EX21: 0 | EY21: 0 | EZ21: 0 | FA21: 0 | FB21: 0 | FC21: 0 | FD21: 0 | FE21: 0 | FF21: 0 | FG21: 0 | FH21: 0 | FI21: 0 | FJ21: 0 | FK21: 0 | FL21: 0 | FM21: 0 | FN21: 0 | FO21: 0 | FP21: 0 | FQ21: 0 | FR21: 0 | FS21: 0 | FT21: 0 | FU21: 0 | FV21: 0 | FW21: 0 | FX21: 0 | FY21: 0 | FZ21: 0 | GA21: 0 | GB21: 0 | GC21: 0 | GD21: 0 | GE21: 0 | GF21: 0 | GG21: 0 | GH21: 0 | GI21: 0 | GJ21: 0 | GK21: 0 | GL21: 0 | GM21: 0 | GN21: 0 | GO21: 0 | GP21: 0 | GQ21: 0 | GR21: 0 | GS21: 0 | GT21: 0 | GU21: 0 | GV21: 0 | GW21: 0 | GX21: 0 | GY21: 0 | GZ21: 0 | HA21: 0 | HB21: 0 | HC21: 0 | HD21: 0 | HE21: 0 | HF21: 0 | HG21: 0 | HH21: 0 | HI21: 0 | HJ21: 0 | HK21: 0 | HL21: 0 | HM21: 0 | HN21: 0 | HO21: 0 | HP21: 0 | HQ21: 0 | HR21: 0 | HS21: 0 | HT21: 0 | HU21: 0 | HV21: 0 | HW21: 0 | HX21: 0 | HY21: 0 | HZ21: 0 | IA21: 0 | IB21: 0 | IC21: 0 | ID21: 0 | IE21: 0 | IF21: 0 | IG21: 0 | IH21: 0 | II21: 0 | IJ21: 0 | IK21: 0 | IL21: 0 | IM21: 0 | IN21: 0 | IO21: 0 | IP21: 0 | IQ21: 0 | IR21: 0 | IS21: 0 | IT21: 0 | IU21: 0 | IV21: 0 | IW21: 0 | IX21: 0 | IY21: 0 | IZ21: 0 | JA21: 0 | JB21: 0 | JC21: 0 | JD21: 0 | JE21: 0 | JF21: 0 | JG21: 0 | JH21: 0 | JI21: 0 | JJ21: 0 | JK21: 0 | JL21: 0 | JM21: 0 | JN21: 0 | JO21: 0 | JP21: 0 | JQ21: 0 | JR21: 0 | JS21: 0 | JT21: 0 | JU21: 0 | JV21: 0 | JW21: 0 | JX21: 0 | JY21: 0 | JZ21: 0 | KA21: 0 | KB21: 0 | KC21: 0 | KD21: 0 | KE21: 0 | KF21: 0 | KG21: 0 | KH21: 0 | KI21: 0 | KJ21: 0 | KK21: 0 | KL21: 0 | KM21: 0 | KN21: 0 | KO21: 0 | KP21: 0 | KQ21: 0 | KR21: 0 | KS21: 0 | KT21: 0 | KU21: 0 | KV21: 0 | KW21: 0 | KX21: 0 | KY21: 0 | KZ21: 0 | LA21: 0 | LB21: 0 | LC21: 0 | LD21: 0 | LE21: 0 | LF21: 0 | LG21: 0 | LH21: 0 | LI21: 0 | LJ21: 0 | LK21: 0 | LL21: 0 | LM21: 0 | LN21: 0 | LO21: 0 | LP21: 0 | LQ21: 0 | LR21: 0 | LS21: 0 | LT21: 0 | LU21: 0 | LV21: 0 | LW21: 0 | LX21: 0 | LY21: 0 | LZ21: 0 | MA21: 0 | MB21: 0 | MC21: 0 | MD21: 0 | ME21: 0 | MF21: 0 | MG21: 0 | MH21: 0 | MI21: 0 | MJ21: 0 | MK21: 0 | ML21: 0 | MM21: 0 | MN21: 0 | MO21: 0 | MP21: 0 | MQ21: 0 | MR21: 0 | MS21: 0 | MT21: 0 | MU21: 0 | MV21: 0 | MW21: 0 | MX21: 0 | MY21: 0 | MZ21: 0 | NA21: 0 | NB21: 0 | NC21: 0 | ND21: 0 | NE21: 0 | NF21: 0 | NG21: 0 | NH21: 0 | NI21: 0 | NJ21: 0 | NK21: 0 | NL21: 0 | NM21: 0 | NN21: 0 | NO21: 0 | NP21: 0 | NQ21: 0 | NR21: 0 | NS21: 0 | NT21: 0 | NU21: 0 | NV21: 0 | NW21: 0 | NX21: 0 | NY21: 0 | NZ21: 0 | OA21: 0 | OB21: 0 | OC21: 0 | OD21: 0 | OE21: 0 | OF21: 0 | OG21: 0 | OH21: 0 | OI21: 0 | OJ21: 0 | OK21: 0 | OL21: 0 | OM21: 0 | ON21: 0 | OO21: 0 | OP21: 0 | OQ21: 0 | OR21: 0 | OS21: 0 | OT21: 0 | OU21: 0 | OV21: 0 | OW21: 0 | OX21: 0 | OY21: 0 | OZ21: 0 | PA21: 0 | PB21: 0 | PC21: 0 | PD21: 0 | PE21: 0 | PF21: 0 | PG21: 0 | PH21: 0 | PI21: 0 | PJ21: 0 | PK21: 0 | PL21: 0 | PM21: 0 | PN21: 0 | PO21: 0 | PP21: 0 | PQ21: 0 | PR21: 0 | PS21: 0 | PT21: 0 | PU21: 0 | PV21: 0 | PW21: 0 | PX21: 0 | PY21: 0 | PZ21: 0 | QA21: 0 | QB21: 0 | QC21: 0 | QD21: 0 | QE21: 0 | QF21: 0 | QG21: 0 | QH21: 0 | QI21: 0 | QJ21: 0 | QK21: 0 | QL21: 0 | QM21: 0 | QN21: 0 | QO21: 0 | QP21: 0 | QQ21: 0 | QR21: 0 | QS21: 0 | QT21: 0 | QU21: 0 | QV21: 0 | QW21: 0 | QX21: 0 | QY21: 0 | QZ21: 0 | RA21: 0 | RB21: 0 | RC21: 0 | RD21: 0 | RE21: 0 | RF21: 0 | RG21: 0 | RH21: 0 | RI21: 0 | RJ21: 0 | RK21: 0 | RL21: 0 | RM21: 0 | RN21: 0 | RO21: 0 | RP21: 0 | RQ21: 0 | RR21: 0 | RS21: 0 | RT21: 0 | RU21: 0 | RV21: 0 | RW21: 0 | RX21: 0 | RY21: 0 | RZ21: 0 | SA21: 0 | SB21: 0 | SC21: 0 | SD21: 0 | SE21: 0 | SF21: 0 | SG21: 0 | SH21: 0 | SI21: 0 | SJ21: 0 | SK21: 0 | SL21: 0 | SM21: 0 | SN21: 0 | SO21: 0 | SP21: 0 | SQ21: 0 | SR21: 0 | SS21: 0 | ST21: 0 | SU21: 0 | SV21: 0 | SW21: 0 | SX21: 0 | SY21: 0 | SZ21: 0 | TA21: 0 | TB21: 0 | TC21: 0 | TD21: 0 | TE21: 0 | TF21: 0 | TG21: 0 | TH21: 0 | TI21: 0 | TJ21: 0 | TK21: 0 | TL21: 0 | TM21: 0 | TN21: 0 | TO21: 0 | TP21: 0 | TQ21: 0 | TR21: 0 | TS21: 0 | TT21: 0 | TU21: 0 | TV21: 0 | TW21: 0 | TX21: 0 | TY21: 0 | TZ21: 0 | UA21: 0 | UB21: 0 | UC21: 0 | UD21: 0 | UE21: 0 | UF21: 0 | UG21: 0 | UH21: 0 | UI21: 0 | UJ21: 0 | UK21: 0 | UL21: 0 | UM21: 0 | UN21: 0 | UO21: 0 | UP21: 0 | UQ21: 0 | UR21: 0 | US21: 0 | UT21: 0 | UU21: 0 | UV21: 0 | UW21: 0 | UX21: 0 | UY21: 0 | UZ21: 0 | VA21: 0 | VB21: 0 | VC21: 0 | VD21: 0 | VE21: 0 | VF21: 0 | VG21: 0 | VH21: 0 | VI21: 0 | VJ21: 0 | VK21: 0 | VL21: 0 | VM21: 0 | VN21: 0 | VO21: 0 | VP21: 0 | VQ21: 0 | VR21: 0 | VS21: 0 | VT21: 0 | VU21: 0 | VV21: 0 | VW21: 0 | VX21: 0 | VY21: 0 | VZ21: 0 | WA21: 0 | WB21: 0 | WC21: 0 | WD21: 0 | WE21: 0 | WF21: 0 | WG21: 0 | WH21: 0 | WI21: 0 | WJ21: 0 | WK21: 0 | WL21: 0 | WM21: 0 | WN21: 0 | WO21: 0 | WP21: 0 | WQ21: 0 | WR21: 0 | WS21: 0 | WT21: 0 | WU21: 0 | WV21: 0 | WW21: 0 | WX21: 0 | WY21: 0 | WZ21: 0 | XA21: 0 | XB21: 0 | XC21: 0 | XD21: 0 | XE21: 0 | XF21: 0 | XG21: 0 | XH21: 0 | XI21: 0 | XJ21: 0 | XK21: 0 | XL21: 0 | XM21: 0 | XN21: 0 | XO21: 0 | XP21: 0 | XQ21: 0 | XR21: 0 | XS21: 0 | XT21: 0 | XU21: 0 | XV21: 0 | XW21: 0 | XX21: 0 | XY21: 0 | XZ21: 0 | YA21: 0 | YB21: 0 | YC21: 0 | YD21: 0 | YE21: 0 | YF21: 0 | YG21: 0 | YH21: 0 | YI21: 0 | YJ21: 0 | YK21: 0 | YL21: 0 | YM21: 0 | YN21: 0 | YO21: 0 | YP21: 0 | YQ21: 0 | YR21: 0 | YS21: 0 | YT21: 0 | YU21: 0 | YV21: 0 | YW21: 0 | YX21: 0 | YY21: 0 | YZ21: 0 | ZA21: 0 | ZB21: 0 | ZC21: 0 | ZD21: 0 | ZE21: 0 | ZF21: 0 | ZG21: 0 | ZH21: 0 | ZI21: 0 | ZJ21: 0 | ZK21: 0 | ZL21: 0 | ZM21: 0 | ZN21: 0 | ZO21: 0 | ZP21: 0 | ZQ21: 0 | ZR21: 0 | ZS21: 0 | ZT21: 0 | ZU21: 0 | ZV21: 0 | ZW21: 0 | ZX21: 0 | ZY21: 0 | ZZ21: 0 | AAA21: 0 | AAB21: 0 | AAC21: 0 | AAD21: 0 | AAE21: 0 | AAF21: 0 | AAG21: 0 | AAH21: 0 | AAI21: 0 | AAJ21: 0 | AAK21: 0 | AAL21: 0 | AAM21: 0 | AAN21: 0 | AAO21: 0 | AAP21: 0 | AAQ21: 0 | AAR21: 0 | AAS21: 0 | AAT21: 0 | AAU21: 0 | AAV21: 0 | AAW21: 0 | AAX21: 0 | AAY21: 0 | AAZ21: 0 | ABA21: 0 | ABB21: 0 | ABC21: 0 | ABD21: 0 | ABE21: 0 | ABF21: 0 | ABG21: 0 | ABH21: 0 | ABI21: 0 | ABJ21: 0 | ABK21: 0 | ABL21: 0 | ABM21: 0 | ABN21: 0 | ABO21: 0 | ABP21: 0 | ABQ21: 0 | ABR21: 0 | ABS21: 0 | ABT21: 0 | ABU21: 0 | ABV21: 0 | ABW21: 0 | ABX21: 0 | ABY21: 0 | ABZ21: 0
C23: Generation and Availability
D24: Hours in Period | E24: Hours | K24: =(K5-K4+1)*24 -> 744 | L24: 672 | M24: 744 | N24: 720 | O24: 744 | P24: 720 | Q24: 744 | R24: 744 | S24: 720 | T24: 744 | U24: 720 | V24: 744 | W24: 744 | X24: 672 | Y24: 744 | Z24: 720 | AA24: 744 | AB24: 720 | AC24: 744 | AD24: 744 | AE24: 720 | AF24: 744 | AG24: 720 | AH24: 744 | AI24: 744 | AJ24: 672 | AK24: 744 | AL24: 720 | AM24: 744 | AN24: 720 | AO24: 744 | AP24: 744 | AQ24: 720 | AR24: 744 | AS24: 720 | AT24: 744 | AU24: 744 | AV24: 696 | AW24: 744 | AX24: 720 | AY24: 744 | AZ24: 720 | BA24: 744 | BB24: 744 | BC24: 720 | BD24: 744 | BE24: 720 | BF24: 744 | BG24: 744 | BH24: 672 | BI24: 744 | BJ24: 720 | BK24: 744 | BL24: 720 | BM24: 744 | BN24: 744 | BO24: 720 | BP24: 744 | BQ24: 720 | BR24: 744 | BS24: 744 | BT24: 672 | BU24: 744 | BV24: 720 | BW24: =(BW5-BW4+1)*24 -> 744 | BX24: 720 | BY24: 744 | BZ24: 744 | CA24: 720 | CB24: 744 | CC24: 720 | CD24: 744 | CE24: 744 | CF24: 672 | CG24: 744 | CH24: 720 | CI24: 744 | CJ24: 720 | CK24: 744 | CL24: 744 | CM24: 720 | CN24: 744 | CO24: 720 | CP24: 744 | CQ24: 744 | CR24: 696 | CS24: 744 | CT24: 720 | CU24: 744 | CV24: 720 | CW24: 744 | CX24: 744 | CY24: 720 | CZ24: 744 | DA24: 720 | DB24: 744 | DC24: 744 | DD24: 672 | DE24: 744 | DF24: 720 | DG24: 744 | DH24: 720 | DI24: 744 | DJ24: 744 | DK24: 720 | DL24: 744 | DM24: 720 | DN24: 744 | DO24: 744 | DP24: 672 | DQ24: 744 | DR24: 720 | DS24: 744 | DT24: 720 | DU24: 744 | DV24: 744 | DW24: 720 | DX24: 744 | DY24: 720 | DZ24: 744 | EA24: 744 | EB24: 672 | EC24: 744 | ED24: 720 | EE24: 744 | EF24: 720 | EG24: 744 | EH24: 744 | EI24: =(EI5-EI4+1)*24 -> 720 | EJ24: 744 | EK24: 720 | EL24: 744 | EM24: 744 | EN24: 696 | EO24: 744 | EP24: 720 | EQ24: 744 | ER24: 720 | ES24: 744 | ET24: 744 | EU24: 720 | EV24: 744 | EW24: 720 | EX24: 744 | EY24: 744 | EZ24: 672 | FA24: 744 | FB24: 720 | FC24: 744 | FD24: 720 | FE24: 744 | FF24: 744 | FG24: 720 | FH24: 744 | FI24: 720 | FJ24: 744 | FK24: 744 | FL24: 672 | FM24: 744 | FN24: 720 | FO24: 744 | FP24: 720 | FQ24: 744 | FR24: 744 | FS24: 720 | FT24: 744 | FU24: 720 | FV24: 744 | FW24: 744 | FX24: 672 | FY24: 744 | FZ24: 720 | GA24: 744 | GB24: 720 | GC24: 744 | GD24: 744 | GE24: 720 | GF24: 744 | GG24: 720 | GH24: 744 | GI24: 744 | GJ24: 696 | GK24: 744 | GL24: 720 | GM24: 744 | GN24: 720 | GO24: 744 | GP24: 744 | GQ24: 720 | GR24: 744 | GS24: 720 | GT24: 744 | GU24: =(GU5-GU4+1)*24 -> 744 | GV24: 672 | GW24: 744 | GX24: 720 | GY24: 744 | GZ24: 720 | HA24: 744 | HB24: 744 | HC24: 720 | HD24: 744 | HE24: 720 | HF24: 744 | HG24: 744 | HH24: 672 | HI24: 744 | HJ24: 720 | HK24: 744 | HL24: 720 | HM24: 744 | HN24: 744 | HO24: 720 | HP24: 744 | HQ24: 720 | HR24: 744 | HS24: 744 | HT24: 672 | HU24: 744 | HV24: 720 | HW24: 744 | HX24: 720 | HY24: 744 | HZ24: 744 | IA24: 720 | IB24: 744 | IC24: 720 | ID24: 744 | IE24: 744 | IF24: 696 | IG24: 744 | IH24: 720 | II24: 744 | IJ24: 720 | IK24: 744 | IL24: 744 | IM24: 720 | IN24: 744 | IO24: 720 | IP24: 744 | IQ24: 744 | IR24: 672 | IS24: 744 | IT24: 720 | IU24: 744 | IV24: 720 | IW24: 744 | IX24: 744 | IY24: 720 | IZ24: 744 | JA24: 720 | JB24: 744 | JC24: 744 | JD24: 672 | JE24: 744 | JF24: 720 | JG24: =(JG5-JG4+1)*24 -> 744 | JH24: 720 | JI24: 744 | JJ24: 744 | JK24: 720 | JL24: 744 | JM24: 720 | JN24: 744 | JO24: 744 | JP24: 672 | JQ24: 744 | JR24: 720 | JS24: 744 | JT24: 720 | JU24: 744 | JV24: 744 | JW24: 720 | JX24: 744 | JY24: 720 | JZ24: 744 | KA24: 744 | KB24: 696 | KC24: 744 | KD24: 720 | KE24: 744 | KF24: 720 | KG24: 744 | KH24: 744 | KI24: 720 | KJ24: 744 | KK24: 720 | KL24: 744 | KM24: 744 | KN24: 672 | KO24: 744 | KP24: 720 | KQ24: 744 | KR24: 720 | KS24: 744 | KT24: 744 | KU24: 720 | KV24: 744 | KW24: 720 | KX24: 744 | KY24: 744 | KZ24: 672 | LA24: 744 | LB24: 720 | LC24: 744 | LD24: 720 | LE24: 744 | LF24: 744 | LG24: 720 | LH24: 744 | LI24: 720 | LJ24: 744 | LK24: 744 | LL24: 672 | LM24: 744 | LN24: 720 | LO24: 744 | LP24: 720 | LQ24: 744 | LR24: 744 | LS24: =(LS5-LS4+1)*24 -> 720 | LT24: 744 | LU24: 720 | LV24: 744 | LW24: 744 | LX24: 696 | LY24: 744 | LZ24: 720 | MA24: 744 | MB24: 720 | MC24: 744 | MD24: 744 | ME24: 720 | MF24: 744 | MG24: 720 | MH24: 744 | MI24: 744 | MJ24: 672 | MK24: 744 | ML24: 720 | MM24: 744 | MN24: 720 | MO24: 744 | MP24: 744 | MQ24: 720 | MR24: 744 | MS24: 720 | MT24: 744 | MU24: 744 | MV24: 672 | MW24: 744 | MX24: 720 | MY24: 744 | MZ24: 720 | NA24: 744 | NB24: 744 | NC24: 720 | ND24: 744 | NE24: 720 | NF24: 744 | NG24: 744 | NH24: 672 | NI24: 744 | NJ24: 720 | NK24: 744 | NL24: 720 | NM24: 744 | NN24: 744 | NO24: 720 | NP24: 744 | NQ24: 720 | NR24: 744 | NS24: 744 | NT24: 696 | NU24: 744 | NV24: 720 | NW24: 744 | NX24: 720 | NY24: 744 | NZ24: 744 | OA24: 720 | OB24: 744 | OC24: 720 | OD24: 744 | OE24: =(OE5-OE4+1)*24 -> 744 | OF24: 672 | OG24: 744 | OH24: 720 | OI24: 744 | OJ24: 720 | OK24: 744 | OL24: 744 | OM24: 720 | ON24: 744 | OO24: 720 | OP24: 744 | OQ24: 744 | OR24: 672 | OS24: 744 | OT24: 720 | OU24: 744 | OV24: 720 | OW24: 744 | OX24: 744 | OY24: 720 | OZ24: 744 | PA24: 720 | PB24: 744 | PC24: 744 | PD24: 672 | PE24: 744 | PF24: 720 | PG24: 744 | PH24: 720 | PI24: 744 | PJ24: 744 | PK24: 720 | PL24: 744 | PM24: 720 | PN24: 744 | PO24: 744 | PP24: 696 | PQ24: 744 | PR24: 720 | PS24: 744 | PT24: 720 | PU24: 744 | PV24: 744 | PW24: 720 | PX24: 744 | PY24: 720 | PZ24: 744 | QA24: 744 | QB24: 672 | QC24: 744 | QD24: 720 | QE24: 744 | QF24: 720 | QG24: 744 | QH24: 744 | QI24: 720 | QJ24: 744 | QK24: 720 | QL24: 744 | QM24: 744 | QN24: 672 | QO24: 744 | QP24: 720 | QQ24: =(QQ5-QQ4+1)*24 -> 744 | QR24: 720 | QS24: 744 | QT24: 744 | QU24: 720 | QV24: 744 | QW24: 720 | QX24: 744 | QY24: 744 | QZ24: 672 | RA24: 744 | RB24: 720 | RC24: 744 | RD24: 720 | RE24: 744 | RF24: 744 | RG24: 720 | RH24: 744 | RI24: 720 | RJ24: 744 | RK24: 744 | RL24: 696 | RM24: 744 | RN24: 720 | RO24: 744 | RP24: 720 | RQ24: 744 | RR24: 744 | RS24: 720 | RT24: 744 | RU24: 720 | RV24: 744 | RW24: 744 | RX24: 672 | RY24: 744 | RZ24: 720 | SA24: 744 | SB24: 720 | SC24: 744 | SD24: 744 | SE24: 720 | SF24: 744 | SG24: 720 | SH24: 744 | SI24: 744 | SJ24: 672 | SK24: 744 | SL24: 720 | SM24: 744 | SN24: 720 | SO24: 744 | SP24: 744 | SQ24: 720 | SR24: 744 | SS24: 720 | ST24: 744 | SU24: 744 | SV24: 672 | SW24: 744 | SX24: 720 | SY24: 744 | SZ24: 720 | TA24: 744 | TB24: 744 | TC24: =(TC5-TC4+1)*24 -> 720 | TD24: 744 | TE24: 720 | TF24: 744 | TG24: 744 | TH24: 696 | TI24: 744 | TJ24: 720 | TK24: 744 | TL24: 720 | TM24: 744 | TN24: 744 | TO24: 720 | TP24: 744 | TQ24: 720 | TR24: 744 | TS24: 744 | TT24: 672 | TU24: 744 | TV24: 720 | TW24: 744 | TX24: 720 | TY24: 744 | TZ24: 744 | UA24: 720 | UB24: 744 | UC24: 720 | UD24: 744 | UE24: 744 | UF24: 672 | UG24: 744 | UH24: 720 | UI24: 744 | UJ24: 720 | UK24: 744 | UL24: 744 | UM24: 720 | UN24: 744 | UO24: 720 | UP24: 744 | UQ24: 744 | UR24: 672 | US24: 744 | UT24: 720 | UU24: 744 | UV24: 720 | UW24: 744 | UX24: 744 | UY24: 720 | UZ24: 744 | VA24: 720 | VB24: 744 | VC24: 744 | VD24: 696 | VE24: 744 | VF24: 720 | VG24: 744 | VH24: 720 | VI24: 744 | VJ24: 744 | VK24: 720 | VL24: 744 | VM24: 720 | VN24: 744 | VO24: =(VO5-VO4+1)*24 -> 744 | VP24: 672 | VQ24: 744 | VR24: 720 | VS24: 744 | VT24: 720 | VU24: 744 | VV24: 744 | VW24: 720 | VX24: 744 | VY24: 720 | VZ24: 744 | WA24: 744 | WB24: 672 | WC24: 744 | WD24: 720 | WE24: 744 | WF24: 720 | WG24: 744 | WH24: 744 | WI24: 720 | WJ24: 744 | WK24: 720 | WL24: 744 | WM24: 744 | WN24: 672 | WO24: 744 | WP24: 720 | WQ24: 744 | WR24: 720 | WS24: 744 | WT24: 744 | WU24: 720 | WV24: 744 | WW24: 720 | WX24: 744 | WY24: 744 | WZ24: 696 | XA24: 744 | XB24: 720 | XC24: 744 | XD24: 720 | XE24: 744 | XF24: 744 | XG24: 720 | XH24: 744 | XI24: 720 | XJ24: 744 | XK24: 744 | XL24: 672 | XM24: 744 | XN24: 720 | XO24: 744 | XP24: 720 | XQ24: 744 | XR24: 744 | XS24: 720 | XT24: 744 | XU24: 720 | XV24: 744 | XW24: 744 | XX24: 672 | XY24: 744 | XZ24: 720 | YA24: =(YA5-YA4+1)*24 -> 744 | YB24: 720 | YC24: 744 | YD24: 744 | YE24: 720 | YF24: 744 | YG24: 720 | YH24: 744 | YI24: 744 | YJ24: 672 | YK24: 744 | YL24: 720 | YM24: 744 | YN24: 720 | YO24: 744 | YP24: 744 | YQ24: 720 | YR24: 744 | YS24: 720 | YT24: 744 | YU24: 744 | YV24: 696 | YW24: 744 | YX24: 720 | YY24: 744 | YZ24: 720 | ZA24: 744 | ZB24: 744 | ZC24: 720 | ZD24: 744 | ZE24: 720 | ZF24: 744 | ZG24: 744 | ZH24: 672 | ZI24: 744 | ZJ24: 720 | ZK24: 744 | ZL24: 720 | ZM24: 744 | ZN24: 744 | ZO24: 720 | ZP24: 744 | ZQ24: 720 | ZR24: 744 | ZS24: 744 | ZT24: 672 | ZU24: 744 | ZV24: 720 | ZW24: 744 | ZX24: 720 | ZY24: 744 | ZZ24: 744 | AAA24: 720 | AAB24: 744 | AAC24: 720 | AAD24: 744 | AAE24: 744 | AAF24: 672 | AAG24: 744 | AAH24: 720 | AAI24: 744 | AAJ24: 720 | AAK24: 744 | AAL24: 744 | AAM24: =(AAM5-AAM4+1)*24 -> 720 | AAN24: 744 | AAO24: 720 | AAP24: 744 | AAQ24: 744 | AAR24: 696 | AAS24: 744 | AAT24: 720 | AAU24: 744 | AAV24: 720 | AAW24: 744 | AAX24: 744 | AAY24: 720 | AAZ24: 744 | ABA24: 720 | ABB24: 744 | ABC24: 744 | ABD24: 672 | ABE24: 744 | ABF24: 720 | ABG24: 744 | ABH24: 720 | ABI24: 744 | ABJ24: 744 | ABK24: 720 | ABL24: 744 | ABM24: 720 | ABN24: 744 | ABO24: 744 | ABP24: 672 | ABQ24: 744 | ABR24: 720 | ABS24: 744 | ABT24: 720 | ABU24: 744 | ABV24: 744 | ABW24: 720 | ABX24: 744 | ABY24: 720 | ABZ24: 744
D26: Solar Generation Before Degradation | E26: kWh | K26: =K14*K19/8760*K24 -> 0 | L26: =L14*L19/8760*L24 -> 0 | M26: 0 | N26: 0 | O26: 0 | P26: 0 | Q26: 0 | R26: 0 | S26: 0 | T26: 0 | U26: 0 | V26: 0 | W26: 0 | X26: 0 | Y26: 0 | Z26: 0 | AA26: 0 | AB26: 0 | AC26: 0 | AD26: 0 | AE26: 0 | AF26: 0 | AG26: 0 | AH26: 0 | AI26: 0 | AJ26: 0 | AK26: 0 | AL26: 0 | AM26: 0 | AN26: 0 | AO26: 0 | AP26: 0 | AQ26: 0 | AR26: 0 | AS26: 0 | AT26: 0 | AU26: 0 | AV26: 0 | AW26: 0 | AX26: 0 | AY26: 0 | AZ26: 0 | BA26: 0 | BB26: 0 | BC26: 0 | BD26: 0 | BE26: 0 | BF26: 0 | BG26: 0 | BH26: 0 | BI26: 0 | BJ26: 0 | BK26: 0 | BL26: 0 | BM26: 0 | BN26: 0 | BO26: 0 | BP26: 0 | BQ26: 0 | BR26: 0 | BS26: 0 | BT26: 0 | BU26: 0 | BV26: 0 | BW26: 0 | BX26: =BX14*BX19/8760*BX24 -> 0 | BY26: 0 | BZ26: 0 | CA26: 0 | CB26: 0 | CC26: 0 | CD26: 0 | CE26: 0 | CF26: 0 | CG26: 0 | CH26: 0 | CI26: 0 | CJ26: 0 | CK26: 0 | CL26: 0 | CM26: 0 | CN26: 0 | CO26: 0 | CP26: 0 | CQ26: 0 | CR26: 0 | CS26: 0 | CT26: 0 | CU26: 0 | CV26: 0 | CW26: 0 | CX26: 0 | CY26: 0 | CZ26: 0 | DA26: 0 | DB26: 0 | DC26: 0 | DD26: 0 | DE26: 0 | DF26: 0 | DG26: 0 | DH26: 0 | DI26: 0 | DJ26: 0 | DK26: 0 | DL26: 0 | DM26: 0 | DN26: 0 | DO26: 0 | DP26: 0 | DQ26: 0 | DR26: 0 | DS26: 0 | DT26: 0 | DU26: 0 | DV26: 0 | DW26: 0 | DX26: 0 | DY26: 0 | DZ26: 0 | EA26: 0 | EB26: 0 | EC26: 0 | ED26: 0 | EE26: 0 | EF26: 0 | EG26: 0 | EH26: 0 | EI26: 0 | EJ26: =EJ14*EJ19/8760*EJ24 -> 0 | EK26: 0 | EL26: 0 | EM26: 0 | EN26: 0 | EO26: 0 | EP26: 0 | EQ26: 0 | ER26: 0 | ES26: 0 | ET26: 0 | EU26: 0 | EV26: 0 | EW26: 0 | EX26: 0 | EY26: 0 | EZ26: 0 | FA26: 0 | FB26: 0 | FC26: 0 | FD26: 0 | FE26: 0 | FF26: 0 | FG26: 0 | FH26: 0 | FI26: 0 | FJ26: 0 | FK26: 0 | FL26: 0 | FM26: 0 | FN26: 0 | FO26: 0 | FP26: 0 | FQ26: 0 | FR26: 0 | FS26: 0 | FT26: 0 | FU26: 0 | FV26: 0 | FW26: 0 | FX26: 0 | FY26: 0 | FZ26: 0 | GA26: 0 | GB26: 0 | GC26: 0 | GD26: 0 | GE26: 0 | GF26: 0 | GG26: 0 | GH26: 0 | GI26: 0 | GJ26: 0 | GK26: 0 | GL26: 0 | GM26: 0 | GN26: 0 | GO26: 0 | GP26: 0 | GQ26: 0 | GR26: 0 | GS26: 0 | GT26: 0 | GU26: 0 | GV26: =GV14*GV19/8760*GV24 -> 0 | GW26: 0 | GX26: 0 | GY26: 0 | GZ26: 0 | HA26: 0 | HB26: 0 | HC26: 0 | HD26: 0 | HE26: 0 | HF26: 0 | HG26: 0 | HH26: 0 | HI26: 0 | HJ26: 0 | HK26: 0 | HL26: 0 | HM26: 0 | HN26: 0 | HO26: 0 | HP26: 0 | HQ26: 0 | HR26: 0 | HS26: 0 | HT26: 0 | HU26: 0 | HV26: 0 | HW26: 0 | HX26: 0 | HY26: 0 | HZ26: 0 | IA26: 0 | IB26: 0 | IC26: 0 | ID26: 0 | IE26: 0 | IF26: 0 | IG26: 0 | IH26: 0 | II26: 0 | IJ26: 0 | IK26: 0 | IL26: 0 | IM26: 0 | IN26: 0 | IO26: 0 | IP26: 0 | IQ26: 0 | IR26: 0 | IS26: 0 | IT26: 0 | IU26: 0 | IV26: 0 | IW26: 0 | IX26: 0 | IY26: 0 | IZ26: 0 | JA26: 0 | JB26: 0 | JC26: 0 | JD26: 0 | JE26: 0 | JF26: 0 | JG26: 0 | JH26: =JH14*JH19/8760*JH24 -> 0 | JI26: 0 | JJ26: 0 | JK26: 0 | JL26: 0 | JM26: 0 | JN26: 0 | JO26: 0 | JP26: 0 | JQ26: 0 | JR26: 0 | JS26: 0 | JT26: 0 | JU26: 0 | JV26: 0 | JW26: 0 | JX26: 0 | JY26: 0 | JZ26: 0 | KA26: 0 | KB26: 0 | KC26: 0 | KD26: 0 | KE26: 0 | KF26: 0 | KG26: 0 | KH26: 0 | KI26: 0 | KJ26: 0 | KK26: 0 | KL26: 0 | KM26: 0 | KN26: 0 | KO26: 0 | KP26: 0 | KQ26: 0 | KR26: 0 | KS26: 0 | KT26: 0 | KU26: 0 | KV26: 0 | KW26: 0 | KX26: 0 | KY26: 0 | KZ26: 0 | LA26: 0 | LB26: 0 | LC26: 0 | LD26: 0 | LE26: 0 | LF26: 0 | LG26: 0 | LH26: 0 | LI26: 0 | LJ26: 0 | LK26: 0 | LL26: 0 | LM26: 0 | LN26: 0 | LO26: 0 | LP26: 0 | LQ26: 0 | LR26: 0 | LS26: 0 | LT26: =LT14*LT19/8760*LT24 -> 0 | LU26: 0 | LV26: 0 | LW26: 0 | LX26: 0 | LY26: 0 | LZ26: 0 | MA26: 0 | MB26: 0 | MC26: 0 | MD26: 0 | ME26: 0 | MF26: 0 | MG26: 0 | MH26: 0 | MI26: 0 | MJ26: 0 | MK26: 0 | ML26: 0 | MM26: 0 | MN26: 0 | MO26: 0 | MP26: 0 | MQ26: 0 | MR26: 0 | MS26: 0 | MT26: 0 | MU26: 0 | MV26: 0 | MW26: 0 | MX26: 0 | MY26: 0 | MZ26: 0 | NA26: 0 | NB26: 0 | NC26: 0 | ND26: 0 | NE26: 0 | NF26: 0 | NG26: 0 | NH26: 0 | NI26: 0 | NJ26: 0 | NK26: 0 | NL26: 0 | NM26: 0 | NN26: 0 | NO26: 0 | NP26: 0 | NQ26: 0 | NR26: 0 | NS26: 0 | NT26: 0 | NU26: 0 | NV26: 0 | NW26: 0 | NX26: 0 | NY26: 0 | NZ26: 0 | OA26: 0 | OB26: 0 | OC26: 0 | OD26: 0 | OE26: 0 | OF26: =OF14*OF19/8760*OF24 -> 0 | OG26: 0 | OH26: 0 | OI26: 0 | OJ26: 0 | OK26: 0 | OL26: 0 | OM26: 0 | ON26: 0 | OO26: 0 | OP26: 0 | OQ26: 0 | OR26: 0 | OS26: 0 | OT26: 0 | OU26: 0 | OV26: 0 | OW26: 0 | OX26: 0 | OY26: 0 | OZ26: 0 | PA26: 0 | PB26: 0 | PC26: 0 | PD26: 0 | PE26: 0 | PF26: 0 | PG26: 0 | PH26: 0 | PI26: 0 | PJ26: 0 | PK26: 0 | PL26: 0 | PM26: 0 | PN26: 0 | PO26: 0 | PP26: 0 | PQ26: 0 | PR26: 0 | PS26: 0 | PT26: 0 | PU26: 0 | PV26: 0 | PW26: 0 | PX26: 0 | PY26: 0 | PZ26: 0 | QA26: 0 | QB26: 0 | QC26: 0 | QD26: 0 | QE26: 0 | QF26: 0 | QG26: 0 | QH26: 0 | QI26: 0 | QJ26: 0 | QK26: 0 | QL26: 0 | QM26: 0 | QN26: 0 | QO26: 0 | QP26: 0 | QQ26: 0 | QR26: =QR14*QR19/8760*QR24 -> 0 | QS26: 0 | QT26: 0 | QU26: 0 | QV26: 0 | QW26: 0 | QX26: 0 | QY26: 0 | QZ26: 0 | RA26: 0 | RB26: 0 | RC26: 0 | RD26: 0 | RE26: 0 | RF26: 0 | RG26: 0 | RH26: 0 | RI26: 0 | RJ26: 0 | RK26: 0 | RL26: 0 | RM26: 0 | RN26: 0 | RO26: 0 | RP26: 0 | RQ26: 0 | RR26: 0 | RS26: 0 | RT26: 0 | RU26: 0 | RV26: 0 | RW26: 0 | RX26: 0 | RY26: 0 | RZ26: 0 | SA26: 0 | SB26: 0 | SC26: 0 | SD26: 0 | SE26: 0 | SF26: 0 | SG26: 0 | SH26: 0 | SI26: 0 | SJ26: 0 | SK26: 0 | SL26: 0 | SM26: 0 | SN26: 0 | SO26: 0 | SP26: 0 | SQ26: 0 | SR26: 0 | SS26: 0 | ST26: 0 | SU26: 0 | SV26: 0 | SW26: 0 | SX26: 0 | SY26: 0 | SZ26: 0 | TA26: 0 | TB26: 0 | TC26: 0 | TD26: =TD14*TD19/8760*TD24 -> 0 | TE26: 0 | TF26: 0 | TG26: 0 | TH26: 0 | TI26: 0 | TJ26: 0 | TK26: 0 | TL26: 0 | TM26: 0 | TN26: 0 | TO26: 0 | TP26: 0 | TQ26: 0 | TR26: 0 | TS26: 0 | TT26: 0 | TU26: 0 | TV26: 0 | TW26: 0 | TX26: 0 | TY26: 0 | TZ26: 0 | UA26: 0 | UB26: 0 | UC26: 0 | UD26: 0 | UE26: 0 | UF26: 0 | UG26: 0 | UH26: 0 | UI26: 0 | UJ26: 0 | UK26: 0 | UL26: 0 | UM26: 0 | UN26: 0 | UO26: 0 | UP26: 0 | UQ26: 0 | UR26: 0 | US26: 0 | UT26: 0 | UU26: 0 | UV26: 0 | UW26: 0 | UX26: 0 | UY26: 0 | UZ26: 0 | VA26: 0 | VB26: 0 | VC26: 0 | VD26: 0 | VE26: 0 | VF26: 0 | VG26: 0 | VH26: 0 | VI26: 0 | VJ26: 0 | VK26: 0 | VL26: 0 | VM26: 0 | VN26: 0 | VO26: 0 | VP26: =VP14*VP19/8760*VP24 -> 0 | VQ26: 0 | VR26: 0 | VS26: 0 | VT26: 0 | VU26: 0 | VV26: 0 | VW26: 0 | VX26: 0 | VY26: 0 | VZ26: 0 | WA26: 0 | WB26: 0 | WC26: 0 | WD26: 0 | WE26: 0 | WF26: 0 | WG26: 0 | WH26: 0 | WI26: 0 | WJ26: 0 | WK26: 0 | WL26: 0 | WM26: 0 | WN26: 0 | WO26: 0 | WP26: 0 | WQ26: 0 | WR26: 0 | WS26: 0 | WT26: 0 | WU26: 0 | WV26: 0 | WW26: 0 | WX26: 0 | WY26: 0 | WZ26: 0 | XA26: 0 | XB26: 0 | XC26: 0 | XD26: 0 | XE26: 0 | XF26: 0 | XG26: 0 | XH26: 0 | XI26: 0 | XJ26: 0 | XK26: 0 | XL26: 0 | XM26: 0 | XN26: 0 | XO26: 0 | XP26: 0 | XQ26: 0 | XR26: 0 | XS26: 0 | XT26: 0 | XU26: 0 | XV26: 0 | XW26: 0 | XX26: 0 | XY26: 0 | XZ26: 0 | YA26: 0 | YB26: =YB14*YB19/8760*YB24 -> 0 | YC26: 0 | YD26: 0 | YE26: 0 | YF26: 0 | YG26: 0 | YH26: 0 | YI26: 0 | YJ26: 0 | YK26: 0 | YL26: 0 | YM26: 0 | YN26: 0 | YO26: 0 | YP26: 0 | YQ26: 0 | YR26: 0 | YS26: 0 | YT26: 0 | YU26: 0 | YV26: 0 | YW26: 0 | YX26: 0 | YY26: 0 | YZ26: 0 | ZA26: 0 | ZB26: 0 | ZC26: 0 | ZD26: 0 | ZE26: 0 | ZF26: 0 | ZG26: 0 | ZH26: 0 | ZI26: 0 | ZJ26: 0 | ZK26: 0 | ZL26: 0 | ZM26: 0 | ZN26: 0 | ZO26: 0 | ZP26: 0 | ZQ26: 0 | ZR26: 0 | ZS26: 0 | ZT26: 0 | ZU26: 0 | ZV26: 0 | ZW26: 0 | ZX26: 0 | ZY26: 0 | ZZ26: 0 | AAA26: 0 | AAB26: 0 | AAC26: 0 | AAD26: 0 | AAE26: 0 | AAF26: 0 | AAG26: 0 | AAH26: 0 | AAI26: 0 | AAJ26: 0 | AAK26: 0 | AAL26: 0 | AAM26: 0 | AAN26: =AAN14*AAN19/8760*AAN24 -> 0 | AAO26: 0 | AAP26: 0 | AAQ26: 0 | AAR26: 0 | AAS26: 0 | AAT26: 0 | AAU26: 0 | AAV26: 0 | AAW26: 0 | AAX26: 0 | AAY26: 0 | AAZ26: 0 | ABA26: 0 | ABB26: 0 | ABC26: 0 | ABD26: 0 | ABE26: 0 | ABF26: 0 | ABG26: 0 | ABH26: 0 | ABI26: 0 | ABJ26: 0 | ABK26: 0 | ABL26: 0 | ABM26: 0 | ABN26: 0 | ABO26: 0 | ABP26: 0 | ABQ26: 0 | ABR26: 0 | ABS26: 0 | ABT26: 0 | ABU26: 0 | ABV26: 0 | ABW26: 0 | ABX26: 0 | ABY26: 0 | ABZ26: 0
D27: Wind Generation Before Degradation | E27: kWh | K27: =K15*K20*K24 -> 0 | L27: =L15*L20*L24 -> 0 | M27: 0 | N27: 0 | O27: 0 | P27: 0 | Q27: 0 | R27: 0 | S27: 0 | T27: 0 | U27: 0 | V27: 0 | W27: 0 | X27: 0 | Y27: 0 | Z27: 0 | AA27: 0 | AB27: 0 | AC27: 0 | AD27: 0 | AE27: 0 | AF27: 0 | AG27: 0 | AH27: 0 | AI27: 0 | AJ27: 0 | AK27: 0 | AL27: 0 | AM27: 0 | AN27: 201600 | AO27: 208320 | AP27: 208320 | AQ27: 201600 | AR27: 208320 | AS27: 201600 | AT27: 208320 | AU27: 208320 | AV27: 194880 | AW27: 208320 | AX27: 201600 | AY27: 208320 | AZ27: 201600 | BA27: 208320 | BB27: 208320 | BC27: 201600 | BD27: 208320 | BE27: 201600 | BF27: 208320 | BG27: 208320 | BH27: 188160 | BI27: 208320 | BJ27: 201600 | BK27: 208320 | BL27: 201600 | BM27: 208320 | BN27: 208320 | BO27: 201600 | BP27: 208320 | BQ27: 201600 | BR27: 208320 | BS27: 208320 | BT27: 188160 | BU27: 208320 | BV27: 201600 | BW27: 208320 | BX27: =BX15*BX20*BX24 -> 201600 | BY27: 208320 | BZ27: 208320 | CA27: 201600 | CB27: 208320 | CC27: 201600 | CD27: 208320 | CE27: 208320 | CF27: 188160 | CG27: 208320 | CH27: 201600 | CI27: 208320 | CJ27: 201600 | CK27: 208320 | CL27: 208320 | CM27: 201600 | CN27: 208320 | CO27: 201600 | CP27: 208320 | CQ27: 208320 | CR27: 194880 | CS27: 208320 | CT27: 201600 | CU27: 208320 | CV27: 201600 | CW27: 208320 | CX27: 208320 | CY27: 201600 | CZ27: 208320 | DA27: 201600 | DB27: 208320 | DC27: 208320 | DD27: 188160 | DE27: 208320 | DF27: 201600 | DG27: 208320 | DH27: 201600 | DI27: 208320 | DJ27: 208320 | DK27: 201600 | DL27: 208320 | DM27: 201600 | DN27: 208320 | DO27: 208320 | DP27: 188160 | DQ27: 208320 | DR27: 201600 | DS27: 208320 | DT27: 201600 | DU27: 208320 | DV27: 208320 | DW27: 201600 | DX27: 208320 | DY27: 201600 | DZ27: 208320 | EA27: 208320 | EB27: 188160 | EC27: 208320 | ED27: 201600 | EE27: 208320 | EF27: 201600 | EG27: 208320 | EH27: 208320 | EI27: 201600 | EJ27: =EJ15*EJ20*EJ24 -> 208320 | EK27: 201600 | EL27: 208320 | EM27: 208320 | EN27: 194880 | EO27: 208320 | EP27: 201600 | EQ27: 208320 | ER27: 201600 | ES27: 208320 | ET27: 208320 | EU27: 201600 | EV27: 208320 | EW27: 201600 | EX27: 208320 | EY27: 208320 | EZ27: 188160 | FA27: 208320 | FB27: 201600 | FC27: 208320 | FD27: 201600 | FE27: 208320 | FF27: 208320 | FG27: 201600 | FH27: 208320 | FI27: 201600 | FJ27: 208320 | FK27: 208320 | FL27: 188160 | FM27: 208320 | FN27: 201600 | FO27: 208320 | FP27: 201600 | FQ27: 208320 | FR27: 208320 | FS27: 201600 | FT27: 208320 | FU27: 201600 | FV27: 208320 | FW27: 208320 | FX27: 188160 | FY27: 208320 | FZ27: 201600 | GA27: 208320 | GB27: 201600 | GC27: 208320 | GD27: 208320 | GE27: 201600 | GF27: 208320 | GG27: 201600 | GH27: 208320 | GI27: 208320 | GJ27: 194880 | GK27: 208320 | GL27: 201600 | GM27: 208320 | GN27: 201600 | GO27: 208320 | GP27: 208320 | GQ27: 201600 | GR27: 208320 | GS27: 201600 | GT27: 208320 | GU27: 208320 | GV27: =GV15*GV20*GV24 -> 188160 | GW27: 208320 | GX27: 201600 | GY27: 208320 | GZ27: 201600 | HA27: 208320 | HB27: 208320 | HC27: 201600 | HD27: 208320 | HE27: 201600 | HF27: 208320 | HG27: 208320 | HH27: 188160 | HI27: 208320 | HJ27: 201600 | HK27: 208320 | HL27: 201600 | HM27: 208320 | HN27: 208320 | HO27: 201600 | HP27: 208320 | HQ27: 201600 | HR27: 208320 | HS27: 208320 | HT27: 188160 | HU27: 208320 | HV27: 201600 | HW27: 208320 | HX27: 201600 | HY27: 208320 | HZ27: 208320 | IA27: 201600 | IB27: 208320 | IC27: 201600 | ID27: 208320 | IE27: 208320 | IF27: 194880 | IG27: 208320 | IH27: 201600 | II27: 208320 | IJ27: 201600 | IK27: 208320 | IL27: 208320 | IM27: 201600 | IN27: 208320 | IO27: 201600 | IP27: 208320 | IQ27: 208320 | IR27: 188160 | IS27: 208320 | IT27: 201600 | IU27: 208320 | IV27: 201600 | IW27: 208320 | IX27: 208320 | IY27: 201600 | IZ27: 208320 | JA27: 201600 | JB27: 208320 | JC27: 208320 | JD27: 188160 | JE27: 208320 | JF27: 201600 | JG27: 208320 | JH27: =JH15*JH20*JH24 -> 201600 | JI27: 208320 | JJ27: 208320 | JK27: 201600 | JL27: 208320 | JM27: 201600 | JN27: 208320 | JO27: 208320 | JP27: 188160 | JQ27: 208320 | JR27: 201600 | JS27: 208320 | JT27: 201600 | JU27: 208320 | JV27: 208320 | JW27: 201600 | JX27: 208320 | JY27: 201600 | JZ27: 208320 | KA27: 208320 | KB27: 194880 | KC27: 208320 | KD27: 201600 | KE27: 208320 | KF27: 201600 | KG27: 208320 | KH27: 208320 | KI27: 201600 | KJ27: 208320 | KK27: 201600 | KL27: 208320 | KM27: 208320 | KN27: 188160 | KO27: 208320 | KP27: 201600 | KQ27: 208320 | KR27: 201600 | KS27: 208320 | KT27: 208320 | KU27: 201600 | KV27: 208320 | KW27: 201600 | KX27: 208320 | KY27: 208320 | KZ27: 188160 | LA27: 208320 | LB27: 201600 | LC27: 208320 | LD27: 201600 | LE27: 208320 | LF27: 208320 | LG27: 201600 | LH27: 208320 | LI27: 201600 | LJ27: 208320 | LK27: 208320 | LL27: 188160 | LM27: 208320 | LN27: 201600 | LO27: 208320 | LP27: 201600 | LQ27: 208320 | LR27: 208320 | LS27: 201600 | LT27: =LT15*LT20*LT24 -> 208320 | LU27: 201600 | LV27: 208320 | LW27: 208320 | LX27: 194880 | LY27: 208320 | LZ27: 201600 | MA27: 208320 | MB27: 201600 | MC27: 208320 | MD27: 208320 | ME27: 201600 | MF27: 208320 | MG27: 201600 | MH27: 208320 | MI27: 208320 | MJ27: 188160 | MK27: 208320 | ML27: 201600 | MM27: 208320 | MN27: 201600 | MO27: 208320 | MP27: 208320 | MQ27: 201600 | MR27: 208320 | MS27: 201600 | MT27: 208320 | MU27: 208320 | MV27: 188160 | MW27: 208320 | MX27: 201600 | MY27: 208320 | MZ27: 201600 | NA27: 208320 | NB27: 208320 | NC27: 201600 | ND27: 208320 | NE27: 201600 | NF27: 208320 | NG27: 208320 | NH27: 188160 | NI27: 208320 | NJ27: 201600 | NK27: 208320 | NL27: 201600 | NM27: 208320 | NN27: 208320 | NO27: 201600 | NP27: 208320 | NQ27: 201600 | NR27: 208320 | NS27: 208320 | NT27: 194880 | NU27: 208320 | NV27: 201600 | NW27: 208320 | NX27: 201600 | NY27: 208320 | NZ27: 208320 | OA27: 201600 | OB27: 208320 | OC27: 201600 | OD27: 208320 | OE27: 208320 | OF27: =OF15*OF20*OF24 -> 188160 | OG27: 208320 | OH27: 201600 | OI27: 208320 | OJ27: 0 | OK27: 0 | OL27: 0 | OM27: 0 | ON27: 0 | OO27: 0 | OP27: 0 | OQ27: 0 | OR27: 0 | OS27: 0 | OT27: 0 | OU27: 0 | OV27: 0 | OW27: 0 | OX27: 0 | OY27: 0 | OZ27: 0 | PA27: 0 | PB27: 0 | PC27: 0 | PD27: 0 | PE27: 0 | PF27: 0 | PG27: 0 | PH27: 0 | PI27: 0 | PJ27: 0 | PK27: 0 | PL27: 0 | PM27: 0 | PN27: 0 | PO27: 0 | PP27: 0 | PQ27: 0 | PR27: 0 | PS27: 0 | PT27: 0 | PU27: 0 | PV27: 0 | PW27: 0 | PX27: 0 | PY27: 0 | PZ27: 0 | QA27: 0 | QB27: 0 | QC27: 0 | QD27: 0 | QE27: 0 | QF27: 0 | QG27: 0 | QH27: 0 | QI27: 0 | QJ27: 0 | QK27: 0 | QL27: 0 | QM27: 0 | QN27: 0 | QO27: 0 | QP27: 0 | QQ27: 0 | QR27: =QR15*QR20*QR24 -> 0 | QS27: 0 | QT27: 0 | QU27: 0 | QV27: 0 | QW27: 0 | QX27: 0 | QY27: 0 | QZ27: 0 | RA27: 0 | RB27: 0 | RC27: 0 | RD27: 0 | RE27: 0 | RF27: 0 | RG27: 0 | RH27: 0 | RI27: 0 | RJ27: 0 | RK27: 0 | RL27: 0 | RM27: 0 | RN27: 0 | RO27: 0 | RP27: 0 | RQ27: 0 | RR27: 0 | RS27: 0 | RT27: 0 | RU27: 0 | RV27: 0 | RW27: 0 | RX27: 0 | RY27: 0 | RZ27: 0 | SA27: 0 | SB27: 0 | SC27: 0 | SD27: 0 | SE27: 0 | SF27: 0 | SG27: 0 | SH27: 0 | SI27: 0 | SJ27: 0 | SK27: 0 | SL27: 0 | SM27: 0 | SN27: 0 | SO27: 0 | SP27: 0 | SQ27: 0 | SR27: 0 | SS27: 0 | ST27: 0 | SU27: 0 | SV27: 0 | SW27: 0 | SX27: 0 | SY27: 0 | SZ27: 0 | TA27: 0 | TB27: 0 | TC27: 0 | TD27: =TD15*TD20*TD24 -> 0 | TE27: 0 | TF27: 0 | TG27: 0 | TH27: 0 | TI27: 0 | TJ27: 0 | TK27: 0 | TL27: 0 | TM27: 0 | TN27: 0 | TO27: 0 | TP27: 0 | TQ27: 0 | TR27: 0 | TS27: 0 | TT27: 0 | TU27: 0 | TV27: 0 | TW27: 0 | TX27: 0 | TY27: 0 | TZ27: 0 | UA27: 0 | UB27: 0 | UC27: 0 | UD27: 0 | UE27: 0 | UF27: 0 | UG27: 0 | UH27: 0 | UI27: 0 | UJ27: 0 | UK27: 0 | UL27: 0 | UM27: 0 | UN27: 0 | UO27: 0 | UP27: 0 | UQ27: 0 | UR27: 0 | US27: 0 | UT27: 0 | UU27: 0 | UV27: 0 | UW27: 0 | UX27: 0 | UY27: 0 | UZ27: 0 | VA27: 0 | VB27: 0 | VC27: 0 | VD27: 0 | VE27: 0 | VF27: 0 | VG27: 0 | VH27: 0 | VI27: 0 | VJ27: 0 | VK27: 0 | VL27: 0 | VM27: 0 | VN27: 0 | VO27: 0 | VP27: =VP15*VP20*VP24 -> 0 | VQ27: 0 | VR27: 0 | VS27: 0 | VT27: 0 | VU27: 0 | VV27: 0 | VW27: 0 | VX27: 0 | VY27: 0 | VZ27: 0 | WA27: 0 | WB27: 0 | WC27: 0 | WD27: 0 | WE27: 0 | WF27: 0 | WG27: 0 | WH27: 0 | WI27: 0 | WJ27: 0 | WK27: 0 | WL27: 0 | WM27: 0 | WN27: 0 | WO27: 0 | WP27: 0 | WQ27: 0 | WR27: 0 | WS27: 0 | WT27: 0 | WU27: 0 | WV27: 0 | WW27: 0 | WX27: 0 | WY27: 0 | WZ27: 0 | XA27: 0 | XB27: 0 | XC27: 0 | XD27: 0 | XE27: 0 | XF27: 0 | XG27: 0 | XH27: 0 | XI27: 0 | XJ27: 0 | XK27: 0 | XL27: 0 | XM27: 0 | XN27: 0 | XO27: 0 | XP27: 0 | XQ27: 0 | XR27: 0 | XS27: 0 | XT27: 0 | XU27: 0 | XV27: 0 | XW27: 0 | XX27: 0 | XY27: 0 | XZ27: 0 | YA27: 0 | YB27: =YB15*YB20*YB24 -> 0 | YC27: 0 | YD27: 0 | YE27: 0 | YF27: 0 | YG27: 0 | YH27: 0 | YI27: 0 | YJ27: 0 | YK27: 0 | YL27: 0 | YM27: 0 | YN27: 0 | YO27: 0 | YP27: 0 | YQ27: 0 | YR27: 0 | YS27: 0 | YT27: 0 | YU27: 0 | YV27: 0 | YW27: 0 | YX27: 0 | YY27: 0 | YZ27: 0 | ZA27: 0 | ZB27: 0 | ZC27: 0 | ZD27: 0 | ZE27: 0 | ZF27: 0 | ZG27: 0 | ZH27: 0 | ZI27: 0 | ZJ27: 0 | ZK27: 0 | ZL27: 0 | ZM27: 0 | ZN27: 0 | ZO27: 0 | ZP27: 0 | ZQ27: 0 | ZR27: 0 | ZS27: 0 | ZT27: 0 | ZU27: 0 | ZV27: 0 | ZW27: 0 | ZX27: 0 | ZY27: 0 | ZZ27: 0 | AAA27: 0 | AAB27: 0 | AAC27: 0 | AAD27: 0 | AAE27: 0 | AAF27: 0 | AAG27: 0 | AAH27: 0 | AAI27: 0 | AAJ27: 0 | AAK27: 0 | AAL27: 0 | AAM27: 0 | AAN27: =AAN15*AAN20*AAN24 -> 0 | AAO27: 0 | AAP27: 0 | AAQ27: 0 | AAR27: 0 | AAS27: 0 | AAT27: 0 | AAU27: 0 | AAV27: 0 | AAW27: 0 | AAX27: 0 | AAY27: 0 | AAZ27: 0 | ABA27: 0 | ABB27: 0 | ABC27: 0 | ABD27: 0 | ABE27: 0 | ABF27: 0 | ABG27: 0 | ABH27: 0 | ABI27: 0 | ABJ27: 0 | ABK27: 0 | ABL27: 0 | ABM27: 0 | ABN27: 0 | ABO27: 0 | ABP27: 0 | ABQ27: 0 | ABR27: 0 | ABS27: 0 | ABT27: 0 | ABU27: 0 | ABV27: 0 | ABW27: 0 | ABX27: 0 | ABY27: 0 | ABZ27: 0
D28: Base for Battery Capacity Payment | E28: kWh | K28: =K16*K21*K24 -> 0 | L28: =L16*L21*L24 -> 0 | M28: 0 | N28: 0 | O28: 0 | P28: 0 | Q28: 0 | R28: 0 | S28: 0 | T28: 0 | U28: 0 | V28: 0 | W28: 0 | X28: 0 | Y28: 0 | Z28: 0 | AA28: 0 | AB28: 0 | AC28: 0 | AD28: 0 | AE28: 0 | AF28: 0 | AG28: 0 | AH28: 0 | AI28: 0 | AJ28: 0 | AK28: 0 | AL28: 0 | AM28: 0 | AN28: 0 | AO28: 0 | AP28: 0 | AQ28: 0 | AR28: 0 | AS28: 0 | AT28: 0 | AU28: 0 | AV28: 0 | AW28: 0 | AX28: 0 | AY28: 0 | AZ28: 0 | BA28: 0 | BB28: 0 | BC28: 0 | BD28: 0 | BE28: 0 | BF28: 0 | BG28: 0 | BH28: 0 | BI28: 0 | BJ28: 0 | BK28: 0 | BL28: 0 | BM28: 0 | BN28: 0 | BO28: 0 | BP28: 0 | BQ28: 0 | BR28: 0 | BS28: 0 | BT28: 0 | BU28: 0 | BV28: 0 | BW28: 0 | BX28: =BX16*BX21*BX24 -> 0 | BY28: 0 | BZ28: 0 | CA28: 0 | CB28: 0 | CC28: 0 | CD28: 0 | CE28: 0 | CF28: 0 | CG28: 0 | CH28: 0 | CI28: 0 | CJ28: 0 | CK28: 0 | CL28: 0 | CM28: 0 | CN28: 0 | CO28: 0 | CP28: 0 | CQ28: 0 | CR28: 0 | CS28: 0 | CT28: 0 | CU28: 0 | CV28: 0 | CW28: 0 | CX28: 0 | CY28: 0 | CZ28: 0 | DA28: 0 | DB28: 0 | DC28: 0 | DD28: 0 | DE28: 0 | DF28: 0 | DG28: 0 | DH28: 0 | DI28: 0 | DJ28: 0 | DK28: 0 | DL28: 0 | DM28: 0 | DN28: 0 | DO28: 0 | DP28: 0 | DQ28: 0 | DR28: 0 | DS28: 0 | DT28: 0 | DU28: 0 | DV28: 0 | DW28: 0 | DX28: 0 | DY28: 0 | DZ28: 0 | EA28: 0 | EB28: 0 | EC28: 0 | ED28: 0 | EE28: 0 | EF28: 0 | EG28: 0 | EH28: 0 | EI28: 0 | EJ28: =EJ16*EJ21*EJ24 -> 0 | EK28: 0 | EL28: 0 | EM28: 0 | EN28: 0 | EO28: 0 | EP28: 0 | EQ28: 0 | ER28: 0 | ES28: 0 | ET28: 0 | EU28: 0 | EV28: 0 | EW28: 0 | EX28: 0 | EY28: 0 | EZ28: 0 | FA28: 0 | FB28: 0 | FC28: 0 | FD28: 0 | FE28: 0 | FF28: 0 | FG28: 0 | FH28: 0 | FI28: 0 | FJ28: 0 | FK28: 0 | FL28: 0 | FM28: 0 | FN28: 0 | FO28: 0 | FP28: 0 | FQ28: 0 | FR28: 0 | FS28: 0 | FT28: 0 | FU28: 0 | FV28: 0 | FW28: 0 | FX28: 0 | FY28: 0 | FZ28: 0 | GA28: 0 | GB28: 0 | GC28: 0 | GD28: 0 | GE28: 0 | GF28: 0 | GG28: 0 | GH28: 0 | GI28: 0 | GJ28: 0 | GK28: 0 | GL28: 0 | GM28: 0 | GN28: 0 | GO28: 0 | GP28: 0 | GQ28: 0 | GR28: 0 | GS28: 0 | GT28: 0 | GU28: 0 | GV28: =GV16*GV21*GV24 -> 0 | GW28: 0 | GX28: 0 | GY28: 0 | GZ28: 0 | HA28: 0 | HB28: 0 | HC28: 0 | HD28: 0 | HE28: 0 | HF28: 0 | HG28: 0 | HH28: 0 | HI28: 0 | HJ28: 0 | HK28: 0 | HL28: 0 | HM28: 0 | HN28: 0 | HO28: 0 | HP28: 0 | HQ28: 0 | HR28: 0 | HS28: 0 | HT28: 0 | HU28: 0 | HV28: 0 | HW28: 0 | HX28: 0 | HY28: 0 | HZ28: 0 | IA28: 0 | IB28: 0 | IC28: 0 | ID28: 0 | IE28: 0 | IF28: 0 | IG28: 0 | IH28: 0 | II28: 0 | IJ28: 0 | IK28: 0 | IL28: 0 | IM28: 0 | IN28: 0 | IO28: 0 | IP28: 0 | IQ28: 0 | IR28: 0 | IS28: 0 | IT28: 0 | IU28: 0 | IV28: 0 | IW28: 0 | IX28: 0 | IY28: 0 | IZ28: 0 | JA28: 0 | JB28: 0 | JC28: 0 | JD28: 0 | JE28: 0 | JF28: 0 | JG28: 0 | JH28: =JH16*JH21*JH24 -> 0 | JI28: 0 | JJ28: 0 | JK28: 0 | JL28: 0 | JM28: 0 | JN28: 0 | JO28: 0 | JP28: 0 | JQ28: 0 | JR28: 0 | JS28: 0 | JT28: 0 | JU28: 0 | JV28: 0 | JW28: 0 | JX28: 0 | JY28: 0 | JZ28: 0 | KA28: 0 | KB28: 0 | KC28: 0 | KD28: 0 | KE28: 0 | KF28: 0 | KG28: 0 | KH28: 0 | KI28: 0 | KJ28: 0 | KK28: 0 | KL28: 0 | KM28: 0 | KN28: 0 | KO28: 0 | KP28: 0 | KQ28: 0 | KR28: 0 | KS28: 0 | KT28: 0 | KU28: 0 | KV28: 0 | KW28: 0 | KX28: 0 | KY28: 0 | KZ28: 0 | LA28: 0 | LB28: 0 | LC28: 0 | LD28: 0 | LE28: 0 | LF28: 0 | LG28: 0 | LH28: 0 | LI28: 0 | LJ28: 0 | LK28: 0 | LL28: 0 | LM28: 0 | LN28: 0 | LO28: 0 | LP28: 0 | LQ28: 0 | LR28: 0 | LS28: 0 | LT28: =LT16*LT21*LT24 -> 0 | LU28: 0 | LV28: 0 | LW28: 0 | LX28: 0 | LY28: 0 | LZ28: 0 | MA28: 0 | MB28: 0 | MC28: 0 | MD28: 0 | ME28: 0 | MF28: 0 | MG28: 0 | MH28: 0 | MI28: 0 | MJ28: 0 | MK28: 0 | ML28: 0 | MM28: 0 | MN28: 0 | MO28: 0 | MP28: 0 | MQ28: 0 | MR28: 0 | MS28: 0 | MT28: 0 | MU28: 0 | MV28: 0 | MW28: 0 | MX28: 0 | MY28: 0 | MZ28: 0 | NA28: 0 | NB28: 0 | NC28: 0 | ND28: 0 | NE28: 0 | NF28: 0 | NG28: 0 | NH28: 0 | NI28: 0 | NJ28: 0 | NK28: 0 | NL28: 0 | NM28: 0 | NN28: 0 | NO28: 0 | NP28: 0 | NQ28: 0 | NR28: 0 | NS28: 0 | NT28: 0 | NU28: 0 | NV28: 0 | NW28: 0 | NX28: 0 | NY28: 0 | NZ28: 0 | OA28: 0 | OB28: 0 | OC28: 0 | OD28: 0 | OE28: 0 | OF28: =OF16*OF21*OF24 -> 0 | OG28: 0 | OH28: 0 | OI28: 0 | OJ28: 0 | OK28: 0 | OL28: 0 | OM28: 0 | ON28: 0 | OO28: 0 | OP28: 0 | OQ28: 0 | OR28: 0 | OS28: 0 | OT28: 0 | OU28: 0 | OV28: 0 | OW28: 0 | OX28: 0 | OY28: 0 | OZ28: 0 | PA28: 0 | PB28: 0 | PC28: 0 | PD28: 0 | PE28: 0 | PF28: 0 | PG28: 0 | PH28: 0 | PI28: 0 | PJ28: 0 | PK28: 0 | PL28: 0 | PM28: 0 | PN28: 0 | PO28: 0 | PP28: 0 | PQ28: 0 | PR28: 0 | PS28: 0 | PT28: 0 | PU28: 0 | PV28: 0 | PW28: 0 | PX28: 0 | PY28: 0 | PZ28: 0 | QA28: 0 | QB28: 0 | QC28: 0 | QD28: 0 | QE28: 0 | QF28: 0 | QG28: 0 | QH28: 0 | QI28: 0 | QJ28: 0 | QK28: 0 | QL28: 0 | QM28: 0 | QN28: 0 | QO28: 0 | QP28: 0 | QQ28: 0 | QR28: =QR16*QR21*QR24 -> 0 | QS28: 0 | QT28: 0 | QU28: 0 | QV28: 0 | QW28: 0 | QX28: 0 | QY28: 0 | QZ28: 0 | RA28: 0 | RB28: 0 | RC28: 0 | RD28: 0 | RE28: 0 | RF28: 0 | RG28: 0 | RH28: 0 | RI28: 0 | RJ28: 0 | RK28: 0 | RL28: 0 | RM28: 0 | RN28: 0 | RO28: 0 | RP28: 0 | RQ28: 0 | RR28: 0 | RS28: 0 | RT28: 0 | RU28: 0 | RV28: 0 | RW28: 0 | RX28: 0 | RY28: 0 | RZ28: 0 | SA28: 0 | SB28: 0 | SC28: 0 | SD28: 0 | SE28: 0 | SF28: 0 | SG28: 0 | SH28: 0 | SI28: 0 | SJ28: 0 | SK28: 0 | SL28: 0 | SM28: 0 | SN28: 0 | SO28: 0 | SP28: 0 | SQ28: 0 | SR28: 0 | SS28: 0 | ST28: 0 | SU28: 0 | SV28: 0 | SW28: 0 | SX28: 0 | SY28: 0 | SZ28: 0 | TA28: 0 | TB28: 0 | TC28: 0 | TD28: =TD16*TD21*TD24 -> 0 | TE28: 0 | TF28: 0 | TG28: 0 | TH28: 0 | TI28: 0 | TJ28: 0 | TK28: 0 | TL28: 0 | TM28: 0 | TN28: 0 | TO28: 0 | TP28: 0 | TQ28: 0 | TR28: 0 | TS28: 0 | TT28: 0 | TU28: 0 | TV28: 0 | TW28: 0 | TX28: 0 | TY28: 0 | TZ28: 0 | UA28: 0 | UB28: 0 | UC28: 0 | UD28: 0 | UE28: 0 | UF28: 0 | UG28: 0 | UH28: 0 | UI28: 0 | UJ28: 0 | UK28: 0 | UL28: 0 | UM28: 0 | UN28: 0 | UO28: 0 | UP28: 0 | UQ28: 0 | UR28: 0 | US28: 0 | UT28: 0 | UU28: 0 | UV28: 0 | UW28: 0 | UX28: 0 | UY28: 0 | UZ28: 0 | VA28: 0 | VB28: 0 | VC28: 0 | VD28: 0 | VE28: 0 | VF28: 0 | VG28: 0 | VH28: 0 | VI28: 0 | VJ28: 0 | VK28: 0 | VL28: 0 | VM28: 0 | VN28: 0 | VO28: 0 | VP28: =VP16*VP21*VP24 -> 0 | VQ28: 0 | VR28: 0 | VS28: 0 | VT28: 0 | VU28: 0 | VV28: 0 | VW28: 0 | VX28: 0 | VY28: 0 | VZ28: 0 | WA28: 0 | WB28: 0 | WC28: 0 | WD28: 0 | WE28: 0 | WF28: 0 | WG28: 0 | WH28: 0 | WI28: 0 | WJ28: 0 | WK28: 0 | WL28: 0 | WM28: 0 | WN28: 0 | WO28: 0 | WP28: 0 | WQ28: 0 | WR28: 0 | WS28: 0 | WT28: 0 | WU28: 0 | WV28: 0 | WW28: 0 | WX28: 0 | WY28: 0 | WZ28: 0 | XA28: 0 | XB28: 0 | XC28: 0 | XD28: 0 | XE28: 0 | XF28: 0 | XG28: 0 | XH28: 0 | XI28: 0 | XJ28: 0 | XK28: 0 | XL28: 0 | XM28: 0 | XN28: 0 | XO28: 0 | XP28: 0 | XQ28: 0 | XR28: 0 | XS28: 0 | XT28: 0 | XU28: 0 | XV28: 0 | XW28: 0 | XX28: 0 | XY28: 0 | XZ28: 0 | YA28: 0 | YB28: =YB16*YB21*YB24 -> 0 | YC28: 0 | YD28: 0 | YE28: 0 | YF28: 0 | YG28: 0 | YH28: 0 | YI28: 0 | YJ28: 0 | YK28: 0 | YL28: 0 | YM28: 0 | YN28: 0 | YO28: 0 | YP28: 0 | YQ28: 0 | YR28: 0 | YS28: 0 | YT28: 0 | YU28: 0 | YV28: 0 | YW28: 0 | YX28: 0 | YY28: 0 | YZ28: 0 | ZA28: 0 | ZB28: 0 | ZC28: 0 | ZD28: 0 | ZE28: 0 | ZF28: 0 | ZG28: 0 | ZH28: 0 | ZI28: 0 | ZJ28: 0 | ZK28: 0 | ZL28: 0 | ZM28: 0 | ZN28: 0 | ZO28: 0 | ZP28: 0 | ZQ28: 0 | ZR28: 0 | ZS28: 0 | ZT28: 0 | ZU28: 0 | ZV28: 0 | ZW28: 0 | ZX28: 0 | ZY28: 0 | ZZ28: 0 | AAA28: 0 | AAB28: 0 | AAC28: 0 | AAD28: 0 | AAE28: 0 | AAF28: 0 | AAG28: 0 | AAH28: 0 | AAI28: 0 | AAJ28: 0 | AAK28: 0 | AAL28: 0 | AAM28: 0 | AAN28: =AAN16*AAN21*AAN24 -> 0 | AAO28: 0 | AAP28: 0 | AAQ28: 0 | AAR28: 0 | AAS28: 0 | AAT28: 0 | AAU28: 0 | AAV28: 0 | AAW28: 0 | AAX28: 0 | AAY28: 0 | AAZ28: 0 | ABA28: 0 | ABB28: 0 | ABC28: 0 | ABD28: 0 | ABE28: 0 | ABF28: 0 | ABG28: 0 | ABH28: 0 | ABI28: 0 | ABJ28: 0 | ABK28: 0 | ABL28: 0 | ABM28: 0 | ABN28: 0 | ABO28: 0 | ABP28: 0 | ABQ28: 0 | ABR28: 0 | ABS28: 0 | ABT28: 0 | ABU28: 0 | ABV28: 0 | ABW28: 0 | ABX28: 0 | ABY28: 0 | ABZ28: 0
D30: Degradation | E30: % | F30: =INDEX(InputC!I39:AD39,E1) -> 0 | G30: =(1+F30)^(1/(months/Months_Period))-1 -> 0 | J30: 1 | K30: =J30*(1-$G$30*K7) -> 1 | L30: 1 | M30: 1 | N30: 1 | O30: 1 | P30: 1 | Q30: 1 | R30: 1 | S30: 1 | T30: 1 | U30: 1 | V30: 1 | W30: 1 | X30: 1 | Y30: 1 | Z30: 1 | AA30: 1 | AB30: 1 | AC30: 1 | AD30: 1 | AE30: 1 | AF30: 1 | AG30: 1 | AH30: 1 | AI30: 1 | AJ30: 1 | AK30: 1 | AL30: 1 | AM30: 1 | AN30: 1 | AO30: 1 | AP30: 1 | AQ30: 1 | AR30: 1 | AS30: 1 | AT30: 1 | AU30: 1 | AV30: 1 | AW30: 1 | AX30: 1 | AY30: 1 | AZ30: 1 | BA30: 1 | BB30: 1 | BC30: 1 | BD30: 1 | BE30: 1 | BF30: 1 | BG30: 1 | BH30: 1 | BI30: 1 | BJ30: 1 | BK30: 1 | BL30: 1 | BM30: 1 | BN30: 1 | BO30: 1 | BP30: 1 | BQ30: 1 | BR30: 1 | BS30: 1 | BT30: 1 | BU30: 1 | BV30: 1 | BW30: =BV30*(1-$G$30*BW7) -> 1 | BX30: 1 | BY30: 1 | BZ30: 1 | CA30: 1 | CB30: 1 | CC30: 1 | CD30: 1 | CE30: 1 | CF30: 1 | CG30: 1 | CH30: 1 | CI30: 1 | CJ30: 1 | CK30: 1 | CL30: 1 | CM30: 1 | CN30: 1 | CO30: 1 | CP30: 1 | CQ30: 1 | CR30: 1 | CS30: 1 | CT30: 1 | CU30: 1 | CV30: 1 | CW30: 1 | CX30: 1 | CY30: 1 | CZ30: 1 | DA30: 1 | DB30: 1 | DC30: 1 | DD30: 1 | DE30: 1 | DF30: 1 | DG30: 1 | DH30: 1 | DI30: 1 | DJ30: 1 | DK30: 1 | DL30: 1 | DM30: 1 | DN30: 1 | DO30: 1 | DP30: 1 | DQ30: 1 | DR30: 1 | DS30: 1 | DT30: 1 | DU30: 1 | DV30: 1 | DW30: 1 | DX30: 1 | DY30: 1 | DZ30: 1 | EA30: 1 | EB30: 1 | EC30: 1 | ED30: 1 | EE30: 1 | EF30: 1 | EG30: 1 | EH30: 1 | EI30: =EH30*(1-$G$30*EI7) -> 1 | EJ30: 1 | EK30: 1 | EL30: 1 | EM30: 1 | EN30: 1 | EO30: 1 | EP30: 1 | EQ30: 1 | ER30: 1 | ES30: 1 | ET30: 1 | EU30: 1 | EV30: 1 | EW30: 1 | EX30: 1 | EY30: 1 | EZ30: 1 | FA30: 1 | FB30: 1 | FC30: 1 | FD30: 1 | FE30: 1 | FF30: 1 | FG30: 1 | FH30: 1 | FI30: 1 | FJ30: 1 | FK30: 1 | FL30: 1 | FM30: 1 | FN30: 1 | FO30: 1 | FP30: 1 | FQ30: 1 | FR30: 1 | FS30: 1 | FT30: 1 | FU30: 1 | FV30: 1 | FW30: 1 | FX30: 1 | FY30: 1 | FZ30: 1 | GA30: 1 | GB30: 1 | GC30: 1 | GD30: 1 | GE30: 1 | GF30: 1 | GG30: 1 | GH30: 1 | GI30: 1 | GJ30: 1 | GK30: 1 | GL30: 1 | GM30: 1 | GN30: 1 | GO30: 1 | GP30: 1 | GQ30: 1 | GR30: 1 | GS30: 1 | GT30: 1 | GU30: =GT30*(1-$G$30*GU7) -> 1 | GV30: 1 | GW30: 1 | GX30: 1 | GY30: 1 | GZ30: 1 | HA30: 1 | HB30: 1 | HC30: 1 | HD30: 1 | HE30: 1 | HF30: 1 | HG30: 1 | HH30: 1 | HI30: 1 | HJ30: 1 | HK30: 1 | HL30: 1 | HM30: 1 | HN30: 1 | HO30: 1 | HP30: 1 | HQ30: 1 | HR30: 1 | HS30: 1 | HT30: 1 | HU30: 1 | HV30: 1 | HW30: 1 | HX30: 1 | HY30: 1 | HZ30: 1 | IA30: 1 | IB30: 1 | IC30: 1 | ID30: 1 | IE30: 1 | IF30: 1 | IG30: 1 | IH30: 1 | II30: 1 | IJ30: 1 | IK30: 1 | IL30: 1 | IM30: 1 | IN30: 1 | IO30: 1 | IP30: 1 | IQ30: 1 | IR30: 1 | IS30: 1 | IT30: 1 | IU30: 1 | IV30: 1 | IW30: 1 | IX30: 1 | IY30: 1 | IZ30: 1 | JA30: 1 | JB30: 1 | JC30: 1 | JD30: 1 | JE30: 1 | JF30: 1 | JG30: =JF30*(1-$G$30*JG7) -> 1 | JH30: 1 | JI30: 1 | JJ30: 1 | JK30: 1 | JL30: 1 | JM30: 1 | JN30: 1 | JO30: 1 | JP30: 1 | JQ30: 1 | JR30: 1 | JS30: 1 | JT30: 1 | JU30: 1 | JV30: 1 | JW30: 1 | JX30: 1 | JY30: 1 | JZ30: 1 | KA30: 1 | KB30: 1 | KC30: 1 | KD30: 1 | KE30: 1 | KF30: 1 | KG30: 1 | KH30: 1 | KI30: 1 | KJ30: 1 | KK30: 1 | KL30: 1 | KM30: 1 | KN30: 1 | KO30: 1 | KP30: 1 | KQ30: 1 | KR30: 1 | KS30: 1 | KT30: 1 | KU30: 1 | KV30: 1 | KW30: 1 | KX30: 1 | KY30: 1 | KZ30: 1 | LA30: 1 | LB30: 1 | LC30: 1 | LD30: 1 | LE30: 1 | LF30: 1 | LG30: 1 | LH30: 1 | LI30: 1 | LJ30: 1 | LK30: 1 | LL30: 1 | LM30: 1 | LN30: 1 | LO30: 1 | LP30: 1 | LQ30: 1 | LR30: 1 | LS30: =LR30*(1-$G$30*LS7) -> 1 | LT30: 1 | LU30: 1 | LV30: 1 | LW30: 1 | LX30: 1 | LY30: 1 | LZ30: 1 | MA30: 1 | MB30: 1 | MC30: 1 | MD30: 1 | ME30: 1 | MF30: 1 | MG30: 1 | MH30: 1 | MI30: 1 | MJ30: 1 | MK30: 1 | ML30: 1 | MM30: 1 | MN30: 1 | MO30: 1 | MP30: 1 | MQ30: 1 | MR30: 1 | MS30: 1 | MT30: 1 | MU30: 1 | MV30: 1 | MW30: 1 | MX30: 1 | MY30: 1 | MZ30: 1 | NA30: 1 | NB30: 1 | NC30: 1 | ND30: 1 | NE30: 1 | NF30: 1 | NG30: 1 | NH30: 1 | NI30: 1 | NJ30: 1 | NK30: 1 | NL30: 1 | NM30: 1 | NN30: 1 | NO30: 1 | NP30: 1 | NQ30: 1 | NR30: 1 | NS30: 1 | NT30: 1 | NU30: 1 | NV30: 1 | NW30: 1 | NX30: 1 | NY30: 1 | NZ30: 1 | OA30: 1 | OB30: 1 | OC30: 1 | OD30: 1 | OE30: =OD30*(1-$G$30*OE7) -> 1 | OF30: 1 | OG30: 1 | OH30: 1 | OI30: 1 | OJ30: 1 | OK30: 1 | OL30: 1 | OM30: 1 | ON30: 1 | OO30: 1 | OP30: 1 | OQ30: 1 | OR30: 1 | OS30: 1 | OT30: 1 | OU30: 1 | OV30: 1 | OW30: 1 | OX30: 1 | OY30: 1 | OZ30: 1 | PA30: 1 | PB30: 1 | PC30: 1 | PD30: 1 | PE30: 1 | PF30: 1 | PG30: 1 | PH30: 1 | PI30: 1 | PJ30: 1 | PK30: 1 | PL30: 1 | PM30: 1 | PN30: 1 | PO30: 1 | PP30: 1 | PQ30: 1 | PR30: 1 | PS30: 1 | PT30: 1 | PU30: 1 | PV30: 1 | PW30: 1 | PX30: 1 | PY30: 1 | PZ30: 1 | QA30: 1 | QB30: 1 | QC30: 1 | QD30: 1 | QE30: 1 | QF30: 1 | QG30: 1 | QH30: 1 | QI30: 1 | QJ30: 1 | QK30: 1 | QL30: 1 | QM30: 1 | QN30: 1 | QO30: 1 | QP30: 1 | QQ30: =QP30*(1-$G$30*QQ7) -> 1 | QR30: 1 | QS30: 1 | QT30: 1 | QU30: 1 | QV30: 1 | QW30: 1 | QX30: 1 | QY30: 1 | QZ30: 1 | RA30: 1 | RB30: 1 | RC30: 1 | RD30: 1 | RE30: 1 | RF30: 1 | RG30: 1 | RH30: 1 | RI30: 1 | RJ30: 1 | RK30: 1 | RL30: 1 | RM30: 1 | RN30: 1 | RO30: 1 | RP30: 1 | RQ30: 1 | RR30: 1 | RS30: 1 | RT30: 1 | RU30: 1 | RV30: 1 | RW30: 1 | RX30: 1 | RY30: 1 | RZ30: 1 | SA30: 1 | SB30: 1 | SC30: 1 | SD30: 1 | SE30: 1 | SF30: 1 | SG30: 1 | SH30: 1 | SI30: 1 | SJ30: 1 | SK30: 1 | SL30: 1 | SM30: 1 | SN30: 1 | SO30: 1 | SP30: 1 | SQ30: 1 | SR30: 1 | SS30: 1 | ST30: 1 | SU30: 1 | SV30: 1 | SW30: 1 | SX30: 1 | SY30: 1 | SZ30: 1 | TA30: 1 | TB30: 1 | TC30: =TB30*(1-$G$30*TC7) -> 1 | TD30: 1 | TE30: 1 | TF30: 1 | TG30: 1 | TH30: 1 | TI30: 1 | TJ30: 1 | TK30: 1 | TL30: 1 | TM30: 1 | TN30: 1 | TO30: 1 | TP30: 1 | TQ30: 1 | TR30: 1 | TS30: 1 | TT30: 1 | TU30: 1 | TV30: 1 | TW30: 1 | TX30: 1 | TY30: 1 | TZ30: 1 | UA30: 1 | UB30: 1 | UC30: 1 | UD30: 1 | UE30: 1 | UF30: 1 | UG30: 1 | UH30: 1 | UI30: 1 | UJ30: 1 | UK30: 1 | UL30: 1 | UM30: 1 | UN30: 1 | UO30: 1 | UP30: 1 | UQ30: 1 | UR30: 1 | US30: 1 | UT30: 1 | UU30: 1 | UV30: 1 | UW30: 1 | UX30: 1 | UY30: 1 | UZ30: 1 | VA30: 1 | VB30: 1 | VC30: 1 | VD30: 1 | VE30: 1 | VF30: 1 | VG30: 1 | VH30: 1 | VI30: 1 | VJ30: 1 | VK30: 1 | VL30: 1 | VM30: 1 | VN30: 1 | VO30: =VN30*(1-$G$30*VO7) -> 1 | VP30: 1 | VQ30: 1 | VR30: 1 | VS30: 1 | VT30: 1 | VU30: 1 | VV30: 1 | VW30: 1 | VX30: 1 | VY30: 1 | VZ30: 1 | WA30: 1 | WB30: 1 | WC30: 1 | WD30: 1 | WE30: 1 | WF30: 1 | WG30: 1 | WH30: 1 | WI30: 1 | WJ30: 1 | WK30: 1 | WL30: 1 | WM30: 1 | WN30: 1 | WO30: 1 | WP30: 1 | WQ30: 1 | WR30: 1 | WS30: 1 | WT30: 1 | WU30: 1 | WV30: 1 | WW30: 1 | WX30: 1 | WY30: 1 | WZ30: 1 | XA30: 1 | XB30: 1 | XC30: 1 | XD30: 1 | XE30: 1 | XF30: 1 | XG30: 1 | XH30: 1 | XI30: 1 | XJ30: 1 | XK30: 1 | XL30: 1 | XM30: 1 | XN30: 1 | XO30: 1 | XP30: 1 | XQ30: 1 | XR30: 1 | XS30: 1 | XT30: 1 | XU30: 1 | XV30: 1 | XW30: 1 | XX30: 1 | XY30: 1 | XZ30: 1 | YA30: =XZ30*(1-$G$30*YA7) -> 1 | YB30: 1 | YC30: 1 | YD30: 1 | YE30: 1 | YF30: 1 | YG30: 1 | YH30: 1 | YI30: 1 | YJ30: 1 | YK30: 1 | YL30: 1 | YM30: 1 | YN30: 1 | YO30: 1 | YP30: 1 | YQ30: 1 | YR30: 1 | YS30: 1 | YT30: 1 | YU30: 1 | YV30: 1 | YW30: 1 | YX30: 1 | YY30: 1 | YZ30: 1 | ZA30: 1 | ZB30: 1 | ZC30: 1 | ZD30: 1 | ZE30: 1 | ZF30: 1 | ZG30: 1 | ZH30: 1 | ZI30: 1 | ZJ30: 1 | ZK30: 1 | ZL30: 1 | ZM30: 1 | ZN30: 1 | ZO30: 1 | ZP30: 1 | ZQ30: 1 | ZR30: 1 | ZS30: 1 | ZT30: 1 | ZU30: 1 | ZV30: 1 | ZW30: 1 | ZX30: 1 | ZY30: 1 | ZZ30: 1 | AAA30: 1 | AAB30: 1 | AAC30: 1 | AAD30: 1 | AAE30: 1 | AAF30: 1 | AAG30: 1 | AAH30: 1 | AAI30: 1 | AAJ30: 1 | AAK30: 1 | AAL30: 1 | AAM30: =AAL30*(1-$G$30*AAM7) -> 1 | AAN30: 1 | AAO30: 1 | AAP30: 1 | AAQ30: 1 | AAR30: 1 | AAS30: 1 | AAT30: 1 | AAU30: 1 | AAV30: 1 | AAW30: 1 | AAX30: 1 | AAY30: 1 | AAZ30: 1 | ABA30: 1 | ABB30: 1 | ABC30: 1 | ABD30: 1 | ABE30: 1 | ABF30: 1 | ABG30: 1 | ABH30: 1 | ABI30: 1 | ABJ30: 1 | ABK30: 1 | ABL30: 1 | ABM30: 1 | ABN30: 1 | ABO30: 1 | ABP30: 1 | ABQ30: 1 | ABR30: 1 | ABS30: 1 | ABT30: 1 | ABU30: 1 | ABV30: 1 | ABW30: 1 | ABX30: 1 | ABY30: 1 | ABZ30: 1
D32: Solar Generation After Degradation | E32: kWh | K32: =K26*K$30 -> 0 | L32: =L26*L$30 -> 0 | M32: 0 | N32: 0 | O32: 0 | P32: 0 | Q32: 0 | R32: 0 | S32: 0 | T32: 0 | U32: 0 | V32: 0 | W32: 0 | X32: 0 | Y32: 0 | Z32: 0 | AA32: 0 | AB32: 0 | AC32: 0 | AD32: 0 | AE32: 0 | AF32: 0 | AG32: 0 | AH32: 0 | AI32: 0 | AJ32: 0 | AK32: 0 | AL32: 0 | AM32: 0 | AN32: 0 | AO32: 0 | AP32: 0 | AQ32: 0 | AR32: 0 | AS32: 0 | AT32: 0 | AU32: 0 | AV32: 0 | AW32: 0 | AX32: 0 | AY32: 0 | AZ32: 0 | BA32: 0 | BB32: 0 | BC32: 0 | BD32: 0 | BE32: 0 | BF32: 0 | BG32: 0 | BH32: 0 | BI32: 0 | BJ32: 0 | BK32: 0 | BL32: 0 | BM32: 0 | BN32: 0 | BO32: 0 | BP32: 0 | BQ32: 0 | BR32: 0 | BS32: 0 | BT32: 0 | BU32: 0 | BV32: 0 | BW32: 0 | BX32: =BX26*BX$30 -> 0 | BY32: 0 | BZ32: 0 | CA32: 0 | CB32: 0 | CC32: 0 | CD32: 0 | CE32: 0 | CF32: 0 | CG32: 0 | CH32: 0 | CI32: 0 | CJ32: 0 | CK32: 0 | CL32: 0 | CM32: 0 | CN32: 0 | CO32: 0 | CP32: 0 | CQ32: 0 | CR32: 0 | CS32: 0 | CT32: 0 | CU32: 0 | CV32: 0 | CW32: 0 | CX32: 0 | CY32: 0 | CZ32: 0 | DA32: 0 | DB32: 0 | DC32: 0 | DD32: 0 | DE32: 0 | DF32: 0 | DG32: 0 | DH32: 0 | DI32: 0 | DJ32: 0 | DK32: 0 | DL32: 0 | DM32: 0 | DN32: 0 | DO32: 0 | DP32: 0 | DQ32: 0 | DR32: 0 | DS32: 0 | DT32: 0 | DU32: 0 | DV32: 0 | DW32: 0 | DX32: 0 | DY32: 0 | DZ32: 0 | EA32: 0 | EB32: 0 | EC32: 0 | ED32: 0 | EE32: 0 | EF32: 0 | EG32: 0 | EH32: 0 | EI32: 0 | EJ32: =EJ26*EJ$30 -> 0 | EK32: 0 | EL32: 0 | EM32: 0 | EN32: 0 | EO32: 0 | EP32: 0 | EQ32: 0 | ER32: 0 | ES32: 0 | ET32: 0 | EU32: 0 | EV32: 0 | EW32: 0 | EX32: 0 | EY32: 0 | EZ32: 0 | FA32: 0 | FB32: 0 | FC32: 0 | FD32: 0 | FE32: 0 | FF32: 0 | FG32: 0 | FH32: 0 | FI32: 0 | FJ32: 0 | FK32: 0 | FL32: 0 | FM32: 0 | FN32: 0 | FO32: 0 | FP32: 0 | FQ32: 0 | FR32: 0 | FS32: 0 | FT32: 0 | FU32: 0 | FV32: 0 | FW32: 0 | FX32: 0 | FY32: 0 | FZ32: 0 | GA32: 0 | GB32: 0 | GC32: 0 | GD32: 0 | GE32: 0 | GF32: 0 | GG32: 0 | GH32: 0 | GI32: 0 | GJ32: 0 | GK32: 0 | GL32: 0 | GM32: 0 | GN32: 0 | GO32: 0 | GP32: 0 | GQ32: 0 | GR32: 0 | GS32: 0 | GT32: 0 | GU32: 0 | GV32: =GV26*GV$30 -> 0 | GW32: 0 | GX32: 0 | GY32: 0 | GZ32: 0 | HA32: 0 | HB32: 0 | HC32: 0 | HD32: 0 | HE32: 0 | HF32: 0 | HG32: 0 | HH32: 0 | HI32: 0 | HJ32: 0 | HK32: 0 | HL32: 0 | HM32: 0 | HN32: 0 | HO32: 0 | HP32: 0 | HQ32: 0 | HR32: 0 | HS32: 0 | HT32: 0 | HU32: 0 | HV32: 0 | HW32: 0 | HX32: 0 | HY32: 0 | HZ32: 0 | IA32: 0 | IB32: 0 | IC32: 0 | ID32: 0 | IE32: 0 | IF32: 0 | IG32: 0 | IH32: 0 | II32: 0 | IJ32: 0 | IK32: 0 | IL32: 0 | IM32: 0 | IN32: 0 | IO32: 0 | IP32: 0 | IQ32: 0 | IR32: 0 | IS32: 0 | IT32: 0 | IU32: 0 | IV32: 0 | IW32: 0 | IX32: 0 | IY32: 0 | IZ32: 0 | JA32: 0 | JB32: 0 | JC32: 0 | JD32: 0 | JE32: 0 | JF32: 0 | JG32: 0 | JH32: =JH26*JH$30 -> 0 | JI32: 0 | JJ32: 0 | JK32: 0 | JL32: 0 | JM32: 0 | JN32: 0 | JO32: 0 | JP32: 0 | JQ32: 0 | JR32: 0 | JS32: 0 | JT32: 0 | JU32: 0 | JV32: 0 | JW32: 0 | JX32: 0 | JY32: 0 | JZ32: 0 | KA32: 0 | KB32: 0 | KC32: 0 | KD32: 0 | KE32: 0 | KF32: 0 | KG32: 0 | KH32: 0 | KI32: 0 | KJ32: 0 | KK32: 0 | KL32: 0 | KM32: 0 | KN32: 0 | KO32: 0 | KP32: 0 | KQ32: 0 | KR32: 0 | KS32: 0 | KT32: 0 | KU32: 0 | KV32: 0 | KW32: 0 | KX32: 0 | KY32: 0 | KZ32: 0 | LA32: 0 | LB32: 0 | LC32: 0 | LD32: 0 | LE32: 0 | LF32: 0 | LG32: 0 | LH32: 0 | LI32: 0 | LJ32: 0 | LK32: 0 | LL32: 0 | LM32: 0 | LN32: 0 | LO32: 0 | LP32: 0 | LQ32: 0 | LR32: 0 | LS32: 0 | LT32: =LT26*LT$30 -> 0 | LU32: 0 | LV32: 0 | LW32: 0 | LX32: 0 | LY32: 0 | LZ32: 0 | MA32: 0 | MB32: 0 | MC32: 0 | MD32: 0 | ME32: 0 | MF32: 0 | MG32: 0 | MH32: 0 | MI32: 0 | MJ32: 0 | MK32: 0 | ML32: 0 | MM32: 0 | MN32: 0 | MO32: 0 | MP32: 0 | MQ32: 0 | MR32: 0 | MS32: 0 | MT32: 0 | MU32: 0 | MV32: 0 | MW32: 0 | MX32: 0 | MY32: 0 | MZ32: 0 | NA32: 0 | NB32: 0 | NC32: 0 | ND32: 0 | NE32: 0 | NF32: 0 | NG32: 0 | NH32: 0 | NI32: 0 | NJ32: 0 | NK32: 0 | NL32: 0 | NM32: 0 | NN32: 0 | NO32: 0 | NP32: 0 | NQ32: 0 | NR32: 0 | NS32: 0 | NT32: 0 | NU32: 0 | NV32: 0 | NW32: 0 | NX32: 0 | NY32: 0 | NZ32: 0 | OA32: 0 | OB32: 0 | OC32: 0 | OD32: 0 | OE32: 0 | OF32: =OF26*OF$30 -> 0 | OG32: 0 | OH32: 0 | OI32: 0 | OJ32: 0 | OK32: 0 | OL32: 0 | OM32: 0 | ON32: 0 | OO32: 0 | OP32: 0 | OQ32: 0 | OR32: 0 | OS32: 0 | OT32: 0 | OU32: 0 | OV32: 0 | OW32: 0 | OX32: 0 | OY32: 0 | OZ32: 0 | PA32: 0 | PB32: 0 | PC32: 0 | PD32: 0 | PE32: 0 | PF32: 0 | PG32: 0 | PH32: 0 | PI32: 0 | PJ32: 0 | PK32: 0 | PL32: 0 | PM32: 0 | PN32: 0 | PO32: 0 | PP32: 0 | PQ32: 0 | PR32: 0 | PS32: 0 | PT32: 0 | PU32: 0 | PV32: 0 | PW32: 0 | PX32: 0 | PY32: 0 | PZ32: 0 | QA32: 0 | QB32: 0 | QC32: 0 | QD32: 0 | QE32: 0 | QF32: 0 | QG32: 0 | QH32: 0 | QI32: 0 | QJ32: 0 | QK32: 0 | QL32: 0 | QM32: 0 | QN32: 0 | QO32: 0 | QP32: 0 | QQ32: 0 | QR32: =QR26*QR$30 -> 0 | QS32: 0 | QT32: 0 | QU32: 0 | QV32: 0 | QW32: 0 | QX32: 0 | QY32: 0 | QZ32: 0 | RA32: 0 | RB32: 0 | RC32: 0 | RD32: 0 | RE32: 0 | RF32: 0 | RG32: 0 | RH32: 0 | RI32: 0 | RJ32: 0 | RK32: 0 | RL32: 0 | RM32: 0 | RN32: 0 | RO32: 0 | RP32: 0 | RQ32: 0 | RR32: 0 | RS32: 0 | RT32: 0 | RU32: 0 | RV32: 0 | RW32: 0 | RX32: 0 | RY32: 0 | RZ32: 0 | SA32: 0 | SB32: 0 | SC32: 0 | SD32: 0 | SE32: 0 | SF32: 0 | SG32: 0 | SH32: 0 | SI32: 0 | SJ32: 0 | SK32: 0 | SL32: 0 | SM32: 0 | SN32: 0 | SO32: 0 | SP32: 0 | SQ32: 0 | SR32: 0 | SS32: 0 | ST32: 0 | SU32: 0 | SV32: 0 | SW32: 0 | SX32: 0 | SY32: 0 | SZ32: 0 | TA32: 0 | TB32: 0 | TC32: 0 | TD32: =TD26*TD$30 -> 0 | TE32: 0 | TF32: 0 | TG32: 0 | TH32: 0 | TI32: 0 | TJ32: 0 | TK32: 0 | TL32: 0 | TM32: 0 | TN32: 0 | TO32: 0 | TP32: 0 | TQ32: 0 | TR32: 0 | TS32: 0 | TT32: 0 | TU32: 0 | TV32: 0 | TW32: 0 | TX32: 0 | TY32: 0 | TZ32: 0 | UA32: 0 | UB32: 0 | UC32: 0 | UD32: 0 | UE32: 0 | UF32: 0 | UG32: 0 | UH32: 0 | UI32: 0 | UJ32: 0 | UK32: 0 | UL32: 0 | UM32: 0 | UN32: 0 | UO32: 0 | UP32: 0 | UQ32: 0 | UR32: 0 | US32: 0 | UT32: 0 | UU32: 0 | UV32: 0 | UW32: 0 | UX32: 0 | UY32: 0 | UZ32: 0 | VA32: 0 | VB32: 0 | VC32: 0 | VD32: 0 | VE32: 0 | VF32: 0 | VG32: 0 | VH32: 0 | VI32: 0 | VJ32: 0 | VK32: 0 | VL32: 0 | VM32: 0 | VN32: 0 | VO32: 0 | VP32: =VP26*VP$30 -> 0 | VQ32: 0 | VR32: 0 | VS32: 0 | VT32: 0 | VU32: 0 | VV32: 0 | VW32: 0 | VX32: 0 | VY32: 0 | VZ32: 0 | WA32: 0 | WB32: 0 | WC32: 0 | WD32: 0 | WE32: 0 | WF32: 0 | WG32: 0 | WH32: 0 | WI32: 0 | WJ32: 0 | WK32: 0 | WL32: 0 | WM32: 0 | WN32: 0 | WO32: 0 | WP32: 0 | WQ32: 0 | WR32: 0 | WS32: 0 | WT32: 0 | WU32: 0 | WV32: 0 | WW32: 0 | WX32: 0 | WY32: 0 | WZ32: 0 | XA32: 0 | XB32: 0 | XC32: 0 | XD32: 0 | XE32: 0 | XF32: 0 | XG32: 0 | XH32: 0 | XI32: 0 | XJ32: 0 | XK32: 0 | XL32: 0 | XM32: 0 | XN32: 0 | XO32: 0 | XP32: 0 | XQ32: 0 | XR32: 0 | XS32: 0 | XT32: 0 | XU32: 0 | XV32: 0 | XW32: 0 | XX32: 0 | XY32: 0 | XZ32: 0 | YA32: 0 | YB32: =YB26*YB$30 -> 0 | YC32: 0 | YD32: 0 | YE32: 0 | YF32: 0 | YG32: 0 | YH32: 0 | YI32: 0 | YJ32: 0 | YK32: 0 | YL32: 0 | YM32: 0 | YN32: 0 | YO32: 0 | YP32: 0 | YQ32: 0 | YR32: 0 | YS32: 0 | YT32: 0 | YU32: 0 | YV32: 0 | YW32: 0 | YX32: 0 | YY32: 0 | YZ32: 0 | ZA32: 0 | ZB32: 0 | ZC32: 0 | ZD32: 0 | ZE32: 0 | ZF32: 0 | ZG32: 0 | ZH32: 0 | ZI32: 0 | ZJ32: 0 | ZK32: 0 | ZL32: 0 | ZM32: 0 | ZN32: 0 | ZO32: 0 | ZP32: 0 | ZQ32: 0 | ZR32: 0 | ZS32: 0 | ZT32: 0 | ZU32: 0 | ZV32: 0 | ZW32: 0 | ZX32: 0 | ZY32: 0 | ZZ32: 0 | AAA32: 0 | AAB32: 0 | AAC32: 0 | AAD32: 0 | AAE32: 0 | AAF32: 0 | AAG32: 0 | AAH32: 0 | AAI32: 0 | AAJ32: 0 | AAK32: 0 | AAL32: 0 | AAM32: 0 | AAN32: =AAN26*AAN$30 -> 0 | AAO32: 0 | AAP32: 0 | AAQ32: 0 | AAR32: 0 | AAS32: 0 | AAT32: 0 | AAU32: 0 | AAV32: 0 | AAW32: 0 | AAX32: 0 | AAY32: 0 | AAZ32: 0 | ABA32: 0 | ABB32: 0 | ABC32: 0 | ABD32: 0 | ABE32: 0 | ABF32: 0 | ABG32: 0 | ABH32: 0 | ABI32: 0 | ABJ32: 0 | ABK32: 0 | ABL32: 0 | ABM32: 0 | ABN32: 0 | ABO32: 0 | ABP32: 0 | ABQ32: 0 | ABR32: 0 | ABS32: 0 | ABT32: 0 | ABU32: 0 | ABV32: 0 | ABW32: 0 | ABX32: 0 | ABY32: 0 | ABZ32: 0
D33: Wind Generation After Degradation | E33: kWh | K33: =K27*K$30 -> 0 | L33: 0 | M33: 0 | N33: 0 | O33: 0 | P33: 0 | Q33: 0 | R33: 0 | S33: 0 | T33: 0 | U33: 0 | V33: 0 | W33: 0 | X33: 0 | Y33: 0 | Z33: 0 | AA33: 0 | AB33: 0 | AC33: 0 | AD33: 0 | AE33: 0 | AF33: 0 | AG33: 0 | AH33: 0 | AI33: 0 | AJ33: 0 | AK33: 0 | AL33: 0 | AM33: 0 | AN33: 201600 | AO33: 208320 | AP33: 208320 | AQ33: 201600 | AR33: 208320 | AS33: 201600 | AT33: 208320 | AU33: 208320 | AV33: 194880 | AW33: 208320 | AX33: 201600 | AY33: 208320 | AZ33: 201600 | BA33: 208320 | BB33: 208320 | BC33: 201600 | BD33: 208320 | BE33: 201600 | BF33: 208320 | BG33: 208320 | BH33: 188160 | BI33: 208320 | BJ33: 201600 | BK33: 208320 | BL33: 201600 | BM33: 208320 | BN33: 208320 | BO33: 201600 | BP33: 208320 | BQ33: 201600 | BR33: 208320 | BS33: 208320 | BT33: 188160 | BU33: 208320 | BV33: 201600 | BW33: 208320 | BX33: 201600 | BY33: 208320 | BZ33: 208320 | CA33: 201600 | CB33: 208320 | CC33: 201600 | CD33: 208320 | CE33: 208320 | CF33: 188160 | CG33: 208320 | CH33: 201600 | CI33: 208320 | CJ33: 201600 | CK33: 208320 | CL33: 208320 | CM33: 201600 | CN33: 208320 | CO33: 201600 | CP33: 208320 | CQ33: 208320 | CR33: 194880 | CS33: 208320 | CT33: 201600 | CU33: 208320 | CV33: 201600 | CW33: 208320 | CX33: 208320 | CY33: 201600 | CZ33: 208320 | DA33: 201600 | DB33: 208320 | DC33: 208320 | DD33: 188160 | DE33: 208320 | DF33: 201600 | DG33: 208320 | DH33: 201600 | DI33: 208320 | DJ33: 208320 | DK33: 201600 | DL33: 208320 | DM33: 201600 | DN33: 208320 | DO33: 208320 | DP33: 188160 | DQ33: 208320 | DR33: 201600 | DS33: 208320 | DT33: 201600 | DU33: 208320 | DV33: 208320 | DW33: 201600 | DX33: 208320 | DY33: 201600 | DZ33: 208320 | EA33: 208320 | EB33: 188160 | EC33: 208320 | ED33: 201600 | EE33: 208320 | EF33: 201600 | EG33: 208320 | EH33: 208320 | EI33: 201600 | EJ33: 208320 | EK33: 201600 | EL33: 208320 | EM33: 208320 | EN33: 194880 | EO33: 208320 | EP33: 201600 | EQ33: 208320 | ER33: 201600 | ES33: 208320 | ET33: 208320 | EU33: 201600 | EV33: 208320 | EW33: 201600 | EX33: 208320 | EY33: 208320 | EZ33: 188160 | FA33: 208320 | FB33: 201600 | FC33: 208320 | FD33: 201600 | FE33: 208320 | FF33: 208320 | FG33: 201600 | FH33: 208320 | FI33: 201600 | FJ33: 208320 | FK33: 208320 | FL33: 188160 | FM33: 208320 | FN33: 201600 | FO33: 208320 | FP33: 201600 | FQ33: 208320 | FR33: 208320 | FS33: 201600 | FT33: 208320 | FU33: 201600 | FV33: 208320 | FW33: 208320 | FX33: 188160 | FY33: 208320 | FZ33: 201600 | GA33: 208320 | GB33: 201600 | GC33: 208320 | GD33: 208320 | GE33: 201600 | GF33: 208320 | GG33: 201600 | GH33: 208320 | GI33: 208320 | GJ33: 194880 | GK33: 208320 | GL33: 201600 | GM33: 208320 | GN33: 201600 | GO33: 208320 | GP33: 208320 | GQ33: 201600 | GR33: 208320 | GS33: 201600 | GT33: 208320 | GU33: 208320 | GV33: 188160 | GW33: 208320 | GX33: 201600 | GY33: 208320 | GZ33: 201600 | HA33: 208320 | HB33: 208320 | HC33: 201600 | HD33: 208320 | HE33: 201600 | HF33: 208320 | HG33: 208320 | HH33: 188160 | HI33: 208320 | HJ33: 201600 | HK33: 208320 | HL33: 201600 | HM33: 208320 | HN33: 208320 | HO33: 201600 | HP33: 208320 | HQ33: 201600 | HR33: 208320 | HS33: 208320 | HT33: 188160 | HU33: 208320 | HV33: 201600 | HW33: 208320 | HX33: 201600 | HY33: 208320 | HZ33: 208320 | IA33: 201600 | IB33: 208320 | IC33: 201600 | ID33: 208320 | IE33: 208320 | IF33: 194880 | IG33: 208320 | IH33: 201600 | II33: 208320 | IJ33: 201600 | IK33: 208320 | IL33: 208320 | IM33: 201600 | IN33: 208320 | IO33: 201600 | IP33: 208320 | IQ33: 208320 | IR33: 188160 | IS33: 208320 | IT33: 201600 | IU33: 208320 | IV33: 201600 | IW33: 208320 | IX33: 208320 | IY33: 201600 | IZ33: 208320 | JA33: 201600 | JB33: 208320 | JC33: 208320 | JD33: 188160 | JE33: 208320 | JF33: 201600 | JG33: 208320 | JH33: 201600 | JI33: 208320 | JJ33: 208320 | JK33: 201600 | JL33: 208320 | JM33: 201600 | JN33: 208320 | JO33: 208320 | JP33: 188160 | JQ33: 208320 | JR33: 201600 | JS33: 208320 | JT33: 201600 | JU33: 208320 | JV33: 208320 | JW33: 201600 | JX33: 208320 | JY33: 201600 | JZ33: 208320 | KA33: 208320 | KB33: 194880 | KC33: 208320 | KD33: 201600 | KE33: 208320 | KF33: 201600 | KG33: 208320 | KH33: 208320 | KI33: 201600 | KJ33: 208320 | KK33: 201600 | KL33: 208320 | KM33: 208320 | KN33: 188160 | KO33: 208320 | KP33: 201600 | KQ33: 208320 | KR33: 201600 | KS33: 208320 | KT33: 208320 | KU33: 201600 | KV33: 208320 | KW33: 201600 | KX33: 208320 | KY33: 208320 | KZ33: 188160 | LA33: 208320 | LB33: 201600 | LC33: 208320 | LD33: 201600 | LE33: 208320 | LF33: 208320 | LG33: 201600 | LH33: 208320 | LI33: 201600 | LJ33: 208320 | LK33: 208320 | LL33: 188160 | LM33: 208320 | LN33: 201600 | LO33: 208320 | LP33: 201600 | LQ33: 208320 | LR33: 208320 | LS33: 201600 | LT33: 208320 | LU33: 201600 | LV33: 208320 | LW33: 208320 | LX33: 194880 | LY33: 208320 | LZ33: 201600 | MA33: 208320 | MB33: 201600 | MC33: 208320 | MD33: 208320 | ME33: 201600 | MF33: 208320 | MG33: 201600 | MH33: 208320 | MI33: 208320 | MJ33: 188160 | MK33: 208320 | ML33: 201600 | MM33: 208320 | MN33: 201600 | MO33: 208320 | MP33: 208320 | MQ33: 201600 | MR33: 208320 | MS33: 201600 | MT33: 208320 | MU33: 208320 | MV33: 188160 | MW33: 208320 | MX33: 201600 | MY33: 208320 | MZ33: 201600 | NA33: 208320 | NB33: 208320 | NC33: 201600 | ND33: 208320 | NE33: 201600 | NF33: 208320 | NG33: 208320 | NH33: 188160 | NI33: 208320 | NJ33: 201600 | NK33: 208320 | NL33: 201600 | NM33: 208320 | NN33: 208320 | NO33: 201600 | NP33: 208320 | NQ33: 201600 | NR33: 208320 | NS33: 208320 | NT33: 194880 | NU33: 208320 | NV33: 201600 | NW33: 208320 | NX33: 201600 | NY33: 208320 | NZ33: 208320 | OA33: 201600 | OB33: 208320 | OC33: 201600 | OD33: 208320 | OE33: 208320 | OF33: 188160 | OG33: 208320 | OH33: 201600 | OI33: 208320 | OJ33: 0 | OK33: 0 | OL33: 0 | OM33: 0 | ON33: 0 | OO33: 0 | OP33: 0 | OQ33: 0 | OR33: 0 | OS33: 0 | OT33: 0 | OU33: 0 | OV33: 0 | OW33: 0 | OX33: 0 | OY33: 0 | OZ33: 0 | PA33: 0 | PB33: 0 | PC33: 0 | PD33: 0 | PE33: 0 | PF33: 0 | PG33: 0 | PH33: 0 | PI33: 0 | PJ33: 0 | PK33: 0 | PL33: 0 | PM33: 0 | PN33: 0 | PO33: 0 | PP33: 0 | PQ33: 0 | PR33: 0 | PS33: 0 | PT33: 0 | PU33: 0 | PV33: 0 | PW33: 0 | PX33: 0 | PY33: 0 | PZ33: 0 | QA33: 0 | QB33: 0 | QC33: 0 | QD33: 0 | QE33: 0 | QF33: 0 | QG33: 0 | QH33: 0 | QI33: 0 | QJ33: 0 | QK33: 0 | QL33: 0 | QM33: 0 | QN33: 0 | QO33: 0 | QP33: 0 | QQ33: 0 | QR33: 0 | QS33: 0 | QT33: 0 | QU33: 0 | QV33: 0 | QW33: 0 | QX33: 0 | QY33: 0 | QZ33: 0 | RA33: 0 | RB33: 0 | RC33: 0 | RD33: 0 | RE33: 0 | RF33: 0 | RG33: 0 | RH33: 0 | RI33: 0 | RJ33: 0 | RK33: 0 | RL33: 0 | RM33: 0 | RN33: 0 | RO33: 0 | RP33: 0 | RQ33: 0 | RR33: 0 | RS33: 0 | RT33: 0 | RU33: 0 | RV33: 0 | RW33: 0 | RX33: 0 | RY33: 0 | RZ33: 0 | SA33: 0 | SB33: 0 | SC33: 0 | SD33: 0 | SE33: 0 | SF33: 0 | SG33: 0 | SH33: 0 | SI33: 0 | SJ33: 0 | SK33: 0 | SL33: 0 | SM33: 0 | SN33: 0 | SO33: 0 | SP33: 0 | SQ33: 0 | SR33: 0 | SS33: 0 | ST33: 0 | SU33: 0 | SV33: 0 | SW33: 0 | SX33: 0 | SY33: 0 | SZ33: 0 | TA33: 0 | TB33: 0 | TC33: 0 | TD33: 0 | TE33: 0 | TF33: 0 | TG33: 0 | TH33: 0 | TI33: 0 | TJ33: 0 | TK33: 0 | TL33: 0 | TM33: 0 | TN33: 0 | TO33: 0 | TP33: 0 | TQ33: 0 | TR33: 0 | TS33: 0 | TT33: 0 | TU33: 0 | TV33: 0 | TW33: 0 | TX33: 0 | TY33: 0 | TZ33: 0 | UA33: 0 | UB33: 0 | UC33: 0 | UD33: 0 | UE33: 0 | UF33: 0 | UG33: 0 | UH33: 0 | UI33: 0 | UJ33: 0 | UK33: 0 | UL33: 0 | UM33: 0 | UN33: 0 | UO33: 0 | UP33: 0 | UQ33: 0 | UR33: 0 | US33: 0 | UT33: 0 | UU33: 0 | UV33: 0 | UW33: 0 | UX33: 0 | UY33: 0 | UZ33: 0 | VA33: 0 | VB33: 0 | VC33: 0 | VD33: 0 | VE33: 0 | VF33: 0 | VG33: 0 | VH33: 0 | VI33: 0 | VJ33: 0 | VK33: 0 | VL33: 0 | VM33: 0 | VN33: 0 | VO33: 0 | VP33: 0 | VQ33: 0 | VR33: 0 | VS33: 0 | VT33: 0 | VU33: 0 | VV33: 0 | VW33: 0 | VX33: 0 | VY33: 0 | VZ33: 0 | WA33: 0 | WB33: 0 | WC33: 0 | WD33: 0 | WE33: 0 | WF33: 0 | WG33: 0 | WH33: 0 | WI33: 0 | WJ33: 0 | WK33: 0 | WL33: 0 | WM33: 0 | WN33: 0 | WO33: 0 | WP33: 0 | WQ33: 0 | WR33: 0 | WS33: 0 | WT33: 0 | WU33: 0 | WV33: 0 | WW33: 0 | WX33: 0 | WY33: 0 | WZ33: 0 | XA33: 0 | XB33: 0 | XC33: 0 | XD33: 0 | XE33: 0 | XF33: 0 | XG33: 0 | XH33: 0 | XI33: 0 | XJ33: 0 | XK33: 0 | XL33: 0 | XM33: 0 | XN33: 0 | XO33: 0 | XP33: 0 | XQ33: 0 | XR33: 0 | XS33: 0 | XT33: 0 | XU33: 0 | XV33: 0 | XW33: 0 | XX33: 0 | XY33: 0 | XZ33: 0 | YA33: 0 | YB33: 0 | YC33: 0 | YD33: 0 | YE33: 0 | YF33: 0 | YG33: 0 | YH33: 0 | YI33: 0 | YJ33: 0 | YK33: 0 | YL33: 0 | YM33: 0 | YN33: 0 | YO33: 0 | YP33: 0 | YQ33: 0 | YR33: 0 | YS33: 0 | YT33: 0 | YU33: 0 | YV33: 0 | YW33: 0 | YX33: 0 | YY33: 0 | YZ33: 0 | ZA33: 0 | ZB33: 0 | ZC33: 0 | ZD33: 0 | ZE33: 0 | ZF33: 0 | ZG33: 0 | ZH33: 0 | ZI33: 0 | ZJ33: 0 | ZK33: 0 | ZL33: 0 | ZM33: 0 | ZN33: 0 | ZO33: 0 | ZP33: 0 | ZQ33: 0 | ZR33: 0 | ZS33: 0 | ZT33: 0 | ZU33: 0 | ZV33: 0 | ZW33: 0 | ZX33: 0 | ZY33: 0 | ZZ33: 0 | AAA33: 0 | AAB33: 0 | AAC33: 0 | AAD33: 0 | AAE33: 0 | AAF33: 0 | AAG33: 0 | AAH33: 0 | AAI33: 0 | AAJ33: 0 | AAK33: 0 | AAL33: 0 | AAM33: 0 | AAN33: 0 | AAO33: 0 | AAP33: 0 | AAQ33: 0 | AAR33: 0 | AAS33: 0 | AAT33: 0 | AAU33: 0 | AAV33: 0 | AAW33: 0 | AAX33: 0 | AAY33: 0 | AAZ33: 0 | ABA33: 0 | ABB33: 0 | ABC33: 0 | ABD33: 0 | ABE33: 0 | ABF33: 0 | ABG33: 0 | ABH33: 0 | ABI33: 0 | ABJ33: 0 | ABK33: 0 | ABL33: 0 | ABM33: 0 | ABN33: 0 | ABO33: 0 | ABP33: 0 | ABQ33: 0 | ABR33: 0 | ABS33: 0 | ABT33: 0 | ABU33: 0 | ABV33: 0 | ABW33: 0 | ABX33: 0 | ABY33: 0 | ABZ33: 0
D34: Battery Capacity Base After Degradation | E34: kWh | K34: 0 | L34: 0 | M34: 0 | N34: 0 | O34: 0 | P34: 0 | Q34: 0 | R34: 0 | S34: 0 | T34: 0 | U34: 0 | V34: 0 | W34: 0 | X34: 0 | Y34: 0 | Z34: 0 | AA34: 0 | AB34: 0 | AC34: 0 | AD34: 0 | AE34: 0 | AF34: 0 | AG34: 0 | AH34: 0 | AI34: 0 | AJ34: 0 | AK34: 0 | AL34: 0 | AM34: 0 | AN34: 0 | AO34: 0 | AP34: 0 | AQ34: 0 | AR34: 0 | AS34: 0 | AT34: 0 | AU34: 0 | AV34: 0 | AW34: 0 | AX34: 0 | AY34: 0 | AZ34: 0 | BA34: 0 | BB34: 0 | BC34: 0 | BD34: 0 | BE34: 0 | BF34: 0 | BG34: 0 | BH34: 0 | BI34: 0 | BJ34: 0 | BK34: 0 | BL34: 0 | BM34: 0 | BN34: 0 | BO34: 0 | BP34: 0 | BQ34: 0 | BR34: 0 | BS34: 0 | BT34: 0 | BU34: 0 | BV34: 0 | BW34: 0 | BX34: 0 | BY34: 0 | BZ34: 0 | CA34: 0 | CB34: 0 | CC34: 0 | CD34: 0 | CE34: 0 | CF34: 0 | CG34: 0 | CH34: 0 | CI34: 0 | CJ34: 0 | CK34: 0 | CL34: 0 | CM34: 0 | CN34: 0 | CO34: 0 | CP34: 0 | CQ34: 0 | CR34: 0 | CS34: 0 | CT34: 0 | CU34: 0 | CV34: 0 | CW34: 0 | CX34: 0 | CY34: 0 | CZ34: 0 | DA34: 0 | DB34: 0 | DC34: 0 | DD34: 0 | DE34: 0 | DF34: 0 | DG34: 0 | DH34: 0 | DI34: 0 | DJ34: 0 | DK34: 0 | DL34: 0 | DM34: 0 | DN34: 0 | DO34: 0 | DP34: 0 | DQ34: 0 | DR34: 0 | DS34: 0 | DT34: 0 | DU34: 0 | DV34: 0 | DW34: 0 | DX34: 0 | DY34: 0 | DZ34: 0 | EA34: 0 | EB34: 0 | EC34: 0 | ED34: 0 | EE34: 0 | EF34: 0 | EG34: 0 | EH34: 0 | EI34: 0 | EJ34: 0 | EK34: 0 | EL34: 0 | EM34: 0 | EN34: 0 | EO34: 0 | EP34: 0 | EQ34: 0 | ER34: 0 | ES34: 0 | ET34: 0 | EU34: 0 | EV34: 0 | EW34: 0 | EX34: 0 | EY34: 0 | EZ34: 0 | FA34: 0 | FB34: 0 | FC34: 0 | FD34: 0 | FE34: 0 | FF34: 0 | FG34: 0 | FH34: 0 | FI34: 0 | FJ34: 0 | FK34: 0 | FL34: 0 | FM34: 0 | FN34: 0 | FO34: 0 | FP34: 0 | FQ34: 0 | FR34: 0 | FS34: 0 | FT34: 0 | FU34: 0 | FV34: 0 | FW34: 0 | FX34: 0 | FY34: 0 | FZ34: 0 | GA34: 0 | GB34: 0 | GC34: 0 | GD34: 0 | GE34: 0 | GF34: 0 | GG34: 0 | GH34: 0 | GI34: 0 | GJ34: 0 | GK34: 0 | GL34: 0 | GM34: 0 | GN34: 0 | GO34: 0 | GP34: 0 | GQ34: 0 | GR34: 0 | GS34: 0 | GT34: 0 | GU34: 0 | GV34: 0 | GW34: 0 | GX34: 0 | GY34: 0 | GZ34: 0 | HA34: 0 | HB34: 0 | HC34: 0 | HD34: 0 | HE34: 0 | HF34: 0 | HG34: 0 | HH34: 0 | HI34: 0 | HJ34: 0 | HK34: 0 | HL34: 0 | HM34: 0 | HN34: 0 | HO34: 0 | HP34: 0 | HQ34: 0 | HR34: 0 | HS34: 0 | HT34: 0 | HU34: 0 | HV34: 0 | HW34: 0 | HX34: 0 | HY34: 0 | HZ34: 0 | IA34: 0 | IB34: 0 | IC34: 0 | ID34: 0 | IE34: 0 | IF34: 0 | IG34: 0 | IH34: 0 | II34: 0 | IJ34: 0 | IK34: 0 | IL34: 0 | IM34: 0 | IN34: 0 | IO34: 0 | IP34: 0 | IQ34: 0 | IR34: 0 | IS34: 0 | IT34: 0 | IU34: 0 | IV34: 0 | IW34: 0 | IX34: 0 | IY34: 0 | IZ34: 0 | JA34: 0 | JB34: 0 | JC34: 0 | JD34: 0 | JE34: 0 | JF34: 0 | JG34: 0 | JH34: 0 | JI34: 0 | JJ34: 0 | JK34: 0 | JL34: 0 | JM34: 0 | JN34: 0 | JO34: 0 | JP34: 0 | JQ34: 0 | JR34: 0 | JS34: 0 | JT34: 0 | JU34: 0 | JV34: 0 | JW34: 0 | JX34: 0 | JY34: 0 | JZ34: 0 | KA34: 0 | KB34: 0 | KC34: 0 | KD34: 0 | KE34: 0 | KF34: 0 | KG34: 0 | KH34: 0 | KI34: 0 | KJ34: 0 | KK34: 0 | KL34: 0 | KM34: 0 | KN34: 0 | KO34: 0 | KP34: 0 | KQ34: 0 | KR34: 0 | KS34: 0 | KT34: 0 | KU34: 0 | KV34: 0 | KW34: 0 | KX34: 0 | KY34: 0 | KZ34: 0 | LA34: 0 | LB34: 0 | LC34: 0 | LD34: 0 | LE34: 0 | LF34: 0 | LG34: 0 | LH34: 0 | LI34: 0 | LJ34: 0 | LK34: 0 | LL34: 0 | LM34: 0 | LN34: 0 | LO34: 0 | LP34: 0 | LQ34: 0 | LR34: 0 | LS34: 0 | LT34: 0 | LU34: 0 | LV34: 0 | LW34: 0 | LX34: 0 | LY34: 0 | LZ34: 0 | MA34: 0 | MB34: 0 | MC34: 0 | MD34: 0 | ME34: 0 | MF34: 0 | MG34: 0 | MH34: 0 | MI34: 0 | MJ34: 0 | MK34: 0 | ML34: 0 | MM34: 0 | MN34: 0 | MO34: 0 | MP34: 0 | MQ34: 0 | MR34: 0 | MS34: 0 | MT34: 0 | MU34: 0 | MV34: 0 | MW34: 0 | MX34: 0 | MY34: 0 | MZ34: 0 | NA34: 0 | NB34: 0 | NC34: 0 | ND34: 0 | NE34: 0 | NF34: 0 | NG34: 0 | NH34: 0 | NI34: 0 | NJ34: 0 | NK34: 0 | NL34: 0 | NM34: 0 | NN34: 0 | NO34: 0 | NP34: 0 | NQ34: 0 | NR34: 0 | NS34: 0 | NT34: 0 | NU34: 0 | NV34: 0 | NW34: 0 | NX34: 0 | NY34: 0 | NZ34: 0 | OA34: 0 | OB34: 0 | OC34: 0 | OD34: 0 | OE34: 0 | OF34: 0 | OG34: 0 | OH34: 0 | OI34: 0 | OJ34: 0 | OK34: 0 | OL34: 0 | OM34: 0 | ON34: 0 | OO34: 0 | OP34: 0 | OQ34: 0 | OR34: 0 | OS34: 0 | OT34: 0 | OU34: 0 | OV34: 0 | OW34: 0 | OX34: 0 | OY34: 0 | OZ34: 0 | PA34: 0 | PB34: 0 | PC34: 0 | PD34: 0 | PE34: 0 | PF34: 0 | PG34: 0 | PH34: 0 | PI34: 0 | PJ34: 0 | PK34: 0 | PL34: 0 | PM34: 0 | PN34: 0 | PO34: 0 | PP34: 0 | PQ34: 0 | PR34: 0 | PS34: 0 | PT34: 0 | PU34: 0 | PV34: 0 | PW34: 0 | PX34: 0 | PY34: 0 | PZ34: 0 | QA34: 0 | QB34: 0 | QC34: 0 | QD34: 0 | QE34: 0 | QF34: 0 | QG34: 0 | QH34: 0 | QI34: 0 | QJ34: 0 | QK34: 0 | QL34: 0 | QM34: 0 | QN34: 0 | QO34: 0 | QP34: 0 | QQ34: 0 | QR34: 0 | QS34: 0 | QT34: 0 | QU34: 0 | QV34: 0 | QW34: 0 | QX34: 0 | QY34: 0 | QZ34: 0 | RA34: 0 | RB34: 0 | RC34: 0 | RD34: 0 | RE34: 0 | RF34: 0 | RG34: 0 | RH34: 0 | RI34: 0 | RJ34: 0 | RK34: 0 | RL34: 0 | RM34: 0 | RN34: 0 | RO34: 0 | RP34: 0 | RQ34: 0 | RR34: 0 | RS34: 0 | RT34: 0 | RU34: 0 | RV34: 0 | RW34: 0 | RX34: 0 | RY34: 0 | RZ34: 0 | SA34: 0 | SB34: 0 | SC34: 0 | SD34: 0 | SE34: 0 | SF34: 0 | SG34: 0 | SH34: 0 | SI34: 0 | SJ34: 0 | SK34: 0 | SL34: 0 | SM34: 0 | SN34: 0 | SO34: 0 | SP34: 0 | SQ34: 0 | SR34: 0 | SS34: 0 | ST34: 0 | SU34: 0 | SV34: 0 | SW34: 0 | SX34: 0 | SY34: 0 | SZ34: 0 | TA34: 0 | TB34: 0 | TC34: 0 | TD34: 0 | TE34: 0 | TF34: 0 | TG34: 0 | TH34: 0 | TI34: 0 | TJ34: 0 | TK34: 0 | TL34: 0 | TM34: 0 | TN34: 0 | TO34: 0 | TP34: 0 | TQ34: 0 | TR34: 0 | TS34: 0 | TT34: 0 | TU34: 0 | TV34: 0 | TW34: 0 | TX34: 0 | TY34: 0 | TZ34: 0 | UA34: 0 | UB34: 0 | UC34: 0 | UD34: 0 | UE34: 0 | UF34: 0 | UG34: 0 | UH34: 0 | UI34: 0 | UJ34: 0 | UK34: 0 | UL34: 0 | UM34: 0 | UN34: 0 | UO34: 0 | UP34: 0 | UQ34: 0 | UR34: 0 | US34: 0 | UT34: 0 | UU34: 0 | UV34: 0 | UW34: 0 | UX34: 0 | UY34: 0 | UZ34: 0 | VA34: 0 | VB34: 0 | VC34: 0 | VD34: 0 | VE34: 0 | VF34: 0 | VG34: 0 | VH34: 0 | VI34: 0 | VJ34: 0 | VK34: 0 | VL34: 0 | VM34: 0 | VN34: 0 | VO34: 0 | VP34: 0 | VQ34: 0 | VR34: 0 | VS34: 0 | VT34: 0 | VU34: 0 | VV34: 0 | VW34: 0 | VX34: 0 | VY34: 0 | VZ34: 0 | WA34: 0 | WB34: 0 | WC34: 0 | WD34: 0 | WE34: 0 | WF34: 0 | WG34: 0 | WH34: 0 | WI34: 0 | WJ34: 0 | WK34: 0 | WL34: 0 | WM34: 0 | WN34: 0 | WO34: 0 | WP34: 0 | WQ34: 0 | WR34: 0 | WS34: 0 | WT34: 0 | WU34: 0 | WV34: 0 | WW34: 0 | WX34: 0 | WY34: 0 | WZ34: 0 | XA34: 0 | XB34: 0 | XC34: 0 | XD34: 0 | XE34: 0 | XF34: 0 | XG34: 0 | XH34: 0 | XI34: 0 | XJ34: 0 | XK34: 0 | XL34: 0 | XM34: 0 | XN34: 0 | XO34: 0 | XP34: 0 | XQ34: 0 | XR34: 0 | XS34: 0 | XT34: 0 | XU34: 0 | XV34: 0 | XW34: 0 | XX34: 0 | XY34: 0 | XZ34: 0 | YA34: 0 | YB34: 0 | YC34: 0 | YD34: 0 | YE34: 0 | YF34: 0 | YG34: 0 | YH34: 0 | YI34: 0 | YJ34: 0 | YK34: 0 | YL34: 0 | YM34: 0 | YN34: 0 | YO34: 0 | YP34: 0 | YQ34: 0 | YR34: 0 | YS34: 0 | YT34: 0 | YU34: 0 | YV34: 0 | YW34: 0 | YX34: 0 | YY34: 0 | YZ34: 0 | ZA34: 0 | ZB34: 0 | ZC34: 0 | ZD34: 0 | ZE34: 0 | ZF34: 0 | ZG34: 0 | ZH34: 0 | ZI34: 0 | ZJ34: 0 | ZK34: 0 | ZL34: 0 | ZM34: 0 | ZN34: 0 | ZO34: 0 | ZP34: 0 | ZQ34: 0 | ZR34: 0 | ZS34: 0 | ZT34: 0 | ZU34: 0 | ZV34: 0 | ZW34: 0 | ZX34: 0 | ZY34: 0 | ZZ34: 0 | AAA34: 0 | AAB34: 0 | AAC34: 0 | AAD34: 0 | AAE34: 0 | AAF34: 0 | AAG34: 0 | AAH34: 0 | AAI34: 0 | AAJ34: 0 | AAK34: 0 | AAL34: 0 | AAM34: 0 | AAN34: 0 | AAO34: 0 | AAP34: 0 | AAQ34: 0 | AAR34: 0 | AAS34: 0 | AAT34: 0 | AAU34: 0 | AAV34: 0 | AAW34: 0 | AAX34: 0 | AAY34: 0 | AAZ34: 0 | ABA34: 0 | ABB34: 0 | ABC34: 0 | ABD34: 0 | ABE34: 0 | ABF34: 0 | ABG34: 0 | ABH34: 0 | ABI34: 0 | ABJ34: 0 | ABK34: 0 | ABL34: 0 | ABM34: 0 | ABN34: 0 | ABO34: 0 | ABP34: 0 | ABQ34: 0 | ABR34: 0 | ABS34: 0 | ABT34: 0 | ABU34: 0 | ABV34: 0 | ABW34: 0 | ABX34: 0 | ABY34: 0 | ABZ34: 0
D35: Total Volumes Applied | E35: kWh | K35: =SUM(K32:K34) -> 0 | L35: =SUM(L32:L34) -> 0 | M35: 0 | N35: 0 | O35: 0 | P35: 0 | Q35: 0 | R35: 0 | S35: 0 | T35: 0 | U35: 0 | V35: 0 | W35: 0 | X35: 0 | Y35: 0 | Z35: 0 | AA35: 0 | AB35: 0 | AC35: 0 | AD35: 0 | AE35: 0 | AF35: 0 | AG35: 0 | AH35: 0 | AI35: 0 | AJ35: 0 | AK35: 0 | AL35: 0 | AM35: 0 | AN35: 201600 | AO35: 208320 | AP35: 208320 | AQ35: 201600 | AR35: 208320 | AS35: 201600 | AT35: 208320 | AU35: 208320 | AV35: 194880 | AW35: 208320 | AX35: 201600 | AY35: 208320 | AZ35: 201600 | BA35: 208320 | BB35: 208320 | BC35: 201600 | BD35: 208320 | BE35: 201600 | BF35: 208320 | BG35: 208320 | BH35: 188160 | BI35: 208320 | BJ35: 201600 | BK35: 208320 | BL35: 201600 | BM35: 208320 | BN35: 208320 | BO35: 201600 | BP35: 208320 | BQ35: 201600 | BR35: 208320 | BS35: 208320 | BT35: 188160 | BU35: 208320 | BV35: 201600 | BW35: 208320 | BX35: =SUM(BX32:BX34) -> 201600 | BY35: 208320 | BZ35: 208320 | CA35: 201600 | CB35: 208320 | CC35: 201600 | CD35: 208320 | CE35: 208320 | CF35: 188160 | CG35: 208320 | CH35: 201600 | CI35: 208320 | CJ35: 201600 | CK35: 208320 | CL35: 208320 | CM35: 201600 | CN35: 208320 | CO35: 201600 | CP35: 208320 | CQ35: 208320 | CR35: 194880 | CS35: 208320 | CT35: 201600 | CU35: 208320 | CV35: 201600 | CW35: 208320 | CX35: 208320 | CY35: 201600 | CZ35: 208320 | DA35: 201600 | DB35: 208320 | DC35: 208320 | DD35: 188160 | DE35: 208320 | DF35: 201600 | DG35: 208320 | DH35: 201600 | DI35: 208320 | DJ35: 208320 | DK35: 201600 | DL35: 208320 | DM35: 201600 | DN35: 208320 | DO35: 208320 | DP35: 188160 | DQ35: 208320 | DR35: 201600 | DS35: 208320 | DT35: 201600 | DU35: 208320 | DV35: 208320 | DW35: 201600 | DX35: 208320 | DY35: 201600 | DZ35: 208320 | EA35: 208320 | EB35: 188160 | EC35: 208320 | ED35: 201600 | EE35: 208320 | EF35: 201600 | EG35: 208320 | EH35: 208320 | EI35: 201600 | EJ35: =SUM(EJ32:EJ34) -> 208320 | EK35: 201600 | EL35: 208320 | EM35: 208320 | EN35: 194880 | EO35: 208320 | EP35: 201600 | EQ35: 208320 | ER35: 201600 | ES35: 208320 | ET35: 208320 | EU35: 201600 | EV35: 208320 | EW35: 201600 | EX35: 208320 | EY35: 208320 | EZ35: 188160 | FA35: 208320 | FB35: 201600 | FC35: 208320 | FD35: 201600 | FE35: 208320 | FF35: 208320 | FG35: 201600 | FH35: 208320 | FI35: 201600 | FJ35: 208320 | FK35: 208320 | FL35: 188160 | FM35: 208320 | FN35: 201600 | FO35: 208320 | FP35: 201600 | FQ35: 208320 | FR35: 208320 | FS35: 201600 | FT35: 208320 | FU35: 201600 | FV35: 208320 | FW35: 208320 | FX35: 188160 | FY35: 208320 | FZ35: 201600 | GA35: 208320 | GB35: 201600 | GC35: 208320 | GD35: 208320 | GE35: 201600 | GF35: 208320 | GG35: 201600 | GH35: 208320 | GI35: 208320 | GJ35: 194880 | GK35: 208320 | GL35: 201600 | GM35: 208320 | GN35: 201600 | GO35: 208320 | GP35: 208320 | GQ35: 201600 | GR35: 208320 | GS35: 201600 | GT35: 208320 | GU35: 208320 | GV35: =SUM(GV32:GV34) -> 188160 | GW35: 208320 | GX35: 201600 | GY35: 208320 | GZ35: 201600 | HA35: 208320 | HB35: 208320 | HC35: 201600 | HD35: 208320 | HE35: 201600 | HF35: 208320 | HG35: 208320 | HH35: 188160 | HI35: 208320 | HJ35: 201600 | HK35: 208320 | HL35: 201600 | HM35: 208320 | HN35: 208320 | HO35: 201600 | HP35: 208320 | HQ35: 201600 | HR35: 208320 | HS35: 208320 | HT35: 188160 | HU35: 208320 | HV35: 201600 | HW35: 208320 | HX35: 201600 | HY35: 208320 | HZ35: 208320 | IA35: 201600 | IB35: 208320 | IC35: 201600 | ID35: 208320 | IE35: 208320 | IF35: 194880 | IG35: 208320 | IH35: 201600 | II35: 208320 | IJ35: 201600 | IK35: 208320 | IL35: 208320 | IM35: 201600 | IN35: 208320 | IO35: 201600 | IP35: 208320 | IQ35: 208320 | IR35: 188160 | IS35: 208320 | IT35: 201600 | IU35: 208320 | IV35: 201600 | IW35: 208320 | IX35: 208320 | IY35: 201600 | IZ35: 208320 | JA35: 201600 | JB35: 208320 | JC35: 208320 | JD35: 188160 | JE35: 208320 | JF35: 201600 | JG35: 208320 | JH35: =SUM(JH32:JH34) -> 201600 | JI35: 208320 | JJ35: 208320 | JK35: 201600 | JL35: 208320 | JM35: 201600 | JN35: 208320 | JO35: 208320 | JP35: 188160 | JQ35: 208320 | JR35: 201600 | JS35: 208320 | JT35: 201600 | JU35: 208320 | JV35: 208320 | JW35: 201600 | JX35: 208320 | JY35: 201600 | JZ35: 208320 | KA35: 208320 | KB35: 194880 | KC35: 208320 | KD35: 201600 | KE35: 208320 | KF35: 201600 | KG35: 208320 | KH35: 208320 | KI35: 201600 | KJ35: 208320 | KK35: 201600 | KL35: 208320 | KM35: 208320 | KN35: 188160 | KO35: 208320 | KP35: 201600 | KQ35: 208320 | KR35: 201600 | KS35: 208320 | KT35: 208320 | KU35: 201600 | KV35: 208320 | KW35: 201600 | KX35: 208320 | KY35: 208320 | KZ35: 188160 | LA35: 208320 | LB35: 201600 | LC35: 208320 | LD35: 201600 | LE35: 208320 | LF35: 208320 | LG35: 201600 | LH35: 208320 | LI35: 201600 | LJ35: 208320 | LK35: 208320 | LL35: 188160 | LM35: 208320 | LN35: 201600 | LO35: 208320 | LP35: 201600 | LQ35: 208320 | LR35: 208320 | LS35: 201600 | LT35: =SUM(LT32:LT34) -> 208320 | LU35: 201600 | LV35: 208320 | LW35: 208320 | LX35: 194880 | LY35: 208320 | LZ35: 201600 | MA35: 208320 | MB35: 201600 | MC35: 208320 | MD35: 208320 | ME35: 201600 | MF35: 208320 | MG35: 201600 | MH35: 208320 | MI35: 208320 | MJ35: 188160 | MK35: 208320 | ML35: 201600 | MM35: 208320 | MN35: 201600 | MO35: 208320 | MP35: 208320 | MQ35: 201600 | MR35: 208320 | MS35: 201600 | MT35: 208320 | MU35: 208320 | MV35: 188160 | MW35: 208320 | MX35: 201600 | MY35: 208320 | MZ35: 201600 | NA35: 208320 | NB35: 208320 | NC35: 201600 | ND35: 208320 | NE35: 201600 | NF35: 208320 | NG35: 208320 | NH35: 188160 | NI35: 208320 | NJ35: 201600 | NK35: 208320 | NL35: 201600 | NM35: 208320 | NN35: 208320 | NO35: 201600 | NP35: 208320 | NQ35: 201600 | NR35: 208320 | NS35: 208320 | NT35: 194880 | NU35: 208320 | NV35: 201600 | NW35: 208320 | NX35: 201600 | NY35: 208320 | NZ35: 208320 | OA35: 201600 | OB35: 208320 | OC35: 201600 | OD35: 208320 | OE35: 208320 | OF35: =SUM(OF32:OF34) -> 188160 | OG35: 208320 | OH35: 201600 | OI35: 208320 | OJ35: 0 | OK35: 0 | OL35: 0 | OM35: 0 | ON35: 0 | OO35: 0 | OP35: 0 | OQ35: 0 | OR35: 0 | OS35: 0 | OT35: 0 | OU35: 0 | OV35: 0 | OW35: 0 | OX35: 0 | OY35: 0 | OZ35: 0 | PA35: 0 | PB35: 0 | PC35: 0 | PD35: 0 | PE35: 0 | PF35: 0 | PG35: 0 | PH35: 0 | PI35: 0 | PJ35: 0 | PK35: 0 | PL35: 0 | PM35: 0 | PN35: 0 | PO35: 0 | PP35: 0 | PQ35: 0 | PR35: 0 | PS35: 0 | PT35: 0 | PU35: 0 | PV35: 0 | PW35: 0 | PX35: 0 | PY35: 0 | PZ35: 0 | QA35: 0 | QB35: 0 | QC35: 0 | QD35: 0 | QE35: 0 | QF35: 0 | QG35: 0 | QH35: 0 | QI35: 0 | QJ35: 0 | QK35: 0 | QL35: 0 | QM35: 0 | QN35: 0 | QO35: 0 | QP35: 0 | QQ35: 0 | QR35: =SUM(QR32:QR34) -> 0 | QS35: 0 | QT35: 0 | QU35: 0 | QV35: 0 | QW35: 0 | QX35: 0 | QY35: 0 | QZ35: 0 | RA35: 0 | RB35: 0 | RC35: 0 | RD35: 0 | RE35: 0 | RF35: 0 | RG35: 0 | RH35: 0 | RI35: 0 | RJ35: 0 | RK35: 0 | RL35: 0 | RM35: 0 | RN35: 0 | RO35: 0 | RP35: 0 | RQ35: 0 | RR35: 0 | RS35: 0 | RT35: 0 | RU35: 0 | RV35: 0 | RW35: 0 | RX35: 0 | RY35: 0 | RZ35: 0 | SA35: 0 | SB35: 0 | SC35: 0 | SD35: 0 | SE35: 0 | SF35: 0 | SG35: 0 | SH35: 0 | SI35: 0 | SJ35: 0 | SK35: 0 | SL35: 0 | SM35: 0 | SN35: 0 | SO35: 0 | SP35: 0 | SQ35: 0 | SR35: 0 | SS35: 0 | ST35: 0 | SU35: 0 | SV35: 0 | SW35: 0 | SX35: 0 | SY35: 0 | SZ35: 0 | TA35: 0 | TB35: 0 | TC35: 0 | TD35: =SUM(TD32:TD34) -> 0 | TE35: 0 | TF35: 0 | TG35: 0 | TH35: 0 | TI35: 0 | TJ35: 0 | TK35: 0 | TL35: 0 | TM35: 0 | TN35: 0 | TO35: 0 | TP35: 0 | TQ35: 0 | TR35: 0 | TS35: 0 | TT35: 0 | TU35: 0 | TV35: 0 | TW35: 0 | TX35: 0 | TY35: 0 | TZ35: 0 | UA35: 0 | UB35: 0 | UC35: 0 | UD35: 0 | UE35: 0 | UF35: 0 | UG35: 0 | UH35: 0 | UI35: 0 | UJ35: 0 | UK35: 0 | UL35: 0 | UM35: 0 | UN35: 0 | UO35: 0 | UP35: 0 | UQ35: 0 | UR35: 0 | US35: 0 | UT35: 0 | UU35: 0 | UV35: 0 | UW35: 0 | UX35: 0 | UY35: 0 | UZ35: 0 | VA35: 0 | VB35: 0 | VC35: 0 | VD35: 0 | VE35: 0 | VF35: 0 | VG35: 0 | VH35: 0 | VI35: 0 | VJ35: 0 | VK35: 0 | VL35: 0 | VM35: 0 | VN35: 0 | VO35: 0 | VP35: =SUM(VP32:VP34) -> 0 | VQ35: 0 | VR35: 0 | VS35: 0 | VT35: 0 | VU35: 0 | VV35: 0 | VW35: 0 | VX35: 0 | VY35: 0 | VZ35: 0 | WA35: 0 | WB35: 0 | WC35: 0 | WD35: 0 | WE35: 0 | WF35: 0 | WG35: 0 | WH35: 0 | WI35: 0 | WJ35: 0 | WK35: 0 | WL35: 0 | WM35: 0 | WN35: 0 | WO35: 0 | WP35: 0 | WQ35: 0 | WR35: 0 | WS35: 0 | WT35: 0 | WU35: 0 | WV35: 0 | WW35: 0 | WX35: 0 | WY35: 0 | WZ35: 0 | XA35: 0 | XB35: 0 | XC35: 0 | XD35: 0 | XE35: 0 | XF35: 0 | XG35: 0 | XH35: 0 | XI35: 0 | XJ35: 0 | XK35: 0 | XL35: 0 | XM35: 0 | XN35: 0 | XO35: 0 | XP35: 0 | XQ35: 0 | XR35: 0 | XS35: 0 | XT35: 0 | XU35: 0 | XV35: 0 | XW35: 0 | XX35: 0 | XY35: 0 | XZ35: 0 | YA35: 0 | YB35: =SUM(YB32:YB34) -> 0 | YC35: 0 | YD35: 0 | YE35: 0 | YF35: 0 | YG35: 0 | YH35: 0 | YI35: 0 | YJ35: 0 | YK35: 0 | YL35: 0 | YM35: 0 | YN35: 0 | YO35: 0 | YP35: 0 | YQ35: 0 | YR35: 0 | YS35: 0 | YT35: 0 | YU35: 0 | YV35: 0 | YW35: 0 | YX35: 0 | YY35: 0 | YZ35: 0 | ZA35: 0 | ZB35: 0 | ZC35: 0 | ZD35: 0 | ZE35: 0 | ZF35: 0 | ZG35: 0 | ZH35: 0 | ZI35: 0 | ZJ35: 0 | ZK35: 0 | ZL35: 0 | ZM35: 0 | ZN35: 0 | ZO35: 0 | ZP35: 0 | ZQ35: 0 | ZR35: 0 | ZS35: 0 | ZT35: 0 | ZU35: 0 | ZV35: 0 | ZW35: 0 | ZX35: 0 | ZY35: 0 | ZZ35: 0 | AAA35: 0 | AAB35: 0 | AAC35: 0 | AAD35: 0 | AAE35: 0 | AAF35: 0 | AAG35: 0 | AAH35: 0 | AAI35: 0 | AAJ35: 0 | AAK35: 0 | AAL35: 0 | AAM35: 0 | AAN35: =SUM(AAN32:AAN34) -> 0 | AAO35: 0 | AAP35: 0 | AAQ35: 0 | AAR35: 0 | AAS35: 0 | AAT35: 0 | AAU35: 0 | AAV35: 0 | AAW35: 0 | AAX35: 0 | AAY35: 0 | AAZ35: 0 | ABA35: 0 | ABB35: 0 | ABC35: 0 | ABD35: 0 | ABE35: 0 | ABF35: 0 | ABG35: 0 | ABH35: 0 | ABI35: 0 | ABJ35: 0 | ABK35: 0 | ABL35: 0 | ABM35: 0 | ABN35: 0 | ABO35: 0 | ABP35: 0 | ABQ35: 0 | ABR35: 0 | ABS35: 0 | ABT35: 0 | ABU35: 0 | ABV35: 0 | ABW35: 0 | ABX35: 0 | ABY35: 0 | ABZ35: 0
B37: Operations
C39: Capital Expenditures
D40: Capital Expenditure for Solar | E40: USD/kWp | F40: =INDEX(InputC!I46:AD46,E1) -> 0 | G40: =F40*F14 -> 0 | K40: =$G40 -> 0 | L40: =$G40 -> 0 | M40: 0 | N40: 0 | O40: 0 | P40: 0 | Q40: 0 | R40: 0 | S40: 0 | T40: 0 | U40: 0 | V40: 0 | W40: 0 | X40: 0 | Y40: 0 | Z40: 0 | AA40: 0 | AB40: 0 | AC40: 0 | AD40: 0 | AE40: 0 | AF40: 0 | AG40: 0 | AH40: 0 | AI40: 0 | AJ40: 0 | AK40: 0 | AL40: 0 | AM40: 0 | AN40: 0 | AO40: 0 | AP40: 0 | AQ40: 0 | AR40: 0 | AS40: 0 | AT40: 0 | AU40: 0 | AV40: 0 | AW40: 0 | AX40: 0 | AY40: 0 | AZ40: 0 | BA40: 0 | BB40: 0 | BC40: 0 | BD40: 0 | BE40: 0 | BF40: 0 | BG40: 0 | BH40: 0 | BI40: 0 | BJ40: 0 | BK40: 0 | BL40: 0 | BM40: 0 | BN40: 0 | BO40: 0 | BP40: 0 | BQ40: 0 | BR40: 0 | BS40: 0 | BT40: 0 | BU40: 0 | BV40: 0 | BW40: 0 | BX40: =$G40 -> 0 | BY40: 0 | BZ40: 0 | CA40: 0 | CB40: 0 | CC40: 0 | CD40: 0 | CE40: 0 | CF40: 0 | CG40: 0 | CH40: 0 | CI40: 0 | CJ40: 0 | CK40: 0 | CL40: 0 | CM40: 0 | CN40: 0 | CO40: 0 | CP40: 0 | CQ40: 0 | CR40: 0 | CS40: 0 | CT40: 0 | CU40: 0 | CV40: 0 | CW40: 0 | CX40: 0 | CY40: 0 | CZ40: 0 | DA40: 0 | DB40: 0 | DC40: 0 | DD40: 0 | DE40: 0 | DF40: 0 | DG40: 0 | DH40: 0 | DI40: 0 | DJ40: 0 | DK40: 0 | DL40: 0 | DM40: 0 | DN40: 0 | DO40: 0 | DP40: 0 | DQ40: 0 | DR40: 0 | DS40: 0 | DT40: 0 | DU40: 0 | DV40: 0 | DW40: 0 | DX40: 0 | DY40: 0 | DZ40: 0 | EA40: 0 | EB40: 0 | EC40: 0 | ED40: 0 | EE40: 0 | EF40: 0 | EG40: 0 | EH40: 0 | EI40: 0 | EJ40: =$G40 -> 0 | EK40: 0 | EL40: 0 | EM40: 0 | EN40: 0 | EO40: 0 | EP40: 0 | EQ40: 0 | ER40: 0 | ES40: 0 | ET40: 0 | EU40: 0 | EV40: 0 | EW40: 0 | EX40: 0 | EY40: 0 | EZ40: 0 | FA40: 0 | FB40: 0 | FC40: 0 | FD40: 0 | FE40: 0 | FF40: 0 | FG40: 0 | FH40: 0 | FI40: 0 | FJ40: 0 | FK40: 0 | FL40: 0 | FM40: 0 | FN40: 0 | FO40: 0 | FP40: 0 | FQ40: 0 | FR40: 0 | FS40: 0 | FT40: 0 | FU40: 0 | FV40: 0 | FW40: 0 | FX40: 0 | FY40: 0 | FZ40: 0 | GA40: 0 | GB40: 0 | GC40: 0 | GD40: 0 | GE40: 0 | GF40: 0 | GG40: 0 | GH40: 0 | GI40: 0 | GJ40: 0 | GK40: 0 | GL40: 0 | GM40: 0 | GN40: 0 | GO40: 0 | GP40: 0 | GQ40: 0 | GR40: 0 | GS40: 0 | GT40: 0 | GU40: 0 | GV40: =$G40 -> 0 | GW40: 0 | GX40: 0 | GY40: 0 | GZ40: 0 | HA40: 0 | HB40: 0 | HC40: 0 | HD40: 0 | HE40: 0 | HF40: 0 | HG40: 0 | HH40: 0 | HI40: 0 | HJ40: 0 | HK40: 0 | HL40: 0 | HM40: 0 | HN40: 0 | HO40: 0 | HP40: 0 | HQ40: 0 | HR40: 0 | HS40: 0 | HT40: 0 | HU40: 0 | HV40: 0 | HW40: 0 | HX40: 0 | HY40: 0 | HZ40: 0 | IA40: 0 | IB40: 0 | IC40: 0 | ID40: 0 | IE40: 0 | IF40: 0 | IG40: 0 | IH40: 0 | II40: 0 | IJ40: 0 | IK40: 0 | IL40: 0 | IM40: 0 | IN40: 0 | IO40: 0 | IP40: 0 | IQ40: 0 | IR40: 0 | IS40: 0 | IT40: 0 | IU40: 0 | IV40: 0 | IW40: 0 | IX40: 0 | IY40: 0 | IZ40: 0 | JA40: 0 | JB40: 0 | JC40: 0 | JD40: 0 | JE40: 0 | JF40: 0 | JG40: 0 | JH40: =$G40 -> 0 | JI40: 0 | JJ40: 0 | JK40: 0 | JL40: 0 | JM40: 0 | JN40: 0 | JO40: 0 | JP40: 0 | JQ40: 0 | JR40: 0 | JS40: 0 | JT40: 0 | JU40: 0 | JV40: 0 | JW40: 0 | JX40: 0 | JY40: 0 | JZ40: 0 | KA40: 0 | KB40: 0 | KC40: 0 | KD40: 0 | KE40: 0 | KF40: 0 | KG40: 0 | KH40: 0 | KI40: 0 | KJ40: 0 | KK40: 0 | KL40: 0 | KM40: 0 | KN40: 0 | KO40: 0 | KP40: 0 | KQ40: 0 | KR40: 0 | KS40: 0 | KT40: 0 | KU40: 0 | KV40: 0 | KW40: 0 | KX40: 0 | KY40: 0 | KZ40: 0 | LA40: 0 | LB40: 0 | LC40: 0 | LD40: 0 | LE40: 0 | LF40: 0 | LG40: 0 | LH40: 0 | LI40: 0 | LJ40: 0 | LK40: 0 | LL40: 0 | LM40: 0 | LN40: 0 | LO40: 0 | LP40: 0 | LQ40: 0 | LR40: 0 | LS40: 0 | LT40: =$G40 -> 0 | LU40: 0 | LV40: 0 | LW40: 0 | LX40: 0 | LY40: 0 | LZ40: 0 | MA40: 0 | MB40: 0 | MC40: 0 | MD40: 0 | ME40: 0 | MF40: 0 | MG40: 0 | MH40: 0 | MI40: 0 | MJ40: 0 | MK40: 0 | ML40: 0 | MM40: 0 | MN40: 0 | MO40: 0 | MP40: 0 | MQ40: 0 | MR40: 0 | MS40: 0 | MT40: 0 | MU40: 0 | MV40: 0 | MW40: 0 | MX40: 0 | MY40: 0 | MZ40: 0 | NA40: 0 | NB40: 0 | NC40: 0 | ND40: 0 | NE40: 0 | NF40: 0 | NG40: 0 | NH40: 0 | NI40: 0 | NJ40: 0 | NK40: 0 | NL40: 0 | NM40: 0 | NN40: 0 | NO40: 0 | NP40: 0 | NQ40: 0 | NR40: 0 | NS40: 0 | NT40: 0 | NU40: 0 | NV40: 0 | NW40: 0 | NX40: 0 | NY40: 0 | NZ40: 0 | OA40: 0 | OB40: 0 | OC40: 0 | OD40: 0 | OE40: 0 | OF40: =$G40 -> 0 | OG40: 0 | OH40: 0 | OI40: 0 | OJ40: 0 | OK40: 0 | OL40: 0 | OM40: 0 | ON40: 0 | OO40: 0 | OP40: 0 | OQ40: 0 | OR40: 0 | OS40: 0 | OT40: 0 | OU40: 0 | OV40: 0 | OW40: 0 | OX40: 0 | OY40: 0 | OZ40: 0 | PA40: 0 | PB40: 0 | PC40: 0 | PD40: 0 | PE40: 0 | PF40: 0 | PG40: 0 | PH40: 0 | PI40: 0 | PJ40: 0 | PK40: 0 | PL40: 0 | PM40: 0 | PN40: 0 | PO40: 0 | PP40: 0 | PQ40: 0 | PR40: 0 | PS40: 0 | PT40: 0 | PU40: 0 | PV40: 0 | PW40: 0 | PX40: 0 | PY40: 0 | PZ40: 0 | QA40: 0 | QB40: 0 | QC40: 0 | QD40: 0 | QE40: 0 | QF40: 0 | QG40: 0 | QH40: 0 | QI40: 0 | QJ40: 0 | QK40: 0 | QL40: 0 | QM40: 0 | QN40: 0 | QO40: 0 | QP40: 0 | QQ40: 0 | QR40: =$G40 -> 0 | QS40: 0 | QT40: 0 | QU40: 0 | QV40: 0 | QW40: 0 | QX40: 0 | QY40: 0 | QZ40: 0 | RA40: 0 | RB40: 0 | RC40: 0 | RD40: 0 | RE40: 0 | RF40: 0 | RG40: 0 | RH40: 0 | RI40: 0 | RJ40: 0 | RK40: 0 | RL40: 0 | RM40: 0 | RN40: 0 | RO40: 0 | RP40: 0 | RQ40: 0 | RR40: 0 | RS40: 0 | RT40: 0 | RU40: 0 | RV40: 0 | RW40: 0 | RX40: 0 | RY40: 0 | RZ40: 0 | SA40: 0 | SB40: 0 | SC40: 0 | SD40: 0 | SE40: 0 | SF40: 0 | SG40: 0 | SH40: 0 | SI40: 0 | SJ40: 0 | SK40: 0 | SL40: 0 | SM40: 0 | SN40: 0 | SO40: 0 | SP40: 0 | SQ40: 0 | SR40: 0 | SS40: 0 | ST40: 0 | SU40: 0 | SV40: 0 | SW40: 0 | SX40: 0 | SY40: 0 | SZ40: 0 | TA40: 0 | TB40: 0 | TC40: 0 | TD40: =$G40 -> 0 | TE40: 0 | TF40: 0 | TG40: 0 | TH40: 0 | TI40: 0 | TJ40: 0 | TK40: 0 | TL40: 0 | TM40: 0 | TN40: 0 | TO40: 0 | TP40: 0 | TQ40: 0 | TR40: 0 | TS40: 0 | TT40: 0 | TU40: 0 | TV40: 0 | TW40: 0 | TX40: 0 | TY40: 0 | TZ40: 0 | UA40: 0 | UB40: 0 | UC40: 0 | UD40: 0 | UE40: 0 | UF40: 0 | UG40: 0 | UH40: 0 | UI40: 0 | UJ40: 0 | UK40: 0 | UL40: 0 | UM40: 0 | UN40: 0 | UO40: 0 | UP40: 0 | UQ40: 0 | UR40: 0 | US40: 0 | UT40: 0 | UU40: 0 | UV40: 0 | UW40: 0 | UX40: 0 | UY40: 0 | UZ40: 0 | VA40: 0 | VB40: 0 | VC40: 0 | VD40: 0 | VE40: 0 | VF40: 0 | VG40: 0 | VH40: 0 | VI40: 0 | VJ40: 0 | VK40: 0 | VL40: 0 | VM40: 0 | VN40: 0 | VO40: 0 | VP40: =$G40 -> 0 | VQ40: 0 | VR40: 0 | VS40: 0 | VT40: 0 | VU40: 0 | VV40: 0 | VW40: 0 | VX40: 0 | VY40: 0 | VZ40: 0 | WA40: 0 | WB40: 0 | WC40: 0 | WD40: 0 | WE40: 0 | WF40: 0 | WG40: 0 | WH40: 0 | WI40: 0 | WJ40: 0 | WK40: 0 | WL40: 0 | WM40: 0 | WN40: 0 | WO40: 0 | WP40: 0 | WQ40: 0 | WR40: 0 | WS40: 0 | WT40: 0 | WU40: 0 | WV40: 0 | WW40: 0 | WX40: 0 | WY40: 0 | WZ40: 0 | XA40: 0 | XB40: 0 | XC40: 0 | XD40: 0 | XE40: 0 | XF40: 0 | XG40: 0 | XH40: 0 | XI40: 0 | XJ40: 0 | XK40: 0 | XL40: 0 | XM40: 0 | XN40: 0 | XO40: 0 | XP40: 0 | XQ40: 0 | XR40: 0 | XS40: 0 | XT40: 0 | XU40: 0 | XV40: 0 | XW40: 0 | XX40: 0 | XY40: 0 | XZ40: 0 | YA40: 0 | YB40: =$G40 -> 0 | YC40: 0 | YD40: 0 | YE40: 0 | YF40: 0 | YG40: 0 | YH40: 0 | YI40: 0 | YJ40: 0 | YK40: 0 | YL40: 0 | YM40: 0 | YN40: 0 | YO40: 0 | YP40: 0 | YQ40: 0 | YR40: 0 | YS40: 0 | YT40: 0 | YU40: 0 | YV40: 0 | YW40: 0 | YX40: 0 | YY40: 0 | YZ40: 0 | ZA40: 0 | ZB40: 0 | ZC40: 0 | ZD40: 0 | ZE40: 0 | ZF40: 0 | ZG40: 0 | ZH40: 0 | ZI40: 0 | ZJ40: 0 | ZK40: 0 | ZL40: 0 | ZM40: 0 | ZN40: 0 | ZO40: 0 | ZP40: 0 | ZQ40: 0 | ZR40: 0 | ZS40: 0 | ZT40: 0 | ZU40: 0 | ZV40: 0 | ZW40: 0 | ZX40: 0 | ZY40: 0 | ZZ40: 0 | AAA40: 0 | AAB40: 0 | AAC40: 0 | AAD40: 0 | AAE40: 0 | AAF40: 0 | AAG40: 0 | AAH40: 0 | AAI40: 0 | AAJ40: 0 | AAK40: 0 | AAL40: 0 | AAM40: 0 | AAN40: =$G40 -> 0 | AAO40: 0 | AAP40: 0 | AAQ40: 0 | AAR40: 0 | AAS40: 0 | AAT40: 0 | AAU40: 0 | AAV40: 0 | AAW40: 0 | AAX40: 0 | AAY40: 0 | AAZ40: 0 | ABA40: 0 | ABB40: 0 | ABC40: 0 | ABD40: 0 | ABE40: 0 | ABF40: 0 | ABG40: 0 | ABH40: 0 | ABI40: 0 | ABJ40: 0 | ABK40: 0 | ABL40: 0 | ABM40: 0 | ABN40: 0 | ABO40: 0 | ABP40: 0 | ABQ40: 0 | ABR40: 0 | ABS40: 0 | ABT40: 0 | ABU40: 0 | ABV40: 0 | ABW40: 0 | ABX40: 0 | ABY40: 0 | ABZ40: 0
D41: Capital Expenditure for Wind | E41: USD/kW | F41: =INDEX(InputC!I47:AD47,E1) -> 850 | G41: =F41*F15 -> 680000 | K41: =$G41 -> 680000 | L41: 680000 | M41: 680000 | N41: 680000 | O41: 680000 | P41: 680000 | Q41: 680000 | R41: 680000 | S41: 680000 | T41: 680000 | U41: 680000 | V41: 680000 | W41: 680000 | X41: 680000 | Y41: 680000 | Z41: 680000 | AA41: 680000 | AB41: 680000 | AC41: 680000 | AD41: 680000 | AE41: 680000 | AF41: 680000 | AG41: 680000 | AH41: 680000 | AI41: 680000 | AJ41: 680000 | AK41: 680000 | AL41: 680000 | AM41: 680000 | AN41: 680000 | AO41: 680000 | AP41: 680000 | AQ41: 680000 | AR41: 680000 | AS41: 680000 | AT41: 680000 | AU41: 680000 | AV41: 680000 | AW41: 680000 | AX41: 680000 | AY41: 680000 | AZ41: 680000 | BA41: 680000 | BB41: 680000 | BC41: 680000 | BD41: 680000 | BE41: 680000 | BF41: 680000 | BG41: 680000 | BH41: 680000 | BI41: 680000 | BJ41: 680000 | BK41: 680000 | BL41: 680000 | BM41: 680000 | BN41: 680000 | BO41: 680000 | BP41: 680000 | BQ41: 680000 | BR41: 680000 | BS41: 680000 | BT41: 680000 | BU41: 680000 | BV41: 680000 | BW41: 680000 | BX41: 680000 | BY41: 680000 | BZ41: 680000 | CA41: 680000 | CB41: 680000 | CC41: 680000 | CD41: 680000 | CE41: 680000 | CF41: 680000 | CG41: 680000 | CH41: 680000 | CI41: 680000 | CJ41: 680000 | CK41: 680000 | CL41: 680000 | CM41: 680000 | CN41: 680000 | CO41: 680000 | CP41: 680000 | CQ41: 680000 | CR41: 680000 | CS41: 680000 | CT41: 680000 | CU41: 680000 | CV41: 680000 | CW41: 680000 | CX41: 680000 | CY41: 680000 | CZ41: 680000 | DA41: 680000 | DB41: 680000 | DC41: 680000 | DD41: 680000 | DE41: 680000 | DF41: 680000 | DG41: 680000 | DH41: 680000 | DI41: 680000 | DJ41: 680000 | DK41: 680000 | DL41: 680000 | DM41: 680000 | DN41: 680000 | DO41: 680000 | DP41: 680000 | DQ41: 680000 | DR41: 680000 | DS41: 680000 | DT41: 680000 | DU41: 680000 | DV41: 680000 | DW41: 680000 | DX41: 680000 | DY41: 680000 | DZ41: 680000 | EA41: 680000 | EB41: 680000 | EC41: 680000 | ED41: 680000 | EE41: 680000 | EF41: 680000 | EG41: 680000 | EH41: 680000 | EI41: 680000 | EJ41: 680000 | EK41: 680000 | EL41: 680000 | EM41: 680000 | EN41: 680000 | EO41: 680000 | EP41: 680000 | EQ41: 680000 | ER41: 680000 | ES41: 680000 | ET41: 680000 | EU41: 680000 | EV41: 680000 | EW41: 680000 | EX41: 680000 | EY41: 680000 | EZ41: 680000 | FA41: 680000 | FB41: 680000 | FC41: 680000 | FD41: 680000 | FE41: 680000 | FF41: 680000 | FG41: 680000 | FH41: 680000 | FI41: 680000 | FJ41: 680000 | FK41: 680000 | FL41: 680000 | FM41: 680000 | FN41: 680000 | FO41: 680000 | FP41: 680000 | FQ41: 680000 | FR41: 680000 | FS41: 680000 | FT41: 680000 | FU41: 680000 | FV41: 680000 | FW41: 680000 | FX41: 680000 | FY41: 680000 | FZ41: 680000 | GA41: 680000 | GB41: 680000 | GC41: 680000 | GD41: 680000 | GE41: 680000 | GF41: 680000 | GG41: 680000 | GH41: 680000 | GI41: 680000 | GJ41: 680000 | GK41: 680000 | GL41: 680000 | GM41: 680000 | GN41: 680000 | GO41: 680000 | GP41: 680000 | GQ41: 680000 | GR41: 680000 | GS41: 680000 | GT41: 680000 | GU41: 680000 | GV41: 680000 | GW41: 680000 | GX41: 680000 | GY41: 680000 | GZ41: 680000 | HA41: 680000 | HB41: 680000 | HC41: 680000 | HD41: 680000 | HE41: 680000 | HF41: 680000 | HG41: 680000 | HH41: 680000 | HI41: 680000 | HJ41: 680000 | HK41: 680000 | HL41: 680000 | HM41: 680000 | HN41: 680000 | HO41: 680000 | HP41: 680000 | HQ41: 680000 | HR41: 680000 | HS41: 680000 | HT41: 680000 | HU41: 680000 | HV41: 680000 | HW41: 680000 | HX41: 680000 | HY41: 680000 | HZ41: 680000 | IA41: 680000 | IB41: 680000 | IC41: 680000 | ID41: 680000 | IE41: 680000 | IF41: 680000 | IG41: 680000 | IH41: 680000 | II41: 680000 | IJ41: 680000 | IK41: 680000 | IL41: 680000 | IM41: 680000 | IN41: 680000 | IO41: 680000 | IP41: 680000 | IQ41: 680000 | IR41: 680000 | IS41: 680000 | IT41: 680000 | IU41: 680000 | IV41: 680000 | IW41: 680000 | IX41: 680000 | IY41: 680000 | IZ41: 680000 | JA41: 680000 | JB41: 680000 | JC41: 680000 | JD41: 680000 | JE41: 680000 | JF41: 680000 | JG41: 680000 | JH41: 680000 | JI41: 680000 | JJ41: 680000 | JK41: 680000 | JL41: 680000 | JM41: 680000 | JN41: 680000 | JO41: 680000 | JP41: 680000 | JQ41: 680000 | JR41: 680000 | JS41: 680000 | JT41: 680000 | JU41: 680000 | JV41: 680000 | JW41: 680000 | JX41: 680000 | JY41: 680000 | JZ41: 680000 | KA41: 680000 | KB41: 680000 | KC41: 680000 | KD41: 680000 | KE41: 680000 | KF41: 680000 | KG41: 680000 | KH41: 680000 | KI41: 680000 | KJ41: 680000 | KK41: 680000 | KL41: 680000 | KM41: 680000 | KN41: 680000 | KO41: 680000 | KP41: 680000 | KQ41: 680000 | KR41: 680000 | KS41: 680000 | KT41: 680000 | KU41: 680000 | KV41: 680000 | KW41: 680000 | KX41: 680000 | KY41: 680000 | KZ41: 680000 | LA41: 680000 | LB41: 680000 | LC41: 680000 | LD41: 680000 | LE41: 680000 | LF41: 680000 | LG41: 680000 | LH41: 680000 | LI41: 680000 | LJ41: 680000 | LK41: 680000 | LL41: 680000 | LM41: 680000 | LN41: 680000 | LO41: 680000 | LP41: 680000 | LQ41: 680000 | LR41: 680000 | LS41: 680000 | LT41: 680000 | LU41: 680000 | LV41: 680000 | LW41: 680000 | LX41: 680000 | LY41: 680000 | LZ41: 680000 | MA41: 680000 | MB41: 680000 | MC41: 680000 | MD41: 680000 | ME41: 680000 | MF41: 680000 | MG41: 680000 | MH41: 680000 | MI41: 680000 | MJ41: 680000 | MK41: 680000 | ML41: 680000 | MM41: 680000 | MN41: 680000 | MO41: 680000 | MP41: 680000 | MQ41: 680000 | MR41: 680000 | MS41: 680000 | MT41: 680000 | MU41: 680000 | MV41: 680000 | MW41: 680000 | MX41: 680000 | MY41: 680000 | MZ41: 680000 | NA41: 680000 | NB41: 680000 | NC41: 680000 | ND41: 680000 | NE41: 680000 | NF41: 680000 | NG41: 680000 | NH41: 680000 | NI41: 680000 | NJ41: 680000 | NK41: 680000 | NL41: 680000 | NM41: 680000 | NN41: 680000 | NO41: 680000 | NP41: 680000 | NQ41: 680000 | NR41: 680000 | NS41: 680000 | NT41: 680000 | NU41: 680000 | NV41: 680000 | NW41: 680000 | NX41: 680000 | NY41: 680000 | NZ41: 680000 | OA41: 680000 | OB41: 680000 | OC41: 680000 | OD41: 680000 | OE41: 680000 | OF41: 680000 | OG41: 680000 | OH41: 680000 | OI41: 680000 | OJ41: 680000 | OK41: 680000 | OL41: 680000 | OM41: 680000 | ON41: 680000 | OO41: 680000 | OP41: 680000 | OQ41: 680000 | OR41: 680000 | OS41: 680000 | OT41: 680000 | OU41: 680000 | OV41: 680000 | OW41: 680000 | OX41: 680000 | OY41: 680000 | OZ41: 680000 | PA41: 680000 | PB41: 680000 | PC41: 680000 | PD41: 680000 | PE41: 680000 | PF41: 680000 | PG41: 680000 | PH41: 680000 | PI41: 680000 | PJ41: 680000 | PK41: 680000 | PL41: 680000 | PM41: 680000 | PN41: 680000 | PO41: 680000 | PP41: 680000 | PQ41: 680000 | PR41: 680000 | PS41: 680000 | PT41: 680000 | PU41: 680000 | PV41: 680000 | PW41: 680000 | PX41: 680000 | PY41: 680000 | PZ41: 680000 | QA41: 680000 | QB41: 680000 | QC41: 680000 | QD41: 680000 | QE41: 680000 | QF41: 680000 | QG41: 680000 | QH41: 680000 | QI41: 680000 | QJ41: 680000 | QK41: 680000 | QL41: 680000 | QM41: 680000 | QN41: 680000 | QO41: 680000 | QP41: 680000 | QQ41: 680000 | QR41: 680000 | QS41: 680000 | QT41: 680000 | QU41: 680000 | QV41: 680000 | QW41: 680000 | QX41: 680000 | QY41: 680000 | QZ41: 680000 | RA41: 680000 | RB41: 680000 | RC41: 680000 | RD41: 680000 | RE41: 680000 | RF41: 680000 | RG41: 680000 | RH41: 680000 | RI41: 680000 | RJ41: 680000 | RK41: 680000 | RL41: 680000 | RM41: 680000 | RN41: 680000 | RO41: 680000 | RP41: 680000 | RQ41: 680000 | RR41: 680000 | RS41: 680000 | RT41: 680000 | RU41: 680000 | RV41: 680000 | RW41: 680000 | RX41: 680000 | RY41: 680000 | RZ41: 680000 | SA41: 680000 | SB41: 680000 | SC41: 680000 | SD41: 680000 | SE41: 680000 | SF41: 680000 | SG41: 680000 | SH41: 680000 | SI41: 680000 | SJ41: 680000 | SK41: 680000 | SL41: 680000 | SM41: 680000 | SN41: 680000 | SO41: 680000 | SP41: 680000 | SQ41: 680000 | SR41: 680000 | SS41: 680000 | ST41: 680000 | SU41: 680000 | SV41: 680000 | SW41: 680000 | SX41: 680000 | SY41: 680000 | SZ41: 680000 | TA41: 680000 | TB41: 680000 | TC41: 680000 | TD41: 680000 | TE41: 680000 | TF41: 680000 | TG41: 680000 | TH41: 680000 | TI41: 680000 | TJ41: 680000 | TK41: 680000 | TL41: 680000 | TM41: 680000 | TN41: 680000 | TO41: 680000 | TP41: 680000 | TQ41: 680000 | TR41: 680000 | TS41: 680000 | TT41: 680000 | TU41: 680000 | TV41: 680000 | TW41: 680000 | TX41: 680000 | TY41: 680000 | TZ41: 680000 | UA41: 680000 | UB41: 680000 | UC41: 680000 | UD41: 680000 | UE41: 680000 | UF41: 680000 | UG41: 680000 | UH41: 680000 | UI41: 680000 | UJ41: 680000 | UK41: 680000 | UL41: 680000 | UM41: 680000 | UN41: 680000 | UO41: 680000 | UP41: 680000 | UQ41: 680000 | UR41: 680000 | US41: 680000 | UT41: 680000 | UU41: 680000 | UV41: 680000 | UW41: 680000 | UX41: 680000 | UY41: 680000 | UZ41: 680000 | VA41: 680000 | VB41: 680000 | VC41: 680000 | VD41: 680000 | VE41: 680000 | VF41: 680000 | VG41: 680000 | VH41: 680000 | VI41: 680000 | VJ41: 680000 | VK41: 680000 | VL41: 680000 | VM41: 680000 | VN41: 680000 | VO41: 680000 | VP41: 680000 | VQ41: 680000 | VR41: 680000 | VS41: 680000 | VT41: 680000 | VU41: 680000 | VV41: 680000 | VW41: 680000 | VX41: 680000 | VY41: 680000 | VZ41: 680000 | WA41: 680000 | WB41: 680000 | WC41: 680000 | WD41: 680000 | WE41: 680000 | WF41: 680000 | WG41: 680000 | WH41: 680000 | WI41: 680000 | WJ41: 680000 | WK41: 680000 | WL41: 680000 | WM41: 680000 | WN41: 680000 | WO41: 680000 | WP41: 680000 | WQ41: 680000 | WR41: 680000 | WS41: 680000 | WT41: 680000 | WU41: 680000 | WV41: 680000 | WW41: 680000 | WX41: 680000 | WY41: 680000 | WZ41: 680000 | XA41: 680000 | XB41: 680000 | XC41: 680000 | XD41: 680000 | XE41: 680000 | XF41: 680000 | XG41: 680000 | XH41: 680000 | XI41: 680000 | XJ41: 680000 | XK41: 680000 | XL41: 680000 | XM41: 680000 | XN41: 680000 | XO41: 680000 | XP41: 680000 | XQ41: 680000 | XR41: 680000 | XS41: 680000 | XT41: 680000 | XU41: 680000 | XV41: 680000 | XW41: 680000 | XX41: 680000 | XY41: 680000 | XZ41: 680000 | YA41: 680000 | YB41: 680000 | YC41: 680000 | YD41: 680000 | YE41: 680000 | YF41: 680000 | YG41: 680000 | YH41: 680000 | YI41: 680000 | YJ41: 680000 | YK41: 680000 | YL41: 680000 | YM41: 680000 | YN41: 680000 | YO41: 680000 | YP41: 680000 | YQ41: 680000 | YR41: 680000 | YS41: 680000 | YT41: 680000 | YU41: 680000 | YV41: 680000 | YW41: 680000 | YX41: 680000 | YY41: 680000 | YZ41: 680000 | ZA41: 680000 | ZB41: 680000 | ZC41: 680000 | ZD41: 680000 | ZE41: 680000 | ZF41: 680000 | ZG41: 680000 | ZH41: 680000 | ZI41: 680000 | ZJ41: 680000 | ZK41: 680000 | ZL41: 680000 | ZM41: 680000 | ZN41: 680000 | ZO41: 680000 | ZP41: 680000 | ZQ41: 680000 | ZR41: 680000 | ZS41: 680000 | ZT41: 680000 | ZU41: 680000 | ZV41: 680000 | ZW41: 680000 | ZX41: 680000 | ZY41: 680000 | ZZ41: 680000 | AAA41: 680000 | AAB41: 680000 | AAC41: 680000 | AAD41: 680000 | AAE41: 680000 | AAF41: 680000 | AAG41: 680000 | AAH41: 680000 | AAI41: 680000 | AAJ41: 680000 | AAK41: 680000 | AAL41: 680000 | AAM41: 680000 | AAN41: 680000 | AAO41: 680000 | AAP41: 680000 | AAQ41: 680000 | AAR41: 680000 | AAS41: 680000 | AAT41: 680000 | AAU41: 680000 | AAV41: 680000 | AAW41: 680000 | AAX41: 680000 | AAY41: 680000 | AAZ41: 680000 | ABA41: 680000 | ABB41: 680000 | ABC41: 680000 | ABD41: 680000 | ABE41: 680000 | ABF41: 680000 | ABG41: 680000 | ABH41: 680000 | ABI41: 680000 | ABJ41: 680000 | ABK41: 680000 | ABL41: 680000 | ABM41: 680000 | ABN41: 680000 | ABO41: 680000 | ABP41: 680000 | ABQ41: 680000 | ABR41: 680000 | ABS41: 680000 | ABT41: 680000 | ABU41: 680000 | ABV41: 680000 | ABW41: 680000 | ABX41: 680000 | ABY41: 680000 | ABZ41: 680000
D42: Capital Expenditure for Battery | E42: USD/kWh | F42: =INDEX(InputC!I48:AD48,E1) -> 0 | G42: =F42*F16 -> 0 | K42: 0 | L42: 0 | M42: 0 | N42: 0 | O42: 0 | P42: 0 | Q42: 0 | R42: 0 | S42: 0 | T42: 0 | U42: 0 | V42: 0 | W42: 0 | X42: 0 | Y42: 0 | Z42: 0 | AA42: 0 | AB42: 0 | AC42: 0 | AD42: 0 | AE42: 0 | AF42: 0 | AG42: 0 | AH42: 0 | AI42: 0 | AJ42: 0 | AK42: 0 | AL42: 0 | AM42: 0 | AN42: 0 | AO42: 0 | AP42: 0 | AQ42: 0 | AR42: 0 | AS42: 0 | AT42: 0 | AU42: 0 | AV42: 0 | AW42: 0 | AX42: 0 | AY42: 0 | AZ42: 0 | BA42: 0 | BB42: 0 | BC42: 0 | BD42: 0 | BE42: 0 | BF42: 0 | BG42: 0 | BH42: 0 | BI42: 0 | BJ42: 0 | BK42: 0 | BL42: 0 | BM42: 0 | BN42: 0 | BO42: 0 | BP42: 0 | BQ42: 0 | BR42: 0 | BS42: 0 | BT42: 0 | BU42: 0 | BV42: 0 | BW42: 0 | BX42: 0 | BY42: 0 | BZ42: 0 | CA42: 0 | CB42: 0 | CC42: 0 | CD42: 0 | CE42: 0 | CF42: 0 | CG42: 0 | CH42: 0 | CI42: 0 | CJ42: 0 | CK42: 0 | CL42: 0 | CM42: 0 | CN42: 0 | CO42: 0 | CP42: 0 | CQ42: 0 | CR42: 0 | CS42: 0 | CT42: 0 | CU42: 0 | CV42: 0 | CW42: 0 | CX42: 0 | CY42: 0 | CZ42: 0 | DA42: 0 | DB42: 0 | DC42: 0 | DD42: 0 | DE42: 0 | DF42: 0 | DG42: 0 | DH42: 0 | DI42: 0 | DJ42: 0 | DK42: 0 | DL42: 0 | DM42: 0 | DN42: 0 | DO42: 0 | DP42: 0 | DQ42: 0 | DR42: 0 | DS42: 0 | DT42: 0 | DU42: 0 | DV42: 0 | DW42: 0 | DX42: 0 | DY42: 0 | DZ42: 0 | EA42: 0 | EB42: 0 | EC42: 0 | ED42: 0 | EE42: 0 | EF42: 0 | EG42: 0 | EH42: 0 | EI42: 0 | EJ42: 0 | EK42: 0 | EL42: 0 | EM42: 0 | EN42: 0 | EO42: 0 | EP42: 0 | EQ42: 0 | ER42: 0 | ES42: 0 | ET42: 0 | EU42: 0 | EV42: 0 | EW42: 0 | EX42: 0 | EY42: 0 | EZ42: 0 | FA42: 0 | FB42: 0 | FC42: 0 | FD42: 0 | FE42: 0 | FF42: 0 | FG42: 0 | FH42: 0 | FI42: 0 | FJ42: 0 | FK42: 0 | FL42: 0 | FM42: 0 | FN42: 0 | FO42: 0 | FP42: 0 | FQ42: 0 | FR42: 0 | FS42: 0 | FT42: 0 | FU42: 0 | FV42: 0 | FW42: 0 | FX42: 0 | FY42: 0 | FZ42: 0 | GA42: 0 | GB42: 0 | GC42: 0 | GD42: 0 | GE42: 0 | GF42: 0 | GG42: 0 | GH42: 0 | GI42: 0 | GJ42: 0 | GK42: 0 | GL42: 0 | GM42: 0 | GN42: 0 | GO42: 0 | GP42: 0 | GQ42: 0 | GR42: 0 | GS42: 0 | GT42: 0 | GU42: 0 | GV42: 0 | GW42: 0 | GX42: 0 | GY42: 0 | GZ42: 0 | HA42: 0 | HB42: 0 | HC42: 0 | HD42: 0 | HE42: 0 | HF42: 0 | HG42: 0 | HH42: 0 | HI42: 0 | HJ42: 0 | HK42: 0 | HL42: 0 | HM42: 0 | HN42: 0 | HO42: 0 | HP42: 0 | HQ42: 0 | HR42: 0 | HS42: 0 | HT42: 0 | HU42: 0 | HV42: 0 | HW42: 0 | HX42: 0 | HY42: 0 | HZ42: 0 | IA42: 0 | IB42: 0 | IC42: 0 | ID42: 0 | IE42: 0 | IF42: 0 | IG42: 0 | IH42: 0 | II42: 0 | IJ42: 0 | IK42: 0 | IL42: 0 | IM42: 0 | IN42: 0 | IO42: 0 | IP42: 0 | IQ42: 0 | IR42: 0 | IS42: 0 | IT42: 0 | IU42: 0 | IV42: 0 | IW42: 0 | IX42: 0 | IY42: 0 | IZ42: 0 | JA42: 0 | JB42: 0 | JC42: 0 | JD42: 0 | JE42: 0 | JF42: 0 | JG42: 0 | JH42: 0 | JI42: 0 | JJ42: 0 | JK42: 0 | JL42: 0 | JM42: 0 | JN42: 0 | JO42: 0 | JP42: 0 | JQ42: 0 | JR42: 0 | JS42: 0 | JT42: 0 | JU42: 0 | JV42: 0 | JW42: 0 | JX42: 0 | JY42: 0 | JZ42: 0 | KA42: 0 | KB42: 0 | KC42: 0 | KD42: 0 | KE42: 0 | KF42: 0 | KG42: 0 | KH42: 0 | KI42: 0 | KJ42: 0 | KK42: 0 | KL42: 0 | KM42: 0 | KN42: 0 | KO42: 0 | KP42: 0 | KQ42: 0 | KR42: 0 | KS42: 0 | KT42: 0 | KU42: 0 | KV42: 0 | KW42: 0 | KX42: 0 | KY42: 0 | KZ42: 0 | LA42: 0 | LB42: 0 | LC42: 0 | LD42: 0 | LE42: 0 | LF42: 0 | LG42: 0 | LH42: 0 | LI42: 0 | LJ42: 0 | LK42: 0 | LL42: 0 | LM42: 0 | LN42: 0 | LO42: 0 | LP42: 0 | LQ42: 0 | LR42: 0 | LS42: 0 | LT42: 0 | LU42: 0 | LV42: 0 | LW42: 0 | LX42: 0 | LY42: 0 | LZ42: 0 | MA42: 0 | MB42: 0 | MC42: 0 | MD42: 0 | ME42: 0 | MF42: 0 | MG42: 0 | MH42: 0 | MI42: 0 | MJ42: 0 | MK42: 0 | ML42: 0 | MM42: 0 | MN42: 0 | MO42: 0 | MP42: 0 | MQ42: 0 | MR42: 0 | MS42: 0 | MT42: 0 | MU42: 0 | MV42: 0 | MW42: 0 | MX42: 0 | MY42: 0 | MZ42: 0 | NA42: 0 | NB42: 0 | NC42: 0 | ND42: 0 | NE42: 0 | NF42: 0 | NG42: 0 | NH42: 0 | NI42: 0 | NJ42: 0 | NK42: 0 | NL42: 0 | NM42: 0 | NN42: 0 | NO42: 0 | NP42: 0 | NQ42: 0 | NR42: 0 | NS42: 0 | NT42: 0 | NU42: 0 | NV42: 0 | NW42: 0 | NX42: 0 | NY42: 0 | NZ42: 0 | OA42: 0 | OB42: 0 | OC42: 0 | OD42: 0 | OE42: 0 | OF42: 0 | OG42: 0 | OH42: 0 | OI42: 0 | OJ42: 0 | OK42: 0 | OL42: 0 | OM42: 0 | ON42: 0 | OO42: 0 | OP42: 0 | OQ42: 0 | OR42: 0 | OS42: 0 | OT42: 0 | OU42: 0 | OV42: 0 | OW42: 0 | OX42: 0 | OY42: 0 | OZ42: 0 | PA42: 0 | PB42: 0 | PC42: 0 | PD42: 0 | PE42: 0 | PF42: 0 | PG42: 0 | PH42: 0 | PI42: 0 | PJ42: 0 | PK42: 0 | PL42: 0 | PM42: 0 | PN42: 0 | PO42: 0 | PP42: 0 | PQ42: 0 | PR42: 0 | PS42: 0 | PT42: 0 | PU42: 0 | PV42: 0 | PW42: 0 | PX42: 0 | PY42: 0 | PZ42: 0 | QA42: 0 | QB42: 0 | QC42: 0 | QD42: 0 | QE42: 0 | QF42: 0 | QG42: 0 | QH42: 0 | QI42: 0 | QJ42: 0 | QK42: 0 | QL42: 0 | QM42: 0 | QN42: 0 | QO42: 0 | QP42: 0 | QQ42: 0 | QR42: 0 | QS42: 0 | QT42: 0 | QU42: 0 | QV42: 0 | QW42: 0 | QX42: 0 | QY42: 0 | QZ42: 0 | RA42: 0 | RB42: 0 | RC42: 0 | RD42: 0 | RE42: 0 | RF42: 0 | RG42: 0 | RH42: 0 | RI42: 0 | RJ42: 0 | RK42: 0 | RL42: 0 | RM42: 0 | RN42: 0 | RO42: 0 | RP42: 0 | RQ42: 0 | RR42: 0 | RS42: 0 | RT42: 0 | RU42: 0 | RV42: 0 | RW42: 0 | RX42: 0 | RY42: 0 | RZ42: 0 | SA42: 0 | SB42: 0 | SC42: 0 | SD42: 0 | SE42: 0 | SF42: 0 | SG42: 0 | SH42: 0 | SI42: 0 | SJ42: 0 | SK42: 0 | SL42: 0 | SM42: 0 | SN42: 0 | SO42: 0 | SP42: 0 | SQ42: 0 | SR42: 0 | SS42: 0 | ST42: 0 | SU42: 0 | SV42: 0 | SW42: 0 | SX42: 0 | SY42: 0 | SZ42: 0 | TA42: 0 | TB42: 0 | TC42: 0 | TD42: 0 | TE42: 0 | TF42: 0 | TG42: 0 | TH42: 0 | TI42: 0 | TJ42: 0 | TK42: 0 | TL42: 0 | TM42: 0 | TN42: 0 | TO42: 0 | TP42: 0 | TQ42: 0 | TR42: 0 | TS42: 0 | TT42: 0 | TU42: 0 | TV42: 0 | TW42: 0 | TX42: 0 | TY42: 0 | TZ42: 0 | UA42: 0 | UB42: 0 | UC42: 0 | UD42: 0 | UE42: 0 | UF42: 0 | UG42: 0 | UH42: 0 | UI42: 0 | UJ42: 0 | UK42: 0 | UL42: 0 | UM42: 0 | UN42: 0 | UO42: 0 | UP42: 0 | UQ42: 0 | UR42: 0 | US42: 0 | UT42: 0 | UU42: 0 | UV42: 0 | UW42: 0 | UX42: 0 | UY42: 0 | UZ42: 0 | VA42: 0 | VB42: 0 | VC42: 0 | VD42: 0 | VE42: 0 | VF42: 0 | VG42: 0 | VH42: 0 | VI42: 0 | VJ42: 0 | VK42: 0 | VL42: 0 | VM42: 0 | VN42: 0 | VO42: 0 | VP42: 0 | VQ42: 0 | VR42: 0 | VS42: 0 | VT42: 0 | VU42: 0 | VV42: 0 | VW42: 0 | VX42: 0 | VY42: 0 | VZ42: 0 | WA42: 0 | WB42: 0 | WC42: 0 | WD42: 0 | WE42: 0 | WF42: 0 | WG42: 0 | WH42: 0 | WI42: 0 | WJ42: 0 | WK42: 0 | WL42: 0 | WM42: 0 | WN42: 0 | WO42: 0 | WP42: 0 | WQ42: 0 | WR42: 0 | WS42: 0 | WT42: 0 | WU42: 0 | WV42: 0 | WW42: 0 | WX42: 0 | WY42: 0 | WZ42: 0 | XA42: 0 | XB42: 0 | XC42: 0 | XD42: 0 | XE42: 0 | XF42: 0 | XG42: 0 | XH42: 0 | XI42: 0 | XJ42: 0 | XK42: 0 | XL42: 0 | XM42: 0 | XN42: 0 | XO42: 0 | XP42: 0 | XQ42: 0 | XR42: 0 | XS42: 0 | XT42: 0 | XU42: 0 | XV42: 0 | XW42: 0 | XX42: 0 | XY42: 0 | XZ42: 0 | YA42: 0 | YB42: 0 | YC42: 0 | YD42: 0 | YE42: 0 | YF42: 0 | YG42: 0 | YH42: 0 | YI42: 0 | YJ42: 0 | YK42: 0 | YL42: 0 | YM42: 0 | YN42: 0 | YO42: 0 | YP42: 0 | YQ42: 0 | YR42: 0 | YS42: 0 | YT42: 0 | YU42: 0 | YV42: 0 | YW42: 0 | YX42: 0 | YY42: 0 | YZ42: 0 | ZA42: 0 | ZB42: 0 | ZC42: 0 | ZD42: 0 | ZE42: 0 | ZF42: 0 | ZG42: 0 | ZH42: 0 | ZI42: 0 | ZJ42: 0 | ZK42: 0 | ZL42: 0 | ZM42: 0 | ZN42: 0 | ZO42: 0 | ZP42: 0 | ZQ42: 0 | ZR42: 0 | ZS42: 0 | ZT42: 0 | ZU42: 0 | ZV42: 0 | ZW42: 0 | ZX42: 0 | ZY42: 0 | ZZ42: 0 | AAA42: 0 | AAB42: 0 | AAC42: 0 | AAD42: 0 | AAE42: 0 | AAF42: 0 | AAG42: 0 | AAH42: 0 | AAI42: 0 | AAJ42: 0 | AAK42: 0 | AAL42: 0 | AAM42: 0 | AAN42: 0 | AAO42: 0 | AAP42: 0 | AAQ42: 0 | AAR42: 0 | AAS42: 0 | AAT42: 0 | AAU42: 0 | AAV42: 0 | AAW42: 0 | AAX42: 0 | AAY42: 0 | AAZ42: 0 | ABA42: 0 | ABB42: 0 | ABC42: 0 | ABD42: 0 | ABE42: 0 | ABF42: 0 | ABG42: 0 | ABH42: 0 | ABI42: 0 | ABJ42: 0 | ABK42: 0 | ABL42: 0 | ABM42: 0 | ABN42: 0 | ABO42: 0 | ABP42: 0 | ABQ42: 0 | ABR42: 0 | ABS42: 0 | ABT42: 0 | ABU42: 0 | ABV42: 0 | ABW42: 0 | ABX42: 0 | ABY42: 0 | ABZ42: 0
D44: Total Cost | E44: USD | F44: =SUM(G40:G42) -> 680000 | I44: USD | K44: =$F$44 -> 680000 | L44: 680000 | M44: 680000 | N44: 680000 | O44: 680000 | P44: 680000 | Q44: 680000 | R44: 680000 | S44: 680000 | T44: 680000 | U44: 680000 | V44: 680000 | W44: 680000 | X44: 680000 | Y44: 680000 | Z44: 680000 | AA44: 680000 | AB44: 680000 | AC44: 680000 | AD44: 680000 | AE44: 680000 | AF44: 680000 | AG44: 680000 | AH44: 680000 | AI44: 680000 | AJ44: 680000 | AK44: 680000 | AL44: 680000 | AM44: 680000 | AN44: 680000 | AO44: 680000 | AP44: 680000 | AQ44: 680000 | AR44: 680000 | AS44: 680000 | AT44: 680000 | AU44: 680000 | AV44: 680000 | AW44: 680000 | AX44: 680000 | AY44: 680000 | AZ44: 680000 | BA44: 680000 | BB44: 680000 | BC44: 680000 | BD44: 680000 | BE44: 680000 | BF44: 680000 | BG44: 680000 | BH44: 680000 | BI44: 680000 | BJ44: 680000 | BK44: 680000 | BL44: 680000 | BM44: 680000 | BN44: 680000 | BO44: 680000 | BP44: 680000 | BQ44: 680000 | BR44: 680000 | BS44: 680000 | BT44: 680000 | BU44: 680000 | BV44: 680000 | BW44: =$F$44 -> 680000 | BX44: 680000 | BY44: 680000 | BZ44: 680000 | CA44: 680000 | CB44: 680000 | CC44: 680000 | CD44: 680000 | CE44: 680000 | CF44: 680000 | CG44: 680000 | CH44: 680000 | CI44: 680000 | CJ44: 680000 | CK44: 680000 | CL44: 680000 | CM44: 680000 | CN44: 680000 | CO44: 680000 | CP44: 680000 | CQ44: 680000 | CR44: 680000 | CS44: 680000 | CT44: 680000 | CU44: 680000 | CV44: 680000 | CW44: 680000 | CX44: 680000 | CY44: 680000 | CZ44: 680000 | DA44: 680000 | DB44: 680000 | DC44: 680000 | DD44: 680000 | DE44: 680000 | DF44: 680000 | DG44: 680000 | DH44: 680000 | DI44: 680000 | DJ44: 680000 | DK44: 680000 | DL44: 680000 | DM44: 680000 | DN44: 680000 | DO44: 680000 | DP44: 680000 | DQ44: 680000 | DR44: 680000 | DS44: 680000 | DT44: 680000 | DU44: 680000 | DV44: 680000 | DW44: 680000 | DX44: 680000 | DY44: 680000 | DZ44: 680000 | EA44: 680000 | EB44: 680000 | EC44: 680000 | ED44: 680000 | EE44: 680000 | EF44: 680000 | EG44: 680000 | EH44: 680000 | EI44: =$F$44 -> 680000 | EJ44: 680000 | EK44: 680000 | EL44: 680000 | EM44: 680000 | EN44: 680000 | EO44: 680000 | EP44: 680000 | EQ44: 680000 | ER44: 680000 | ES44: 680000 | ET44: 680000 | EU44: 680000 | EV44: 680000 | EW44: 680000 | EX44: 680000 | EY44: 680000 | EZ44: 680000 | FA44: 680000 | FB44: 680000 | FC44: 680000 | FD44: 680000 | FE44: 680000 | FF44: 680000 | FG44: 680000 | FH44: 680000 | FI44: 680000 | FJ44: 680000 | FK44: 680000 | FL44: 680000 | FM44: 680000 | FN44: 680000 | FO44: 680000 | FP44: 680000 | FQ44: 680000 | FR44: 680000 | FS44: 680000 | FT44: 680000 | FU44: 680000 | FV44: 680000 | FW44: 680000 | FX44: 680000 | FY44: 680000 | FZ44: 680000 | GA44: 680000 | GB44: 680000 | GC44: 680000 | GD44: 680000 | GE44: 680000 | GF44: 680000 | GG44: 680000 | GH44: 680000 | GI44: 680000 | GJ44: 680000 | GK44: 680000 | GL44: 680000 | GM44: 680000 | GN44: 680000 | GO44: 680000 | GP44: 680000 | GQ44: 680000 | GR44: 680000 | GS44: 680000 | GT44: 680000 | GU44: =$F$44 -> 680000 | GV44: 680000 | GW44: 680000 | GX44: 680000 | GY44: 680000 | GZ44: 680000 | HA44: 680000 | HB44: 680000 | HC44: 680000 | HD44: 680000 | HE44: 680000 | HF44: 680000 | HG44: 680000 | HH44: 680000 | HI44: 680000 | HJ44: 680000 | HK44: 680000 | HL44: 680000 | HM44: 680000 | HN44: 680000 | HO44: 680000 | HP44: 680000 | HQ44: 680000 | HR44: 680000 | HS44: 680000 | HT44: 680000 | HU44: 680000 | HV44: 680000 | HW44: 680000 | HX44: 680000 | HY44: 680000 | HZ44: 680000 | IA44: 680000 | IB44: 680000 | IC44: 680000 | ID44: 680000 | IE44: 680000 | IF44: 680000 | IG44: 680000 | IH44: 680000 | II44: 680000 | IJ44: 680000 | IK44: 680000 | IL44: 680000 | IM44: 680000 | IN44: 680000 | IO44: 680000 | IP44: 680000 | IQ44: 680000 | IR44: 680000 | IS44: 680000 | IT44: 680000 | IU44: 680000 | IV44: 680000 | IW44: 680000 | IX44: 680000 | IY44: 680000 | IZ44: 680000 | JA44: 680000 | JB44: 680000 | JC44: 680000 | JD44: 680000 | JE44: 680000 | JF44: 680000 | JG44: =$F$44 -> 680000 | JH44: 680000 | JI44: 680000 | JJ44: 680000 | JK44: 680000 | JL44: 680000 | JM44: 680000 | JN44: 680000 | JO44: 680000 | JP44: 680000 | JQ44: 680000 | JR44: 680000 | JS44: 680000 | JT44: 680000 | JU44: 680000 | JV44: 680000 | JW44: 680000 | JX44: 680000 | JY44: 680000 | JZ44: 680000 | KA44: 680000 | KB44: 680000 | KC44: 680000 | KD44: 680000 | KE44: 680000 | KF44: 680000 | KG44: 680000 | KH44: 680000 | KI44: 680000 | KJ44: 680000 | KK44: 680000 | KL44: 680000 | KM44: 680000 | KN44: 680000 | KO44: 680000 | KP44: 680000 | KQ44: 680000 | KR44: 680000 | KS44: 680000 | KT44: 680000 | KU44: 680000 | KV44: 680000 | KW44: 680000 | KX44: 680000 | KY44: 680000 | KZ44: 680000 | LA44: 680000 | LB44: 680000 | LC44: 680000 | LD44: 680000 | LE44: 680000 | LF44: 680000 | LG44: 680000 | LH44: 680000 | LI44: 680000 | LJ44: 680000 | LK44: 680000 | LL44: 680000 | LM44: 680000 | LN44: 680000 | LO44: 680000 | LP44: 680000 | LQ44: 680000 | LR44: 680000 | LS44: =$F$44 -> 680000 | LT44: 680000 | LU44: 680000 | LV44: 680000 | LW44: 680000 | LX44: 680000 | LY44: 680000 | LZ44: 680000 | MA44: 680000 | MB44: 680000 | MC44: 680000 | MD44: 680000 | ME44: 680000 | MF44: 680000 | MG44: 680000 | MH44: 680000 | MI44: 680000 | MJ44: 680000 | MK44: 680000 | ML44: 680000 | MM44: 680000 | MN44: 680000 | MO44: 680000 | MP44: 680000 | MQ44: 680000 | MR44: 680000 | MS44: 680000 | MT44: 680000 | MU44: 680000 | MV44: 680000 | MW44: 680000 | MX44: 680000 | MY44: 680000 | MZ44: 680000 | NA44: 680000 | NB44: 680000 | NC44: 680000 | ND44: 680000 | NE44: 680000 | NF44: 680000 | NG44: 680000 | NH44: 680000 | NI44: 680000 | NJ44: 680000 | NK44: 680000 | NL44: 680000 | NM44: 680000 | NN44: 680000 | NO44: 680000 | NP44: 680000 | NQ44: 680000 | NR44: 680000 | NS44: 680000 | NT44: 680000 | NU44: 680000 | NV44: 680000 | NW44: 680000 | NX44: 680000 | NY44: 680000 | NZ44: 680000 | OA44: 680000 | OB44: 680000 | OC44: 680000 | OD44: 680000 | OE44: =$F$44 -> 680000 | OF44: 680000 | OG44: 680000 | OH44: 680000 | OI44: 680000 | OJ44: 680000 | OK44: 680000 | OL44: 680000 | OM44: 680000 | ON44: 680000 | OO44: 680000 | OP44: 680000 | OQ44: 680000 | OR44: 680000 | OS44: 680000 | OT44: 680000 | OU44: 680000 | OV44: 680000 | OW44: 680000 | OX44: 680000 | OY44: 680000 | OZ44: 680000 | PA44: 680000 | PB44: 680000 | PC44: 680000 | PD44: 680000 | PE44: 680000 | PF44: 680000 | PG44: 680000 | PH44: 680000 | PI44: 680000 | PJ44: 680000 | PK44: 680000 | PL44: 680000 | PM44: 680000 | PN44: 680000 | PO44: 680000 | PP44: 680000 | PQ44: 680000 | PR44: 680000 | PS44: 680000 | PT44: 680000 | PU44: 680000 | PV44: 680000 | PW44: 680000 | PX44: 680000 | PY44: 680000 | PZ44: 680000 | QA44: 680000 | QB44: 680000 | QC44: 680000 | QD44: 680000 | QE44: 680000 | QF44: 680000 | QG44: 680000 | QH44: 680000 | QI44: 680000 | QJ44: 680000 | QK44: 680000 | QL44: 680000 | QM44: 680000 | QN44: 680000 | QO44: 680000 | QP44: 680000 | QQ44: =$F$44 -> 680000 | QR44: 680000 | QS44: 680000 | QT44: 680000 | QU44: 680000 | QV44: 680000 | QW44: 680000 | QX44: 680000 | QY44: 680000 | QZ44: 680000 | RA44: 680000 | RB44: 680000 | RC44: 680000 | RD44: 680000 | RE44: 680000 | RF44: 680000 | RG44: 680000 | RH44: 680000 | RI44: 680000 | RJ44: 680000 | RK44: 680000 | RL44: 680000 | RM44: 680000 | RN44: 680000 | RO44: 680000 | RP44: 680000 | RQ44: 680000 | RR44: 680000 | RS44: 680000 | RT44: 680000 | RU44: 680000 | RV44: 680000 | RW44: 680000 | RX44: 680000 | RY44: 680000 | RZ44: 680000 | SA44: 680000 | SB44: 680000 | SC44: 680000 | SD44: 680000 | SE44: 680000 | SF44: 680000 | SG44: 680000 | SH44: 680000 | SI44: 680000 | SJ44: 680000 | SK44: 680000 | SL44: 680000 | SM44: 680000 | SN44: 680000 | SO44: 680000 | SP44: 680000 | SQ44: 680000 | SR44: 680000 | SS44: 680000 | ST44: 680000 | SU44: 680000 | SV44: 680000 | SW44: 680000 | SX44: 680000 | SY44: 680000 | SZ44: 680000 | TA44: 680000 | TB44: 680000 | TC44: =$F$44 -> 680000 | TD44: 680000 | TE44: 680000 | TF44: 680000 | TG44: 680000 | TH44: 680000 | TI44: 680000 | TJ44: 680000 | TK44: 680000 | TL44: 680000 | TM44: 680000 | TN44: 680000 | TO44: 680000 | TP44: 680000 | TQ44: 680000 | TR44: 680000 | TS44: 680000 | TT44: 680000 | TU44: 680000 | TV44: 680000 | TW44: 680000 | TX44: 680000 | TY44: 680000 | TZ44: 680000 | UA44: 680000 | UB44: 680000 | UC44: 680000 | UD44: 680000 | UE44: 680000 | UF44: 680000 | UG44: 680000 | UH44: 680000 | UI44: 680000 | UJ44: 680000 | UK44: 680000 | UL44: 680000 | UM44: 680000 | UN44: 680000 | UO44: 680000 | UP44: 680000 | UQ44: 680000 | UR44: 680000 | US44: 680000 | UT44: 680000 | UU44: 680000 | UV44: 680000 | UW44: 680000 | UX44: 680000 | UY44: 680000 | UZ44: 680000 | VA44: 680000 | VB44: 680000 | VC44: 680000 | VD44: 680000 | VE44: 680000 | VF44: 680000 | VG44: 680000 | VH44: 680000 | VI44: 680000 | VJ44: 680000 | VK44: 680000 | VL44: 680000 | VM44: 680000 | VN44: 680000 | VO44: =$F$44 -> 680000 | VP44: 680000 | VQ44: 680000 | VR44: 680000 | VS44: 680000 | VT44: 680000 | VU44: 680000 | VV44: 680000 | VW44: 680000 | VX44: 680000 | VY44: 680000 | VZ44: 680000 | WA44: 680000 | WB44: 680000 | WC44: 680000 | WD44: 680000 | WE44: 680000 | WF44: 680000 | WG44: 680000 | WH44: 680000 | WI44: 680000 | WJ44: 680000 | WK44: 680000 | WL44: 680000 | WM44: 680000 | WN44: 680000 | WO44: 680000 | WP44: 680000 | WQ44: 680000 | WR44: 680000 | WS44: 680000 | WT44: 680000 | WU44: 680000 | WV44: 680000 | WW44: 680000 | WX44: 680000 | WY44: 680000 | WZ44: 680000 | XA44: 680000 | XB44: 680000 | XC44: 680000 | XD44: 680000 | XE44: 680000 | XF44: 680000 | XG44: 680000 | XH44: 680000 | XI44: 680000 | XJ44: 680000 | XK44: 680000 | XL44: 680000 | XM44: 680000 | XN44: 680000 | XO44: 680000 | XP44: 680000 | XQ44: 680000 | XR44: 680000 | XS44: 680000 | XT44: 680000 | XU44: 680000 | XV44: 680000 | XW44: 680000 | XX44: 680000 | XY44: 680000 | XZ44: 680000 | YA44: =$F$44 -> 680000 | YB44: 680000 | YC44: 680000 | YD44: 680000 | YE44: 680000 | YF44: 680000 | YG44: 680000 | YH44: 680000 | YI44: 680000 | YJ44: 680000 | YK44: 680000 | YL44: 680000 | YM44: 680000 | YN44: 680000 | YO44: 680000 | YP44: 680000 | YQ44: 680000 | YR44: 680000 | YS44: 680000 | YT44: 680000 | YU44: 680000 | YV44: 680000 | YW44: 680000 | YX44: 680000 | YY44: 680000 | YZ44: 680000 | ZA44: 680000 | ZB44: 680000 | ZC44: 680000 | ZD44: 680000 | ZE44: 680000 | ZF44: 680000 | ZG44: 680000 | ZH44: 680000 | ZI44: 680000 | ZJ44: 680000 | ZK44: 680000 | ZL44: 680000 | ZM44: 680000 | ZN44: 680000 | ZO44: 680000 | ZP44: 680000 | ZQ44: 680000 | ZR44: 680000 | ZS44: 680000 | ZT44: 680000 | ZU44: 680000 | ZV44: 680000 | ZW44: 680000 | ZX44: 680000 | ZY44: 680000 | ZZ44: 680000 | AAA44: 680000 | AAB44: 680000 | AAC44: 680000 | AAD44: 680000 | AAE44: 680000 | AAF44: 680000 | AAG44: 680000 | AAH44: 680000 | AAI44: 680000 | AAJ44: 680000 | AAK44: 680000 | AAL44: 680000 | AAM44: =$F$44 -> 680000 | AAN44: 680000 | AAO44: 680000 | AAP44: 680000 | AAQ44: 680000 | AAR44: 680000 | AAS44: 680000 | AAT44: 680000 | AAU44: 680000 | AAV44: 680000 | AAW44: 680000 | AAX44: 680000 | AAY44: 680000 | AAZ44: 680000 | ABA44: 680000 | ABB44: 680000 | ABC44: 680000 | ABD44: 680000 | ABE44: 680000 | ABF44: 680000 | ABG44: 680000 | ABH44: 680000 | ABI44: 680000 | ABJ44: 680000 | ABK44: 680000 | ABL44: 680000 | ABM44: 680000 | ABN44: 680000 | ABO44: 680000 | ABP44: 680000 | ABQ44: 680000 | ABR44: 680000 | ABS44: 680000 | ABT44: 680000 | ABU44: 680000 | ABV44: 680000 | ABW44: 680000 | ABX44: 680000 | ABY44: 680000 | ABZ44: 680000
D45: Percent Spent | E45: Months/Per | F45: =1/H6 -> 0.05555555556 | I45: % | K45: =$F45*K$6 -> 0 | L45: =$F45*L$6 -> 0 | M45: 0 | N45: 0 | O45: 0 | P45: 0 | Q45: 0 | R45: 0 | S45: 0 | T45: 0 | U45: 0 | V45: 0.05555555556 | W45: 0.05555555556 | X45: 0.05555555556 | Y45: 0.05555555556 | Z45: 0.05555555556 | AA45: 0.05555555556 | AB45: 0.05555555556 | AC45: 0.05555555556 | AD45: 0.05555555556 | AE45: 0.05555555556 | AF45: 0.05555555556 | AG45: 0.05555555556 | AH45: 0.05555555556 | AI45: 0.05555555556 | AJ45: 0.05555555556 | AK45: 0.05555555556 | AL45: 0.05555555556 | AM45: 0.05555555556 | AN45: 0 | AO45: 0 | AP45: 0 | AQ45: 0 | AR45: 0 | AS45: 0 | AT45: 0 | AU45: 0 | AV45: 0 | AW45: 0 | AX45: 0 | AY45: 0 | AZ45: 0 | BA45: 0 | BB45: 0 | BC45: 0 | BD45: 0 | BE45: 0 | BF45: 0 | BG45: 0 | BH45: 0 | BI45: 0 | BJ45: 0 | BK45: 0 | BL45: 0 | BM45: 0 | BN45: 0 | BO45: 0 | BP45: 0 | BQ45: 0 | BR45: 0 | BS45: 0 | BT45: 0 | BU45: 0 | BV45: 0 | BW45: 0 | BX45: =$F45*BX$6 -> 0 | BY45: 0 | BZ45: 0 | CA45: 0 | CB45: 0 | CC45: 0 | CD45: 0 | CE45: 0 | CF45: 0 | CG45: 0 | CH45: 0 | CI45: 0 | CJ45: 0 | CK45: 0 | CL45: 0 | CM45: 0 | CN45: 0 | CO45: 0 | CP45: 0 | CQ45: 0 | CR45: 0 | CS45: 0 | CT45: 0 | CU45: 0 | CV45: 0 | CW45: 0 | CX45: 0 | CY45: 0 | CZ45: 0 | DA45: 0 | DB45: 0 | DC45: 0 | DD45: 0 | DE45: 0 | DF45: 0 | DG45: 0 | DH45: 0 | DI45: 0 | DJ45: 0 | DK45: 0 | DL45: 0 | DM45: 0 | DN45: 0 | DO45: 0 | DP45: 0 | DQ45: 0 | DR45: 0 | DS45: 0 | DT45: 0 | DU45: 0 | DV45: 0 | DW45: 0 | DX45: 0 | DY45: 0 | DZ45: 0 | EA45: 0 | EB45: 0 | EC45: 0 | ED45: 0 | EE45: 0 | EF45: 0 | EG45: 0 | EH45: 0 | EI45: 0 | EJ45: =$F45*EJ$6 -> 0 | EK45: 0 | EL45: 0 | EM45: 0 | EN45: 0 | EO45: 0 | EP45: 0 | EQ45: 0 | ER45: 0 | ES45: 0 | ET45: 0 | EU45: 0 | EV45: 0 | EW45: 0 | EX45: 0 | EY45: 0 | EZ45: 0 | FA45: 0 | FB45: 0 | FC45: 0 | FD45: 0 | FE45: 0 | FF45: 0 | FG45: 0 | FH45: 0 | FI45: 0 | FJ45: 0 | FK45: 0 | FL45: 0 | FM45: 0 | FN45: 0 | FO45: 0 | FP45: 0 | FQ45: 0 | FR45: 0 | FS45: 0 | FT45: 0 | FU45: 0 | FV45: 0 | FW45: 0 | FX45: 0 | FY45: 0 | FZ45: 0 | GA45: 0 | GB45: 0 | GC45: 0 | GD45: 0 | GE45: 0 | GF45: 0 | GG45: 0 | GH45: 0 | GI45: 0 | GJ45: 0 | GK45: 0 | GL45: 0 | GM45: 0 | GN45: 0 | GO45: 0 | GP45: 0 | GQ45: 0 | GR45: 0 | GS45: 0 | GT45: 0 | GU45: 0 | GV45: =$F45*GV$6 -> 0 | GW45: 0 | GX45: 0 | GY45: 0 | GZ45: 0 | HA45: 0 | HB45: 0 | HC45: 0 | HD45: 0 | HE45: 0 | HF45: 0 | HG45: 0 | HH45: 0 | HI45: 0 | HJ45: 0 | HK45: 0 | HL45: 0 | HM45: 0 | HN45: 0 | HO45: 0 | HP45: 0 | HQ45: 0 | HR45: 0 | HS45: 0 | HT45: 0 | HU45: 0 | HV45: 0 | HW45: 0 | HX45: 0 | HY45: 0 | HZ45: 0 | IA45: 0 | IB45: 0 | IC45: 0 | ID45: 0 | IE45: 0 | IF45: 0 | IG45: 0 | IH45: 0 | II45: 0 | IJ45: 0 | IK45: 0 | IL45: 0 | IM45: 0 | IN45: 0 | IO45: 0 | IP45: 0 | IQ45: 0 | IR45: 0 | IS45: 0 | IT45: 0 | IU45: 0 | IV45: 0 | IW45: 0 | IX45: 0 | IY45: 0 | IZ45: 0 | JA45: 0 | JB45: 0 | JC45: 0 | JD45: 0 | JE45: 0 | JF45: 0 | JG45: 0 | JH45: =$F45*JH$6 -> 0 | JI45: 0 | JJ45: 0 | JK45: 0 | JL45: 0 | JM45: 0 | JN45: 0 | JO45: 0 | JP45: 0 | JQ45: 0 | JR45: 0 | JS45: 0 | JT45: 0 | JU45: 0 | JV45: 0 | JW45: 0 | JX45: 0 | JY45: 0 | JZ45: 0 | KA45: 0 | KB45: 0 | KC45: 0 | KD45: 0 | KE45: 0 | KF45: 0 | KG45: 0 | KH45: 0 | KI45: 0 | KJ45: 0 | KK45: 0 | KL45: 0 | KM45: 0 | KN45: 0 | KO45: 0 | KP45: 0 | KQ45: 0 | KR45: 0 | KS45: 0 | KT45: 0 | KU45: 0 | KV45: 0 | KW45: 0 | KX45: 0 | KY45: 0 | KZ45: 0 | LA45: 0 | LB45: 0 | LC45: 0 | LD45: 0 | LE45: 0 | LF45: 0 | LG45: 0 | LH45: 0 | LI45: 0 | LJ45: 0 | LK45: 0 | LL45: 0 | LM45: 0 | LN45: 0 | LO45: 0 | LP45: 0 | LQ45: 0 | LR45: 0 | LS45: 0 | LT45: =$F45*LT$6 -> 0 | LU45: 0 | LV45: 0 | LW45: 0 | LX45: 0 | LY45: 0 | LZ45: 0 | MA45: 0 | MB45: 0 | MC45: 0 | MD45: 0 | ME45: 0 | MF45: 0 | MG45: 0 | MH45: 0 | MI45: 0 | MJ45: 0 | MK45: 0 | ML45: 0 | MM45: 0 | MN45: 0 | MO45: 0 | MP45: 0 | MQ45: 0 | MR45: 0 | MS45: 0 | MT45: 0 | MU45: 0 | MV45: 0 | MW45: 0 | MX45: 0 | MY45: 0 | MZ45: 0 | NA45: 0 | NB45: 0 | NC45: 0 | ND45: 0 | NE45: 0 | NF45: 0 | NG45: 0 | NH45: 0 | NI45: 0 | NJ45: 0 | NK45: 0 | NL45: 0 | NM45: 0 | NN45: 0 | NO45: 0 | NP45: 0 | NQ45: 0 | NR45: 0 | NS45: 0 | NT45: 0 | NU45: 0 | NV45: 0 | NW45: 0 | NX45: 0 | NY45: 0 | NZ45: 0 | OA45: 0 | OB45: 0 | OC45: 0 | OD45: 0 | OE45: 0 | OF45: =$F45*OF$6 -> 0 | OG45: 0 | OH45: 0 | OI45: 0 | OJ45: 0 | OK45: 0 | OL45: 0 | OM45: 0 | ON45: 0 | OO45: 0 | OP45: 0 | OQ45: 0 | OR45: 0 | OS45: 0 | OT45: 0 | OU45: 0 | OV45: 0 | OW45: 0 | OX45: 0 | OY45: 0 | OZ45: 0 | PA45: 0 | PB45: 0 | PC45: 0 | PD45: 0 | PE45: 0 | PF45: 0 | PG45: 0 | PH45: 0 | PI45: 0 | PJ45: 0 | PK45: 0 | PL45: 0 | PM45: 0 | PN45: 0 | PO45: 0 | PP45: 0 | PQ45: 0 | PR45: 0 | PS45: 0 | PT45: 0 | PU45: 0 | PV45: 0 | PW45: 0 | PX45: 0 | PY45: 0 | PZ45: 0 | QA45: 0 | QB45: 0 | QC45: 0 | QD45: 0 | QE45: 0 | QF45: 0 | QG45: 0 | QH45: 0 | QI45: 0 | QJ45: 0 | QK45: 0 | QL45: 0 | QM45: 0 | QN45: 0 | QO45: 0 | QP45: 0 | QQ45: 0 | QR45: =$F45*QR$6 -> 0 | QS45: 0 | QT45: 0 | QU45: 0 | QV45: 0 | QW45: 0 | QX45: 0 | QY45: 0 | QZ45: 0 | RA45: 0 | RB45: 0 | RC45: 0 | RD45: 0 | RE45: 0 | RF45: 0 | RG45: 0 | RH45: 0 | RI45: 0 | RJ45: 0 | RK45: 0 | RL45: 0 | RM45: 0 | RN45: 0 | RO45: 0 | RP45: 0 | RQ45: 0 | RR45: 0 | RS45: 0 | RT45: 0 | RU45: 0 | RV45: 0 | RW45: 0 | RX45: 0 | RY45: 0 | RZ45: 0 | SA45: 0 | SB45: 0 | SC45: 0 | SD45: 0 | SE45: 0 | SF45: 0 | SG45: 0 | SH45: 0 | SI45: 0 | SJ45: 0 | SK45: 0 | SL45: 0 | SM45: 0 | SN45: 0 | SO45: 0 | SP45: 0 | SQ45: 0 | SR45: 0 | SS45: 0 | ST45: 0 | SU45: 0 | SV45: 0 | SW45: 0 | SX45: 0 | SY45: 0 | SZ45: 0 | TA45: 0 | TB45: 0 | TC45: 0 | TD45: =$F45*TD$6 -> 0 | TE45: 0 | TF45: 0 | TG45: 0 | TH45: 0 | TI45: 0 | TJ45: 0 | TK45: 0 | TL45: 0 | TM45: 0 | TN45: 0 | TO45: 0 | TP45: 0 | TQ45: 0 | TR45: 0 | TS45: 0 | TT45: 0 | TU45: 0 | TV45: 0 | TW45: 0 | TX45: 0 | TY45: 0 | TZ45: 0 | UA45: 0 | UB45: 0 | UC45: 0 | UD45: 0 | UE45: 0 | UF45: 0 | UG45: 0 | UH45: 0 | UI45: 0 | UJ45: 0 | UK45: 0 | UL45: 0 | UM45: 0 | UN45: 0 | UO45: 0 | UP45: 0 | UQ45: 0 | UR45: 0 | US45: 0 | UT45: 0 | UU45: 0 | UV45: 0 | UW45: 0 | UX45: 0 | UY45: 0 | UZ45: 0 | VA45: 0 | VB45: 0 | VC45: 0 | VD45: 0 | VE45: 0 | VF45: 0 | VG45: 0 | VH45: 0 | VI45: 0 | VJ45: 0 | VK45: 0 | VL45: 0 | VM45: 0 | VN45: 0 | VO45: 0 | VP45: =$F45*VP$6 -> 0 | VQ45: 0 | VR45: 0 | VS45: 0 | VT45: 0 | VU45: 0 | VV45: 0 | VW45: 0 | VX45: 0 | VY45: 0 | VZ45: 0 | WA45: 0 | WB45: 0 | WC45: 0 | WD45: 0 | WE45: 0 | WF45: 0 | WG45: 0 | WH45: 0 | WI45: 0 | WJ45: 0 | WK45: 0 | WL45: 0 | WM45: 0 | WN45: 0 | WO45: 0 | WP45: 0 | WQ45: 0 | WR45: 0 | WS45: 0 | WT45: 0 | WU45: 0 | WV45: 0 | WW45: 0 | WX45: 0 | WY45: 0 | WZ45: 0 | XA45: 0 | XB45: 0 | XC45: 0 | XD45: 0 | XE45: 0 | XF45: 0 | XG45: 0 | XH45: 0 | XI45: 0 | XJ45: 0 | XK45: 0 | XL45: 0 | XM45: 0 | XN45: 0 | XO45: 0 | XP45: 0 | XQ45: 0 | XR45: 0 | XS45: 0 | XT45: 0 | XU45: 0 | XV45: 0 | XW45: 0 | XX45: 0 | XY45: 0 | XZ45: 0 | YA45: 0 | YB45: =$F45*YB$6 -> 0 | YC45: 0 | YD45: 0 | YE45: 0 | YF45: 0 | YG45: 0 | YH45: 0 | YI45: 0 | YJ45: 0 | YK45: 0 | YL45: 0 | YM45: 0 | YN45: 0 | YO45: 0 | YP45: 0 | YQ45: 0 | YR45: 0 | YS45: 0 | YT45: 0 | YU45: 0 | YV45: 0 | YW45: 0 | YX45: 0 | YY45: 0 | YZ45: 0 | ZA45: 0 | ZB45: 0 | ZC45: 0 | ZD45: 0 | ZE45: 0 | ZF45: 0 | ZG45: 0 | ZH45: 0 | ZI45: 0 | ZJ45: 0 | ZK45: 0 | ZL45: 0 | ZM45: 0 | ZN45: 0 | ZO45: 0 | ZP45: 0 | ZQ45: 0 | ZR45: 0 | ZS45: 0 | ZT45: 0 | ZU45: 0 | ZV45: 0 | ZW45: 0 | ZX45: 0 | ZY45: 0 | ZZ45: 0 | AAA45: 0 | AAB45: 0 | AAC45: 0 | AAD45: 0 | AAE45: 0 | AAF45: 0 | AAG45: 0 | AAH45: 0 | AAI45: 0 | AAJ45: 0 | AAK45: 0 | AAL45: 0 | AAM45: 0 | AAN45: =$F45*AAN$6 -> 0 | AAO45: 0 | AAP45: 0 | AAQ45: 0 | AAR45: 0 | AAS45: 0 | AAT45: 0 | AAU45: 0 | AAV45: 0 | AAW45: 0 | AAX45: 0 | AAY45: 0 | AAZ45: 0 | ABA45: 0 | ABB45: 0 | ABC45: 0 | ABD45: 0 | ABE45: 0 | ABF45: 0 | ABG45: 0 | ABH45: 0 | ABI45: 0 | ABJ45: 0 | ABK45: 0 | ABL45: 0 | ABM45: 0 | ABN45: 0 | ABO45: 0 | ABP45: 0 | ABQ45: 0 | ABR45: 0 | ABS45: 0 | ABT45: 0 | ABU45: 0 | ABV45: 0 | ABW45: 0 | ABX45: 0 | ABY45: 0 | ABZ45: 0
D46: Capital Expenditues | H46: =SUM(K46:XFD46) -> 680000 | I46: USD | K46: =K44*K45 -> 0 | L46: =L44*L45 -> 0 | M46: 0 | N46: 0 | O46: 0 | P46: 0 | Q46: 0 | R46: 0 | S46: 0 | T46: 0 | U46: 0 | V46: 37777.77778 | W46: 37777.77778 | X46: 37777.77778 | Y46: 37777.77778 | Z46: 37777.77778 | AA46: 37777.77778 | AB46: 37777.77778 | AC46: 37777.77778 | AD46: 37777.77778 | AE46: 37777.77778 | AF46: 37777.77778 | AG46: 37777.77778 | AH46: 37777.77778 | AI46: 37777.77778 | AJ46: 37777.77778 | AK46: 37777.77778 | AL46: 37777.77778 | AM46: 37777.77778 | AN46: 0 | AO46: 0 | AP46: 0 | AQ46: 0 | AR46: 0 | AS46: 0 | AT46: 0 | AU46: 0 | AV46: 0 | AW46: 0 | AX46: 0 | AY46: 0 | AZ46: 0 | BA46: 0 | BB46: 0 | BC46: 0 | BD46: 0 | BE46: 0 | BF46: 0 | BG46: 0 | BH46: 0 | BI46: 0 | BJ46: 0 | BK46: 0 | BL46: 0 | BM46: 0 | BN46: 0 | BO46: 0 | BP46: 0 | BQ46: 0 | BR46: 0 | BS46: 0 | BT46: 0 | BU46: 0 | BV46: 0 | BW46: 0 | BX46: =BX44*BX45 -> 0 | BY46: 0 | BZ46: 0 | CA46: 0 | CB46: 0 | CC46: 0 | CD46: 0 | CE46: 0 | CF46: 0 | CG46: 0 | CH46: 0 | CI46: 0 | CJ46: 0 | CK46: 0 | CL46: 0 | CM46: 0 | CN46: 0 | CO46: 0 | CP46: 0 | CQ46: 0 | CR46: 0 | CS46: 0 | CT46: 0 | CU46: 0 | CV46: 0 | CW46: 0 | CX46: 0 | CY46: 0 | CZ46: 0 | DA46: 0 | DB46: 0 | DC46: 0 | DD46: 0 | DE46: 0 | DF46: 0 | DG46: 0 | DH46: 0 | DI46: 0 | DJ46: 0 | DK46: 0 | DL46: 0 | DM46: 0 | DN46: 0 | DO46: 0 | DP46: 0 | DQ46: 0 | DR46: 0 | DS46: 0 | DT46: 0 | DU46: 0 | DV46: 0 | DW46: 0 | DX46: 0 | DY46: 0 | DZ46: 0 | EA46: 0 | EB46: 0 | EC46: 0 | ED46: 0 | EE46: 0 | EF46: 0 | EG46: 0 | EH46: 0 | EI46: 0 | EJ46: =EJ44*EJ45 -> 0 | EK46: 0 | EL46: 0 | EM46: 0 | EN46: 0 | EO46: 0 | EP46: 0 | EQ46: 0 | ER46: 0 | ES46: 0 | ET46: 0 | EU46: 0 | EV46: 0 | EW46: 0 | EX46: 0 | EY46: 0 | EZ46: 0 | FA46: 0 | FB46: 0 | FC46: 0 | FD46: 0 | FE46: 0 | FF46: 0 | FG46: 0 | FH46: 0 | FI46: 0 | FJ46: 0 | FK46: 0 | FL46: 0 | FM46: 0 | FN46: 0 | FO46: 0 | FP46: 0 | FQ46: 0 | FR46: 0 | FS46: 0 | FT46: 0 | FU46: 0 | FV46: 0 | FW46: 0 | FX46: 0 | FY46: 0 | FZ46: 0 | GA46: 0 | GB46: 0 | GC46: 0 | GD46: 0 | GE46: 0 | GF46: 0 | GG46: 0 | GH46: 0 | GI46: 0 | GJ46: 0 | GK46: 0 | GL46: 0 | GM46: 0 | GN46: 0 | GO46: 0 | GP46: 0 | GQ46: 0 | GR46: 0 | GS46: 0 | GT46: 0 | GU46: 0 | GV46: =GV44*GV45 -> 0 | GW46: 0 | GX46: 0 | GY46: 0 | GZ46: 0 | HA46: 0 | HB46: 0 | HC46: 0 | HD46: 0 | HE46: 0 | HF46: 0 | HG46: 0 | HH46: 0 | HI46: 0 | HJ46: 0 | HK46: 0 | HL46: 0 | HM46: 0 | HN46: 0 | HO46: 0 | HP46: 0 | HQ46: 0 | HR46: 0 | HS46: 0 | HT46: 0 | HU46: 0 | HV46: 0 | HW46: 0 | HX46: 0 | HY46: 0 | HZ46: 0 | IA46: 0 | IB46: 0 | IC46: 0 | ID46: 0 | IE46: 0 | IF46: 0 | IG46: 0 | IH46: 0 | II46: 0 | IJ46: 0 | IK46: 0 | IL46: 0 | IM46: 0 | IN46: 0 | IO46: 0 | IP46: 0 | IQ46: 0 | IR46: 0 | IS46: 0 | IT46: 0 | IU46: 0 | IV46: 0 | IW46: 0 | IX46: 0 | IY46: 0 | IZ46: 0 | JA46: =JA44*JA45 -> 0 | JB46: 0 | JC46: 0 | JD46: 0 | JE46: 0 | JF46: 0 | JG46: 0 | JH46: 0 | JI46: 0 | JJ46: 0 | JK46: 0 | JL46: 0 | JM46: 0 | JN46: 0 | JO46: 0 | JP46: 0 | JQ46: 0 | JR46: 0 | JS46: 0 | JT46: 0 | JU46: 0 | JV46: 0 | JW46: 0 | JX46: 0 | JY46: 0 | JZ46: 0 | KA46: 0 | KB46: 0 | KC46: 0 | KD46: 0 | KE46: 0 | KF46: 0 | KG46: 0 | KH46: 0 | KI46: 0 | KJ46: 0 | KK46: 0 | KL46: 0 | KM46: 0 | KN46: 0 | KO46: 0 | KP46: 0 | KQ46: 0 | KR46: 0 | KS46: 0 | KT46: 0 | KU46: 0 | KV46: 0 | KW46: 0 | KX46: 0 | KY46: 0 | KZ46: 0 | LA46: 0 | LB46: 0 | LC46: 0 | LD46: 0 | LE46: 0 | LF46: 0 | LG46: 0 | LH46: 0 | LI46: 0 | LJ46: 0 | LK46: 0 | LL46: 0 | LM46: =LM44*LM45 -> 0 | LN46: 0 | LO46: 0 | LP46: 0 | LQ46: 0 | LR46: 0 | LS46: 0 | LT46: 0 | LU46: 0 | LV46: 0 | LW46: 0 | LX46: 0 | LY46: 0 | LZ46: 0 | MA46: 0 | MB46: 0 | MC46: 0 | MD46: 0 | ME46: 0 | MF46: 0 | MG46: 0 | MH46: 0 | MI46: 0 | MJ46: 0 | MK46: 0 | ML46: 0 | MM46: 0 | MN46: 0 | MO46: 0 | MP46: 0 | MQ46: 0 | MR46: 0 | MS46: 0 | MT46: 0 | MU46: 0 | MV46: 0 | MW46: 0 | MX46: 0 | MY46: 0 | MZ46: 0 | NA46: 0 | NB46: 0 | NC46: 0 | ND46: 0 | NE46: 0 | NF46: 0 | NG46: 0 | NH46: 0 | NI46: 0 | NJ46: 0 | NK46: 0 | NL46: 0 | NM46: 0 | NN46: 0 | NO46: 0 | NP46: 0 | NQ46: 0 | NR46: 0 | NS46: 0 | NT46: 0 | NU46: 0 | NV46: 0 | NW46: 0 | NX46: 0 | NY46: =NY44*NY45 -> 0 | NZ46: 0 | OA46: 0 | OB46: 0 | OC46: 0 | OD46: 0 | OE46: 0 | OF46: 0 | OG46: 0 | OH46: 0 | OI46: 0 | OJ46: 0 | OK46: 0 | OL46: 0 | OM46: 0 | ON46: 0 | OO46: 0 | OP46: 0 | OQ46: 0 | OR46: 0 | OS46: 0 | OT46: 0 | OU46: 0 | OV46: 0 | OW46: 0 | OX46: 0 | OY46: 0 | OZ46: 0 | PA46: 0 | PB46: 0 | PC46: 0 | PD46: 0 | PE46: 0 | PF46: 0 | PG46: 0 | PH46: 0 | PI46: 0 | PJ46: 0 | PK46: 0 | PL46: 0 | PM46: 0 | PN46: 0 | PO46: 0 | PP46: 0 | PQ46: 0 | PR46: 0 | PS46: 0 | PT46: 0 | PU46: 0 | PV46: 0 | PW46: 0 | PX46: 0 | PY46: 0 | PZ46: 0 | QA46: 0 | QB46: 0 | QC46: 0 | QD46: 0 | QE46: 0 | QF46: 0 | QG46: 0 | QH46: 0 | QI46: 0 | QJ46: 0 | QK46: =QK44*QK45 -> 0 | QL46: 0 | QM46: 0 | QN46: 0 | QO46: 0 | QP46: 0 | QQ46: 0 | QR46: 0 | QS46: 0 | QT46: 0 | QU46: 0 | QV46: 0 | QW46: 0 | QX46: 0 | QY46: 0 | QZ46: 0 | RA46: 0 | RB46: 0 | RC46: 0 | RD46: 0 | RE46: 0 | RF46: 0 | RG46: 0 | RH46: 0 | RI46: 0 | RJ46: 0 | RK46: 0 | RL46: 0 | RM46: 0 | RN46: 0 | RO46: 0 | RP46: 0 | RQ46: 0 | RR46: 0 | RS46: 0 | RT46: 0 | RU46: 0 | RV46: 0 | RW46: 0 | RX46: 0 | RY46: 0 | RZ46: 0 | SA46: 0 | SB46: 0 | SC46: 0 | SD46: 0 | SE46: 0 | SF46: 0 | SG46: 0 | SH46: 0 | SI46: 0 | SJ46: 0 | SK46: 0 | SL46: 0 | SM46: 0 | SN46: 0 | SO46: 0 | SP46: 0 | SQ46: 0 | SR46: 0 | SS46: 0 | ST46: 0 | SU46: 0 | SV46: 0 | SW46: =SW44*SW45 -> 0 | SX46: 0 | SY46: 0 | SZ46: 0 | TA46: 0 | TB46: 0 | TC46: 0 | TD46: 0 | TE46: 0 | TF46: 0 | TG46: 0 | TH46: 0 | TI46: 0 | TJ46: 0 | TK46: 0 | TL46: 0 | TM46: 0 | TN46: 0 | TO46: 0 | TP46: 0 | TQ46: 0 | TR46: 0 | TS46: 0 | TT46: 0 | TU46: 0 | TV46: 0 | TW46: 0 | TX46: 0 | TY46: 0 | TZ46: 0 | UA46: 0 | UB46: 0 | UC46: 0 | UD46: 0 | UE46: 0 | UF46: 0 | UG46: 0 | UH46: 0 | UI46: 0 | UJ46: 0 | UK46: 0 | UL46: 0 | UM46: 0 | UN46: 0 | UO46: 0 | UP46: 0 | UQ46: 0 | UR46: 0 | US46: 0 | UT46: 0 | UU46: 0 | UV46: 0 | UW46: 0 | UX46: 0 | UY46: 0 | UZ46: 0 | VA46: 0 | VB46: 0 | VC46: 0 | VD46: 0 | VE46: 0 | VF46: 0 | VG46: 0 | VH46: 0 | VI46: =VI44*VI45 -> 0 | VJ46: 0 | VK46: 0 | VL46: 0 | VM46: 0 | VN46: 0 | VO46: 0 | VP46: 0 | VQ46: 0 | VR46: 0 | VS46: 0 | VT46: 0 | VU46: 0 | VV46: 0 | VW46: 0 | VX46: 0 | VY46: 0 | VZ46: 0 | WA46: 0 | WB46: 0 | WC46: 0 | WD46: 0 | WE46: 0 | WF46: 0 | WG46: 0 | WH46: 0 | WI46: 0 | WJ46: 0 | WK46: 0 | WL46: 0 | WM46: 0 | WN46: 0 | WO46: 0 | WP46: 0 | WQ46: 0 | WR46: 0 | WS46: 0 | WT46: 0 | WU46: 0 | WV46: 0 | WW46: 0 | WX46: 0 | WY46: 0 | WZ46: 0 | XA46: 0 | XB46: 0 | XC46: 0 | XD46: 0 | XE46: 0 | XF46: 0 | XG46: 0 | XH46: 0 | XI46: 0 | XJ46: 0 | XK46: 0 | XL46: 0 | XM46: 0 | XN46: 0 | XO46: 0 | XP46: 0 | XQ46: 0 | XR46: 0 | XS46: 0 | XT46: 0 | XU46: =XU44*XU45 -> 0 | XV46: 0 | XW46: 0 | XX46: 0 | XY46: 0 | XZ46: 0 | YA46: 0 | YB46: 0 | YC46: 0 | YD46: 0 | YE46: 0 | YF46: 0 | YG46: 0 | YH46: 0 | YI46: 0 | YJ46: 0 | YK46: 0 | YL46: 0 | YM46: 0 | YN46: 0 | YO46: 0 | YP46: 0 | YQ46: 0 | YR46: 0 | YS46: 0 | YT46: 0 | YU46: 0 | YV46: 0 | YW46: 0 | YX46: 0 | YY46: 0 | YZ46: 0 | ZA46: 0 | ZB46: 0 | ZC46: 0 | ZD46: 0 | ZE46: 0 | ZF46: 0 | ZG46: 0 | ZH46: 0 | ZI46: 0 | ZJ46: 0 | ZK46: 0 | ZL46: 0 | ZM46: 0 | ZN46: 0 | ZO46: 0 | ZP46: 0 | ZQ46: 0 | ZR46: 0 | ZS46: 0 | ZT46: 0 | ZU46: 0 | ZV46: 0 | ZW46: 0 | ZX46: 0 | ZY46: 0 | ZZ46: 0 | AAA46: 0 | AAB46: 0 | AAC46: 0 | AAD46: 0 | AAE46: 0 | AAF46: 0 | AAG46: =AAG44*AAG45 -> 0 | AAH46: 0 | AAI46: 0 | AAJ46: 0 | AAK46: 0 | AAL46: 0 | AAM46: 0 | AAN46: 0 | AAO46: 0 | AAP46: 0 | AAQ46: 0 | AAR46: 0 | AAS46: 0 | AAT46: 0 | AAU46: 0 | AAV46: 0 | AAW46: 0 | AAX46: 0 | AAY46: 0 | AAZ46: 0 | ABA46: 0 | ABB46: 0 | ABC46: 0 | ABD46: 0 | ABE46: 0 | ABF46: 0 | ABG46: 0 | ABH46: 0 | ABI46: 0 | ABJ46: 0 | ABK46: 0 | ABL46: 0 | ABM46: 0 | ABN46: 0 | ABO46: 0 | ABP46: 0 | ABQ46: 0 | ABR46: 0 | ABS46: 0 | ABT46: 0 | ABU46: 0 | ABV46: 0 | ABW46: 0 | ABX46: 0 | ABY46: 0 | ABZ46: 0
D48: Year | K48: =YEAR(K4) -> 2025 | L48: 2025 | M48: 2025 | N48: 2025 | O48: 2025 | P48: 2025 | Q48: 2025 | R48: 2025 | S48: 2025 | T48: 2025 | U48: 2025 | V48: 2025 | W48: 2026 | X48: 2026 | Y48: 2026 | Z48: 2026 | AA48: 2026 | AB48: 2026 | AC48: 2026 | AD48: 2026 | AE48: 2026 | AF48: 2026 | AG48: 2026 | AH48: 2026 | AI48: 2027 | AJ48: 2027 | AK48: 2027 | AL48: 2027 | AM48: 2027 | AN48: 2027 | AO48: 2027 | AP48: 2027 | AQ48: 2027 | AR48: 2027 | AS48: 2027 | AT48: 2027 | AU48: 2028 | AV48: 2028 | AW48: 2028 | AX48: 2028 | AY48: 2028 | AZ48: 2028 | BA48: 2028 | BB48: 2028 | BC48: 2028 | BD48: 2028 | BE48: 2028 | BF48: 2028 | BG48: 2029 | BH48: 2029 | BI48: 2029 | BJ48: 2029 | BK48: 2029 | BL48: 2029 | BM48: 2029 | BN48: 2029 | BO48: 2029 | BP48: 2029 | BQ48: 2029 | BR48: 2029 | BS48: 2030 | BT48: 2030 | BU48: 2030 | BV48: 2030 | BW48: =YEAR(BW4) -> 2030 | BX48: 2030 | BY48: 2030 | BZ48: 2030 | CA48: 2030 | CB48: 2030 | CC48: 2030 | CD48: 2030 | CE48: 2031 | CF48: 2031 | CG48: 2031 | CH48: 2031 | CI48: 2031 | CJ48: 2031 | CK48: 2031 | CL48: 2031 | CM48: 2031 | CN48: 2031 | CO48: 2031 | CP48: 2031 | CQ48: 2032 | CR48: 2032 | CS48: 2032 | CT48: 2032 | CU48: 2032 | CV48: 2032 | CW48: 2032 | CX48: 2032 | CY48: 2032 | CZ48: 2032 | DA48: 2032 | DB48: 2032 | DC48: 2033 | DD48: 2033 | DE48: 2033 | DF48: 2033 | DG48: 2033 | DH48: 2033 | DI48: 2033 | DJ48: 2033 | DK48: 2033 | DL48: 2033 | DM48: 2033 | DN48: 2033 | DO48: 2034 | DP48: 2034 | DQ48: 2034 | DR48: 2034 | DS48: 2034 | DT48: 2034 | DU48: 2034 | DV48: 2034 | DW48: 2034 | DX48: 2034 | DY48: 2034 | DZ48: 2034 | EA48: 2035 | EB48: 2035 | EC48: 2035 | ED48: 2035 | EE48: 2035 | EF48: 2035 | EG48: 2035 | EH48: 2035 | EI48: =YEAR(EI4) -> 2035 | EJ48: 2035 | EK48: 2035 | EL48: 2035 | EM48: 2036 | EN48: 2036 | EO48: 2036 | EP48: 2036 | EQ48: 2036 | ER48: 2036 | ES48: 2036 | ET48: 2036 | EU48: 2036 | EV48: 2036 | EW48: 2036 | EX48: 2036 | EY48: 2037 | EZ48: 2037 | FA48: 2037 | FB48: 2037 | FC48: 2037 | FD48: 2037 | FE48: 2037 | FF48: 2037 | FG48: 2037 | FH48: 2037 | FI48: 2037 | FJ48: 2037 | FK48: 2038 | FL48: 2038 | FM48: 2038 | FN48: 2038 | FO48: 2038 | FP48: 2038 | FQ48: 2038 | FR48: 2038 | FS48: 2038 | FT48: 2038 | FU48: 2038 | FV48: 2038 | FW48: 2039 | FX48: 2039 | FY48: 2039 | FZ48: 2039 | GA48: 2039 | GB48: 2039 | GC48: 2039 | GD48: 2039 | GE48: 2039 | GF48: 2039 | GG48: 2039 | GH48: 2039 | GI48: 2040 | GJ48: 2040 | GK48: 2040 | GL48: 2040 | GM48: 2040 | GN48: 2040 | GO48: 2040 | GP48: 2040 | GQ48: 2040 | GR48: 2040 | GS48: 2040 | GT48: 2040 | GU48: =YEAR(GU4) -> 2041 | GV48: 2041 | GW48: 2041 | GX48: 2041 | GY48: 2041 | GZ48: 2041 | HA48: 2041 | HB48: 2041 | HC48: 2041 | HD48: 2041 | HE48: 2041 | HF48: 2041 | HG48: 2042 | HH48: 2042 | HI48: 2042 | HJ48: 2042 | HK48: 2042 | HL48: 2042 | HM48: 2042 | HN48: 2042 | HO48: 2042 | HP48: 2042 | HQ48: 2042 | HR48: 2042 | HS48: 2043 | HT48: 2043 | HU48: 2043 | HV48: 2043 | HW48: 2043 | HX48: 2043 | HY48: 2043 | HZ48: 2043 | IA48: 2043 | IB48: 2043 | IC48: 2043 | ID48: 2043 | IE48: 2044 | IF48: 2044 | IG48: 2044 | IH48: 2044 | II48: 2044 | IJ48: 2044 | IK48: 2044 | IL48: 2044 | IM48: 2044 | IN48: 2044 | IO48: 2044 | IP48: 2044 | IQ48: 2045 | IR48: 2045 | IS48: 2045 | IT48: 2045 | IU48: 2045 | IV48: 2045 | IW48: 2045 | IX48: 2045 | IY48: 2045 | IZ48: 2045 | JA48: 2045 | JB48: 2045 | JC48: 2046 | JD48: 2046 | JE48: 2046 | JF48: 2046 | JG48: =YEAR(JG4) -> 2046 | JH48: 2046 | JI48: 2046 | JJ48: 2046 | JK48: 2046 | JL48: 2046 | JM48: 2046 | JN48: 2046 | JO48: 2047 | JP48: 2047 | JQ48: 2047 | JR48: 2047 | JS48: 2047 | JT48: 2047 | JU48: 2047 | JV48: 2047 | JW48: 2047 | JX48: 2047 | JY48: 2047 | JZ48: 2047 | KA48: 2048 | KB48: 2048 | KC48: 2048 | KD48: 2048 | KE48: 2048 | KF48: 2048 | KG48: 2048 | KH48: 2048 | KI48: 2048 | KJ48: 2048 | KK48: 2048 | KL48: 2048 | KM48: 2049 | KN48: 2049 | KO48: 2049 | KP48: 2049 | KQ48: 2049 | KR48: 2049 | KS48: 2049 | KT48: 2049 | KU48: 2049 | KV48: 2049 | KW48: 2049 | KX48: 2049 | KY48: 2050 | KZ48: 2050 | LA48: 2050 | LB48: 2050 | LC48: 2050 | LD48: 2050 | LE48: 2050 | LF48: 2050 | LG48: 2050 | LH48: 2050 | LI48: 2050 | LJ48: 2050 | LK48: 2051 | LL48: 2051 | LM48: 2051 | LN48: 2051 | LO48: 2051 | LP48: 2051 | LQ48: 2051 | LR48: 2051 | LS48: =YEAR(LS4) -> 2051 | LT48: 2051 | LU48: 2051 | LV48: 2051 | LW48: 2052 | LX48: 2052 | LY48: 2052 | LZ48: 2052 | MA48: 2052 | MB48: 2052 | MC48: 2052 | MD48: 2052 | ME48: 2052 | MF48: 2052 | MG48: 2052 | MH48: 2052 | MI48: 2053 | MJ48: 2053 | MK48: 2053 | ML48: 2053 | MM48: 2053 | MN48: 2053 | MO48: 2053 | MP48: 2053 | MQ48: 2053 | MR48: 2053 | MS48: 2053 | MT48: 2053 | MU48: 2054 | MV48: 2054 | MW48: 2054 | MX48: 2054 | MY48: 2054 | MZ48: 2054 | NA48: 2054 | NB48: 2054 | NC48: 2054 | ND48: 2054 | NE48: 2054 | NF48: 2054 | NG48: 2055 | NH48: 2055 | NI48: 2055 | NJ48: 2055 | NK48: 2055 | NL48: 2055 | NM48: 2055 | NN48: 2055 | NO48: 2055 | NP48: 2055 | NQ48: 2055 | NR48: 2055 | NS48: 2056 | NT48: 2056 | NU48: 2056 | NV48: 2056 | NW48: 2056 | NX48: 2056 | NY48: 2056 | NZ48: 2056 | OA48: 2056 | OB48: 2056 | OC48: 2056 | OD48: 2056 | OE48: =YEAR(OE4) -> 2057 | OF48: 2057 | OG48: 2057 | OH48: 2057 | OI48: 2057 | OJ48: 2057 | OK48: 2057 | OL48: 2057 | OM48: 2057 | ON48: 2057 | OO48: 2057 | OP48: 2057 | OQ48: 2058 | OR48: 2058 | OS48: 2058 | OT48: 2058 | OU48: 2058 | OV48: 2058 | OW48: 2058 | OX48: 2058 | OY48: 2058 | OZ48: 2058 | PA48: 2058 | PB48: 2058 | PC48: 2059 | PD48: 2059 | PE48: 2059 | PF48: 2059 | PG48: 2059 | PH48: 2059 | PI48: 2059 | PJ48: 2059 | PK48: 2059 | PL48: 2059 | PM48: 2059 | PN48: 2059 | PO48: 2060 | PP48: 2060 | PQ48: 2060 | PR48: 2060 | PS48: 2060 | PT48: 2060 | PU48: 2060 | PV48: 2060 | PW48: 2060 | PX48: 2060 | PY48: 2060 | PZ48: 2060 | QA48: 2061 | QB48: 2061 | QC48: 2061 | QD48: 2061 | QE48: 2061 | QF48: 2061 | QG48: 2061 | QH48: 2061 | QI48: 2061 | QJ48: 2061 | QK48: 2061 | QL48: 2061 | QM48: 2062 | QN48: 2062 | QO48: 2062 | QP48: 2062 | QQ48: =YEAR(QQ4) -> 2062 | QR48: 2062 | QS48: 2062 | QT48: 2062 | QU48: 2062 | QV48: 2062 | QW48: 2062 | QX48: 2062 | QY48: 2063 | QZ48: 2063 | RA48: 2063 | RB48: 2063 | RC48: 2063 | RD48: 2063 | RE48: 2063 | RF48: 2063 | RG48: 2063 | RH48: 2063 | RI48: 2063 | RJ48: 2063 | RK48: 2064 | RL48: 2064 | RM48: 2064 | RN48: 2064 | RO48: 2064 | RP48: 2064 | RQ48: 2064 | RR48: 2064 | RS48: 2064 | RT48: 2064 | RU48: 2064 | RV48: 2064 | RW48: 2065 | RX48: 2065 | RY48: 2065 | RZ48: 2065 | SA48: 2065 | SB48: 2065 | SC48: 2065 | SD48: 2065 | SE48: 2065 | SF48: 2065 | SG48: 2065 | SH48: 2065 | SI48: 2066 | SJ48: 2066 | SK48: 2066 | SL48: 2066 | SM48: 2066 | SN48: 2066 | SO48: 2066 | SP48: 2066 | SQ48: 2066 | SR48: 2066 | SS48: 2066 | ST48: 2066 | SU48: 2067 | SV48: 2067 | SW48: 2067 | SX48: 2067 | SY48: 2067 | SZ48: 2067 | TA48: 2067 | TB48: 2067 | TC48: =YEAR(TC4) -> 2067 | TD48: 2067 | TE48: 2067 | TF48: 2067 | TG48: 2068 | TH48: 2068 | TI48: 2068 | TJ48: 2068 | TK48: 2068 | TL48: 2068 | TM48: 2068 | TN48: 2068 | TO48: 2068 | TP48: 2068 | TQ48: 2068 | TR48: 2068 | TS48: 2069 | TT48: 2069 | TU48: 2069 | TV48: 2069 | TW48: 2069 | TX48: 2069 | TY48: 2069 | TZ48: 2069 | UA48: 2069 | UB48: 2069 | UC48: 2069 | UD48: 2069 | UE48: 2070 | UF48: 2070 | UG48: 2070 | UH48: 2070 | UI48: 2070 | UJ48: 2070 | UK48: 2070 | UL48: 2070 | UM48: 2070 | UN48: 2070 | UO48: 2070 | UP48: 2070 | UQ48: 2071 | UR48: 2071 | US48: 2071 | UT48: 2071 | UU48: 2071 | UV48: 2071 | UW48: 2071 | UX48: 2071 | UY48: 2071 | UZ48: 2071 | VA48: 2071 | VB48: 2071 | VC48: 2072 | VD48: 2072 | VE48: 2072 | VF48: 2072 | VG48: 2072 | VH48: 2072 | VI48: 2072 | VJ48: 2072 | VK48: 2072 | VL48: 2072 | VM48: 2072 | VN48: 2072 | VO48: =YEAR(VO4) -> 2073 | VP48: 2073 | VQ48: 2073 | VR48: 2073 | VS48: 2073 | VT48: 2073 | VU48: 2073 | VV48: 2073 | VW48: 2073 | VX48: 2073 | VY48: 2073 | VZ48: 2073 | WA48: 2074 | WB48: 2074 | WC48: 2074 | WD48: 2074 | WE48: 2074 | WF48: 2074 | WG48: 2074 | WH48: 2074 | WI48: 2074 | WJ48: 2074 | WK48: 2074 | WL48: 2074 | WM48: 2075 | WN48: 2075 | WO48: 2075 | WP48: 2075 | WQ48: 2075 | WR48: 2075 | WS48: 2075 | WT48: 2075 | WU48: 2075 | WV48: 2075 | WW48: 2075 | WX48: 2075 | WY48: 2076 | WZ48: 2076 | XA48: 2076 | XB48: 2076 | XC48: 2076 | XD48: 2076 | XE48: 2076 | XF48: 2076 | XG48: 2076 | XH48: 2076 | XI48: 2076 | XJ48: 2076 | XK48: 2077 | XL48: 2077 | XM48: 2077 | XN48: 2077 | XO48: 2077 | XP48: 2077 | XQ48: 2077 | XR48: 2077 | XS48: 2077 | XT48: 2077 | XU48: 2077 | XV48: 2077 | XW48: 2078 | XX48: 2078 | XY48: 2078 | XZ48: 2078 | YA48: =YEAR(YA4) -> 2078 | YB48: 2078 | YC48: 2078 | YD48: 2078 | YE48: 2078 | YF48: 2078 | YG48: 2078 | YH48: 2078 | YI48: 2079 | YJ48: 2079 | YK48: 2079 | YL48: 2079 | YM48: 2079 | YN48: 2079 | YO48: 2079 | YP48: 2079 | YQ48: 2079 | YR48: 2079 | YS48: 2079 | YT48: 2079 | YU48: 2080 | YV48: 2080 | YW48: 2080 | YX48: 2080 | YY48: 2080 | YZ48: 2080 | ZA48: 2080 | ZB48: 2080 | ZC48: 2080 | ZD48: 2080 | ZE48: 2080 | ZF48: 2080 | ZG48: 2081 | ZH48: 2081 | ZI48: 2081 | ZJ48: 2081 | ZK48: 2081 | ZL48: 2081 | ZM48: 2081 | ZN48: 2081 | ZO48: 2081 | ZP48: 2081 | ZQ48: 2081 | ZR48: 2081 | ZS48: 2082 | ZT48: 2082 | ZU48: 2082 | ZV48: 2082 | ZW48: 2082 | ZX48: 2082 | ZY48: 2082 | ZZ48: 2082 | AAA48: 2082 | AAB48: 2082 | AAC48: 2082 | AAD48: 2082 | AAE48: 2083 | AAF48: 2083 | AAG48: 2083 | AAH48: 2083 | AAI48: 2083 | AAJ48: 2083 | AAK48: 2083 | AAL48: 2083 | AAM48: =YEAR(AAM4) -> 2083 | AAN48: 2083 | AAO48: 2083 | AAP48: 2083 | AAQ48: 2084 | AAR48: 2084 | AAS48: 2084 | AAT48: 2084 | AAU48: 2084 | AAV48: 2084 | AAW48: 2084 | AAX48: 2084 | AAY48: 2084 | AAZ48: 2084 | ABA48: 2084 | ABB48: 2084 | ABC48: 2085 | ABD48: 2085 | ABE48: 2085 | ABF48: 2085 | ABG48: 2085 | ABH48: 2085 | ABI48: 2085 | ABJ48: 2085 | ABK48: 2085 | ABL48: 2085 | ABM48: 2085 | ABN48: 2085 | ABO48: 2086 | ABP48: 2086 | ABQ48: 2086 | ABR48: 2086 | ABS48: 2086 | ABT48: 2086 | ABU48: 2086 | ABV48: 2086 | ABW48: 2086 | ABX48: 2086 | ABY48: 2086 | ABZ48: 2086
